{"text_format":"1","workbook":"xlsx","n_sheets":3,"sheets":["FORMULÁRIO DE INSCRIÇÃO","BANCO DE DADOS","estados e municípios"],"not_rendered":{"charts":0,"images":2,"macros":1,"external_links":0,"defined_names":3,"comments":1,"pivot_tables":0},"unopened":[],"bounds":{"document_bytes":16777216,"sheet_cells":100000,"rows_first":2000,"rows_last":500,"rows_between":2000,"halvings":0,"cell_chars":16384,"cell_head_chars":4096},"cells_cut":0,"cells_raw":0,"read":"whole","date_system":"1900"}

{"sheet":"FORMULÁRIO DE INSCRIÇÃO","index":0,"n_rows":39,"n_cols":10,"rows_kept":39,"cut":false,"hidden":false,"merged":[[1,1,2,7],[3,1,3,7],[5,1,5,7],[6,3,6,5],[6,6,6,7],[7,3,7,5],[7,6,7,7],[9,1,9,7],[10,2,10,7],[11,6,11,7],[13,1,13,7],[14,2,14,7],[15,2,15,7],[16,2,16,7],[18,1,18,7],[19,2,19,3],[19,4,19,5],[20,2,20,3],[20,4,20,5],[21,2,21,3],[22,2,22,3],[23,2,23,3],[31,2,31,3],[32,2,32,3],[33,2,33,3],[34,2,34,3],[35,2,35,3],[24,2,24,3],[25,2,25,3],[26,2,26,3],[27,2,27,3],[28,2,28,3],[29,2,29,3],[30,2,30,3],[21,4,21,5],[22,4,22,5],[23,4,23,5],[24,4,24,5],[32,4,32,5],[33,4,33,5],[34,4,34,5],[35,4,35,5],[25,4,25,5],[26,4,26,5],[27,4,27,5],[28,4,28,5],[29,4,29,5],[30,4,30,5],[31,4,31,5]]}
[]
[null,"PROJETO MPT NA ESCOLA"]
[]
[null," - FICHA DE PARTICIPAÇÃO 2026 -"]
[]
[null,"IDENTIFICAÇÃO DO ENTE PARTICIPANTE"]
[null,"ESTADO:","SP","MUNICÍPIO:",null,null,"São Paulo"]
[null,"SECRETARIA DE EDUCAÇÃO MUNICIPAL OU ESTADUAL?","Estadual","NOME DO(A) SECRETÁRIO(A) DE EDUCAÇÃO:",null,null,"Renato Feder"]
[]
[null,"IDENTIFICAÇÃO DO(A) COORDENADOR(A) LOCAL DO PROJETO"]
[null,"NOME:"]
[null,"TELEFONE:",null,"CELULAR:",null,"E-MAIL:"]
[]
[null,"DADOS ABSOLUTOS DO MUNICÍPIO PARTICIPANTE"]
[null,"QUANTIDADE TOTAL DE ESCOLAS DO MUNICÍPIO:"]
[null,"QUANTIDADE TOTAL DE EDUCADORES(AS) DO MUNICÍPIO:"]
[null,"QUANTIDADE TOTAL DE ALUNOS(AS) DO MUNICÍPIO:"]
[]
[null,"DADOS DAS ESCOLAS PARTICIPANTES DO PROJETO"]
[null,"NOME DA ESCOLA","Nº DE EDUCADORES(AS) PARTICIPANTES",null,"Nº DE ALUNOS(AS) PARTICIPANTES",null,"SÉRIE/ANO","TEMA"]
[null,null,null,null,null,null,null,null,null,{"$f":"VLOOKUP(G21,'estados e municípios'!$E$36:$G$38,3)","v":"#N/A"}]
[null,null,null,null,null,null,null,null,null,{"$f":"VLOOKUP(G22,'estados e municípios'!$E$36:$G$39,3)","v":"#N/A"}]
[null,null,null,null,null,null,null,null,null,{"$f":"VLOOKUP(G23,'estados e municípios'!$E$36:$G$39,3)","v":"#N/A"}]
[null,null,null,null,null,null,null,null,null,{"$f":"VLOOKUP(G24,'estados e municípios'!$E$36:$G$39,3)","v":"#N/A"}]
[null,null,null,null,null,null,null,null,null,{"$f":"VLOOKUP(G25,'estados e municípios'!$E$36:$G$39,3)","v":"#N/A"}]
[null,null,null,null,null,null,null,null,null,{"$f":"VLOOKUP(G26,'estados e municípios'!$E$36:$G$39,3)","v":"#N/A"}]
[null,null,null,null,null,null,null,null,null,{"$f":"VLOOKUP(G27,'estados e municípios'!$E$36:$G$39,3)","v":"#N/A"}]
[null,null,null,null,null,null,null,null,null,{"$f":"VLOOKUP(G28,'estados e municípios'!$E$36:$G$39,3)","v":"#N/A"}]
[null,null,null,null,null,null,null,null,null,{"$f":"VLOOKUP(G29,'estados e municípios'!$E$36:$G$39,3)","v":"#N/A"}]
[null,null,null,null,null,null,null,null,null,{"$f":"VLOOKUP(G30,'estados e municípios'!$E$36:$G$39,3)","v":"#N/A"}]
[null,null,null,null,null,null,null,null,null,{"$f":"VLOOKUP(G31,'estados e municípios'!$E$36:$G$39,3)","v":"#N/A"}]
[null,null,null,null,null,null,null,null,null,{"$f":"VLOOKUP(G32,'estados e municípios'!$E$36:$G$39,3)","v":"#N/A"}]
[null,null,null,null,null,null,null,null,null,{"$f":"VLOOKUP(G33,'estados e municípios'!$E$36:$G$39,3)","v":"#N/A"}]
[null,null,null,null,null,null,null,null,null,{"$f":"VLOOKUP(G34,'estados e municípios'!$E$36:$G$39,3)","v":"#N/A"}]
[null,null,null,null,null,null,null,null,null,{"$f":"VLOOKUP(G35,'estados e municípios'!$E$36:$G$39,3)","v":"#N/A"}]
[null,{"$f":"\"TOTAL = \"&COUNTA(UNIQUE(B21:B35))-1&\" ESCOLA(S) PARTICIPANTE(S)\"","v":"TOTAL = -1 ESCOLA(S) PARTICIPANTE(S)"},{"$f":"SUM(C21:C35)","v":0},null,{"$f":"SUM(E21:E35)","v":0},null,"-","-"]
[]
[]
[null,null,null,null,null,null,1.0]

{"sheet":"BANCO DE DADOS","index":1,"n_rows":101,"n_cols":16,"rows_kept":101,"cut":false,"hidden":true,"merged":[[1,7,100,7],[1,8,100,8],[1,9,100,9],[1,10,100,10],[1,0,100,0],[1,1,100,1],[1,2,100,2],[1,3,100,3],[1,4,100,4],[1,5,100,5],[1,6,100,6]]}
["ESTADO:","MUNICÍPIO:","ESFERA DE GOVERNO:","SECRETÁRIO(A):","NOME:","TELEFONE:","CELULAR:","E-MAIL:","TOTAL ESCOLAS","TOTAL EDUCADORES(AS)","TOTAL ALUNOS(AS)","ESCOLA","EDUCADORES(AS) PARTICIPANTES","ALUNOS(AS) PARTICIPANTES","SÉRIE/ANO","TEMA"]
[{"$f":"'FORMULÁRIO DE INSCRIÇÃO'!C7","v":"SP"},{"$f":"'FORMULÁRIO DE INSCRIÇÃO'!G7","v":"São Paulo"},{"$f":"'FORMULÁRIO DE INSCRIÇÃO'!C8","v":"Estadual"},{"$f":"'FORMULÁRIO DE INSCRIÇÃO'!G8","v":"Renato Feder"},{"$f":"'FORMULÁRIO DE INSCRIÇÃO'!C11","v":""},{"$f":"'FORMULÁRIO DE INSCRIÇÃO'!C12","v":""},{"$f":"'FORMULÁRIO DE INSCRIÇÃO'!E12","v":""},{"$f":"'FORMULÁRIO DE INSCRIÇÃO'!G12","v":""},{"$f":"'FORMULÁRIO DE INSCRIÇÃO'!C15","v":""},{"$f":"'FORMULÁRIO DE INSCRIÇÃO'!C16","v":""},{"$f":"'FORMULÁRIO DE INSCRIÇÃO'!C17","v":""},{"$f":"'FORMULÁRIO DE INSCRIÇÃO'!B21","v":""},{"$f":"'FORMULÁRIO DE INSCRIÇÃO'!C21","v":""},{"$f":"'FORMULÁRIO DE INSCRIÇÃO'!E21","v":""},{"$f":"'FORMULÁRIO DE INSCRIÇÃO'!G21","v":""},{"$f":"'FORMULÁRIO DE INSCRIÇÃO'!H21","v":""}]
[null,null,null,null,null,null,null,null,null,null,null,{"$f":"#REF!","v":"#REF!"},"#REF!","#REF!","#REF!","#REF!"]
[null,null,null,null,null,null,null,null,null,null,null,{"$f":"#REF!","v":"#REF!"},"#REF!","#REF!","#REF!","#REF!"]
[null,null,null,null,null,null,null,null,null,null,null,{"$f":"#REF!","v":"#REF!"},"#REF!","#REF!","#REF!","#REF!"]
[null,null,null,null,null,null,null,null,null,null,null,{"$f":"#REF!","v":"#REF!"},"#REF!","#REF!","#REF!","#REF!"]
[null,null,null,null,null,null,null,null,null,null,null,{"$f":"#REF!","v":"#REF!"},"#REF!","#REF!","#REF!","#REF!"]
[null,null,null,null,null,null,null,null,null,null,null,{"$f":"#REF!","v":"#REF!"},"#REF!","#REF!","#REF!","#REF!"]
[null,null,null,null,null,null,null,null,null,null,null,{"$f":"#REF!","v":"#REF!"},"#REF!","#REF!","#REF!","#REF!"]
[null,null,null,null,null,null,null,null,null,null,null,{"$f":"#REF!","v":"#REF!"},"#REF!","#REF!","#REF!","#REF!"]
[null,null,null,null,null,null,null,null,null,null,null,{"$f":"#REF!","v":"#REF!"},"#REF!","#REF!","#REF!","#REF!"]
[null,null,null,null,null,null,null,null,null,null,null,{"$f":"#REF!","v":"#REF!"},"#REF!","#REF!","#REF!","#REF!"]
[null,null,null,null,null,null,null,null,null,null,null,{"$f":"#REF!","v":"#REF!"},"#REF!","#REF!","#REF!","#REF!"]
[null,null,null,null,null,null,null,null,null,null,null,{"$f":"#REF!","v":"#REF!"},"#REF!","#REF!","#REF!","#REF!"]
[null,null,null,null,null,null,null,null,null,null,null,{"$f":"#REF!","v":"#REF!"},"#REF!","#REF!","#REF!","#REF!"]
[null,null,null,null,null,null,null,null,null,null,null,{"$f":"#REF!","v":"#REF!"},"#REF!","#REF!","#REF!","#REF!"]
[null,null,null,null,null,null,null,null,null,null,null,{"$f":"#REF!","v":"#REF!"},"#REF!","#REF!","#REF!","#REF!"]
[null,null,null,null,null,null,null,null,null,null,null,{"$f":"#REF!","v":"#REF!"},"#REF!","#REF!","#REF!","#REF!"]
[null,null,null,null,null,null,null,null,null,null,null,{"$f":"#REF!","v":"#REF!"},"#REF!","#REF!","#REF!","#REF!"]
[null,null,null,null,null,null,null,null,null,null,null,{"$f":"#REF!","v":"#REF!"},"#REF!","#REF!","#REF!","#REF!"]
[null,null,null,null,null,null,null,null,null,null,null,{"$f":"#REF!","v":"#REF!"},"#REF!","#REF!","#REF!","#REF!"]
[null,null,null,null,null,null,null,null,null,null,null,{"$f":"#REF!","v":"#REF!"},"#REF!","#REF!","#REF!","#REF!"]
[null,null,null,null,null,null,null,null,null,null,null,{"$f":"#REF!","v":"#REF!"},"#REF!","#REF!","#REF!","#REF!"]
[null,null,null,null,null,null,null,null,null,null,null,{"$f":"#REF!","v":"#REF!"},"#REF!","#REF!","#REF!","#REF!"]
[null,null,null,null,null,null,null,null,null,null,null,{"$f":"#REF!","v":"#REF!"},"#REF!","#REF!","#REF!","#REF!"]
[null,null,null,null,null,null,null,null,null,null,null,{"$f":"#REF!","v":"#REF!"},"#REF!","#REF!","#REF!","#REF!"]
[null,null,null,null,null,null,null,null,null,null,null,{"$f":"#REF!","v":"#REF!"},"#REF!","#REF!","#REF!","#REF!"]
[null,null,null,null,null,null,null,null,null,null,null,{"$f":"#REF!","v":"#REF!"},"#REF!","#REF!","#REF!","#REF!"]
[null,null,null,null,null,null,null,null,null,null,null,{"$f":"#REF!","v":"#REF!"},"#REF!","#REF!","#REF!","#REF!"]
[null,null,null,null,null,null,null,null,null,null,null,{"$f":"#REF!","v":"#REF!"},"#REF!","#REF!","#REF!","#REF!"]
[null,null,null,null,null,null,null,null,null,null,null,{"$f":"#REF!","v":"#REF!"},"#REF!","#REF!","#REF!","#REF!"]
[null,null,null,null,null,null,null,null,null,null,null,{"$f":"#REF!","v":"#REF!"},"#REF!","#REF!","#REF!","#REF!"]
[null,null,null,null,null,null,null,null,null,null,null,{"$f":"#REF!","v":"#REF!"},"#REF!","#REF!","#REF!","#REF!"]
[null,null,null,null,null,null,null,null,null,null,null,{"$f":"#REF!","v":"#REF!"},"#REF!","#REF!","#REF!","#REF!"]
[null,null,null,null,null,null,null,null,null,null,null,{"$f":"#REF!","v":"#REF!"},"#REF!","#REF!","#REF!","#REF!"]
[null,null,null,null,null,null,null,null,null,null,null,{"$f":"#REF!","v":"#REF!"},"#REF!","#REF!","#REF!","#REF!"]
[null,null,null,null,null,null,null,null,null,null,null,{"$f":"#REF!","v":"#REF!"},"#REF!","#REF!","#REF!","#REF!"]
[null,null,null,null,null,null,null,null,null,null,null,{"$f":"#REF!","v":"#REF!"},"#REF!","#REF!","#REF!","#REF!"]
[null,null,null,null,null,null,null,null,null,null,null,{"$f":"#REF!","v":"#REF!"},"#REF!","#REF!","#REF!","#REF!"]
[null,null,null,null,null,null,null,null,null,null,null,{"$f":"#REF!","v":"#REF!"},"#REF!","#REF!","#REF!","#REF!"]
[null,null,null,null,null,null,null,null,null,null,null,{"$f":"#REF!","v":"#REF!"},"#REF!","#REF!","#REF!","#REF!"]
[null,null,null,null,null,null,null,null,null,null,null,{"$f":"#REF!","v":"#REF!"},"#REF!","#REF!","#REF!","#REF!"]
[null,null,null,null,null,null,null,null,null,null,null,{"$f":"#REF!","v":"#REF!"},"#REF!","#REF!","#REF!","#REF!"]
[null,null,null,null,null,null,null,null,null,null,null,{"$f":"#REF!","v":"#REF!"},"#REF!","#REF!","#REF!","#REF!"]
[null,null,null,null,null,null,null,null,null,null,null,{"$f":"#REF!","v":"#REF!"},"#REF!","#REF!","#REF!","#REF!"]
[null,null,null,null,null,null,null,null,null,null,null,{"$f":"#REF!","v":"#REF!"},"#REF!","#REF!","#REF!","#REF!"]
[null,null,null,null,null,null,null,null,null,null,null,{"$f":"#REF!","v":"#REF!"},"#REF!","#REF!","#REF!","#REF!"]
[null,null,null,null,null,null,null,null,null,null,null,{"$f":"#REF!","v":"#REF!"},"#REF!","#REF!","#REF!","#REF!"]
[null,null,null,null,null,null,null,null,null,null,null,{"$f":"#REF!","v":"#REF!"},"#REF!","#REF!","#REF!","#REF!"]
[null,null,null,null,null,null,null,null,null,null,null,{"$f":"#REF!","v":"#REF!"},"#REF!","#REF!","#REF!","#REF!"]
[null,null,null,null,null,null,null,null,null,null,null,{"$f":"#REF!","v":"#REF!"},"#REF!","#REF!","#REF!","#REF!"]
[null,null,null,null,null,null,null,null,null,null,null,{"$f":"#REF!","v":"#REF!"},"#REF!","#REF!","#REF!","#REF!"]
[null,null,null,null,null,null,null,null,null,null,null,{"$f":"#REF!","v":"#REF!"},"#REF!","#REF!","#REF!","#REF!"]
[null,null,null,null,null,null,null,null,null,null,null,{"$f":"#REF!","v":"#REF!"},"#REF!","#REF!","#REF!","#REF!"]
[null,null,null,null,null,null,null,null,null,null,null,{"$f":"#REF!","v":"#REF!"},"#REF!","#REF!","#REF!","#REF!"]
[null,null,null,null,null,null,null,null,null,null,null,{"$f":"#REF!","v":"#REF!"},"#REF!","#REF!","#REF!","#REF!"]
[null,null,null,null,null,null,null,null,null,null,null,{"$f":"#REF!","v":"#REF!"},"#REF!","#REF!","#REF!","#REF!"]
[null,null,null,null,null,null,null,null,null,null,null,{"$f":"#REF!","v":"#REF!"},"#REF!","#REF!","#REF!","#REF!"]
[null,null,null,null,null,null,null,null,null,null,null,{"$f":"#REF!","v":"#REF!"},"#REF!","#REF!","#REF!","#REF!"]
[null,null,null,null,null,null,null,null,null,null,null,{"$f":"#REF!","v":"#REF!"},"#REF!","#REF!","#REF!","#REF!"]
[null,null,null,null,null,null,null,null,null,null,null,{"$f":"#REF!","v":"#REF!"},"#REF!","#REF!","#REF!","#REF!"]
[null,null,null,null,null,null,null,null,null,null,null,{"$f":"#REF!","v":"#REF!"},"#REF!","#REF!","#REF!","#REF!"]
[null,null,null,null,null,null,null,null,null,null,null,{"$f":"#REF!","v":"#REF!"},"#REF!","#REF!","#REF!","#REF!"]
[null,null,null,null,null,null,null,null,null,null,null,{"$f":"#REF!","v":"#REF!"},"#REF!","#REF!","#REF!","#REF!"]
[null,null,null,null,null,null,null,null,null,null,null,{"$f":"#REF!","v":"#REF!"},"#REF!","#REF!","#REF!","#REF!"]
[null,null,null,null,null,null,null,null,null,null,null,{"$f":"#REF!","v":"#REF!"},"#REF!","#REF!","#REF!","#REF!"]
[null,null,null,null,null,null,null,null,null,null,null,{"$f":"#REF!","v":"#REF!"},"#REF!","#REF!","#REF!","#REF!"]
[null,null,null,null,null,null,null,null,null,null,null,{"$f":"#REF!","v":"#REF!"},"#REF!","#REF!","#REF!","#REF!"]
[null,null,null,null,null,null,null,null,null,null,null,{"$f":"#REF!","v":"#REF!"},"#REF!","#REF!","#REF!","#REF!"]
[null,null,null,null,null,null,null,null,null,null,null,{"$f":"#REF!","v":"#REF!"},"#REF!","#REF!","#REF!","#REF!"]
[null,null,null,null,null,null,null,null,null,null,null,{"$f":"#REF!","v":"#REF!"},"#REF!","#REF!","#REF!","#REF!"]
[null,null,null,null,null,null,null,null,null,null,null,{"$f":"#REF!","v":"#REF!"},"#REF!","#REF!","#REF!","#REF!"]
[null,null,null,null,null,null,null,null,null,null,null,{"$f":"#REF!","v":"#REF!"},"#REF!","#REF!","#REF!","#REF!"]
[null,null,null,null,null,null,null,null,null,null,null,{"$f":"#REF!","v":"#REF!"},"#REF!","#REF!","#REF!","#REF!"]
[null,null,null,null,null,null,null,null,null,null,null,{"$f":"#REF!","v":"#REF!"},"#REF!","#REF!","#REF!","#REF!"]
[null,null,null,null,null,null,null,null,null,null,null,{"$f":"#REF!","v":"#REF!"},"#REF!","#REF!","#REF!","#REF!"]
[null,null,null,null,null,null,null,null,null,null,null,{"$f":"#REF!","v":"#REF!"},"#REF!","#REF!","#REF!","#REF!"]
[null,null,null,null,null,null,null,null,null,null,null,{"$f":"#REF!","v":"#REF!"},"#REF!","#REF!","#REF!","#REF!"]
[null,null,null,null,null,null,null,null,null,null,null,{"$f":"#REF!","v":"#REF!"},"#REF!","#REF!","#REF!","#REF!"]
[null,null,null,null,null,null,null,null,null,null,null,{"$f":"#REF!","v":"#REF!"},"#REF!","#REF!","#REF!","#REF!"]
[null,null,null,null,null,null,null,null,null,null,null,{"$f":"#REF!","v":"#REF!"},"#REF!","#REF!","#REF!","#REF!"]
[null,null,null,null,null,null,null,null,null,null,null,{"$f":"#REF!","v":"#REF!"},"#REF!","#REF!","#REF!","#REF!"]
[null,null,null,null,null,null,null,null,null,null,null,{"$f":"#REF!","v":"#REF!"},"#REF!","#REF!","#REF!","#REF!"]
[null,null,null,null,null,null,null,null,null,null,null,{"$f":"#REF!","v":"#REF!"},"#REF!","#REF!","#REF!","#REF!"]
[null,null,null,null,null,null,null,null,null,null,null,{"$f":"#REF!","v":"#REF!"},"#REF!","#REF!","#REF!","#REF!"]
[null,null,null,null,null,null,null,null,null,null,null,{"$f":"#REF!","v":"#REF!"},"#REF!","#REF!","#REF!","#REF!"]
[null,null,null,null,null,null,null,null,null,null,null,{"$f":"#REF!","v":"#REF!"},"#REF!","#REF!","#REF!","#REF!"]
[null,null,null,null,null,null,null,null,null,null,null,{"$f":"'FORMULÁRIO DE INSCRIÇÃO'!B22","v":""},{"$f":"'FORMULÁRIO DE INSCRIÇÃO'!C22","v":""},{"$f":"'FORMULÁRIO DE INSCRIÇÃO'!E22","v":""},{"$f":"'FORMULÁRIO DE INSCRIÇÃO'!G22","v":""},{"$f":"'FORMULÁRIO DE INSCRIÇÃO'!H22","v":""}]
[null,null,null,null,null,null,null,null,null,null,null,{"$f":"'FORMULÁRIO DE INSCRIÇÃO'!B23","v":""},{"$f":"'FORMULÁRIO DE INSCRIÇÃO'!C23","v":""},{"$f":"'FORMULÁRIO DE INSCRIÇÃO'!E23","v":""},{"$f":"'FORMULÁRIO DE INSCRIÇÃO'!G23","v":""},{"$f":"'FORMULÁRIO DE INSCRIÇÃO'!H23","v":""}]
[null,null,null,null,null,null,null,null,null,null,null,{"$f":"'FORMULÁRIO DE INSCRIÇÃO'!B24","v":""},{"$f":"'FORMULÁRIO DE INSCRIÇÃO'!C24","v":""},{"$f":"'FORMULÁRIO DE INSCRIÇÃO'!E24","v":""},{"$f":"'FORMULÁRIO DE INSCRIÇÃO'!G24","v":""},{"$f":"'FORMULÁRIO DE INSCRIÇÃO'!H24","v":""}]
[null,null,null,null,null,null,null,null,null,null,null,{"$f":"'FORMULÁRIO DE INSCRIÇÃO'!B25","v":""},{"$f":"'FORMULÁRIO DE INSCRIÇÃO'!C25","v":""},{"$f":"'FORMULÁRIO DE INSCRIÇÃO'!E25","v":""},{"$f":"'FORMULÁRIO DE INSCRIÇÃO'!G25","v":""},{"$f":"'FORMULÁRIO DE INSCRIÇÃO'!H25","v":""}]
[null,null,null,null,null,null,null,null,null,null,null,{"$f":"'FORMULÁRIO DE INSCRIÇÃO'!B26","v":""},{"$f":"'FORMULÁRIO DE INSCRIÇÃO'!C26","v":""},{"$f":"'FORMULÁRIO DE INSCRIÇÃO'!E26","v":""},{"$f":"'FORMULÁRIO DE INSCRIÇÃO'!G26","v":""},{"$f":"'FORMULÁRIO DE INSCRIÇÃO'!H26","v":""}]
[null,null,null,null,null,null,null,null,null,null,null,{"$f":"'FORMULÁRIO DE INSCRIÇÃO'!B27","v":""},{"$f":"'FORMULÁRIO DE INSCRIÇÃO'!C27","v":""},{"$f":"'FORMULÁRIO DE INSCRIÇÃO'!E27","v":""},{"$f":"'FORMULÁRIO DE INSCRIÇÃO'!G27","v":""},{"$f":"'FORMULÁRIO DE INSCRIÇÃO'!H27","v":""}]
[null,null,null,null,null,null,null,null,null,null,null,{"$f":"'FORMULÁRIO DE INSCRIÇÃO'!B28","v":""},{"$f":"'FORMULÁRIO DE INSCRIÇÃO'!C28","v":""},{"$f":"'FORMULÁRIO DE INSCRIÇÃO'!E28","v":""},{"$f":"'FORMULÁRIO DE INSCRIÇÃO'!G28","v":""},{"$f":"'FORMULÁRIO DE INSCRIÇÃO'!H28","v":""}]
[null,null,null,null,null,null,null,null,null,null,null,{"$f":"'FORMULÁRIO DE INSCRIÇÃO'!B29","v":""},{"$f":"'FORMULÁRIO DE INSCRIÇÃO'!C29","v":""},{"$f":"'FORMULÁRIO DE INSCRIÇÃO'!E29","v":""},{"$f":"'FORMULÁRIO DE INSCRIÇÃO'!G29","v":""},{"$f":"'FORMULÁRIO DE INSCRIÇÃO'!H29","v":""}]
[null,null,null,null,null,null,null,null,null,null,null,{"$f":"'FORMULÁRIO DE INSCRIÇÃO'!B30","v":""},{"$f":"'FORMULÁRIO DE INSCRIÇÃO'!C30","v":""},{"$f":"'FORMULÁRIO DE INSCRIÇÃO'!E30","v":""},{"$f":"'FORMULÁRIO DE INSCRIÇÃO'!G30","v":""},{"$f":"'FORMULÁRIO DE INSCRIÇÃO'!H30","v":""}]
[null,null,null,null,null,null,null,null,null,null,null,{"$f":"'FORMULÁRIO DE INSCRIÇÃO'!B31","v":""},{"$f":"'FORMULÁRIO DE INSCRIÇÃO'!C31","v":""},{"$f":"'FORMULÁRIO DE INSCRIÇÃO'!E31","v":""},{"$f":"'FORMULÁRIO DE INSCRIÇÃO'!G31","v":""},{"$f":"'FORMULÁRIO DE INSCRIÇÃO'!H31","v":""}]
[null,null,null,null,null,null,null,null,null,null,null,{"$f":"'FORMULÁRIO DE INSCRIÇÃO'!B32","v":""},{"$f":"'FORMULÁRIO DE INSCRIÇÃO'!C32","v":""},{"$f":"'FORMULÁRIO DE INSCRIÇÃO'!E32","v":""},{"$f":"'FORMULÁRIO DE INSCRIÇÃO'!G32","v":""},{"$f":"'FORMULÁRIO DE INSCRIÇÃO'!H32","v":""}]
[null,null,null,null,null,null,null,null,null,null,null,{"$f":"'FORMULÁRIO DE INSCRIÇÃO'!B33","v":""},{"$f":"'FORMULÁRIO DE INSCRIÇÃO'!C33","v":""},{"$f":"'FORMULÁRIO DE INSCRIÇÃO'!E33","v":""},{"$f":"'FORMULÁRIO DE INSCRIÇÃO'!G33","v":""},{"$f":"'FORMULÁRIO DE INSCRIÇÃO'!H33","v":""}]
[null,null,null,null,null,null,null,null,null,null,null,{"$f":"'FORMULÁRIO DE INSCRIÇÃO'!B34","v":""},{"$f":"'FORMULÁRIO DE INSCRIÇÃO'!C34","v":""},{"$f":"'FORMULÁRIO DE INSCRIÇÃO'!E34","v":""},{"$f":"'FORMULÁRIO DE INSCRIÇÃO'!G34","v":""},{"$f":"'FORMULÁRIO DE INSCRIÇÃO'!H34","v":""}]
[null,null,null,null,null,null,null,null,null,null,null,{"$f":"'FORMULÁRIO DE INSCRIÇÃO'!B35","v":""},{"$f":"'FORMULÁRIO DE INSCRIÇÃO'!C35","v":""},{"$f":"'FORMULÁRIO DE INSCRIÇÃO'!E35","v":""},{"$f":"'FORMULÁRIO DE INSCRIÇÃO'!G35","v":""},{"$f":"'FORMULÁRIO DE INSCRIÇÃO'!H35","v":""}]

{"sheet":"estados e municípios","index":2,"n_rows":5571,"n_cols":37,"rows_kept":5571,"cut":false,"hidden":true,"merged":[]}
[1.0,"UF","Selecione o Município",1.0,"Selecione a UF",null,"GRUPO 1 (4º ANO E 5º ANO)","GRUPO 2 (6º ANO E 7º ANO)","GRUPO 3 (8º ANO E 9º ANO)",null,"AC","AL","AM","AP","BA","CE","DF","ES","GO","MA","MG","MS","MT","PA","PB","PE","PI","PR","RJ","RN","RO","RR","RS","SC","SE","SP","TO"]
[2.0,"AC","Acrelândia",2.0,"AC",null,"Trabalho Infantil","Aprendizagem Profissional","Saúde e Segurança no Trabalho",null," Selecione a UF"," Selecione a UF"," Selecione a UF"," Selecione a UF"," Selecione a UF"," Selecione a UF"," Selecione a UF"," Selecione a UF"," Selecione a UF"," Selecione a UF"," Selecione a UF"," Selecione a UF"," Selecione a UF"," Selecione a UF"," Selecione a UF"," Selecione a UF"," Selecione a UF"," Selecione a UF"," Selecione a UF"," Selecione a UF"," Selecione a UF"," Selecione a UF"," Selecione a UF"," Selecione a UF"," Selecione a UF"," Selecione a UF"," Selecione a UF"]
[3.0,"AC","Assis Brasil",3.0,"AL",null,"Trabalho Infantil na Reciclagem",null,null,null,"Acrelândia","Água Branca","Alvarães","Amapá","Abaíra","Abaiara","Brasília","Afonso Cláudio","Abadia de Goiás","Açailândia","Abadia dos Dourados","Água Clara","Acorizal","Abaetetuba","Água Branca","Abreu e Lima","Acauã","Abatiá","Angra dos Reis","Acari","Alta Floresta DOeste","Alto Alegre","Aceguá","Abdon Batista","Amparo de São Francisco","Adamantina","Abreulândia"]
[4.0,"AC","Brasiléia",4.0,"AM",null,null,null,null,null,"Assis Brasil","Anadia","Amaturá","Calçoene","Abaré","Acarape",null,"Água Doce do Norte","Abadiânia","Afonso Cunha","Abaeté","Alcinópolis","Água Boa","Abel Figueiredo","Aguiar","Afogados da Ingazeira","Agricolândia","Adrianópolis","Aperibé","Açu","Alto Alegre dos Parecis","Amajari","Água Santa","Abelardo Luz","Aquidabã","Adolfo","Aguiarnópolis"]
[5.0,"AC","Bujari",5.0,"AP",null,null,null,null,null,"Brasiléia","Arapiraca","Anamã","Cutias","Acajutiba","Acaraú",null,"Águia Branca","Acreúna","Água Doce do Maranhão","Abre Campo","Amambaí","Alta Floresta","Acará","Alagoa Grande","Afrânio","Água Branca","Agudos do Sul","Araruama","Afonso Bezerra","Alto Paraíso","Boa Vista","Agudo","Agrolândia","Aracaju","Aguaí","Aliança do Tocantins"]
[6.0,"AC","Capixaba",6.0,"BA",null,null,null,null,null,"Bujari","Atalaia","Anori","Ferreira Gomes","Adustina","Acopiara",null,"Alegre","Adelândia","Alcântara","Acaiaca","Anastácio","Alto Araguaia","Afuá","Alagoa Nova","Agrestina","Alagoinha do Piauí","Almirante Tamandaré","Areal","Água Nova","Alvorada DOeste","Bonfim","Ajuricaba","Agronômica","Arauá","Águas da Prata","Almas"]
[7.0,"AC","Cruzeiro do Sul",7.0,"CE",null,null,null,null,null,"Capixaba","Barra de Santo Antônio","Apuí","Itaubal","Água Fria","Aiuaba",null,"Alfredo Chaves","Água Fria de Goiás","Aldeias Altas","Açucena","Anaurilândia","Alto Boa Vista","Água Azul do Norte","Alagoinha","Água Preta","Alegrete do Piauí","Altamira do Paraná","Armação dos Búzios","Alexandria","Ariquemes","Cantá","Alecrim","Água Doce","Areia Branca","Águas de Lindóia","Alvorada"]
[8.0,"AC","Epitaciolândia",8.0,"DF",null,null,null,null,null,"Cruzeiro do Sul","Barra de São Miguel","Atalaia do Norte","Laranjal do Jari","Aiquara","Alcântaras",null,"Alto Rio Novo","Água Limpa","Altamira do Maranhão","Água Boa","Angélica","Alto Garças","Alenquer","Alcantil","Águas Belas","Alto Longá","Alto Paraíso","Arraial do Cabo","Almino Afonso","Buritis","Caracaraí","Alegrete","Águas de Chapecó","Barra dos Coqueiros","Águas de Santa Bárbara","Ananás"]
[9.0,"AC","Feijó",9.0,"ES",null,null,null,null,null,"Epitaciolândia","Batalha","Autazes","Macapá","Alagoinhas","Altaneira",null,"Anchieta","Águas Lindas de Goiás","Alto Alegre do Maranhão","Água Comprida","Antônio João","Alto Paraguai","Almeirim","Algodão de Jandaíra","Alagoinha","Altos","Alto Paraná","Barra do Piraí","Alto do Rodrigues","Cabixi","Caroebe","Alegria","Águas Frias","Boquim","Águas de São Pedro","Angico"]
[10.0,"AC","Jordão",10.0,"GO",null,null,null,null,null,"Feijó","Belém","Barcelos","Mazagão","Alcobaça","Alto Santo",null,"Apiacá","Alexânia","Alto Alegre do Pindaré","Aguanil","Aparecida do Taboado","Alto Taquari","Altamira","Alhandra","Aliança","Alvorada do Gurguéia","Alto Piquiri","Barra Mansa","Angicos","Cacaulândia","Iracema","Almirante Tamandaré do Sul","Águas Mornas","Brejo Grande","Agudos","Aparecida do Rio Negro"]
[11.0,"AC","Mâncio Lima",11.0,"MA",null,null,null,null,null,"Jordão","Belo Monte","Barreirinha","Oiapoque","Almadina","Amontada",null,"Aracruz","Aloândia","Alto Parnaíba","Águas Formosas","Aquidauana","Apiacás","Anajás","Amparo","Altinho","Amarante","Altônia","Belford Roxo","Antônio Martins","Cacoal","Mucajaí","Alpestre","Alfredo Wagner","Campo do Brito","Alambari","Aragominas"]
[12.0,"AC","Manoel Urbano",12.0,"MG",null,null,null,null,null,"Mâncio Lima","Boca da Mata","Benjamin Constant","Pedra Branca do Amapari","Amargosa","Antonina do Norte",null,"Atilio Vivacqua","Alto Horizonte","Amapá do Maranhão","Águas Vermelhas","Aral Moreira","Araguaiana","Ananindeua","Aparecida","Amaraji","Angical do Piauí","Alvorada do Sul","Bom Jardim","Apodi","Campo Novo de Rondônia","Normandia","Alto Alegre","Alto Bela Vista","Canhoba","Alfredo Marcondes","Araguacema"]
[13.0,"AC","Marechal Thaumaturgo",13.0,"MS",null,null,null,null,null,"Manoel Urbano","Branquinha","Beruri","Porto Grande","Amélia Rodrigues","Apuiarés",null,"Baixo Guandu","Alto Paraíso de Goiás","Amarante do Maranhão","Aimorés","Bandeirantes","Araguainha","Anapu","Araçagi","Angelim","Anísio de Abreu","Amaporã","Bom Jesus do Itabapoana","Areia Branca","Candeias do Jamari","Pacaraima","Alto Feliz","Anchieta","Canindé de São Francisco","Altair","Araguaçu"]
[14.0,"AC","Plácido de Castro",14.0,"MT",null,null,null,null,null,"Marechal Thaumaturgo","Cacimbinhas","Boa Vista do Ramos","Pracuúba","América Dourada","Aquiraz",null,"Barra de São Francisco","Alvorada do Norte","Anajatuba","Aiuruoca","Bataguassu","Araputanga","Augusto Corrêa","Arara","Araçoiaba","Antônio Almeida","Ampére","Cabo Frio","Arês","Castanheiras","Rorainópolis","Alvorada","Angelina","Capela","Altinópolis","Araguaína"]
[15.0,"AC","Porto Acre",15.0,"PA",null,null,null,null,null,"Plácido de Castro","Cajueiro","Boca do Acre","Santana","Anagé","Aracati",null,"Boa Esperança","Amaralina","Anapurus","Alagoa","Batayporã","Arenápolis","Aurora do Pará","Araruna","Araripina","Aroazes","Anahy","Cachoeiras de Macacu","Augusto Severo","Cerejeiras","São João da Baliza","Amaral Ferrador","Anita Garibaldi","Carira","Alto Alegre","Araguanã"]
[16.0,"AC","Porto Walter",16.0,"PB",null,null,null,null,null,"Porto Acre","Campestre","Borba","Serra do Navio","Andaraí","Aracoiaba",null,"Bom Jesus do Norte","Americano do Brasil","Apicum-Açu","Albertina","Bela Vista","Aripuanã","Aveiro","Areia","Arcoverde","Aroeiras do Itaim","Andirá","Cambuci","Baía Formosa","Chupinguaia","São Luiz","Ametista do Sul","Anitápolis","Carmópolis","Alumínio","Araguatins"]
[17.0,"AC","Rio Branco",17.0,"PE",null,null,null,null,null,"Porto Walter","Campo Alegre","Caapiranga","Tartarugalzinho","Andorinha","Ararendá",null,"Brejetuba","Amorinópolis","Araguanã","Além Paraíba","Bodoquena","Barão de Melgaço","Bagre","Areia de Baraúnas","Barra de Guabiraba","Arraial","Ângulo","Campos dos Goytacazes","Baraúna","Colorado do Oeste","Uiramutã","André da Rocha","Antônio Carlos","Cedro de São João","Álvares Florence","Arapoema"]
[18.0,"AC","Rodrigues Alves",18.0,"PI",null,null,null,null,null,"Rio Branco","Campo Grande","Canutama","Vitória do Jari","Angical","Araripe",null,"Cachoeiro de Itapemirim","Anápolis","Araioses","Alfenas","Bonito","Barra do Bugres","Baião","Areial","Barreiros","Assunção do Piauí","Antonina","Cantagalo","Barcelona","Corumbiara",null,"Anta Gorda","Apiúna","Cristinápolis","Álvares Machado","Arraias"]
[19.0,"AC","Santa Rosa do Purus",19.0,"PR",null,null,null,null,null,"Rodrigues Alves","Canapi","Carauari",null,"Anguera","Aratuba",null,"Cariacica","Anhanguera","Arame","Alfredo Vasconcelos","Brasilândia","Barra do Garças","Bannach","Aroeiras","Belém de Maria","Avelino Lopes","Antônio Olinto","Carapebus","Bento Fernandes","Costa Marques",null,"Antônio Prado","Arabutã","Cumbe","Álvaro de Carvalho","Augustinópolis"]
[20.0,"AC","Sena Madureira",20.0,"RJ",null,null,null,null,null,"Santa Rosa do Purus","Capela","Careiro",null,"Antas","Arneiroz",null,"Castelo","Anicuns","Arari","Almenara","Caarapó","Bom Jesus do Araguaia","Barcarena","Assunção","Belém de São Francisco","Baixa Grande do Ribeiro","Apucarana","Cardoso Moreira","Bodó","Cujubim",null,"Arambaré","Araquari","Divina Pastora","Alvinlândia","Aurora do Tocantins"]
[21.0,"AC","Senador Guiomard",21.0,"RN",null,null,null,null,null,"Sena Madureira","Carneiros","Careiro da Várzea",null,"Antônio Cardoso","Assaré",null,"Colatina","Aparecida de Goiânia","Axixá","Alpercata","Camapuã","Brasnorte","Belém","Baía da Traição","Belo Jardim","Barra DAlcântara","Arapongas","Carmo","Bom Jesus","Espigão DOeste",null,"Araricá","Araranguá","Estância","Americana","Axixá do Tocantins"]
[22.0,"AC","Tarauacá",22.0,"RO",null,null,null,null,null,"Senador Guiomard","Chã Preta","Coari",null,"Antônio Gonçalves","Aurora",null,"Conceição da Barra","Aparecida do Rio Doce","Bacabal","Alpinópolis","Campo Grande","Cáceres","Belterra","Bananeiras","Betânia","Barras","Arapoti","Casimiro de Abreu","Brejinho","Governador Jorge Teixeira",null,"Aratiba","Armazém","Feira Nova","Américo Brasiliense","Babaçulândia"]
[23.0,"AC","Xapuri",23.0,"RR",null,null,null,null,null,"Tarauacá","Coité do Nóia","Codajás",null,"Aporá","Baixio",null,"Conceição do Castelo","Aporé","Bacabeira","Alterosa","Caracol","Campinápolis","Benevides","Baraúna","Bezerros","Barreiras do Piauí","Arapuã","Comendador Levy Gasparian","Caiçara do Norte","Guajará-Mirim",null,"Arroio do Meio","Arroio Trinta","Frei Paulo","Américo de Campos","Bandeirantes do Tocantins"]
[24.0,"AL","Água Branca",24.0,"RS",null,null,null,null,null,"Xapuri","Colônia Leopoldina","Eirunepé",null,"Apuarema","Banabuiú",null,"Divino de São Lourenço","Araçu","Bacuri","Alto Caparaó","Cassilândia","Campo Novo do Parecis","Bom Jesus do Tocantins","Barra de Santa Rosa","Bodocó","Barro Duro","Araruna","Conceição de Macabu","Caiçara do Rio do Vento","Itapuã do Oeste",null,"Arroio do Padre","Arvoredo","Gararu","Amparo","Barra do Ouro"]
[25.0,"AL","Anadia",25.0,"SC",null,null,null,null,null,null,"Coqueiro Seco","Envira",null,"Araças","Barbalha",null,"Domingos Martins","Aragarças","Bacurituba","Alto Jequitibá","Chapadão do Sul","Campo Verde","Bonito","Barra de Santana","Bom Conselho","Batalha","Araucária","Cordeiro","Caicó","Jaru",null,"Arroio do Sal","Ascurra","General Maynard","Analândia","Barrolândia"]
[26.0,"AL","Arapiraca",26.0,"SE",null,null,null,null,null,null,"Coruripe","Fonte Boa",null,"Aracatu","Barreira",null,"Dores do Rio Preto","Aragoiânia","Balsas","Alto Rio Doce","Corguinho","Campos de Júlio","Bragança","Barra de São Miguel","Bom Jardim","Bela Vista do Piauí","Ariranha do Ivaí","Duas Barras","Campo Redondo","Ji-Paraná",null,"Arroio do Tigre","Atalanta","Gracho Cardoso","Andradina","Bernardo Sayão"]
[27.0,"AL","Atalaia",27.0,"SP",null,null,null,null,null,null,"Craíbas","Guajará",null,"Araci","Barro",null,"Ecoporanga","Araguapaz","Barão de Grajaú","Alvarenga","Coronel Sapucaia","Canabrava do Norte","Brasil Novo","Bayeux","Bonito","Belém do Piauí","Assaí","Duque de Caxias","Canguaretama","Machadinho DOeste",null,"Arroio dos Ratos","Aurora","Ilha das Flores","Angatuba","Bom Jesus do Tocantins"]
[28.0,"AL","Barra de Santo Antônio",28.0,"TO",null,null,null,null,null,null,"Delmiro Gouveia","Humaitá",null,"Aramari","Barroquinha",null,"Fundão","Arenópolis","Barra do Corda","Alvinópolis","Corumbá","Canarana","Brejo Grande do Araguaia","Belém","Brejão","Beneditinos","Assis Chateaubriand","Engenheiro Paulo de Frontin","Caraúbas","Ministro Andreazza",null,"Arroio Grande","Balneário Arroio do Silva","Indiaroba","Anhembi","Brasilândia do Tocantins"]
[29.0,"AL","Barra de São Miguel",null,null,null,null,null,null,null,null,"Dois Riachos","Ipixuna",null,"Arataca","Baturité",null,"Governador Lindenberg","Aruanã","Barreirinhas","Alvorada de Minas","Costa Rica","Carlinda","Breu Branco","Belém do Brejo do Cruz","Brejinho","Bertolínia","Astorga","Guapimirim","Carnaúba dos Dantas","Mirante da Serra",null,"Arvorezinha","Balneário Barra do Sul","Itabaiana","Anhumas","Brejinho de Nazaré"]
[30.0,"AL","Batalha",1.0,null,null,null,null,null,null,null,"Estrela de Alagoas","Iranduba",null,"Aratuípe","Beberibe",null,"Guaçuí","Aurilândia","Bela Vista do Maranhão","Amparo do Serra","Coxim","Castanheira","Breves","Bernardino Batista","Brejo da Madre de Deus","Betânia do Piauí","Atalaia","Iguaba Grande","Carnaubais","Monte Negro",null,"Augusto Pestana","Balneário Camboriú","Itabaianinha","Aparecida","Buriti do Tocantins"]
[31.0,"AL","Belém",2.0,"4º ANO",null,null,null,null,null,null,"Feira Grande","Itacoatiara",null,"Aurelino Leal","Bela Cruz",null,"Guarapari","Avelinópolis","Belágua","Andradas","Deodápolis","Chapada dos Guimarães","Bujaru","Boa Ventura","Buenos Aires","Boa Hora","Balsa Nova","Itaboraí","Ceará-Mirim","Nova Brasilândia DOeste",null,"Áurea","Balneário Gaivota","Itabi","Aparecida dOeste","Cachoeirinha"]
[32.0,"AL","Belo Monte",3.0,"5º ANO",null,null,null,null,null,null,"Feliz Deserto","Itamarati",null,"Baianópolis","Boa Viagem",null,"Ibatiba","Baliza","Benedito Leite","Andrelândia","Dois Irmãos do Buriti","Cláudia","Cachoeira do Arari","Boa Vista","Buíque","Bocaina","Bandeirantes","Itaguaí","Cerro Corá","Nova Mamoré",null,"Bagé","Balneário Piçarras","Itaporanga dAjuda","Apiaí","Campos Lindos"]
[33.0,"AL","Boca da Mata",4.0,"6º ANO",null,null,null,null,null,null,"Flexeiras","Itapiranga",null,"Baixa Grande","Brejo Santo",null,"Ibiraçu","Barro Alto","Bequimão","Angelândia","Douradina","Cocalinho","Cachoeira do Piriá","Bom Jesus","Cabo de Santo Agostinho","Bom Jesus","Barbosa Ferraz","Italva","Coronel Ezequiel","Nova União",null,"Balneário Pinhal","Balneário Rincão","Japaratuba","Araçariguama","Cariri do Tocantins"]
[34.0,"AL","Branquinha",5.0,"7º ANO",null,null,null,null,null,null,"Girau do Ponciano","Japurá",null,"Banzaê","Camocim",null,"Ibitirama","Bela Vista de Goiás","Bernardo do Mearim","Antônio Carlos","Dourados","Colíder","Cametá","Bom Sucesso","Cabrobó","Bom Princípio do Piauí","Barra do Jacaré","Itaocara","Coronel João Pessoa","Novo Horizonte do Oeste",null,"Barão","Bandeirante","Japoatã","Araçatuba","Carmolândia"]
[35.0,"AL","Cacimbinhas",null,null,null,null,null,null,null,null,"Ibateguara","Juruá",null,"Barra","Campos Sales",null,"Iconha","Bom Jardim de Goiás","Boa Vista do Gurupi","Antônio Dias","Eldorado","Colniza","Canaã dos Carajás","Bonito de Santa Fé","Cachoeirinha","Bonfim do Piauí","Barracão","Itaperuna","Cruzeta","Ouro Preto do Oeste",null,"Barão de Cotegipe","Barra Bonita","Lagarto","Araçoiaba da Serra","Carrasco Bonito"]
[36.0,"AL","Cajueiro",null,"GRUPO 1 (4º ANO E 5º ANO)","Trabalho Infantil","GRUPO1",null,null,null,null,"Igaci","Jutaí",null,"Barra da Estiva","Canindé",null,"Irupi","Bom Jesus de Goiás","Bom Jardim","Antônio Prado de Minas","Fátima do Sul","Comodoro","Capanema","Boqueirão","Caetés","Boqueirão do Piauí","Bela Vista da Caroba","Itatiaia","Currais Novos","Parecis",null,"Barão do Triunfo","Barra Velha","Laranjeiras","Aramina","Caseara"]
[37.0,"AL","Campestre",null,"GRUPO 1 (4º ANO E 5º ANO)","Trabalho Infantil na Reciclagem","GRUPO1",null,null,null,null,"Igreja Nova","Lábrea",null,"Barra do Choça","Capistrano",null,"Itaguaçu","Bonfinópolis","Bom Jesus das Selvas","Araçaí","Figueirão","Confresa","Capitão Poço","Borborema","Calçado","Brasileira","Bela Vista do Paraíso","Japeri","Doutor Severiano","Pimenta Bueno",null,"Barra do Guarita","Bela Vista do Toldo","Macambira","Arandu","Centenário"]
[38.0,"AL","Campo Alegre",null,"GRUPO 2 (6º ANO E 7º ANO)","Aprendizagem Profissional","GRUPO2",null,null,null,null,"Inhapi","Manacapuru",null,"Barra do Mendes","Caridade",null,"Itapemirim","Bonópolis","Bom Lugar","Aracitaba","Glória de Dourados","Conquista DOeste","Castanhal","Brejo do Cruz","Calumbi","Brejo do Piauí","Bituruna","Laje do Muriaé","Encanto","Pimenteiras do Oeste",null,"Barra do Quaraí","Belmonte","Malhada dos Bois","Arapeí","Chapada da Natividade"]
[39.0,"AL","Campo Grande",null,"GRUPO 3 (8º ANO E 9º ANO)","Saúde e Segurança no Trabalho","GRUPO3",null,null,null,null,"Jacaré dos Homens","Manaquiri",null,"Barra do Rocha","Cariré",null,"Itarana","Brazabrantes","Brejo","Araçuaí","Guia Lopes da Laguna","Cotriguaçu","Chaves","Brejo dos Santos","Camaragibe","Buriti dos Lopes","Boa Esperança","Macaé","Equador","Porto Velho",null,"Barra do Ribeiro","Benedito Novo","Malhador","Araraquara","Chapada de Areia"]
[40.0,"AL","Canapi",null,null,null,null,null,null,null,null,"Jacuípe","Manaus",null,"Barreiras","Caririaçu",null,"Iúna","Britânia","Brejo de Areia","Araguari","Iguatemi","Cuiabá","Colares","Caaporã","Camocim de São Félix","Buriti dos Montes","Boa Esperança do Iguaçu","Macuco","Espírito Santo","Presidente Médici",null,"Barra do Rio Azul","Biguaçu","Maruim","Araras","Colinas do Tocantins"]
[41.0,"AL","Capela",null,"Selecione uma opção",null,null,null,null,null,null,"Japaratinga","Manicoré",null,"Barro Alto","Cariús",null,"Jaguaré","Buriti Alegre","Buriti","Arantina","Inocência","Curvelândia","Conceição do Araguaia","Cabaceiras","Camutanga","Cabeceiras do Piauí","Boa Ventura de São Roque","Magé","Extremoz","Primavera de Rondônia",null,"Barra Funda","Blumenau","Moita Bonita","Arco-Íris","Colméia"]
[42.0,"AL","Carneiros",null,"Municipal",null,null,null,null,null,null,"Jaramataia","Maraã",null,"Barro Preto","Carnaubal",null,"Jerônimo Monteiro","Buriti de Goiás","Buriti Bravo","Araponga","Itaporã","Denise","Concórdia do Pará","Cabedelo","Canhotinho","Cajazeiras do Piauí","Boa Vista da Aparecida","Mangaratiba","Felipe Guerra","Rio Crespo",null,"Barracão","Bocaina do Sul","Monte Alegre de Sergipe","Arealva","Combinado"]
[43.0,"AL","Chã Preta",null,"Estadual",null,null,null,null,null,null,"Jequiá da Praia","Maués",null,"Barrocas","Cascavel",null,"João Neiva","Buritinópolis","Buriticupu","Araporã","Itaquiraí","Diamantino","Cumaru do Norte","Cachoeira dos Índios","Capoeiras","Cajueiro da Praia","Bocaiúva do Sul","Maricá","Fernando Pedroza","Rolim de Moura",null,"Barros Cassal","Bom Jardim da Serra","Muribeca","Areias","Conceição do Tocantins"]
[44.0,"AL","Coité do Nóia",null,null,null,null,null,null,null,null,"Joaquim Gomes","Nhamundá",null,"Belmonte","Catarina",null,"Laranja da Terra","Cabeceiras","Buritirana","Arapuá","Ivinhema","Dom Aquino","Curionópolis","Cacimba de Areia","Carnaíba","Caldeirão Grande do Piauí","Bom Jesus do Sul","Mendes","Florânia","Santa Luzia DOeste",null,"Benjamin Constant do Sul","Bom Jesus","Neópolis","Areiópolis","Couto de Magalhães"]
[45.0,"AL","Colônia Leopoldina",null,null,null,null,null,null,null,null,"Jundiá","Nova Olinda do Norte",null,"Belo Campo","Catunda",null,"Linhares","Cachoeira Alta","Cachoeira Grande","Araújos","Japorã","Feliz Natal","Curralinho","Cacimba de Dentro","Carnaubeira da Penha","Campinas do Piauí","Bom Sucesso","Mesquita","Francisco Dantas","São Felipe DOeste",null,"Bento Gonçalves","Bom Jesus do Oeste","Nossa Senhora Aparecida","Ariranha","Cristalândia"]
[46.0,"AL","Coqueiro Seco",null,null,null,null,null,null,null,null,"Junqueiro","Novo Airão",null,"Biritinga","Caucaia",null,"Mantenópolis","Cachoeira de Goiás","Cajapió","Araxá","Jaraguari","Figueirópolis DOeste","Curuá","Cacimbas","Carpina","Campo Alegre do Fidalgo","Bom Sucesso do Sul","Miguel Pereira","Frutuoso Gomes","São Francisco do Guaporé",null,"Boa Vista das Missões","Bom Retiro","Nossa Senhora da Glória","Artur Nogueira","Crixás do Tocantins"]
[47.0,"AL","Coruripe",null,null,null,null,null,null,null,null,"Lagoa da Canoa","Novo Aripuanã",null,"Boa Nova","Cedro",null,"Marataízes","Cachoeira Dourada","Cajari","Arceburgo","Jardim","Gaúcha do Norte","Curuçá","Caiçara","Caruaru","Campo Grande do Piauí","Borrazópolis","Miracema","Galinhos","São Miguel do Guaporé",null,"Boa Vista do Buricá","Bombinhas","Nossa Senhora das Dores","Arujá","Darcinópolis"]
[48.0,"AL","Craíbas",null,null,null,null,null,null,null,null,"Limoeiro de Anadia","Parintins",null,"Boa Vista do Tupim","Chaval",null,"Marechal Floriano","Caçu","Campestre do Maranhão","Arcos","Jateí","General Carneiro","Dom Eliseu","Cajazeiras","Casinhas","Campo Largo do Piauí","Braganey","Natividade","Goianinha","Seringueiras",null,"Boa Vista do Cadeado","Botuverá","Nossa Senhora de Lourdes","Aspásia","Dianópolis"]
[49.0,"AL","Delmiro Gouveia",null,null,null,null,null,null,null,null,"Maceió","Pauini",null,"Bom Jesus da Lapa","Choró",null,"Marilândia","Caiapônia","Cândido Mendes","Areado","Juti","Glória DOeste","Eldorado dos Carajás","Cajazeirinhas","Catende","Campo Maior","Brasilândia do Sul","Nilópolis","Governador Dix-Sept Rosado","Teixeirópolis",null,"Boa Vista do Incra","Braço do Norte","Nossa Senhora do Socorro","Assis","Divinópolis do Tocantins"]
[50.0,"AL","Dois Riachos",null,null,null,null,null,null,null,null,"Major Isidoro","Presidente Figueiredo",null,"Bom Jesus da Serra","Chorozinho",null,"Mimoso do Sul","Caldas Novas","Cantanhede","Argirita","Ladário","Guarantã do Norte","Faro","Caldas Brandão","Cedro","Canavieira","Cafeara","Niterói","Grossos","Theobroma",null,"Boa Vista do Sul","Braço do Trombudo","Pacatuba","Atibaia","Dois Irmãos do Tocantins"]
[51.0,"AL","Estrela de Alagoas",null,null,null,null,null,null,null,null,"Mar Vermelho","Rio Preto da Eva",null,"Boninal","Coreaú",null,"Montanha","Caldazinha","Capinzal do Norte","Aricanduva","Laguna Carapã","Guiratinga","Floresta do Araguaia","Camalaú","Chã de Alegria","Canto do Buriti","Cafelândia","Nova Friburgo","Guamaré","Urupá",null,"Bom Jesus","Brunópolis","Pedra Mole","Auriflama","Dueré"]
[52.0,"AL","Feira Grande",null,null,null,null,null,null,null,null,"Maragogi","Santa Isabel do Rio Negro",null,"Bonito","Crateús",null,"Mucurici","Campestre de Goiás","Carolina","Arinos","Maracaju","Indiavaí","Garrafão do Norte","Campina Grande","Chã Grande","Capitão de Campos","Cafezal do Sul","Nova Iguaçu","Ielmo Marinho","Vale do Anari",null,"Bom Princípio","Brusque","Pedrinhas","Avaí","Esperantina"]
[53.0,"AL","Feliz Deserto",null,null,null,null,null,null,null,null,"Maravilha","Santo Antônio do Içá",null,"Boquira","Crato",null,"Muniz Freire","Campinaçu","Carutapera","Astolfo Dutra","Miranda","Ipiranga do Norte","Goianésia do Pará","Capim","Condado","Capitão Gervásio Oliveira","Califórnia","Paracambi","Ipanguaçu","Vale do Paraíso",null,"Bom Progresso","Caçador","Pinhão","Avanhandava","Fátima"]
[54.0,"AL","Flexeiras",null,null,null,null,null,null,null,null,"Marechal Deodoro","São Gabriel da Cachoeira",null,"Botuporã","Croatá",null,"Muqui","Campinorte","Caxias","Ataléia","Mundo Novo","Itanhangá","Gurupá","Caraúbas","Correntes","Caracol","Cambará","Paraíba do Sul","Ipueira","Vilhena",null,"Bom Retiro do Sul","Caibi","Pirambu","Avaré","Figueirópolis"]
[55.0,"AL","Girau do Ponciano",null,null,null,null,null,null,null,null,"Maribondo","São Paulo de Olivença",null,"Brejões","Cruz",null,"Nova Venécia","Campo Alegre de Goiás","Cedral","Augusto de Lima","Naviraí","Itaúba","Igarapé-Açu","Carrapateira","Cortês","Caraúbas do Piauí","Cambé","Parati","Itajá",null,null,"Boqueirão do Leão","Calmon","Poço Redondo","Bady Bassitt","Filadélfia"]
[56.0,"AL","Ibateguara",null,null,null,null,null,null,null,null,"Mata Grande","São Sebastião do Uatumã",null,"Brejolândia","Deputado Irapuan Pinheiro",null,"Pancas","Campo Limpo de Goiás","Central do Maranhão","Baependi","Nioaque","Itiquira","Igarapé-Miri","Casserengue","Cumaru","Caridade do Piauí","Cambira","Paty do Alferes","Itaú",null,null,"Bossoroca","Camboriú","Poço Verde","Balbinos","Formoso do Araguaia"]
[57.0,"AL","Igaci",null,null,null,null,null,null,null,null,"Matriz de Camaragibe","Silves",null,"Brotas de Macaúbas","Ererê",null,"Pedro Canário","Campos Belos","Centro do Guilherme","Baldim","Nova Alvorada do Sul","Jaciara","Inhangapi","Catingueira","Cupira","Castelo do Piauí","Campina da Lagoa","Petrópolis","Jaçanã",null,null,"Bozano","Campo Alegre","Porto da Folha","Bálsamo","Fortaleza do Tabocão"]
[58.0,"AL","Igreja Nova",null,null,null,null,null,null,null,null,"Messias","Tabatinga",null,"Brumado","Eusébio",null,"Pinheiros","Campos Verdes","Centro Novo do Maranhão","Bambuí","Nova Andradina","Jangada","Ipixuna do Pará","Catolé do Rocha","Custódia","Caxingó","Campina do Simão","Pinheiral","Jandaíra",null,null,"Braga","Campo Belo do Sul","Propriá","Bananal","Goianorte"]
[59.0,"AL","Inhapi",null,null,null,null,null,null,null,null,"Minador do Negrão","Tapauá",null,"Buerarema","Farias Brito",null,"Piúma","Carmo do Rio Verde","Chapadinha","Bandeira","Novo Horizonte do Sul","Jauru","Irituia","Caturité","Dormentes","Cocal","Campina Grande do Sul","Piraí","Janduís",null,null,"Brochier","Campo Erê","Riachão do Dantas","Barão de Antonina","Goiatins"]
[60.0,"AL","Jacaré dos Homens",null,null,null,null,null,null,null,null,"Monteirópolis","Tefé",null,"Buritirama","Forquilha",null,"Ponto Belo","Castelândia","Cidelândia","Bandeira do Sul","Paraíso das Águas","Juara","Itaituba","Conceição","Escada","Cocal de Telha","Campo Bonito","Porciúncula","Januário Cicco",null,null,"Butiá","Campos Novos","Riachuelo","Barbosa","Guaraí"]
[61.0,"AL","Jacuípe",null,null,null,null,null,null,null,null,"Murici","Tonantins",null,"Caatiba","Fortaleza",null,"Presidente Kennedy","Catalão","Codó","Barão de Cocais","Paranaíba","Juína","Itupiranga","Condado","Exu","Cocal dos Alves","Campo do Tenente","Porto Real","Japi",null,null,"Caçapava do Sul","Canelinha","Ribeirópolis","Bariri","Gurupi"]
[62.0,"AL","Japaratinga",null,null,null,null,null,null,null,null,"Novo Lino","Uarini",null,"Cabaceiras do Paraguaçu","Fortim",null,"Rio Bananal","Caturaí","Coelho Neto","Barão de Monte Alto","Paranhos","Juruena","Jacareacanga","Conde","Feira Nova","Coivaras","Campo Largo","Quatis","Jardim de Angicos",null,null,"Cacequi","Canoinhas","Rosário do Catete","Barra Bonita","Ipueiras"]
[63.0,"AL","Jaramataia",null,null,null,null,null,null,null,null,"Olho dÁgua das Flores","Urucará",null,"Cachoeira","Frecheirinha",null,"Rio Novo do Sul","Cavalcante","Colinas","Barbacena","Pedro Gomes","Juscimeira","Jacundá","Congo","Fernando de Noronha","Colônia do Gurguéia","Campo Magro","Queimados","Jardim de Piranhas",null,null,"Cachoeira do Sul","Capão Alto","Salgado","Barra do Chapéu","Itacajá"]
[64.0,"AL","Jequiá da Praia",null,null,null,null,null,null,null,null,"Olho dÁgua do Casado","Urucurituba",null,"Caculé","General Sampaio",null,"Santa Leopoldina","Ceres","Conceição do Lago-Açu","Barra Longa","Ponta Porã","Lambari DOeste","Juruti","Coremas","Ferreiros","Colônia do Piauí","Campo Mourão","Quissamã","Jardim do Seridó",null,null,"Cachoeirinha","Capinzal","Santa Luzia do Itanhy","Barra do Turvo","Itaguatins"]
[65.0,"AL","Joaquim Gomes",null,null,null,null,null,null,null,null,"Olho dÁgua Grande",null,null,"Caém","Graça",null,"Santa Maria de Jetibá","Cezarina","Coroatá","Barroso","Porto Murtinho","Lucas do Rio Verde","Limoeiro do Ajuru","Coxixola","Flores","Conceição do Canindé","Cândido de Abreu","Resende","João Câmara",null,null,"Cacique Doble","Capivari de Baixo","Santa Rosa de Lima","Barretos","Itapiratins"]
[66.0,"AL","Jundiá",null,null,null,null,null,null,null,null,"Olivença",null,null,"Caetanos","Granja",null,"Santa Teresa","Chapadão do Céu","Cururupu","Bela Vista de Minas","Ribas do Rio Pardo","Luciára","Mãe do Rio","Cruz do Espírito Santo","Floresta","Coronel José Dias","Candói","Rio Bonito","João Dias",null,null,"Caibaté","Catanduvas","Santana do São Francisco","Barrinha","Itaporã do Tocantins"]
[67.0,"AL","Junqueiro",null,null,null,null,null,null,null,null,"Ouro Branco",null,null,"Caetité","Granjeiro",null,"São Domingos do Norte","Cidade Ocidental","Davinópolis","Belmiro Braga","Rio Brilhante","Marcelândia","Magalhães Barata","Cubati","Frei Miguelinho","Corrente","Cantagalo","Rio Claro","José da Penha",null,null,"Caiçara","Caxambu do Sul","Santo Amaro das Brotas","Barueri","Jaú do Tocantins"]
[68.0,"AL","Lagoa da Canoa",null,null,null,null,null,null,null,null,"Palestina",null,null,"Cafarnaum","Groaíras",null,"São Gabriel da Palha","Cocalzinho de Goiás","Dom Pedro","Belo Horizonte","Rio Negro","Matupá","Marabá","Cuité","Gameleira","Cristalândia do Piauí","Capanema","Rio das Flores","Jucurutu",null,null,"Camaquã","Celso Ramos","São Cristóvão","Bastos","Juarina"]
[69.0,"AL","Limoeiro de Anadia",null,null,null,null,null,null,null,null,"Palmeira dos Índios",null,null,"Cairu","Guaiúba",null,"São José do Calçado","Colinas do Sul","Duque Bacelar","Belo Oriente","Rio Verde de Mato Grosso","Mirassol dOeste","Maracanã","Cuité de Mamanguape","Garanhuns","Cristino Castro","Capitão Leônidas Marques","Rio das Ostras","Jundiá",null,null,"Camargo","Cerro Negro","São Domingos","Batatais","Lagoa da Confusão"]
[70.0,"AL","Maceió",null,null,null,null,null,null,null,null,"Pão de Açúcar",null,null,"Caldeirão Grande","Guaraciaba do Norte",null,"São Mateus","Córrego do Ouro","Esperantinópolis","Belo Vale","Rochedo","Nobres","Marapanim","Cuitegi","Glória do Goitá","Curimatá","Carambeí","Rio de Janeiro","Lagoa dAnta",null,null,"Cambará do Sul","Chapadão do Lageado","São Francisco","Bauru","Lagoa do Tocantins"]
[71.0,"AL","Major Isidoro",null,null,null,null,null,null,null,null,"Pariconha",null,null,"Camacan","Guaramiranga",null,"São Roque do Canaã","Corumbá de Goiás","Estreito","Berilo","Santa Rita do Pardo","Nortelândia","Marituba","Curral de Cima","Goiana","Currais","Carlópolis","Santa Maria Madalena","Lagoa de Pedras",null,null,"Campestre da Serra","Chapecó","São Miguel do Aleixo","Bebedouro","Lajeado"]
[72.0,"AL","Mar Vermelho",null,null,null,null,null,null,null,null,"Paripueira",null,null,"Camaçari","Hidrolândia",null,"Serra","Corumbaíba","Feira Nova do Maranhão","Berizal","São Gabriel do Oeste","Nossa Senhora do Livramento","Medicilândia","Curral Velho","Granito","Curral Novo do Piauí","Cascavel","Santo Antônio de Pádua","Lagoa de Velhos",null,null,"Campina das Missões","Cocal do Sul","Simão Dias","Bento de Abreu","Lavandeira"]
[73.0,"AL","Maragogi",null,null,null,null,null,null,null,null,"Passo de Camaragibe",null,null,"Camamu","Horizonte",null,"Sooretama","Cristalina","Fernando Falcão","Bertópolis","Selvíria","Nova Bandeirantes","Melgaço","Damião","Gravatá","Curralinhos","Castro","São Fidélis","Lagoa Nova",null,null,"Campinas do Sul","Concórdia","Siriri","Bernardino de Campos","Lizarda"]
[74.0,"AL","Maravilha",null,null,null,null,null,null,null,null,"Paulo Jacinto",null,null,"Campo Alegre de Lourdes","Ibaretama",null,"Vargem Alta","Cristianópolis","Formosa da Serra Negra","Betim","Sete Quedas","Nova Brasilândia","Mocajuba","Desterro","Iati","Demerval Lobão","Catanduvas","São Francisco de Itabapoana","Lagoa Salgada",null,null,"Campo Bom","Cordilheira Alta","Telha","Bertioga","Luzinópolis"]
[75.0,"AL","Marechal Deodoro",null,null,null,null,null,null,null,null,"Penedo",null,null,"Campo Formoso","Ibiapina",null,"Venda Nova do Imigrante","Crixás","Fortaleza dos Nogueiras","Bias Fortes","Sidrolândia","Nova Canaã do Norte","Moju","Diamante","Ibimirim","Dirceu Arcoverde","Centenário do Sul","São Gonçalo","Lajes",null,null,"Campo Novo","Coronel Freitas","Tobias Barreto","Bilac","Marianópolis do Tocantins"]
[76.0,"AL","Maribondo",null,null,null,null,null,null,null,null,"Piaçabuçu",null,null,"Canápolis","Ibicuitinga",null,"Viana","Cromínia","Fortuna","Bicas","Sonora","Nova Guarita","Mojuí dos Campos","Dona Inês","Ibirajuba","Dom Expedito Lopes","Cerro Azul","São João da Barra","Lajes Pintadas",null,null,"Campos Borges","Coronel Martins","Tomar do Geru","Birigui","Mateiros"]
[77.0,"AL","Mata Grande",null,null,null,null,null,null,null,null,"Pilar",null,null,"Canarana","Icapuí",null,"Vila Pavão","Cumari","Godofredo Viana","Biquinhas","Tacuru","Nova Lacerda","Monte Alegre","Duas Estradas","Igarassu","Dom Inocêncio","Céu Azul","São João de Meriti","Lucrécia",null,null,"Candelária","Correia Pinto","Umbaúba","Biritiba-Mirim","Maurilândia do Tocantins"]
[78.0,"AL","Matriz de Camaragibe",null,null,null,null,null,null,null,null,"Pindoba",null,null,"Canavieiras","Icó",null,"Vila Valério","Damianópolis","Gonçalves Dias","Boa Esperança","Taquarussu","Nova Marilândia","Muaná","Emas","Iguaraci","Domingos Mourão","Chopinzinho","São José de Ubá","Luís Gomes",null,null,"Cândido Godói","Corupá",null,"Boa Esperança do Sul","Miracema do Tocantins"]
[79.0,"AL","Messias",null,null,null,null,null,null,null,null,"Piranhas",null,null,"Candeal","Iguatu",null,"Vila Velha","Damolândia","Governador Archer","Bocaina de Minas","Terenos","Nova Maringá","Nova Esperança do Piriá","Esperança","Ilha de Itamaracá","Elesbão Veloso","Cianorte","São José do Vale do Rio Preto","Macaíba",null,null,"Candiota","Criciúma",null,"Bocaina","Miranorte"]
[80.0,"AL","Minador do Negrão",null,null,null,null,null,null,null,null,"Poço das Trincheiras",null,null,"Candeias","Independência",null,"Vitória","Davinópolis","Governador Edison Lobão","Bocaiúva","Três Lagoas","Nova Monte Verde","Nova Ipixuna","Fagundes","Inajá","Eliseu Martins","Cidade Gaúcha","São Pedro da Aldeia","Macau",null,null,"Canela","Cunha Porã",null,"Bofete","Monte do Carmo"]
[81.0,"AL","Monteirópolis",null,null,null,null,null,null,null,null,"Porto Calvo",null,null,"Candiba","Ipaporanga",null,null,"Diorama","Governador Eugênio Barros","Bom Despacho","Vicentina","Nova Mutum","Nova Timboteua","Frei Martinho","Ingazeira","Esperantina","Clevelândia","São Sebastião do Alto","Major Sales",null,null,"Canguçu","Cunhataí",null,"Boituva","Monte Santo do Tocantins"]
[82.0,"AL","Murici",null,null,null,null,null,null,null,null,"Porto de Pedras",null,null,"Cândido Sales","Ipaumirim",null,null,"Divinópolis de Goiás","Governador Luiz Rocha","Bom Jardim de Minas",null,"Nova Nazaré","Novo Progresso","Gado Bravo","Ipojuca","Fartura do Piauí","Colombo","Sapucaia","Marcelino Vieira",null,null,"Canoas","Curitibanos",null,"Bom Jesus dos Perdões","Muricilândia"]
[83.0,"AL","Novo Lino",null,null,null,null,null,null,null,null,"Porto Real do Colégio",null,null,"Cansanção","Ipu",null,null,"Doverlândia","Governador Newton Bello","Bom Jesus da Penha",null,"Nova Olímpia","Novo Repartimento","Guarabira","Ipubi","Flores do Piauí","Colorado","Saquarema","Martins",null,null,"Canudos do Vale","Descanso",null,"Bom Sucesso de Itararé","Natividade"]
[84.0,"AL","Olho dÁgua das Flores",null,null,null,null,null,null,null,null,"Quebrangulo",null,null,"Canudos","Ipueiras",null,null,"Edealina","Governador Nunes Freire","Bom Jesus do Amparo",null,"Nova Santa Helena","Óbidos","Gurinhém","Itacuruba","Floresta do Piauí","Congonhinhas","Seropédica","Maxaranguape",null,null,"Capão Bonito do Sul","Dionísio Cerqueira",null,"Borá","Nazaré"]
[85.0,"AL","Olho dÁgua do Casado",null,null,null,null,null,null,null,null,"Rio Largo",null,null,"Capela do Alto Alegre","Iracema",null,null,"Edéia","Graça Aranha","Bom Jesus do Galho",null,"Nova Ubiratã","Oeiras do Pará","Gurjão","Itaíba","Floriano","Conselheiro Mairinck","Silva Jardim","Messias Targino",null,null,"Capão da Canoa","Dona Emma",null,"Boracéia","Nova Olinda"]
[86.0,"AL","Olho dÁgua Grande",null,null,null,null,null,null,null,null,"Roteiro",null,null,"Capim Grosso","Irauçuba",null,null,"Estrela do Norte","Grajaú","Bom Repouso",null,"Nova Xavantina","Oriximiná","Ibiara","Itambé","Francinópolis","Contenda","Sumidouro","Montanhas",null,null,"Capão do Cipó","Doutor Pedrinho",null,"Borborema","Nova Rosalândia"]
[87.0,"AL","Olivença",null,null,null,null,null,null,null,null,"Santa Luzia do Norte",null,null,"Caraíbas","Itaiçaba",null,null,"Faina","Guimarães","Bom Sucesso",null,"Novo Horizonte do Norte","Ourém","Igaracy","Itapetim","Francisco Ayres","Corbélia","Tanguá","Monte Alegre",null,null,"Capão do Leão","Entre Rios",null,"Borebi","Novo Acordo"]
[88.0,"AL","Ouro Branco",null,null,null,null,null,null,null,null,"Santana do Ipanema",null,null,"Caravelas","Itaitinga",null,null,"Fazenda Nova","Humberto de Campos","Bonfim",null,"Novo Mundo","Ourilândia do Norte","Imaculada","Itapissuma","Francisco Macedo","Cornélio Procópio","Teresópolis","Monte das Gameleiras",null,null,"Capela de Santana","Ermo",null,"Botucatu","Novo Alegre"]
[89.0,"AL","Palestina",null,null,null,null,null,null,null,null,"Santana do Mundaú",null,null,"Cardeal da Silva","Itapajé**",null,null,"Firminópolis","Icatu","Bonfinópolis de Minas",null,"Novo Santo Antônio","Pacajá","Ingá","Itaquitinga","Francisco Santos","Coronel Domingos Soares","Trajano de Morais","Mossoró",null,null,"Capitão","Erval Velho",null,"Bragança Paulista","Novo Jardim"]
[90.0,"AL","Palmeira dos Índios",null,null,null,null,null,null,null,null,"São Brás",null,null,"Carinhanha","Itapipoca",null,null,"Flores de Goiás","Igarapé do Meio","Bonito de Minas",null,"Novo São Joaquim","Palestina do Pará","Itabaiana","Jaboatão dos Guararapes","Fronteiras","Coronel Vivida","Três Rios","Natal",null,null,"Capivari do Sul","Faxinal dos Guedes",null,"Braúna","Oliveira de Fátima"]
[91.0,"AL","Pão de Açúcar",null,null,null,null,null,null,null,null,"São José da Laje",null,null,"Casa Nova","Itapiúna",null,null,"Formosa","Igarapé Grande","Borda da Mata",null,"Paranaíta","Paragominas","Itaporanga","Jaqueira","Geminiano","Corumbataí do Sul","Valença","Nísia Floresta",null,null,"Caraá","Flor do Sertão",null,"Brejo Alegre","Palmas"]
[92.0,"AL","Pariconha",null,null,null,null,null,null,null,null,"São José da Tapera",null,null,"Castro Alves","Itarema",null,null,"Formoso","Imperatriz","Botelhos",null,"Paranatinga","Parauapebas","Itapororoca","Jataúba","Gilbués","Cruz Machado","Varre-Sai","Nova Cruz",null,null,"Carazinho","Florianópolis",null,"Brodowski","Palmeirante"]
[93.0,"AL","Paripueira",null,null,null,null,null,null,null,null,"São Luís do Quitunde",null,null,"Catolândia","Itatira",null,null,"Gameleira de Goiás","Itaipava do Grajaú","Botumirim",null,"Pedra Preta","Pau DArco","Itatuba","Jatobá","Guadalupe","Cruzeiro do Iguaçu","Vassouras","Olho-dÁgua do Borges",null,null,"Carlos Barbosa","Formosa do Sul",null,"Brotas","Palmeiras do Tocantins"]
[94.0,"AL","Passo de Camaragibe",null,null,null,null,null,null,null,null,"São Miguel dos Campos",null,null,"Catu","Jaguaretama",null,null,"Goianápolis","Itapecuru Mirim","Brás Pires",null,"Peixoto de Azevedo","Peixe-Boi","Jacaraú","João Alfredo","Guaribas","Cruzeiro do Oeste","Volta Redonda","Ouro Branco",null,null,"Carlos Gomes","Forquilhinha",null,"Buri","Palmeirópolis"]
[95.0,"AL","Paulo Jacinto",null,null,null,null,null,null,null,null,"São Miguel dos Milagres",null,null,"Caturama","Jaguaribara",null,null,"Goiandira","Itinga do Maranhão","Brasilândia de Minas",null,"Planalto da Serra","Piçarra","Jericó","Joaquim Nabuco","Hugo Napoleão","Cruzeiro do Sul",null,"Paraná",null,null,"Casca","Fraiburgo",null,"Buritama","Paraíso do Tocantins"]
[96.0,"AL","Penedo",null,null,null,null,null,null,null,null,"São Sebastião",null,null,"Central","Jaguaribe",null,null,"Goianésia","Jatobá","Brasília de Minas",null,"Poconé","Placas","João Pessoa","Jucati","Ilha Grande","Cruzmaltina",null,"Paraú",null,null,"Caseiros","Frei Rogério",null,"Buritizal","Paranã"]
[97.0,"AL","Piaçabuçu",null,null,null,null,null,null,null,null,"Satuba",null,null,"Chorrochó","Jaguaruana",null,null,"Goiânia","Jenipapo dos Vieiras","Brasópolis",null,"Pontal do Araguaia","Ponta de Pedras","Joca Claudino","Jupi","Inhuma","Curitiba",null,"Parazinho",null,null,"Catuípe","Galvão",null,"Cabrália Paulista","Pau DArco"]
[98.0,"AL","Pilar",null,null,null,null,null,null,null,null,"Senador Rui Palmeira",null,null,"Cícero Dantas","Jardim",null,null,"Goianira","João Lisboa","Braúnas",null,"Ponte Branca","Portel","Juarez Távora","Jurema","Ipiranga do Piauí","Curiúva",null,"Parelhas",null,null,"Caxias do Sul","Garopaba",null,"Cabreúva","Pedro Afonso"]
[99.0,"AL","Pindoba",null,null,null,null,null,null,null,null,"Tanque dArca",null,null,"Cipó","Jati",null,null,"Goiás","Joselândia","Brumadinho",null,"Pontes e Lacerda","Porto de Moz","Juazeirinho","Lagoa do Carro","Isaías Coelho","Diamante do Norte",null,"Parnamirim",null,null,"Centenário","Garuva",null,"Caçapava","Peixe"]
[100.0,"AL","Piranhas",null,null,null,null,null,null,null,null,"Taquarana",null,null,"Coaraci","Jijoca de Jericoacoara",null,null,"Goiatuba","Junco do Maranhão","Bueno Brandão",null,"Porto Alegre do Norte","Prainha","Junco do Seridó","Lagoa do Itaenga","Itainópolis","Diamante do Sul",null,"Passa e Fica",null,null,"Cerrito","Gaspar",null,"Cachoeira Paulista","Pequizeiro"]
[101.0,"AL","Poço das Trincheiras",null,null,null,null,null,null,null,null,"Teotônio Vilela",null,null,"Cocos","Juazeiro do Norte",null,null,"Gouvelândia","Lago da Pedra","Buenópolis",null,"Porto dos Gaúchos","Primavera","Juripiranga","Lagoa do Ouro","Itaueira","Diamante DOeste",null,"Passagem",null,null,"Cerro Branco","Governador Celso Ramos",null,"Caconde","Pindorama do Tocantins"]
[102.0,"AL","Porto Calvo",null,null,null,null,null,null,null,null,"Traipu",null,null,"Conceição da Feira","Jucás",null,null,"Guapó","Lago do Junco","Bugre",null,"Porto Esperidião","Quatipuru","Juru","Lagoa dos Gatos","Jacobina do Piauí","Dois Vizinhos",null,"Patu",null,null,"Cerro Grande","Grão Pará",null,"Cafelândia","Piraquê"]
[103.0,"AL","Porto de Pedras",null,null,null,null,null,null,null,null,"União dos Palmares",null,null,"Conceição do Almeida","Lavras da Mangabeira",null,null,"Guaraíta","Lago dos Rodrigues","Buritis",null,"Porto Estrela","Redenção","Lagoa","Lagoa Grande","Jaicós","Douradina",null,"Pau dos Ferros",null,null,"Cerro Grande do Sul","Gravatal",null,"Caiabu","Pium"]
[104.0,"AL","Porto Real do Colégio",null,null,null,null,null,null,null,null,"Viçosa",null,null,"Conceição do Coité","Limoeiro do Norte",null,null,"Guarani de Goiás","Lago Verde","Buritizeiro",null,"Poxoréo","Rio Maria","Lagoa de Dentro","Lajedo","Jardim do Mulato","Doutor Camargo",null,"Pedra Grande",null,null,"Cerro Largo","Guabiruba",null,"Caieiras","Ponte Alta do Bom Jesus"]
[105.0,"AL","Quebrangulo",null,null,null,null,null,null,null,null,null,null,null,"Conceição do Jacuípe","Madalena",null,null,"Guarinos","Lagoa do Mato","Cabeceira Grande",null,"Primavera do Leste","Rondon do Pará","Lagoa Seca","Limoeiro","Jatobá do Piauí","Doutor Ulysses",null,"Pedra Preta",null,null,"Chapada","Guaraciaba",null,"Caiuá","Ponte Alta do Tocantins"]
[106.0,"AL","Rio Largo",null,null,null,null,null,null,null,null,null,null,null,"Conde","Maracanaú",null,null,"Heitoraí","Lagoa Grande do Maranhão","Cabo Verde",null,"Querência","Rurópolis","Lastro","Macaparana","Jerumenha","Enéas Marques",null,"Pedro Avelino",null,null,"Charqueadas","Guaramirim",null,"Cajamar","Porto Alegre do Tocantins"]
[107.0,"AL","Roteiro",null,null,null,null,null,null,null,null,null,null,null,"Condeúba","Maranguape",null,null,"Hidrolândia","Lajeado Novo","Cachoeira da Prata",null,"Reserva do Cabaçal","Salinópolis","Livramento","Machados","João Costa","Engenheiro Beltrão",null,"Pedro Velho",null,null,"Charrua","Guarujá do Sul",null,"Cajati","Porto Nacional"]
[108.0,"AL","Santa Luzia do Norte",null,null,null,null,null,null,null,null,null,null,null,"Contendas do Sincorá","Marco",null,null,"Hidrolina","Lima Campos","Cachoeira de Minas",null,"Ribeirão Cascalheira","Salvaterra","Logradouro","Manari","Joaquim Pires","Entre Rios do Oeste",null,"Pendências",null,null,"Chiapetta","Guatambú",null,"Cajobi","Praia Norte"]
[109.0,"AL","Santana do Ipanema",null,null,null,null,null,null,null,null,null,null,null,"Coração de Maria","Martinópole",null,null,"Iaciara","Loreto","Cachoeira de Pajeú",null,"Ribeirãozinho","Santa Bárbara do Pará","Lucena","Maraial","Joca Marques","Esperança Nova",null,"Pilões",null,null,"Chuí","Herval dOeste",null,"Cajuru","Presidente Kennedy"]
[110.0,"AL","Santana do Mundaú",null,null,null,null,null,null,null,null,null,null,null,"Cordeiros","Massapê",null,null,"Inaciolândia","Luís Domingues","Cachoeira Dourada",null,"Rio Branco","Santa Cruz do Arari","Mãe dÁgua","Mirandiba","José de Freitas","Espigão Alto do Iguaçu",null,"Poço Branco",null,null,"Chuvisca","Ibiam",null,"Campina do Monte Alegre","Pugmil"]
[111.0,"AL","São Brás",null,null,null,null,null,null,null,null,null,null,null,"Coribe","Mauriti",null,null,"Indiara","Magalhães de Almeida","Caetanópolis",null,"Rondolândia","Santa Izabel do Pará","Malta","Moreilândia","Juazeiro do Piauí","Farol",null,"Portalegre",null,null,"Cidreira","Ibicaré",null,"Campinas","Recursolândia"]
[112.0,"AL","São José da Laje",null,null,null,null,null,null,null,null,null,null,null,"Coronel João Sá","Meruoca",null,null,"Inhumas","Maracaçumé","Caeté",null,"Rondonópolis","Santa Luzia do Pará","Mamanguape","Moreno","Júlio Borges","Faxinal",null,"Porto do Mangue",null,null,"Ciríaco","Ibirama",null,"Campo Limpo Paulista","Riachinho"]
[113.0,"AL","São José da Tapera",null,null,null,null,null,null,null,null,null,null,null,"Correntina","Milagres",null,null,"Ipameri","Marajá do Sena","Caiana",null,"Rosário Oeste","Santa Maria das Barreiras","Manaíra","Nazaré da Mata","Jurema","Fazenda Rio Grande",null,"Pureza",null,null,"Colinas","Içara",null,"Campos do Jordão","Rio da Conceição"]
[114.0,"AL","São Luís do Quitunde",null,null,null,null,null,null,null,null,null,null,null,"Cotegipe","Milhã",null,null,"Ipiranga de Goiás","Maranhãozinho","Cajuri",null,"Salto do Céu","Santa Maria do Pará","Marcação","Olinda","Lagoa Alegre","Fênix",null,"Rafael Fernandes",null,null,"Colorado","Ilhota",null,"Campos Novos Paulista","Rio dos Bois"]
[115.0,"AL","São Miguel dos Campos",null,null,null,null,null,null,null,null,null,null,null,"Cravolândia","Miraíma",null,null,"Iporá","Mata Roma","Caldas",null,"Santa Carmem","Santana do Araguaia","Mari","Orobó","Lagoa de São Francisco","Fernandes Pinheiro",null,"Rafael Godeiro",null,null,"Condor","Imaruí",null,"Cananéia","Rio Sono"]
[116.0,"AL","São Miguel dos Milagres",null,null,null,null,null,null,null,null,null,null,null,"Crisópolis","Missão Velha",null,null,"Israelândia","Matinha","Camacho",null,"Santa Cruz do Xingu","Santarém","Marizópolis","Orocó","Lagoa do Barro do Piauí","Figueira",null,"Riacho da Cruz",null,null,"Constantina","Imbituba",null,"Canas","Sampaio"]
[117.0,"AL","São Sebastião",null,null,null,null,null,null,null,null,null,null,null,"Cristópolis","Mombaça",null,null,"Itaberaí","Matões","Camanducaia",null,"Santa Rita do Trivelato","Santarém Novo","Massaranduba","Ouricuri","Lagoa do Piauí","Flor da Serra do Sul",null,"Riacho de Santana",null,null,"Coqueiro Baixo","Imbuia",null,"Cândido Mota","Sandolândia"]
[118.0,"AL","Satuba",null,null,null,null,null,null,null,null,null,null,null,"Cruz das Almas","Monsenhor Tabosa",null,null,"Itaguari","Matões do Norte","Cambuí",null,"Santa Terezinha","Santo Antônio do Tauá","Mataraca","Palmares","Lagoa do Sítio","Floraí",null,"Riachuelo",null,null,"Coqueiros do Sul","Indaial",null,"Cândido Rodrigues","Santa Fé do Araguaia"]
[119.0,"AL","Senador Rui Palmeira",null,null,null,null,null,null,null,null,null,null,null,"Curaçá","Morada Nova",null,null,"Itaguaru","Milagres do Maranhão","Cambuquira",null,"Santo Afonso","São Caetano de Odivelas","Matinhas","Palmeirina","Lagoinha do Piauí","Floresta",null,"Rio do Fogo",null,null,"Coronel Barros","Iomerê",null,"Canitar","Santa Maria do Tocantins"]
[120.0,"AL","Tanque dArca",null,null,null,null,null,null,null,null,null,null,null,"Dário Meira","Moraújo",null,null,"Itajá","Mirador","Campanário",null,"Santo Antônio do Leste","São Domingos do Araguaia","Mato Grosso","Panelas","Landri Sales","Florestópolis",null,"Rodolfo Fernandes",null,null,"Coronel Bicaco","Ipira",null,"Capão Bonito","Santa Rita do Tocantins"]
[121.0,"AL","Taquarana",null,null,null,null,null,null,null,null,null,null,null,"Dias dÁvila","Morrinhos",null,null,"Itapaci","Miranda do Norte","Campanha",null,"Santo Antônio do Leverger","São Domingos do Capim","Maturéia","Paranatama","Luís Correia","Flórida",null,"Ruy Barbosa",null,null,"Coronel Pilar","Iporã do Oeste",null,"Capela do Alto","Santa Rosa do Tocantins"]
[122.0,"AL","Teotônio Vilela",null,null,null,null,null,null,null,null,null,null,null,"Dom Basílio","Mucambo",null,null,"Itapirapuã","Mirinzal","Campestre",null,"São Félix do Araguaia","São Félix do Xingu","Mogeiro","Parnamirim","Luzilândia","Formosa do Oeste",null,"Santa Cruz",null,null,"Cotiporã","Ipuaçu",null,"Capivari","Santa Tereza do Tocantins"]
[123.0,"AL","Traipu",null,null,null,null,null,null,null,null,null,null,null,"Dom Macedo Costa","Mulungu",null,null,"Itapuranga","Monção","Campina Verde",null,"São José do Povo","São Francisco do Pará","Montadas","Passira","Madeiro","Foz do Iguaçu",null,"Santa Maria",null,null,"Coxilha","Ipumirim",null,"Caraguatatuba","Santa Terezinha do Tocantins"]
[124.0,"AL","União dos Palmares",null,null,null,null,null,null,null,null,null,null,null,"Elísio Medrado","Nova Olinda",null,null,"Itarumã","Montes Altos","Campo Azul",null,"São José do Rio Claro","São Geraldo do Araguaia","Monte Horebe","Paudalho","Manoel Emídio","Foz do Jordão",null,"Santana do Matos",null,null,"Crissiumal","Iraceminha",null,"Carapicuíba","São Bento do Tocantins"]
[125.0,"AL","Viçosa",null,null,null,null,null,null,null,null,null,null,null,"Encruzilhada","Nova Russas",null,null,"Itauçu","Morros","Campo Belo",null,"São José do Xingu","São João da Ponta","Monteiro","Paulista","Marcolândia","Francisco Alves",null,"Santana do Seridó",null,null,"Cristal","Irani",null,"Cardoso","São Félix do Tocantins"]
[126.0,"AM","Alvarães",null,null,null,null,null,null,null,null,null,null,null,"Entre Rios","Novo Oriente",null,null,"Itumbiara","Nina Rodrigues","Campo do Meio",null,"São José dos Quatro Marcos","São João de Pirabas","Mulungu","Pedra","Marcos Parente","Francisco Beltrão",null,"Santo Antônio",null,null,"Cristal do Sul","Irati",null,"Casa Branca","São Miguel do Tocantins"]
[127.0,"AM","Amaturá",null,null,null,null,null,null,null,null,null,null,null,"Érico Cardoso","Ocara",null,null,"Ivolândia","Nova Colinas","Campo Florido",null,"São Pedro da Cipa","São João do Araguaia","Natuba","Pesqueira","Massapê do Piauí","General Carneiro",null,"São Bento do Norte",null,null,"Cruz Alta","Irineópolis",null,"Cássia dos Coqueiros","São Salvador do Tocantins"]
[128.0,"AM","Anamã",null,null,null,null,null,null,null,null,null,null,null,"Esplanada","Orós",null,null,"Jandaia","Nova Iorque","Campos Altos",null,"Sapezal","São Miguel do Guamá","Nazarezinho","Petrolândia","Matias Olímpio","Godoy Moreira",null,"São Bento do Trairí",null,null,"Cruzaltense","Itá",null,"Castilho","São Sebastião do Tocantins"]
[129.0,"AM","Anori",null,null,null,null,null,null,null,null,null,null,null,"Euclides da Cunha","Pacajus",null,null,"Jaraguá","Nova Olinda do Maranhão","Campos Gerais",null,"Serra Nova Dourada","São Sebastião da Boa Vista","Nova Floresta","Petrolina","Miguel Alves","Goioerê",null,"São Fernando",null,null,"Cruzeiro do Sul","Itaiópolis",null,"Catanduva","São Valério da Natividade"]
[130.0,"AM","Apuí",null,null,null,null,null,null,null,null,null,null,null,"Eunápolis","Pacatuba",null,null,"Jataí","Olho dÁgua das Cunhãs","Cana Verde",null,"Sinop","Sapucaia","Nova Olinda","Poção","Miguel Leão","Goioxim",null,"São Francisco do Oeste",null,null,"David Canabarro","Itajaí",null,"Catiguá","Silvanópolis"]
[131.0,"AM","Atalaia do Norte",null,null,null,null,null,null,null,null,null,null,null,"Fátima","Pacoti",null,null,"Jaupaci","Olinda Nova do Maranhão","Canaã",null,"Sorriso","Senador José Porfírio","Nova Palmeira","Pombos","Milton Brandão","Grandes Rios",null,"São Gonçalo do Amarante",null,null,"Derrubadas","Itapema",null,"Cedral","Sítio Novo do Tocantins"]
[132.0,"AM","Autazes",null,null,null,null,null,null,null,null,null,null,null,"Feira da Mata","Pacujá",null,null,"Jesúpolis","Paço do Lumiar","Canápolis",null,"Tabaporã","Soure","Olho dÁgua","Primavera","Monsenhor Gil","Guaíra",null,"São João do Sabugi",null,null,"Dezesseis de Novembro","Itapiranga",null,"Cerqueira César","Sucupira"]
[133.0,"AM","Barcelos",null,null,null,null,null,null,null,null,null,null,null,"Feira de Santana","Palhano",null,null,"Joviânia","Palmeirândia","Candeias",null,"Tangará da Serra","Tailândia","Olivedos","Quipapá","Monsenhor Hipólito","Guairaçá",null,"São José de Mipibu",null,null,"Dilermando de Aguiar","Itapoá",null,"Cerquilho","Taguatinga"]
[134.0,"AM","Barreirinha",null,null,null,null,null,null,null,null,null,null,null,"Filadélfia","Palmácia",null,null,"Jussara","Paraibano","Cantagalo",null,"Tapurah","Terra Alta","Ouro Velho","Quixaba","Monte Alegre do Piauí","Guamiranga",null,"São José do Campestre",null,null,"Dois Irmãos","Ituporanga",null,"Cesário Lange","Taipas do Tocantins"]
[135.0,"AM","Benjamin Constant",null,null,null,null,null,null,null,null,null,null,null,"Firmino Alves","Paracuru",null,null,"Lagoa Santa","Parnarama","Caparaó",null,"Terra Nova do Norte","Terra Santa","Parari","Recife","Morro Cabeça no Tempo","Guapirama",null,"São José do Seridó",null,null,"Dois Irmãos das Missões","Jaborá",null,"Charqueada","Talismã"]
[136.0,"AM","Beruri",null,null,null,null,null,null,null,null,null,null,null,"Floresta Azul","Paraipaba",null,null,"Leopoldo de Bulhões","Passagem Franca","Capela Nova",null,"Tesouro","Tomé-Açu","Passagem","Riacho das Almas","Morro do Chapéu do Piauí","Guaporema",null,"São Miguel",null,null,"Dois Lajeados","Jacinto Machado",null,"Chavantes","Tocantínia"]
[137.0,"AM","Boa Vista do Ramos",null,null,null,null,null,null,null,null,null,null,null,"Formosa do Rio Preto","Parambu",null,null,"Luziânia","Pastos Bons","Capelinha",null,"Torixoréu","Tracuateua","Patos","Ribeirão","Murici dos Portelas","Guaraci",null,"São Miguel do Gostoso",null,null,"Dom Feliciano","Jaguaruna",null,"Clementina","Tocantinópolis"]
[138.0,"AM","Boca do Acre",null,null,null,null,null,null,null,null,null,null,null,"Gandu","Paramoti",null,null,"Mairipotaba","Paulino Neves","Capetinga",null,"União do Sul","Trairão","Paulista","Rio Formoso","Nazaré do Piauí","Guaraniaçu",null,"São Paulo do Potengi",null,null,"Dom Pedrito","Jaraguá do Sul",null,"Colina","Tupirama"]
[139.0,"AM","Borba",null,null,null,null,null,null,null,null,null,null,null,"Gavião","Pedra Branca",null,null,"Mambaí","Paulo Ramos","Capim Branco",null,"Vale de São Domingos","Tucumã","Pedra Branca","Sairé","Nazária","Guarapuava",null,"São Pedro",null,null,"Dom Pedro de Alcântara","Jardinópolis",null,"Colômbia","Tupiratins"]
[140.0,"AM","Caapiranga",null,null,null,null,null,null,null,null,null,null,null,"Gentio do Ouro","Penaforte",null,null,"Mara Rosa","Pedreiras","Capinópolis",null,"Várzea Grande","Tucuruí","Pedra Lavrada","Salgadinho","Nossa Senhora de Nazaré","Guaraqueçaba",null,"São Rafael",null,null,"Dona Francisca","Joaçaba",null,"Conchal","Wanderlândia"]
[141.0,"AM","Canutama",null,null,null,null,null,null,null,null,null,null,null,"Glória","Pentecoste",null,null,"Marzagão","Pedro do Rosário","Capitão Andrade",null,"Vera","Ulianópolis","Pedras de Fogo","Salgueiro","Nossa Senhora dos Remédios","Guaratuba",null,"São Tomé",null,null,"Doutor Maurício Cardoso","Joinville",null,"Conchas","Xambioá"]
[142.0,"AM","Carauari",null,null,null,null,null,null,null,null,null,null,null,"Gongogi","Pereiro",null,null,"Matrinchã","Penalva","Capitão Enéas",null,"Vila Bela da Santíssima Trindade","Uruará","Pedro Régis","Saloá","Nova Santa Rita","Honório Serpa",null,"São Vicente",null,null,"Doutor Ricardo","José Boiteux",null,"Cordeirópolis"]
[143.0,"AM","Careiro",null,null,null,null,null,null,null,null,null,null,null,"Governador Mangabeira","Pindoretama",null,null,"Maurilândia","Peri Mirim","Capitólio",null,"Vila Rica","Vigia","Piancó","Sanharó","Novo Oriente do Piauí","Ibaiti",null,"Senador Elói de Souza",null,null,"Eldorado do Sul","Jupiá",null,"Coroados"]
[144.0,"AM","Careiro da Várzea",null,null,null,null,null,null,null,null,null,null,null,"Guajeru","Piquet Carneiro",null,null,"Mimoso de Goiás","Peritoró","Caputira",null,null,"Viseu","Picuí","Santa Cruz","Novo Santo Antônio","Ibema",null,"Senador Georgino Avelino",null,null,"Encantado","Lacerdópolis",null,"Coronel Macedo"]
[145.0,"AM","Coari",null,null,null,null,null,null,null,null,null,null,null,"Guanambi","Pires Ferreira",null,null,"Minaçu","Pindaré-Mirim","Caraí",null,null,"Vitória do Xingu","Pilar","Santa Cruz da Baixa Verde","Oeiras","Ibiporã",null,"Serra Caiada***",null,null,"Encruzilhada do Sul","Lages",null,"Corumbataí"]
[146.0,"AM","Codajás",null,null,null,null,null,null,null,null,null,null,null,"Guaratinga","Poranga",null,null,"Mineiros","Pinheiro","Caranaíba",null,null,"Xinguara","Pilões","Santa Cruz do Capibaribe","Olho DÁgua do Piauí","Icaraíma",null,"Serra de São Bento",null,null,"Engenho Velho","Laguna",null,"Cosmópolis"]
[147.0,"AM","Eirunepé",null,null,null,null,null,null,null,null,null,null,null,"Heliópolis","Porteiras",null,null,"Moiporá","Pio XII","Carandaí",null,null,null,"Pilõezinhos","Santa Filomena","Padre Marcos","Iguaraçu",null,"Serra do Mel",null,null,"Entre Rios do Sul","Lajeado Grande",null,"Cosmorama"]
[148.0,"AM","Envira",null,null,null,null,null,null,null,null,null,null,null,"Iaçu","Potengi",null,null,"Monte Alegre de Goiás","Pirapemas","Carangola",null,null,null,"Pirpirituba","Santa Maria da Boa Vista","Paes Landim","Iguatu",null,"Serra Negra do Norte",null,null,"Entre-Ijuís","Laurentino",null,"Cotia"]
[149.0,"AM","Fonte Boa",null,null,null,null,null,null,null,null,null,null,null,"Ibiassucê","Potiretama",null,null,"Montes Claros de Goiás","Poção de Pedras","Caratinga",null,null,null,"Pitimbu","Santa Maria do Cambucá","Pajeú do Piauí","Imbaú",null,"Serrinha",null,null,"Erebango","Lauro Muller",null,"Cravinhos"]
[150.0,"AM","Guajará",null,null,null,null,null,null,null,null,null,null,null,"Ibicaraí","Quiterianópolis",null,null,"Montividiu","Porto Franco","Carbonita",null,null,null,"Pocinhos","Santa Terezinha","Palmeira do Piauí","Imbituva",null,"Serrinha dos Pintos",null,null,"Erechim","Lebon Régis",null,"Cristais Paulista"]
[151.0,"AM","Humaitá",null,null,null,null,null,null,null,null,null,null,null,"Ibicoara","Quixadá",null,null,"Montividiu do Norte","Porto Rico do Maranhão","Careaçu",null,null,null,"Poço Dantas","São Benedito do Sul","Palmeirais","Inácio Martins",null,"Severiano Melo",null,null,"Ernestina","Leoberto Leal",null,"Cruzália"]
[152.0,"AM","Ipixuna",null,null,null,null,null,null,null,null,null,null,null,"Ibicuí","Quixelô",null,null,"Morrinhos","Presidente Dutra","Carlos Chagas",null,null,null,"Poço de José de Moura","São Bento do Una","Paquetá","Inajá",null,"Sítio Novo",null,null,"Erval Grande","Lindóia do Sul",null,"Cruzeiro"]
[153.0,"AM","Iranduba",null,null,null,null,null,null,null,null,null,null,null,"Ibipeba","Quixeramobim",null,null,"Morro Agudo de Goiás","Presidente Juscelino","Carmésia",null,null,null,"Pombal","São Caitano","Parnaguá","Indianópolis",null,"Taboleiro Grande",null,null,"Erval Seco","Lontras",null,"Cubatão"]
[154.0,"AM","Itacoatiara",null,null,null,null,null,null,null,null,null,null,null,"Ibipitanga","Quixeré",null,null,"Mossâmedes","Presidente Médici","Carmo da Cachoeira",null,null,null,"Prata","São João","Parnaíba","Ipiranga",null,"Taipu",null,null,"Esmeralda","Luiz Alves",null,"Cunha"]
[155.0,"AM","Itamarati",null,null,null,null,null,null,null,null,null,null,null,"Ibiquera","Redenção",null,null,"Mozarlândia","Presidente Sarney","Carmo da Mata",null,null,null,"Princesa Isabel","São Joaquim do Monte","Passagem Franca do Piauí","Iporã",null,"Tangará",null,null,"Esperança do Sul","Luzerna",null,"Descalvado"]
[156.0,"AM","Itapiranga",null,null,null,null,null,null,null,null,null,null,null,"Ibirapitanga","Reriutaba",null,null,"Mundo Novo","Presidente Vargas","Carmo de Minas",null,null,null,"Puxinanã","São José da Coroa Grande","Patos do Piauí","Iracema do Oeste",null,"Tenente Ananias",null,null,"Espumoso","Macieira",null,"Diadema"]
[157.0,"AM","Japurá",null,null,null,null,null,null,null,null,null,null,null,"Ibirapuã","Russas",null,null,"Mutunópolis","Primeira Cruz","Carmo do Cajuru",null,null,null,"Queimadas","São José do Belmonte","Pau DArco do Piauí","Irati",null,"Tenente Laurentino Cruz",null,null,"Estação","Mafra",null,"Dirce Reis"]
[158.0,"AM","Juruá",null,null,null,null,null,null,null,null,null,null,null,"Ibirataia","Saboeiro",null,null,"Nazário","Raposa","Carmo do Paranaíba",null,null,null,"Quixabá","São José do Egito","Paulistana","Iretama",null,"Tibau",null,null,"Estância Velha","Major Gercino",null,"Divinolândia"]
[159.0,"AM","Jutaí",null,null,null,null,null,null,null,null,null,null,null,"Ibitiara","Salitre",null,null,"Nerópolis","Riachão","Carmo do Rio Claro",null,null,null,"Remígio","São Lourenço da Mata","Pavussu","Itaguajé",null,"Tibau do Sul",null,null,"Esteio","Major Vieira",null,"Dobrada"]
[160.0,"AM","Lábrea",null,null,null,null,null,null,null,null,null,null,null,"Ibititá","Santa Quitéria",null,null,"Niquelândia","Ribamar Fiquene","Carmópolis de Minas",null,null,null,"Riachão","São Vicente Ferrer","Pedro II","Itaipulândia",null,"Timbaúba dos Batistas",null,null,"Estrela","Maracajá",null,"Dois Córregos"]
[161.0,"AM","Manacapuru",null,null,null,null,null,null,null,null,null,null,null,"Ibotirama","Santana do Acaraú",null,null,"Nova América","Rosário","Carneirinho",null,null,null,"Riachão do Bacamarte","Serra Talhada","Pedro Laurentino","Itambaracá",null,"Touros",null,null,"Estrela Velha","Maravilha",null,"Dolcinópolis"]
[162.0,"AM","Manaquiri",null,null,null,null,null,null,null,null,null,null,null,"Ichu","Santana do Cariri",null,null,"Nova Aurora","Sambaíba","Carrancas",null,null,null,"Riachão do Poço","Serrita","Picos","Itambé",null,"Triunfo Potiguar",null,null,"Eugênio de Castro","Marema",null,"Dourado"]
[163.0,"AM","Manaus",null,null,null,null,null,null,null,null,null,null,null,"Igaporã","São Benedito",null,null,"Nova Crixás","Santa Filomena do Maranhão","Carvalhópolis",null,null,null,"Riacho de Santo Antônio","Sertânia","Pimenteiras","Itapejara dOeste",null,"Umarizal",null,null,"Fagundes Varela","Massaranduba",null,"Dracena"]
[164.0,"AM","Manicoré",null,null,null,null,null,null,null,null,null,null,null,"Igrapiúna","São Gonçalo do Amarante",null,null,"Nova Glória","Santa Helena","Carvalhos",null,null,null,"Riacho dos Cavalos","Sirinhaém","Pio IX","Itaperuçu",null,"Upanema",null,null,"Farroupilha","Matos Costa",null,"Duartina"]
[165.0,"AM","Maraã",null,null,null,null,null,null,null,null,null,null,null,"Iguaí","São João do Jaguaribe",null,null,"Nova Iguaçu de Goiás","Santa Inês","Casa Grande",null,null,null,"Rio Tinto","Solidão","Piracuruca","Itaúna do Sul",null,"Várzea",null,null,"Faxinal do Soturno","Meleiro",null,"Dumont"]
[166.0,"AM","Maués",null,null,null,null,null,null,null,null,null,null,null,"Ilhéus","São Luís do Curu",null,null,"Nova Roma","Santa Luzia","Cascalho Rico",null,null,null,"Salgadinho","Surubim","Piripiri","Ivaí",null,"Venha-Ver",null,null,"Faxinalzinho","Mirim Doce",null,"Echaporã"]
[167.0,"AM","Nhamundá",null,null,null,null,null,null,null,null,null,null,null,"Inhambupe","Senador Pompeu",null,null,"Nova Veneza","Santa Luzia do Paruá","Cássia",null,null,null,"Salgado de São Félix","Tabira","Porto","Ivaiporã",null,"Vera Cruz",null,null,"Fazenda Vilanova","Modelo",null,"Eldorado"]
[168.0,"AM","Nova Olinda do Norte",null,null,null,null,null,null,null,null,null,null,null,"Ipecaetá","Senador Sá",null,null,"Novo Brasil","Santa Quitéria do Maranhão","Cataguases",null,null,null,"Santa Cecília","Tacaimbó","Porto Alegre do Piauí","Ivaté",null,"Viçosa",null,null,"Feliz","Mondaí",null,"Elias Fausto"]
[169.0,"AM","Novo Airão",null,null,null,null,null,null,null,null,null,null,null,"Ipiaú","Sobral",null,null,"Novo Gama","Santa Rita","Catas Altas",null,null,null,"Santa Cruz","Tacaratu","Prata do Piauí","Ivatuba",null,"Vila Flor",null,null,"Flores da Cunha","Monte Carlo",null,"Elisiário"]
[170.0,"AM","Novo Aripuanã",null,null,null,null,null,null,null,null,null,null,null,"Ipirá","Solonópole",null,null,"Novo Planalto","Santana do Maranhão","Catas Altas da Noruega",null,null,null,"Santa Helena","Tamandaré","Queimada Nova","Jaboti",null,null,null,null,"Floriano Peixoto","Monte Castelo",null,"Embaúba"]
[171.0,"AM","Parintins",null,null,null,null,null,null,null,null,null,null,null,"Ipupiara","Tabuleiro do Norte",null,null,"Orizona","Santo Amaro do Maranhão","Catuji",null,null,null,"Santa Inês","Taquaritinga do Norte","Redenção do Gurguéia","Jacarezinho",null,null,null,null,"Fontoura Xavier","Morro da Fumaça",null,"Embu das Artes"]
[172.0,"AM","Pauini",null,null,null,null,null,null,null,null,null,null,null,"Irajuba","Tamboril",null,null,"Ouro Verde de Goiás","Santo Antônio dos Lopes","Catuti",null,null,null,"Santa Luzia","Terezinha","Regeneração","Jaguapitã",null,null,null,null,"Formigueiro","Morro Grande",null,"Embu-Guaçu"]
[173.0,"AM","Presidente Figueiredo",null,null,null,null,null,null,null,null,null,null,null,"Iramaia","Tarrafas",null,null,"Ouvidor","São Benedito do Rio Preto","Caxambu",null,null,null,"Santa Rita","Terra Nova","Riacho Frio","Jaguariaíva",null,null,null,null,"Forquetinha","Navegantes",null,"Emilianópolis"]
[174.0,"AM","Rio Preto da Eva",null,null,null,null,null,null,null,null,null,null,null,"Iraquara","Tauá",null,null,"Padre Bernardo","São Bento","Cedro do Abaeté",null,null,null,"Santa Teresinha","Timbaúba","Ribeira do Piauí","Jandaia do Sul",null,null,null,null,"Fortaleza dos Valos","Nova Erechim",null,"Engenheiro Coelho"]
[175.0,"AM","Santa Isabel do Rio Negro",null,null,null,null,null,null,null,null,null,null,null,"Irará","Tejuçuoca",null,null,"Palestina de Goiás","São Bernardo","Central de Minas",null,null,null,"Santana de Mangueira","Toritama","Ribeiro Gonçalves","Janiópolis",null,null,null,null,"Frederico Westphalen","Nova Itaberaba",null,"Espírito Santo do Pinhal"]
[176.0,"AM","Santo Antônio do Içá",null,null,null,null,null,null,null,null,null,null,null,"Irecê","Tianguá",null,null,"Palmeiras de Goiás","São Domingos do Azeitão","Centralina",null,null,null,"Santana dos Garrotes","Tracunhaém","Rio Grande do Piauí","Japira",null,null,null,null,"Garibaldi","Nova Trento",null,"Espírito Santo do Turvo"]
[177.0,"AM","São Gabriel da Cachoeira",null,null,null,null,null,null,null,null,null,null,null,"Itabela","Trairi",null,null,"Palmelo","São Domingos do Maranhão","Chácara",null,null,null,"Santo André","Trindade","Santa Cruz do Piauí","Japurá",null,null,null,null,"Garruchos","Nova Veneza",null,"Estiva Gerbi"]
[178.0,"AM","São Paulo de Olivença",null,null,null,null,null,null,null,null,null,null,null,"Itaberaba","Tururu",null,null,"Palminópolis","São Félix de Balsas","Chalé",null,null,null,"São Bentinho","Triunfo","Santa Cruz dos Milagres","Jardim Alegre",null,null,null,null,"Gaurama","Novo Horizonte",null,"Estrela do Norte"]
[179.0,"AM","São Sebastião do Uatumã",null,null,null,null,null,null,null,null,null,null,null,"Itabuna","Ubajara",null,null,"Panamá","São Francisco do Brejão","Chapada do Norte",null,null,null,"São Bento","Tupanatinga","Santa Filomena","Jardim Olinda",null,null,null,null,"General Câmara","Orleans",null,"Estrela dOeste"]
[180.0,"AM","Silves",null,null,null,null,null,null,null,null,null,null,null,"Itacaré","Umari",null,null,"Paranaiguara","São Francisco do Maranhão","Chapada Gaúcha",null,null,null,"São Domingos de Pombal","Tuparetama","Santa Luz","Jataizinho",null,null,null,null,"Gentil","Otacílio Costa",null,"Euclides da Cunha Paulista"]
[181.0,"AM","Tabatinga",null,null,null,null,null,null,null,null,null,null,null,"Itaeté","Umirim",null,null,"Paraúna","São João Batista","Chiador",null,null,null,"São Domingos do Cariri","Venturosa","Santa Rosa do Piauí","Jesuítas",null,null,null,null,"Getúlio Vargas","Ouro",null,"Fartura"]
[182.0,"AM","Tapauá",null,null,null,null,null,null,null,null,null,null,null,"Itagi","Uruburetama",null,null,"Perolândia","São João do Carú","Cipotânea",null,null,null,"São Francisco","Verdejante","Santana do Piauí","Joaquim Távora",null,null,null,null,"Giruá","Ouro Verde",null,"Fernando Prestes"]
[183.0,"AM","Tefé",null,null,null,null,null,null,null,null,null,null,null,"Itagibá","Uruoca",null,null,"Petrolina de Goiás","São João do Paraíso","Claraval",null,null,null,"São João do Cariri","Vertente do Lério","Santo Antônio de Lisboa","Jundiaí do Sul",null,null,null,null,"Glorinha","Paial",null,"Fernandópolis"]
[184.0,"AM","Tonantins",null,null,null,null,null,null,null,null,null,null,null,"Itagimirim","Varjota",null,null,"Pilar de Goiás","São João do Soter","Claro dos Poções",null,null,null,"São João do Rio do Peixe","Vertentes","Santo Antônio dos Milagres","Juranda",null,null,null,null,"Gramado","Painel",null,"Fernão"]
[185.0,"AM","Uarini",null,null,null,null,null,null,null,null,null,null,null,"Itaguaçu da Bahia","Várzea Alegre",null,null,"Piracanjuba","São João dos Patos","Cláudio",null,null,null,"São João do Tigre","Vicência","Santo Inácio do Piauí","Jussara",null,null,null,null,"Gramado dos Loureiros","Palhoça",null,"Ferraz de Vasconcelos"]
[186.0,"AM","Urucará",null,null,null,null,null,null,null,null,null,null,null,"Itaju do Colônia","Viçosa do Ceará",null,null,"Piranhas","São José de Ribamar","Coimbra",null,null,null,"São José da Lagoa Tapada","Vitória de Santo Antão","São Braz do Piauí","Kaloré",null,null,null,null,"Gramado Xavier","Palma Sola",null,"Flora Rica"]
[187.0,"AM","Urucurituba",null,null,null,null,null,null,null,null,null,null,null,"Itajuípe",null,null,null,"Pirenópolis","São José dos Basílios","Coluna",null,null,null,"São José de Caiana","Xexéu","São Félix do Piauí","Lapa",null,null,null,null,"Gravataí","Palmeira",null,"Floreal"]
[188.0,"AP","Amapá",null,null,null,null,null,null,null,null,null,null,null,"Itamaraju",null,null,null,"Pires do Rio","São Luís","Comendador Gomes",null,null,null,"São José de Espinharas",null,"São Francisco de Assis do Piauí","Laranjal",null,null,null,null,"Guabiju","Palmitos",null,"Flórida Paulista"]
[189.0,"AP","Calçoene",null,null,null,null,null,null,null,null,null,null,null,"Itamari",null,null,null,"Planaltina","São Luís Gonzaga do Maranhão","Comercinho",null,null,null,"São José de Piranhas",null,"São Francisco do Piauí","Laranjeiras do Sul",null,null,null,null,"Guaíba","Papanduva",null,"Florínia"]
[190.0,"AP","Cutias",null,null,null,null,null,null,null,null,null,null,null,"Itambé",null,null,null,"Pontalina","São Mateus do Maranhão","Conceição da Aparecida",null,null,null,"São José de Princesa",null,"São Gonçalo do Gurguéia","Leópolis",null,null,null,null,"Guaporé","Paraíso",null,"Franca"]
[191.0,"AP","Ferreira Gomes",null,null,null,null,null,null,null,null,null,null,null,"Itanagra",null,null,null,"Porangatu","São Pedro da Água Branca","Conceição da Barra de Minas",null,null,null,"São José do Bonfim",null,"São Gonçalo do Piauí","Lidianópolis",null,null,null,null,"Guarani das Missões","Passo de Torres",null,"Francisco Morato"]
[192.0,"AP","Itaubal",null,null,null,null,null,null,null,null,null,null,null,"Itanhém",null,null,null,"Porteirão","São Pedro dos Crentes","Conceição das Alagoas",null,null,null,"São José do Brejo do Cruz",null,"São João da Canabrava","Lindoeste",null,null,null,null,"Harmonia","Passos Maia",null,"Franco da Rocha"]
[193.0,"AP","Laranjal do Jari",null,null,null,null,null,null,null,null,null,null,null,"Itaparica",null,null,null,"Portelândia","São Raimundo das Mangabeiras","Conceição das Pedras",null,null,null,"São José do Sabugi",null,"São João da Fronteira","Loanda",null,null,null,null,"Herval","Paulo Lopes",null,"Gabriel Monteiro"]
[194.0,"AP","Macapá",null,null,null,null,null,null,null,null,null,null,null,"Itapé",null,null,null,"Posse","São Raimundo do Doca Bezerra","Conceição de Ipanema",null,null,null,"São José dos Cordeiros",null,"São João da Serra","Lobato",null,null,null,null,"Herveiras","Pedras Grandes",null,"Gália"]
[195.0,"AP","Mazagão",null,null,null,null,null,null,null,null,null,null,null,"Itapebi",null,null,null,"Professor Jamil","São Roberto","Conceição do Mato Dentro",null,null,null,"São José dos Ramos",null,"São João da Varjota","Londrina",null,null,null,null,"Horizontina","Penha",null,"Garça"]
[196.0,"AP","Oiapoque",null,null,null,null,null,null,null,null,null,null,null,"Itapetinga",null,null,null,"Quirinópolis","São Vicente Ferrer","Conceição do Pará",null,null,null,"São Mamede",null,"São João do Arraial","Luiziana",null,null,null,null,"Hulha Negra","Peritiba",null,"Gastão Vidigal"]
[197.0,"AP","Pedra Branca do Amapari",null,null,null,null,null,null,null,null,null,null,null,"Itapicuru",null,null,null,"Rialma","Satubinha","Conceição do Rio Verde",null,null,null,"São Miguel de Taipu",null,"São João do Piauí","Lunardelli",null,null,null,null,"Humaitá","Pescaria Brava",null,"Gavião Peixoto"]
[198.0,"AP","Porto Grande",null,null,null,null,null,null,null,null,null,null,null,"Itapitanga",null,null,null,"Rianápolis","Senador Alexandre Costa","Conceição dos Ouros",null,null,null,"São Sebastião de Lagoa de Roça",null,"São José do Divino","Lupionópolis",null,null,null,null,"Ibarama","Petrolândia",null,"General Salgado"]
[199.0,"AP","Pracuúba",null,null,null,null,null,null,null,null,null,null,null,"Itaquara",null,null,null,"Rio Quente","Senador La Rocque","Cônego Marinho",null,null,null,"São Sebastião do Umbuzeiro",null,"São José do Peixe","Mallet",null,null,null,null,"Ibiaçá","Pinhalzinho",null,"Getulina"]
[200.0,"AP","Santana",null,null,null,null,null,null,null,null,null,null,null,"Itarantim",null,null,null,"Rio Verde","Serrano do Maranhão","Confins",null,null,null,"Sapé",null,"São José do Piauí","Mamborê",null,null,null,null,"Ibiraiaras","Pinheiro Preto",null,"Glicério"]
[201.0,"AP","Serra do Navio",null,null,null,null,null,null,null,null,null,null,null,"Itatim",null,null,null,"Rubiataba","Sítio Novo","Congonhal",null,null,null,"Seridó",null,"São Julião","Mandaguaçu",null,null,null,null,"Ibirapuitã","Piratuba",null,"Guaiçara"]
[202.0,"AP","Tartarugalzinho",null,null,null,null,null,null,null,null,null,null,null,"Itiruçu",null,null,null,"Sanclerlândia","Sucupira do Norte","Congonhas",null,null,null,"Serra Branca",null,"São Lourenço do Piauí","Mandaguari",null,null,null,null,"Ibirubá","Planalto Alegre",null,"Guaimbê"]
[203.0,"AP","Vitória do Jari",null,null,null,null,null,null,null,null,null,null,null,"Itiúba",null,null,null,"Santa Bárbara de Goiás","Sucupira do Riachão","Congonhas do Norte",null,null,null,"Serra da Raiz",null,"São Luis do Piauí","Mandirituba",null,null,null,null,"Igrejinha","Pomerode",null,"Guaíra"]
[204.0,"BA","Abaíra",null,null,null,null,null,null,null,null,null,null,null,"Itororó",null,null,null,"Santa Cruz de Goiás","Tasso Fragoso","Conquista",null,null,null,"Serra Grande",null,"São Miguel da Baixa Grande","Manfrinópolis",null,null,null,null,"Ijuí","Ponte Alta",null,"Guapiaçu"]
[205.0,"BA","Abaré",null,null,null,null,null,null,null,null,null,null,null,"Ituaçu",null,null,null,"Santa Fé de Goiás","Timbiras","Conselheiro Lafaiete",null,null,null,"Serra Redonda",null,"São Miguel do Fidalgo","Mangueirinha",null,null,null,null,"Ilópolis","Ponte Alta do Norte",null,"Guapiara"]
[206.0,"BA","Acajutiba",null,null,null,null,null,null,null,null,null,null,null,"Ituberá",null,null,null,"Santa Helena de Goiás","Timon","Conselheiro Pena",null,null,null,"Serraria",null,"São Miguel do Tapuio","Manoel Ribas",null,null,null,null,"Imbé","Ponte Serrada",null,"Guará"]
[207.0,"BA","Adustina",null,null,null,null,null,null,null,null,null,null,null,"Iuiú",null,null,null,"Santa Isabel","Trizidela do Vale","Consolação",null,null,null,"Sertãozinho",null,"São Pedro do Piauí","Marechal Cândido Rondon",null,null,null,null,"Imigrante","Porto Belo",null,"Guaraçaí"]
[208.0,"BA","Água Fria",null,null,null,null,null,null,null,null,null,null,null,"Jaborandi",null,null,null,"Santa Rita do Araguaia","Tufilândia","Contagem",null,null,null,"Sobrado",null,"São Raimundo Nonato","Maria Helena",null,null,null,null,"Independência","Porto União",null,"Guaraci"]
[209.0,"BA","Aiquara",null,null,null,null,null,null,null,null,null,null,null,"Jacaraci",null,null,null,"Santa Rita do Novo Destino","Tuntum","Coqueiral",null,null,null,"Solânea",null,"Sebastião Barros","Marialva",null,null,null,null,"Inhacorá","Pouso Redondo",null,"Guarani dOeste"]
[210.0,"BA","Alagoinhas",null,null,null,null,null,null,null,null,null,null,null,"Jacobina",null,null,null,"Santa Rosa de Goiás","Turiaçu","Coração de Jesus",null,null,null,"Soledade",null,"Sebastião Leal","Marilândia do Sul",null,null,null,null,"Ipê","Praia Grande",null,"Guarantã"]
[211.0,"BA","Alcobaça",null,null,null,null,null,null,null,null,null,null,null,"Jaguaquara",null,null,null,"Santa Tereza de Goiás","Turilândia","Cordisburgo",null,null,null,"Sossêgo",null,"Sigefredo Pacheco","Marilena",null,null,null,null,"Ipiranga do Sul","Presidente Castello Branco",null,"Guararapes"]
[212.0,"BA","Almadina",null,null,null,null,null,null,null,null,null,null,null,"Jaguarari",null,null,null,"Santa Terezinha de Goiás","Tutóia","Cordislândia",null,null,null,"Sousa",null,"Simões","Mariluz",null,null,null,null,"Iraí","Presidente Getúlio",null,"Guararema"]
[213.0,"BA","Amargosa",null,null,null,null,null,null,null,null,null,null,null,"Jaguaripe",null,null,null,"Santo Antônio da Barra","Urbano Santos","Corinto",null,null,null,"Sumé",null,"Simplício Mendes","Maringá",null,null,null,null,"Itaara","Presidente Nereu",null,"Guaratinguetá"]
[214.0,"BA","Amélia Rodrigues",null,null,null,null,null,null,null,null,null,null,null,"Jandaíra",null,null,null,"Santo Antônio de Goiás","Vargem Grande","Coroaci",null,null,null,"Tacima",null,"Socorro do Piauí","Mariópolis",null,null,null,null,"Itacurubi","Princesa",null,"Guareí"]
[215.0,"BA","América Dourada",null,null,null,null,null,null,null,null,null,null,null,"Jequié",null,null,null,"Santo Antônio do Descoberto","Viana","Coromandel",null,null,null,"Taperoá",null,"Sussuapara","Maripá",null,null,null,null,"Itapuca","Quilombo",null,"Guariba"]
[216.0,"BA","Anagé",null,null,null,null,null,null,null,null,null,null,null,"Jeremoabo",null,null,null,"São Domingos","Vila Nova dos Martírios","Coronel Fabriciano",null,null,null,"Tavares",null,"Tamboril do Piauí","Marmeleiro",null,null,null,null,"Itaqui","Rancho Queimado",null,"Guarujá"]
[217.0,"BA","Andaraí",null,null,null,null,null,null,null,null,null,null,null,"Jiquiriçá",null,null,null,"São Francisco de Goiás","Vitória do Mearim","Coronel Murta",null,null,null,"Teixeira",null,"Tanque do Piauí","Marquinho",null,null,null,null,"Itati","Rio das Antas",null,"Guarulhos"]
[218.0,"BA","Andorinha",null,null,null,null,null,null,null,null,null,null,null,"Jitaúna",null,null,null,"São João da Paraúna","Vitorino Freire","Coronel Pacheco",null,null,null,"Tenório",null,"Teresina","Marumbi",null,null,null,null,"Itatiba do Sul","Rio do Campo",null,"Guatapará"]
[219.0,"BA","Angical",null,null,null,null,null,null,null,null,null,null,null,"João Dourado",null,null,null,"São João dAliança","Zé Doca","Coronel Xavier Chaves",null,null,null,"Triunfo",null,"União","Matelândia",null,null,null,null,"Ivorá","Rio do Oeste",null,"Guzolândia"]
[220.0,"BA","Anguera",null,null,null,null,null,null,null,null,null,null,null,"Juazeiro",null,null,null,"São Luís de Montes Belos",null,"Córrego Danta",null,null,null,"Uiraúna",null,"Uruçuí","Matinhos",null,null,null,null,"Ivoti","Rio do Sul",null,"Herculândia"]
[221.0,"BA","Antas",null,null,null,null,null,null,null,null,null,null,null,"Jucuruçu",null,null,null,"São Luíz do Norte",null,"Córrego do Bom Jesus",null,null,null,"Umbuzeiro",null,"Valença do Piauí","Mato Rico",null,null,null,null,"Jaboticaba","Rio dos Cedros",null,"Holambra"]
[222.0,"BA","Antônio Cardoso",null,null,null,null,null,null,null,null,null,null,null,"Jussara",null,null,null,"São Miguel do Araguaia",null,"Córrego Fundo",null,null,null,"Várzea",null,"Várzea Branca","Mauá da Serra",null,null,null,null,"Jacuizinho","Rio Fortuna",null,"Hortolândia"]
[223.0,"BA","Antônio Gonçalves",null,null,null,null,null,null,null,null,null,null,null,"Jussari",null,null,null,"São Miguel do Passa Quatro",null,"Córrego Novo",null,null,null,"Vieirópolis",null,"Várzea Grande","Medianeira",null,null,null,null,"Jacutinga","Rio Negrinho",null,"Iacanga"]
[224.0,"BA","Aporá",null,null,null,null,null,null,null,null,null,null,null,"Jussiape",null,null,null,"São Patrício",null,"Couto de Magalhães de Minas",null,null,null,"Vista Serrana",null,"Vera Mendes","Mercedes",null,null,null,null,"Jaguarão","Rio Rufino",null,"Iacri"]
[225.0,"BA","Apuarema",null,null,null,null,null,null,null,null,null,null,null,"Lafaiete Coutinho",null,null,null,"São Simão",null,"Crisólita",null,null,null,"Zabelê",null,"Vila Nova do Piauí","Mirador",null,null,null,null,"Jaguari","Riqueza",null,"Iaras"]
[226.0,"BA","Araças",null,null,null,null,null,null,null,null,null,null,null,"Lagoa Real",null,null,null,"Senador Canedo",null,"Cristais",null,null,null,null,null,"Wall Ferraz","Miraselva",null,null,null,null,"Jaquirana","Rodeio",null,"Ibaté"]
[227.0,"BA","Aracatu",null,null,null,null,null,null,null,null,null,null,null,"Laje",null,null,null,"Serranópolis",null,"Cristália",null,null,null,null,null,null,"Missal",null,null,null,null,"Jari","Romelândia",null,"Ibirá"]
[228.0,"BA","Araci",null,null,null,null,null,null,null,null,null,null,null,"Lajedão",null,null,null,"Silvânia",null,"Cristiano Otoni",null,null,null,null,null,null,"Moreira Sales",null,null,null,null,"Jóia","Salete",null,"Ibirarema"]
[229.0,"BA","Aramari",null,null,null,null,null,null,null,null,null,null,null,"Lajedinho",null,null,null,"Simolândia",null,"Cristina",null,null,null,null,null,null,"Morretes",null,null,null,null,"Júlio de Castilhos","Saltinho",null,"Ibitinga"]
[230.0,"BA","Arataca",null,null,null,null,null,null,null,null,null,null,null,"Lajedo do Tabocal",null,null,null,"Sítio dAbadia",null,"Crucilândia",null,null,null,null,null,null,"Munhoz de Melo",null,null,null,null,"Lagoa Bonita do Sul","Salto Veloso",null,"Ibiúna"]
[231.0,"BA","Aratuípe",null,null,null,null,null,null,null,null,null,null,null,"Lamarão",null,null,null,"Taquaral de Goiás",null,"Cruzeiro da Fortaleza",null,null,null,null,null,null,"Nossa Senhora das Graças",null,null,null,null,"Lagoa dos Três Cantos","Sangão",null,"Icém"]
[232.0,"BA","Aurelino Leal",null,null,null,null,null,null,null,null,null,null,null,"Lapão",null,null,null,"Teresina de Goiás",null,"Cruzília",null,null,null,null,null,null,"Nova Aliança do Ivaí",null,null,null,null,"Lagoa Vermelha","Santa Cecília",null,"Iepê"]
[233.0,"BA","Baianópolis",null,null,null,null,null,null,null,null,null,null,null,"Lauro de Freitas",null,null,null,"Terezópolis de Goiás",null,"Cuparaque",null,null,null,null,null,null,"Nova América da Colina",null,null,null,null,"Lagoão","Santa Helena",null,"Igaraçu do Tietê"]
[234.0,"BA","Baixa Grande",null,null,null,null,null,null,null,null,null,null,null,"Lençóis",null,null,null,"Três Ranchos",null,"Curral de Dentro",null,null,null,null,null,null,"Nova Aurora",null,null,null,null,"Lajeado","Santa Rosa de Lima",null,"Igarapava"]
[235.0,"BA","Banzaê",null,null,null,null,null,null,null,null,null,null,null,"Licínio de Almeida",null,null,null,"Trindade",null,"Curvelo",null,null,null,null,null,null,"Nova Cantu",null,null,null,null,"Lajeado do Bugre","Santa Rosa do Sul",null,"Igaratá"]
[236.0,"BA","Barra",null,null,null,null,null,null,null,null,null,null,null,"Livramento de Nossa Senhora",null,null,null,"Trombas",null,"Datas",null,null,null,null,null,null,"Nova Esperança",null,null,null,null,"Lavras do Sul","Santa Terezinha",null,"Iguape"]
[237.0,"BA","Barra da Estiva",null,null,null,null,null,null,null,null,null,null,null,"Luís Eduardo Magalhães",null,null,null,"Turvânia",null,"Delfim Moreira",null,null,null,null,null,null,"Nova Esperança do Sudoeste",null,null,null,null,"Liberato Salzano","Santa Terezinha do Progresso",null,"Ilha Comprida"]
[238.0,"BA","Barra do Choça",null,null,null,null,null,null,null,null,null,null,null,"Macajuba",null,null,null,"Turvelândia",null,"Delfinópolis",null,null,null,null,null,null,"Nova Fátima",null,null,null,null,"Lindolfo Collor","Santiago do Sul",null,"Ilha Solteira"]
[239.0,"BA","Barra do Mendes",null,null,null,null,null,null,null,null,null,null,null,"Macarani",null,null,null,"Uirapuru",null,"Delta",null,null,null,null,null,null,"Nova Laranjeiras",null,null,null,null,"Linha Nova","Santo Amaro da Imperatriz",null,"Ilhabela"]
[240.0,"BA","Barra do Rocha",null,null,null,null,null,null,null,null,null,null,null,"Macaúbas",null,null,null,"Uruaçu",null,"Descoberto",null,null,null,null,null,null,"Nova Londrina",null,null,null,null,"Maçambara","São Bento do Sul",null,"Indaiatuba"]
[241.0,"BA","Barreiras",null,null,null,null,null,null,null,null,null,null,null,"Macururé",null,null,null,"Uruana",null,"Desterro de Entre Rios",null,null,null,null,null,null,"Nova Olímpia",null,null,null,null,"Machadinho","São Bernardino",null,"Indiana"]
[242.0,"BA","Barro Alto",null,null,null,null,null,null,null,null,null,null,null,"Madre de Deus",null,null,null,"Urutaí",null,"Desterro do Melo",null,null,null,null,null,null,"Nova Prata do Iguaçu",null,null,null,null,"Mampituba","São Bonifácio",null,"Indiaporã"]
[243.0,"BA","Barro Preto",null,null,null,null,null,null,null,null,null,null,null,"Maetinga",null,null,null,"Valparaíso de Goiás",null,"Diamantina",null,null,null,null,null,null,"Nova Santa Bárbara",null,null,null,null,"Manoel Viana","São Carlos",null,"Inúbia Paulista"]
[244.0,"BA","Barrocas",null,null,null,null,null,null,null,null,null,null,null,"Maiquinique",null,null,null,"Varjão",null,"Diogo de Vasconcelos",null,null,null,null,null,null,"Nova Santa Rosa",null,null,null,null,"Maquiné","São Cristovão do Sul",null,"Ipaussu"]
[245.0,"BA","Belmonte",null,null,null,null,null,null,null,null,null,null,null,"Mairi",null,null,null,"Vianópolis",null,"Dionísio",null,null,null,null,null,null,"Nova Tebas",null,null,null,null,"Maratá","São Domingos",null,"Iperó"]
[246.0,"BA","Belo Campo",null,null,null,null,null,null,null,null,null,null,null,"Malhada",null,null,null,"Vicentinópolis",null,"Divinésia",null,null,null,null,null,null,"Novo Itacolomi",null,null,null,null,"Marau","São Francisco do Sul",null,"Ipeúna"]
[247.0,"BA","Biritinga",null,null,null,null,null,null,null,null,null,null,null,"Malhada de Pedras",null,null,null,"Vila Boa",null,"Divino",null,null,null,null,null,null,"Ortigueira",null,null,null,null,"Marcelino Ramos","São João Batista",null,"Ipiguá"]
[248.0,"BA","Boa Nova",null,null,null,null,null,null,null,null,null,null,null,"Manoel Vitorino",null,null,null,"Vila Propício",null,"Divino das Laranjeiras",null,null,null,null,null,null,"Ourizona",null,null,null,null,"Mariana Pimentel","São João do Itaperiú",null,"Iporanga"]
[249.0,"BA","Boa Vista do Tupim",null,null,null,null,null,null,null,null,null,null,null,"Mansidão",null,null,null,null,null,"Divinolândia de Minas",null,null,null,null,null,null,"Ouro Verde do Oeste",null,null,null,null,"Mariano Moro","São João do Oeste",null,"Ipuã"]
[250.0,"BA","Bom Jesus da Lapa",null,null,null,null,null,null,null,null,null,null,null,"Maracás",null,null,null,null,null,"Divinópolis",null,null,null,null,null,null,"Paiçandu",null,null,null,null,"Marques de Souza","São João do Sul",null,"Iracemápolis"]
[251.0,"BA","Bom Jesus da Serra",null,null,null,null,null,null,null,null,null,null,null,"Maragogipe",null,null,null,null,null,"Divisa Alegre",null,null,null,null,null,null,"Palmas",null,null,null,null,"Mata","São Joaquim",null,"Irapuã"]
[252.0,"BA","Boninal",null,null,null,null,null,null,null,null,null,null,null,"Maraú",null,null,null,null,null,"Divisa Nova",null,null,null,null,null,null,"Palmeira",null,null,null,null,"Mato Castelhano","São José",null,"Irapuru"]
[253.0,"BA","Bonito",null,null,null,null,null,null,null,null,null,null,null,"Marcionílio Souza",null,null,null,null,null,"Divisópolis",null,null,null,null,null,null,"Palmital",null,null,null,null,"Mato Leitão","São José do Cedro",null,"Itaberá"]
[254.0,"BA","Boquira",null,null,null,null,null,null,null,null,null,null,null,"Mascote",null,null,null,null,null,"Dom Bosco",null,null,null,null,null,null,"Palotina",null,null,null,null,"Mato Queimado","São José do Cerrito",null,"Itaí"]
[255.0,"BA","Botuporã",null,null,null,null,null,null,null,null,null,null,null,"Mata de São João",null,null,null,null,null,"Dom Cavati",null,null,null,null,null,null,"Paraíso do Norte",null,null,null,null,"Maximiliano de Almeida","São Lourenço do Oeste",null,"Itajobi"]
[256.0,"BA","Brejões",null,null,null,null,null,null,null,null,null,null,null,"Matina",null,null,null,null,null,"Dom Joaquim",null,null,null,null,null,null,"Paranacity",null,null,null,null,"Minas do Leão","São Ludgero",null,"Itaju"]
[257.0,"BA","Brejolândia",null,null,null,null,null,null,null,null,null,null,null,"Medeiros Neto",null,null,null,null,null,"Dom Silvério",null,null,null,null,null,null,"Paranaguá",null,null,null,null,"Miraguaí","São Martinho",null,"Itanhaém"]
[258.0,"BA","Brotas de Macaúbas",null,null,null,null,null,null,null,null,null,null,null,"Miguel Calmon",null,null,null,null,null,"Dom Viçoso",null,null,null,null,null,null,"Paranapoema",null,null,null,null,"Montauri","São Miguel da Boa Vista",null,"Itaóca"]
[259.0,"BA","Brumado",null,null,null,null,null,null,null,null,null,null,null,"Milagres",null,null,null,null,null,"Dona Eusébia",null,null,null,null,null,null,"Paranavaí",null,null,null,null,"Monte Alegre dos Campos","São Miguel do Oeste",null,"Itapecerica da Serra"]
[260.0,"BA","Buerarema",null,null,null,null,null,null,null,null,null,null,null,"Mirangaba",null,null,null,null,null,"Dores de Campos",null,null,null,null,null,null,"Pato Bragado",null,null,null,null,"Monte Belo do Sul","São Pedro de Alcântara",null,"Itapetininga"]
[261.0,"BA","Buritirama",null,null,null,null,null,null,null,null,null,null,null,"Mirante",null,null,null,null,null,"Dores de Guanhães",null,null,null,null,null,null,"Pato Branco",null,null,null,null,"Montenegro","Saudades",null,"Itapeva"]
[262.0,"BA","Caatiba",null,null,null,null,null,null,null,null,null,null,null,"Monte Santo",null,null,null,null,null,"Dores do Indaiá",null,null,null,null,null,null,"Paula Freitas",null,null,null,null,"Mormaço","Schroeder",null,"Itapevi"]
[263.0,"BA","Cabaceiras do Paraguaçu",null,null,null,null,null,null,null,null,null,null,null,"Morpará",null,null,null,null,null,"Dores do Turvo",null,null,null,null,null,null,"Paulo Frontin",null,null,null,null,"Morrinhos do Sul","Seara",null,"Itapira"]
[264.0,"BA","Cachoeira",null,null,null,null,null,null,null,null,null,null,null,"Morro do Chapéu",null,null,null,null,null,"Doresópolis",null,null,null,null,null,null,"Peabiru",null,null,null,null,"Morro Redondo","Serra Alta",null,"Itapirapuã Paulista"]
[265.0,"BA","Caculé",null,null,null,null,null,null,null,null,null,null,null,"Mortugaba",null,null,null,null,null,"Douradoquara",null,null,null,null,null,null,"Perobal",null,null,null,null,"Morro Reuter","Siderópolis",null,"Itápolis"]
[266.0,"BA","Caém",null,null,null,null,null,null,null,null,null,null,null,"Mucugê",null,null,null,null,null,"Durandé",null,null,null,null,null,null,"Pérola",null,null,null,null,"Mostardas","Sombrio",null,"Itaporanga"]
[267.0,"BA","Caetanos",null,null,null,null,null,null,null,null,null,null,null,"Mucuri",null,null,null,null,null,"Elói Mendes",null,null,null,null,null,null,"Pérola dOeste",null,null,null,null,"Muçum","Sul Brasil",null,"Itapuí"]
[268.0,"BA","Caetité",null,null,null,null,null,null,null,null,null,null,null,"Mulungu do Morro",null,null,null,null,null,"Engenheiro Caldas",null,null,null,null,null,null,"Piên",null,null,null,null,"Muitos Capões","Taió",null,"Itapura"]
[269.0,"BA","Cafarnaum",null,null,null,null,null,null,null,null,null,null,null,"Mundo Novo",null,null,null,null,null,"Engenheiro Navarro",null,null,null,null,null,null,"Pinhais",null,null,null,null,"Muliterno","Tangará",null,"Itaquaquecetuba"]
[270.0,"BA","Cairu",null,null,null,null,null,null,null,null,null,null,null,"Muniz Ferreira",null,null,null,null,null,"Entre Folhas",null,null,null,null,null,null,"Pinhal de São Bento",null,null,null,null,"Não-Me-Toque","Tigrinhos",null,"Itararé"]
[271.0,"BA","Caldeirão Grande",null,null,null,null,null,null,null,null,null,null,null,"Muquém de São Francisco",null,null,null,null,null,"Entre Rios de Minas",null,null,null,null,null,null,"Pinhalão",null,null,null,null,"Nicolau Vergueiro","Tijucas",null,"Itariri"]
[272.0,"BA","Camacan",null,null,null,null,null,null,null,null,null,null,null,"Muritiba",null,null,null,null,null,"Ervália",null,null,null,null,null,null,"Pinhão",null,null,null,null,"Nonoai","Timbé do Sul",null,"Itatiba"]
[273.0,"BA","Camaçari",null,null,null,null,null,null,null,null,null,null,null,"Mutuípe",null,null,null,null,null,"Esmeraldas",null,null,null,null,null,null,"Piraí do Sul",null,null,null,null,"Nova Alvorada","Timbó",null,"Itatinga"]
[274.0,"BA","Camamu",null,null,null,null,null,null,null,null,null,null,null,"Nazaré",null,null,null,null,null,"Espera Feliz",null,null,null,null,null,null,"Piraquara",null,null,null,null,"Nova Araçá","Timbó Grande",null,"Itirapina"]
[275.0,"BA","Campo Alegre de Lourdes",null,null,null,null,null,null,null,null,null,null,null,"Nilo Peçanha",null,null,null,null,null,"Espinosa",null,null,null,null,null,null,"Pitanga",null,null,null,null,"Nova Bassano","Três Barras",null,"Itirapuã"]
[276.0,"BA","Campo Formoso",null,null,null,null,null,null,null,null,null,null,null,"Nordestina",null,null,null,null,null,"Espírito Santo do Dourado",null,null,null,null,null,null,"Pitangueiras",null,null,null,null,"Nova Boa Vista","Treviso",null,"Itobi"]
[277.0,"BA","Canápolis",null,null,null,null,null,null,null,null,null,null,null,"Nova Canaã",null,null,null,null,null,"Estiva",null,null,null,null,null,null,"Planaltina do Paraná",null,null,null,null,"Nova Bréscia","Treze de Maio",null,"Itu"]
[278.0,"BA","Canarana",null,null,null,null,null,null,null,null,null,null,null,"Nova Fátima",null,null,null,null,null,"Estrela Dalva",null,null,null,null,null,null,"Planalto",null,null,null,null,"Nova Candelária","Treze Tílias",null,"Itupeva"]
[279.0,"BA","Canavieiras",null,null,null,null,null,null,null,null,null,null,null,"Nova Ibiá",null,null,null,null,null,"Estrela do Indaiá",null,null,null,null,null,null,"Ponta Grossa",null,null,null,null,"Nova Esperança do Sul","Trombudo Central",null,"Ituverava"]
[280.0,"BA","Candeal",null,null,null,null,null,null,null,null,null,null,null,"Nova Itarana",null,null,null,null,null,"Estrela do Sul",null,null,null,null,null,null,"Pontal do Paraná",null,null,null,null,"Nova Hartz","Tubarão",null,"Jaborandi"]
[281.0,"BA","Candeias",null,null,null,null,null,null,null,null,null,null,null,"Nova Redenção",null,null,null,null,null,"Eugenópolis",null,null,null,null,null,null,"Porecatu",null,null,null,null,"Nova Pádua","Tunápolis",null,"Jaboticabal"]
[282.0,"BA","Candiba",null,null,null,null,null,null,null,null,null,null,null,"Nova Soure",null,null,null,null,null,"Ewbank da Câmara",null,null,null,null,null,null,"Porto Amazonas",null,null,null,null,"Nova Palma","Turvo",null,"Jacareí"]
[283.0,"BA","Cândido Sales",null,null,null,null,null,null,null,null,null,null,null,"Nova Viçosa",null,null,null,null,null,"Extrema",null,null,null,null,null,null,"Porto Barreiro",null,null,null,null,"Nova Petrópolis","União do Oeste",null,"Jaci"]
[284.0,"BA","Cansanção",null,null,null,null,null,null,null,null,null,null,null,"Novo Horizonte",null,null,null,null,null,"Fama",null,null,null,null,null,null,"Porto Rico",null,null,null,null,"Nova Prata","Urubici",null,"Jacupiranga"]
[285.0,"BA","Canudos",null,null,null,null,null,null,null,null,null,null,null,"Novo Triunfo",null,null,null,null,null,"Faria Lemos",null,null,null,null,null,null,"Porto Vitória",null,null,null,null,"Nova Ramada","Urupema",null,"Jaguariúna"]
[286.0,"BA","Capela do Alto Alegre",null,null,null,null,null,null,null,null,null,null,null,"Olindina",null,null,null,null,null,"Felício dos Santos",null,null,null,null,null,null,"Prado Ferreira",null,null,null,null,"Nova Roma do Sul","Urussanga",null,"Jales"]
[287.0,"BA","Capim Grosso",null,null,null,null,null,null,null,null,null,null,null,"Oliveira dos Brejinhos",null,null,null,null,null,"Felisburgo",null,null,null,null,null,null,"Pranchita",null,null,null,null,"Nova Santa Rita","Vargeão",null,"Jambeiro"]
[288.0,"BA","Caraíbas",null,null,null,null,null,null,null,null,null,null,null,"Ouriçangas",null,null,null,null,null,"Felixlândia",null,null,null,null,null,null,"Presidente Castelo Branco",null,null,null,null,"Novo Barreiro","Vargem",null,"Jandira"]
[289.0,"BA","Caravelas",null,null,null,null,null,null,null,null,null,null,null,"Ourolândia",null,null,null,null,null,"Fernandes Tourinho",null,null,null,null,null,null,"Primeiro de Maio",null,null,null,null,"Novo Cabrais","Vargem Bonita",null,"Jardinópolis"]
[290.0,"BA","Cardeal da Silva",null,null,null,null,null,null,null,null,null,null,null,"Palmas de Monte Alto",null,null,null,null,null,"Ferros",null,null,null,null,null,null,"Prudentópolis",null,null,null,null,"Novo Hamburgo","Vidal Ramos",null,"Jarinu"]
[291.0,"BA","Carinhanha",null,null,null,null,null,null,null,null,null,null,null,"Palmeiras",null,null,null,null,null,"Fervedouro",null,null,null,null,null,null,"Quarto Centenário",null,null,null,null,"Novo Machado","Videira",null,"Jaú"]
[292.0,"BA","Casa Nova",null,null,null,null,null,null,null,null,null,null,null,"Paramirim",null,null,null,null,null,"Florestal",null,null,null,null,null,null,"Quatiguá",null,null,null,null,"Novo Tiradentes","Vitor Meireles",null,"Jeriquara"]
[293.0,"BA","Castro Alves",null,null,null,null,null,null,null,null,null,null,null,"Paratinga",null,null,null,null,null,"Formiga",null,null,null,null,null,null,"Quatro Barras",null,null,null,null,"Novo Xingu","Witmarsum",null,"Joanópolis"]
[294.0,"BA","Catolândia",null,null,null,null,null,null,null,null,null,null,null,"Paripiranga",null,null,null,null,null,"Formoso",null,null,null,null,null,null,"Quatro Pontes",null,null,null,null,"Osório","Xanxerê",null,"João Ramalho"]
[295.0,"BA","Catu",null,null,null,null,null,null,null,null,null,null,null,"Pau Brasil",null,null,null,null,null,"Fortaleza de Minas",null,null,null,null,null,null,"Quedas do Iguaçu",null,null,null,null,"Paim Filho","Xavantina",null,"José Bonifácio"]
[296.0,"BA","Caturama",null,null,null,null,null,null,null,null,null,null,null,"Paulo Afonso",null,null,null,null,null,"Fortuna de Minas",null,null,null,null,null,null,"Querência do Norte",null,null,null,null,"Palmares do Sul","Xaxim",null,"Júlio Mesquita"]
[297.0,"BA","Central",null,null,null,null,null,null,null,null,null,null,null,"Pé de Serra",null,null,null,null,null,"Francisco Badaró",null,null,null,null,null,null,"Quinta do Sol",null,null,null,null,"Palmeira das Missões","Zortéa",null,"Jumirim"]
[298.0,"BA","Chorrochó",null,null,null,null,null,null,null,null,null,null,null,"Pedrão",null,null,null,null,null,"Francisco Dumont",null,null,null,null,null,null,"Quitandinha",null,null,null,null,"Palmitinho",null,null,"Jundiaí"]
[299.0,"BA","Cícero Dantas",null,null,null,null,null,null,null,null,null,null,null,"Pedro Alexandre",null,null,null,null,null,"Francisco Sá",null,null,null,null,null,null,"Ramilândia",null,null,null,null,"Panambi",null,null,"Junqueirópolis"]
[300.0,"BA","Cipó",null,null,null,null,null,null,null,null,null,null,null,"Piatã",null,null,null,null,null,"Franciscópolis",null,null,null,null,null,null,"Rancho Alegre",null,null,null,null,"Pantano Grande",null,null,"Juquiá"]
[301.0,"BA","Coaraci",null,null,null,null,null,null,null,null,null,null,null,"Pilão Arcado",null,null,null,null,null,"Frei Gaspar",null,null,null,null,null,null,"Rancho Alegre DOeste",null,null,null,null,"Paraí",null,null,"Juquitiba"]
[302.0,"BA","Cocos",null,null,null,null,null,null,null,null,null,null,null,"Pindaí",null,null,null,null,null,"Frei Inocêncio",null,null,null,null,null,null,"Realeza",null,null,null,null,"Paraíso do Sul",null,null,"Lagoinha"]
[303.0,"BA","Conceição da Feira",null,null,null,null,null,null,null,null,null,null,null,"Pindobaçu",null,null,null,null,null,"Frei Lagonegro",null,null,null,null,null,null,"Rebouças",null,null,null,null,"Pareci Novo",null,null,"Laranjal Paulista"]
[304.0,"BA","Conceição do Almeida",null,null,null,null,null,null,null,null,null,null,null,"Pintadas",null,null,null,null,null,"Fronteira",null,null,null,null,null,null,"Renascença",null,null,null,null,"Parobé",null,null,"Lavínia"]
[305.0,"BA","Conceição do Coité",null,null,null,null,null,null,null,null,null,null,null,"Piraí do Norte",null,null,null,null,null,"Fronteira dos Vales",null,null,null,null,null,null,"Reserva",null,null,null,null,"Passa Sete",null,null,"Lavrinhas"]
[306.0,"BA","Conceição do Jacuípe",null,null,null,null,null,null,null,null,null,null,null,"Piripá",null,null,null,null,null,"Fruta de Leite",null,null,null,null,null,null,"Reserva do Iguaçu",null,null,null,null,"Passo do Sobrado",null,null,"Leme"]
[307.0,"BA","Conde",null,null,null,null,null,null,null,null,null,null,null,"Piritiba",null,null,null,null,null,"Frutal",null,null,null,null,null,null,"Ribeirão Claro",null,null,null,null,"Passo Fundo",null,null,"Lençóis Paulista"]
[308.0,"BA","Condeúba",null,null,null,null,null,null,null,null,null,null,null,"Planaltino",null,null,null,null,null,"Funilândia",null,null,null,null,null,null,"Ribeirão do Pinhal",null,null,null,null,"Paulo Bento",null,null,"Limeira"]
[309.0,"BA","Contendas do Sincorá",null,null,null,null,null,null,null,null,null,null,null,"Planalto",null,null,null,null,null,"Galiléia",null,null,null,null,null,null,"Rio Azul",null,null,null,null,"Paverama",null,null,"Lindóia"]
[310.0,"BA","Coração de Maria",null,null,null,null,null,null,null,null,null,null,null,"Poções",null,null,null,null,null,"Gameleiras",null,null,null,null,null,null,"Rio Bom",null,null,null,null,"Pedras Altas",null,null,"Lins"]
[311.0,"BA","Cordeiros",null,null,null,null,null,null,null,null,null,null,null,"Pojuca",null,null,null,null,null,"Glaucilândia",null,null,null,null,null,null,"Rio Bonito do Iguaçu",null,null,null,null,"Pedro Osório",null,null,"Lorena"]
[312.0,"BA","Coribe",null,null,null,null,null,null,null,null,null,null,null,"Ponto Novo",null,null,null,null,null,"Goiabeira",null,null,null,null,null,null,"Rio Branco do Ivaí",null,null,null,null,"Pejuçara",null,null,"Lourdes"]
[313.0,"BA","Coronel João Sá",null,null,null,null,null,null,null,null,null,null,null,"Porto Seguro",null,null,null,null,null,"Goianá",null,null,null,null,null,null,"Rio Branco do Sul",null,null,null,null,"Pelotas",null,null,"Louveira"]
[314.0,"BA","Correntina",null,null,null,null,null,null,null,null,null,null,null,"Potiraguá",null,null,null,null,null,"Gonçalves",null,null,null,null,null,null,"Rio Negro",null,null,null,null,"Picada Café",null,null,"Lucélia"]
[315.0,"BA","Cotegipe",null,null,null,null,null,null,null,null,null,null,null,"Prado",null,null,null,null,null,"Gonzaga",null,null,null,null,null,null,"Rolândia",null,null,null,null,"Pinhal",null,null,"Lucianópolis"]
[316.0,"BA","Cravolândia",null,null,null,null,null,null,null,null,null,null,null,"Presidente Dutra",null,null,null,null,null,"Gouveia",null,null,null,null,null,null,"Roncador",null,null,null,null,"Pinhal da Serra",null,null,"Luís Antônio"]
[317.0,"BA","Crisópolis",null,null,null,null,null,null,null,null,null,null,null,"Presidente Jânio Quadros",null,null,null,null,null,"Governador Valadares",null,null,null,null,null,null,"Rondon",null,null,null,null,"Pinhal Grande",null,null,"Luiziânia"]
[318.0,"BA","Cristópolis",null,null,null,null,null,null,null,null,null,null,null,"Presidente Tancredo Neves",null,null,null,null,null,"Grão Mogol",null,null,null,null,null,null,"Rosário do Ivaí",null,null,null,null,"Pinheirinho do Vale",null,null,"Lupércio"]
[319.0,"BA","Cruz das Almas",null,null,null,null,null,null,null,null,null,null,null,"Queimadas",null,null,null,null,null,"Grupiara",null,null,null,null,null,null,"Sabáudia",null,null,null,null,"Pinheiro Machado",null,null,"Lutécia"]
[320.0,"BA","Curaçá",null,null,null,null,null,null,null,null,null,null,null,"Quijingue",null,null,null,null,null,"Guanhães",null,null,null,null,null,null,"Salgado Filho",null,null,null,null,"Pinto Bandeira",null,null,"Macatuba"]
[321.0,"BA","Dário Meira",null,null,null,null,null,null,null,null,null,null,null,"Quixabeira",null,null,null,null,null,"Guapé",null,null,null,null,null,null,"Salto do Itararé",null,null,null,null,"Pirapó",null,null,"Macaubal"]
[322.0,"BA","Dias dÁvila",null,null,null,null,null,null,null,null,null,null,null,"Rafael Jambeiro",null,null,null,null,null,"Guaraciaba",null,null,null,null,null,null,"Salto do Lontra",null,null,null,null,"Piratini",null,null,"Macedônia"]
[323.0,"BA","Dom Basílio",null,null,null,null,null,null,null,null,null,null,null,"Remanso",null,null,null,null,null,"Guaraciama",null,null,null,null,null,null,"Santa Amélia",null,null,null,null,"Planalto",null,null,"Magda"]
[324.0,"BA","Dom Macedo Costa",null,null,null,null,null,null,null,null,null,null,null,"Retirolândia",null,null,null,null,null,"Guaranésia",null,null,null,null,null,null,"Santa Cecília do Pavão",null,null,null,null,"Poço das Antas",null,null,"Mairinque"]
[325.0,"BA","Elísio Medrado",null,null,null,null,null,null,null,null,null,null,null,"Riachão das Neves",null,null,null,null,null,"Guarani",null,null,null,null,null,null,"Santa Cruz de Monte Castelo",null,null,null,null,"Pontão",null,null,"Mairiporã"]
[326.0,"BA","Encruzilhada",null,null,null,null,null,null,null,null,null,null,null,"Riachão do Jacuípe",null,null,null,null,null,"Guarará",null,null,null,null,null,null,"Santa Fé",null,null,null,null,"Ponte Preta",null,null,"Manduri"]
[327.0,"BA","Entre Rios",null,null,null,null,null,null,null,null,null,null,null,"Riacho de Santana",null,null,null,null,null,"Guarda-Mor",null,null,null,null,null,null,"Santa Helena",null,null,null,null,"Portão",null,null,"Marabá Paulista"]
[328.0,"BA","Érico Cardoso",null,null,null,null,null,null,null,null,null,null,null,"Ribeira do Amparo",null,null,null,null,null,"Guaxupé",null,null,null,null,null,null,"Santa Inês",null,null,null,null,"Porto Alegre",null,null,"Maracaí"]
[329.0,"BA","Esplanada",null,null,null,null,null,null,null,null,null,null,null,"Ribeira do Pombal",null,null,null,null,null,"Guidoval",null,null,null,null,null,null,"Santa Isabel do Ivaí",null,null,null,null,"Porto Lucena",null,null,"Marapoama"]
[330.0,"BA","Euclides da Cunha",null,null,null,null,null,null,null,null,null,null,null,"Ribeirão do Largo",null,null,null,null,null,"Guimarânia",null,null,null,null,null,null,"Santa Izabel do Oeste",null,null,null,null,"Porto Mauá",null,null,"Mariápolis"]
[331.0,"BA","Eunápolis",null,null,null,null,null,null,null,null,null,null,null,"Rio de Contas",null,null,null,null,null,"Guiricema",null,null,null,null,null,null,"Santa Lúcia",null,null,null,null,"Porto Vera Cruz",null,null,"Marília"]
[332.0,"BA","Fátima",null,null,null,null,null,null,null,null,null,null,null,"Rio do Antônio",null,null,null,null,null,"Gurinhatã",null,null,null,null,null,null,"Santa Maria do Oeste",null,null,null,null,"Porto Xavier",null,null,"Marinópolis"]
[333.0,"BA","Feira da Mata",null,null,null,null,null,null,null,null,null,null,null,"Rio do Pires",null,null,null,null,null,"Heliodora",null,null,null,null,null,null,"Santa Mariana",null,null,null,null,"Pouso Novo",null,null,"Martinópolis"]
[334.0,"BA","Feira de Santana",null,null,null,null,null,null,null,null,null,null,null,"Rio Real",null,null,null,null,null,"Iapu",null,null,null,null,null,null,"Santa Mônica",null,null,null,null,"Presidente Lucena",null,null,"Matão"]
[335.0,"BA","Filadélfia",null,null,null,null,null,null,null,null,null,null,null,"Rodelas",null,null,null,null,null,"Ibertioga",null,null,null,null,null,null,"Santa Tereza do Oeste",null,null,null,null,"Progresso",null,null,"Mauá"]
[336.0,"BA","Firmino Alves",null,null,null,null,null,null,null,null,null,null,null,"Ruy Barbosa",null,null,null,null,null,"Ibiá",null,null,null,null,null,null,"Santa Terezinha de Itaipu",null,null,null,null,"Protásio Alves",null,null,"Mendonça"]
[337.0,"BA","Floresta Azul",null,null,null,null,null,null,null,null,null,null,null,"Salinas da Margarida",null,null,null,null,null,"Ibiaí",null,null,null,null,null,null,"Santana do Itararé",null,null,null,null,"Putinga",null,null,"Meridiano"]
[338.0,"BA","Formosa do Rio Preto",null,null,null,null,null,null,null,null,null,null,null,"Salvador",null,null,null,null,null,"Ibiracatu",null,null,null,null,null,null,"Santo Antônio da Platina",null,null,null,null,"Quaraí",null,null,"Mesópolis"]
[339.0,"BA","Gandu",null,null,null,null,null,null,null,null,null,null,null,"Santa Bárbara",null,null,null,null,null,"Ibiraci",null,null,null,null,null,null,"Santo Antônio do Caiuá",null,null,null,null,"Quatro Irmãos",null,null,"Miguelópolis"]
[340.0,"BA","Gavião",null,null,null,null,null,null,null,null,null,null,null,"Santa Brígida",null,null,null,null,null,"Ibirité",null,null,null,null,null,null,"Santo Antônio do Paraíso",null,null,null,null,"Quevedos",null,null,"Mineiros do Tietê"]
[341.0,"BA","Gentio do Ouro",null,null,null,null,null,null,null,null,null,null,null,"Santa Cruz Cabrália",null,null,null,null,null,"Ibitiúra de Minas",null,null,null,null,null,null,"Santo Antônio do Sudoeste",null,null,null,null,"Quinze de Novembro",null,null,"Mira Estrela"]
[342.0,"BA","Glória",null,null,null,null,null,null,null,null,null,null,null,"Santa Cruz da Vitória",null,null,null,null,null,"Ibituruna",null,null,null,null,null,null,"Santo Inácio",null,null,null,null,"Redentora",null,null,"Miracatu"]
[343.0,"BA","Gongogi",null,null,null,null,null,null,null,null,null,null,null,"Santa Inês",null,null,null,null,null,"Icaraí de Minas",null,null,null,null,null,null,"São Carlos do Ivaí",null,null,null,null,"Relvado",null,null,"Mirandópolis"]
[344.0,"BA","Governador Mangabeira",null,null,null,null,null,null,null,null,null,null,null,"Santa Luzia",null,null,null,null,null,"Igarapé",null,null,null,null,null,null,"São Jerônimo da Serra",null,null,null,null,"Restinga Seca",null,null,"Mirante do Paranapanema"]
[345.0,"BA","Guajeru",null,null,null,null,null,null,null,null,null,null,null,"Santa Maria da Vitória",null,null,null,null,null,"Igaratinga",null,null,null,null,null,null,"São João",null,null,null,null,"Rio dos Índios",null,null,"Mirassol"]
[346.0,"BA","Guanambi",null,null,null,null,null,null,null,null,null,null,null,"Santa Rita de Cássia",null,null,null,null,null,"Iguatama",null,null,null,null,null,null,"São João do Caiuá",null,null,null,null,"Rio Grande",null,null,"Mirassolândia"]
[347.0,"BA","Guaratinga",null,null,null,null,null,null,null,null,null,null,null,"Santa Teresinha",null,null,null,null,null,"Ijaci",null,null,null,null,null,null,"São João do Ivaí",null,null,null,null,"Rio Pardo",null,null,"Mococa"]
[348.0,"BA","Heliópolis",null,null,null,null,null,null,null,null,null,null,null,"Santaluz",null,null,null,null,null,"Ilicínea",null,null,null,null,null,null,"São João do Triunfo",null,null,null,null,"Riozinho",null,null,"Mogi das Cruzes"]
[349.0,"BA","Iaçu",null,null,null,null,null,null,null,null,null,null,null,"Santana",null,null,null,null,null,"Imbé de Minas",null,null,null,null,null,null,"São Jorge do Ivaí",null,null,null,null,"Roca Sales",null,null,"Mogi Guaçu"]
[350.0,"BA","Ibiassucê",null,null,null,null,null,null,null,null,null,null,null,"Santanópolis",null,null,null,null,null,"Inconfidentes",null,null,null,null,null,null,"São Jorge do Patrocínio",null,null,null,null,"Rodeio Bonito",null,null,"Moji Mirim"]
[351.0,"BA","Ibicaraí",null,null,null,null,null,null,null,null,null,null,null,"Santo Amaro",null,null,null,null,null,"Indaiabira",null,null,null,null,null,null,"São Jorge dOeste",null,null,null,null,"Rolador",null,null,"Mombuca"]
[352.0,"BA","Ibicoara",null,null,null,null,null,null,null,null,null,null,null,"Santo Antônio de Jesus",null,null,null,null,null,"Indianópolis",null,null,null,null,null,null,"São José da Boa Vista",null,null,null,null,"Rolante",null,null,"Monções"]
[353.0,"BA","Ibicuí",null,null,null,null,null,null,null,null,null,null,null,"Santo Estêvão",null,null,null,null,null,"Ingaí",null,null,null,null,null,null,"São José das Palmeiras",null,null,null,null,"Ronda Alta",null,null,"Mongaguá"]
[354.0,"BA","Ibipeba",null,null,null,null,null,null,null,null,null,null,null,"São Desidério",null,null,null,null,null,"Inhapim",null,null,null,null,null,null,"São José dos Pinhais",null,null,null,null,"Rondinha",null,null,"Monte Alegre do Sul"]
[355.0,"BA","Ibipitanga",null,null,null,null,null,null,null,null,null,null,null,"São Domingos",null,null,null,null,null,"Inhaúma",null,null,null,null,null,null,"São Manoel do Paraná",null,null,null,null,"Roque Gonzales",null,null,"Monte Alto"]
[356.0,"BA","Ibiquera",null,null,null,null,null,null,null,null,null,null,null,"São Felipe",null,null,null,null,null,"Inimutaba",null,null,null,null,null,null,"São Mateus do Sul",null,null,null,null,"Rosário do Sul",null,null,"Monte Aprazível"]
[357.0,"BA","Ibirapitanga",null,null,null,null,null,null,null,null,null,null,null,"São Félix",null,null,null,null,null,"Ipaba",null,null,null,null,null,null,"São Miguel do Iguaçu",null,null,null,null,"Sagrada Família",null,null,"Monte Azul Paulista"]
[358.0,"BA","Ibirapuã",null,null,null,null,null,null,null,null,null,null,null,"São Félix do Coribe",null,null,null,null,null,"Ipanema",null,null,null,null,null,null,"São Pedro do Iguaçu",null,null,null,null,"Saldanha Marinho",null,null,"Monte Castelo"]
[359.0,"BA","Ibirataia",null,null,null,null,null,null,null,null,null,null,null,"São Francisco do Conde",null,null,null,null,null,"Ipatinga",null,null,null,null,null,null,"São Pedro do Ivaí",null,null,null,null,"Salto do Jacuí",null,null,"Monte Mor"]
[360.0,"BA","Ibitiara",null,null,null,null,null,null,null,null,null,null,null,"São Gabriel",null,null,null,null,null,"Ipiaçu",null,null,null,null,null,null,"São Pedro do Paraná",null,null,null,null,"Salvador das Missões",null,null,"Monteiro Lobato"]
[361.0,"BA","Ibititá",null,null,null,null,null,null,null,null,null,null,null,"São Gonçalo dos Campos",null,null,null,null,null,"Ipuiúna",null,null,null,null,null,null,"São Sebastião da Amoreira",null,null,null,null,"Salvador do Sul",null,null,"Morro Agudo"]
[362.0,"BA","Ibotirama",null,null,null,null,null,null,null,null,null,null,null,"São José da Vitória",null,null,null,null,null,"Iraí de Minas",null,null,null,null,null,null,"São Tomé",null,null,null,null,"Sananduva",null,null,"Morungaba"]
[363.0,"BA","Ichu",null,null,null,null,null,null,null,null,null,null,null,"São José do Jacuípe",null,null,null,null,null,"Itabira",null,null,null,null,null,null,"Sapopema",null,null,null,null,"Santa Bárbara do Sul",null,null,"Motuca"]
[364.0,"BA","Igaporã",null,null,null,null,null,null,null,null,null,null,null,"São Miguel das Matas",null,null,null,null,null,"Itabirinha",null,null,null,null,null,null,"Sarandi",null,null,null,null,"Santa Cecília do Sul",null,null,"Murutinga do Sul"]
[365.0,"BA","Igrapiúna",null,null,null,null,null,null,null,null,null,null,null,"São Sebastião do Passé",null,null,null,null,null,"Itabirito",null,null,null,null,null,null,"Saudade do Iguaçu",null,null,null,null,"Santa Clara do Sul",null,null,"Nantes"]
[366.0,"BA","Iguaí",null,null,null,null,null,null,null,null,null,null,null,"Sapeaçu",null,null,null,null,null,"Itacambira",null,null,null,null,null,null,"Sengés",null,null,null,null,"Santa Cruz do Sul",null,null,"Narandiba"]
[367.0,"BA","Ilhéus",null,null,null,null,null,null,null,null,null,null,null,"Sátiro Dias",null,null,null,null,null,"Itacarambi",null,null,null,null,null,null,"Serranópolis do Iguaçu",null,null,null,null,"Santa Margarida do Sul",null,null,"Natividade da Serra"]
[368.0,"BA","Inhambupe",null,null,null,null,null,null,null,null,null,null,null,"Saubara",null,null,null,null,null,"Itaguara",null,null,null,null,null,null,"Sertaneja",null,null,null,null,"Santa Maria",null,null,"Nazaré Paulista"]
[369.0,"BA","Ipecaetá",null,null,null,null,null,null,null,null,null,null,null,"Saúde",null,null,null,null,null,"Itaipé",null,null,null,null,null,null,"Sertanópolis",null,null,null,null,"Santa Maria do Herval",null,null,"Neves Paulista"]
[370.0,"BA","Ipiaú",null,null,null,null,null,null,null,null,null,null,null,"Seabra",null,null,null,null,null,"Itajubá",null,null,null,null,null,null,"Siqueira Campos",null,null,null,null,"Santa Rosa",null,null,"Nhandeara"]
[371.0,"BA","Ipirá",null,null,null,null,null,null,null,null,null,null,null,"Sebastião Laranjeiras",null,null,null,null,null,"Itamarandiba",null,null,null,null,null,null,"Sulina",null,null,null,null,"Santa Tereza",null,null,"Nipoã"]
[372.0,"BA","Ipupiara",null,null,null,null,null,null,null,null,null,null,null,"Senhor do Bonfim",null,null,null,null,null,"Itamarati de Minas",null,null,null,null,null,null,"Tamarana",null,null,null,null,"Santa Vitória do Palmar",null,null,"Nova Aliança"]
[373.0,"BA","Irajuba",null,null,null,null,null,null,null,null,null,null,null,"Sento Sé",null,null,null,null,null,"Itambacuri",null,null,null,null,null,null,"Tamboara",null,null,null,null,"Santana da Boa Vista",null,null,"Nova Campina"]
[374.0,"BA","Iramaia",null,null,null,null,null,null,null,null,null,null,null,"Serra do Ramalho",null,null,null,null,null,"Itambé do Mato Dentro",null,null,null,null,null,null,"Tapejara",null,null,null,null,"Santana do Livramento",null,null,"Nova Canaã Paulista"]
[375.0,"BA","Iraquara",null,null,null,null,null,null,null,null,null,null,null,"Serra Dourada",null,null,null,null,null,"Itamogi",null,null,null,null,null,null,"Tapira",null,null,null,null,"Santiago",null,null,"Nova Castilho"]
[376.0,"BA","Irará",null,null,null,null,null,null,null,null,null,null,null,"Serra Preta",null,null,null,null,null,"Itamonte",null,null,null,null,null,null,"Teixeira Soares",null,null,null,null,"Santo Ângelo",null,null,"Nova Europa"]
[377.0,"BA","Irecê",null,null,null,null,null,null,null,null,null,null,null,"Serrinha",null,null,null,null,null,"Itanhandu",null,null,null,null,null,null,"Telêmaco Borba",null,null,null,null,"Santo Antônio da Patrulha",null,null,"Nova Granada"]
[378.0,"BA","Itabela",null,null,null,null,null,null,null,null,null,null,null,"Serrolândia",null,null,null,null,null,"Itanhomi",null,null,null,null,null,null,"Terra Boa",null,null,null,null,"Santo Antônio das Missões",null,null,"Nova Guataporanga"]
[379.0,"BA","Itaberaba",null,null,null,null,null,null,null,null,null,null,null,"Simões Filho",null,null,null,null,null,"Itaobim",null,null,null,null,null,null,"Terra Rica",null,null,null,null,"Santo Antônio do Palma",null,null,"Nova Independência"]
[380.0,"BA","Itabuna",null,null,null,null,null,null,null,null,null,null,null,"Sítio do Mato",null,null,null,null,null,"Itapagipe",null,null,null,null,null,null,"Terra Roxa",null,null,null,null,"Santo Antônio do Planalto",null,null,"Nova Luzitânia"]
[381.0,"BA","Itacaré",null,null,null,null,null,null,null,null,null,null,null,"Sítio do Quinto",null,null,null,null,null,"Itapecerica",null,null,null,null,null,null,"Tibagi",null,null,null,null,"Santo Augusto",null,null,"Nova Odessa"]
[382.0,"BA","Itaeté",null,null,null,null,null,null,null,null,null,null,null,"Sobradinho",null,null,null,null,null,"Itapeva",null,null,null,null,null,null,"Tijucas do Sul",null,null,null,null,"Santo Cristo",null,null,"Novais"]
[383.0,"BA","Itagi",null,null,null,null,null,null,null,null,null,null,null,"Souto Soares",null,null,null,null,null,"Itatiaiuçu",null,null,null,null,null,null,"Toledo",null,null,null,null,"Santo Expedito do Sul",null,null,"Novo Horizonte"]
[384.0,"BA","Itagibá",null,null,null,null,null,null,null,null,null,null,null,"Tabocas do Brejo Velho",null,null,null,null,null,"Itaú de Minas",null,null,null,null,null,null,"Tomazina",null,null,null,null,"São Borja",null,null,"Nuporanga"]
[385.0,"BA","Itagimirim",null,null,null,null,null,null,null,null,null,null,null,"Tanhaçu",null,null,null,null,null,"Itaúna",null,null,null,null,null,null,"Três Barras do Paraná",null,null,null,null,"São Domingos do Sul",null,null,"Ocauçu"]
[386.0,"BA","Itaguaçu da Bahia",null,null,null,null,null,null,null,null,null,null,null,"Tanque Novo",null,null,null,null,null,"Itaverava",null,null,null,null,null,null,"Tunas do Paraná",null,null,null,null,"São Francisco de Assis",null,null,"Óleo"]
[387.0,"BA","Itaju do Colônia",null,null,null,null,null,null,null,null,null,null,null,"Tanquinho",null,null,null,null,null,"Itinga",null,null,null,null,null,null,"Tuneiras do Oeste",null,null,null,null,"São Francisco de Paula",null,null,"Olímpia"]
[388.0,"BA","Itajuípe",null,null,null,null,null,null,null,null,null,null,null,"Taperoá",null,null,null,null,null,"Itueta",null,null,null,null,null,null,"Tupãssi",null,null,null,null,"São Gabriel",null,null,"Onda Verde"]
[389.0,"BA","Itamaraju",null,null,null,null,null,null,null,null,null,null,null,"Tapiramutá",null,null,null,null,null,"Ituiutaba",null,null,null,null,null,null,"Turvo",null,null,null,null,"São Jerônimo",null,null,"Oriente"]
[390.0,"BA","Itamari",null,null,null,null,null,null,null,null,null,null,null,"Teixeira de Freitas",null,null,null,null,null,"Itumirim",null,null,null,null,null,null,"Ubiratã",null,null,null,null,"São João da Urtiga",null,null,"Orindiúva"]
[391.0,"BA","Itambé",null,null,null,null,null,null,null,null,null,null,null,"Teodoro Sampaio",null,null,null,null,null,"Iturama",null,null,null,null,null,null,"Umuarama",null,null,null,null,"São João do Polêsine",null,null,"Orlândia"]
[392.0,"BA","Itanagra",null,null,null,null,null,null,null,null,null,null,null,"Teofilândia",null,null,null,null,null,"Itutinga",null,null,null,null,null,null,"União da Vitória",null,null,null,null,"São Jorge",null,null,"Osasco"]
[393.0,"BA","Itanhém",null,null,null,null,null,null,null,null,null,null,null,"Teolândia",null,null,null,null,null,"Jaboticatubas",null,null,null,null,null,null,"Uniflor",null,null,null,null,"São José das Missões",null,null,"Oscar Bressane"]
[394.0,"BA","Itaparica",null,null,null,null,null,null,null,null,null,null,null,"Terra Nova",null,null,null,null,null,"Jacinto",null,null,null,null,null,null,"Uraí",null,null,null,null,"São José do Herval",null,null,"Osvaldo Cruz"]
[395.0,"BA","Itapé",null,null,null,null,null,null,null,null,null,null,null,"Tremedal",null,null,null,null,null,"Jacuí",null,null,null,null,null,null,"Ventania",null,null,null,null,"São José do Hortêncio",null,null,"Ourinhos"]
[396.0,"BA","Itapebi",null,null,null,null,null,null,null,null,null,null,null,"Tucano",null,null,null,null,null,"Jacutinga",null,null,null,null,null,null,"Vera Cruz do Oeste",null,null,null,null,"São José do Inhacorá",null,null,"Ouro Verde"]
[397.0,"BA","Itapetinga",null,null,null,null,null,null,null,null,null,null,null,"Uauá",null,null,null,null,null,"Jaguaraçu",null,null,null,null,null,null,"Verê",null,null,null,null,"São José do Norte",null,null,"Ouroeste"]
[398.0,"BA","Itapicuru",null,null,null,null,null,null,null,null,null,null,null,"Ubaíra",null,null,null,null,null,"Jaíba",null,null,null,null,null,null,"Virmond",null,null,null,null,"São José do Ouro",null,null,"Pacaembu"]
[399.0,"BA","Itapitanga",null,null,null,null,null,null,null,null,null,null,null,"Ubaitaba",null,null,null,null,null,"Jampruca",null,null,null,null,null,null,"Vitorino",null,null,null,null,"São José do Sul",null,null,"Palestina"]
[400.0,"BA","Itaquara",null,null,null,null,null,null,null,null,null,null,null,"Ubatã",null,null,null,null,null,"Janaúba",null,null,null,null,null,null,"Wenceslau Braz",null,null,null,null,"São José dos Ausentes",null,null,"Palmares Paulista"]
[401.0,"BA","Itarantim",null,null,null,null,null,null,null,null,null,null,null,"Uibaí",null,null,null,null,null,"Januária",null,null,null,null,null,null,"Xambrê",null,null,null,null,"São Leopoldo",null,null,"Palmeira dOeste"]
[402.0,"BA","Itatim",null,null,null,null,null,null,null,null,null,null,null,"Umburanas",null,null,null,null,null,"Japaraíba",null,null,null,null,null,null,null,null,null,null,null,"São Lourenço do Sul",null,null,"Palmital"]
[403.0,"BA","Itiruçu",null,null,null,null,null,null,null,null,null,null,null,"Una",null,null,null,null,null,"Japonvar",null,null,null,null,null,null,null,null,null,null,null,"São Luiz Gonzaga",null,null,"Panorama"]
[404.0,"BA","Itiúba",null,null,null,null,null,null,null,null,null,null,null,"Urandi",null,null,null,null,null,"Jeceaba",null,null,null,null,null,null,null,null,null,null,null,"São Marcos",null,null,"Paraguaçu Paulista"]
[405.0,"BA","Itororó",null,null,null,null,null,null,null,null,null,null,null,"Uruçuca",null,null,null,null,null,"Jenipapo de Minas",null,null,null,null,null,null,null,null,null,null,null,"São Martinho",null,null,"Paraibuna"]
[406.0,"BA","Ituaçu",null,null,null,null,null,null,null,null,null,null,null,"Utinga",null,null,null,null,null,"Jequeri",null,null,null,null,null,null,null,null,null,null,null,"São Martinho da Serra",null,null,"Paraíso"]
[407.0,"BA","Ituberá",null,null,null,null,null,null,null,null,null,null,null,"Valença",null,null,null,null,null,"Jequitaí",null,null,null,null,null,null,null,null,null,null,null,"São Miguel das Missões",null,null,"Paranapanema"]
[408.0,"BA","Iuiú",null,null,null,null,null,null,null,null,null,null,null,"Valente",null,null,null,null,null,"Jequitibá",null,null,null,null,null,null,null,null,null,null,null,"São Nicolau",null,null,"Paranapuã"]
[409.0,"BA","Jaborandi",null,null,null,null,null,null,null,null,null,null,null,"Várzea da Roça",null,null,null,null,null,"Jequitinhonha",null,null,null,null,null,null,null,null,null,null,null,"São Paulo das Missões",null,null,"Parapuã"]
[410.0,"BA","Jacaraci",null,null,null,null,null,null,null,null,null,null,null,"Várzea do Poço",null,null,null,null,null,"Jesuânia",null,null,null,null,null,null,null,null,null,null,null,"São Pedro da Serra",null,null,"Pardinho"]
[411.0,"BA","Jacobina",null,null,null,null,null,null,null,null,null,null,null,"Várzea Nova",null,null,null,null,null,"Joaíma",null,null,null,null,null,null,null,null,null,null,null,"São Pedro das Missões",null,null,"Pariquera-Açu"]
[412.0,"BA","Jaguaquara",null,null,null,null,null,null,null,null,null,null,null,"Varzedo",null,null,null,null,null,"Joanésia",null,null,null,null,null,null,null,null,null,null,null,"São Pedro do Butiá",null,null,"Parisi"]
[413.0,"BA","Jaguarari",null,null,null,null,null,null,null,null,null,null,null,"Vera Cruz",null,null,null,null,null,"João Monlevade",null,null,null,null,null,null,null,null,null,null,null,"São Pedro do Sul",null,null,"Patrocínio Paulista"]
[414.0,"BA","Jaguaripe",null,null,null,null,null,null,null,null,null,null,null,"Vereda",null,null,null,null,null,"João Pinheiro",null,null,null,null,null,null,null,null,null,null,null,"São Sebastião do Caí",null,null,"Paulicéia"]
[415.0,"BA","Jandaíra",null,null,null,null,null,null,null,null,null,null,null,"Vitória da Conquista",null,null,null,null,null,"Joaquim Felício",null,null,null,null,null,null,null,null,null,null,null,"São Sepé",null,null,"Paulínia"]
[416.0,"BA","Jequié",null,null,null,null,null,null,null,null,null,null,null,"Wagner",null,null,null,null,null,"Jordânia",null,null,null,null,null,null,null,null,null,null,null,"São Valentim",null,null,"Paulistânia"]
[417.0,"BA","Jeremoabo",null,null,null,null,null,null,null,null,null,null,null,"Wanderley",null,null,null,null,null,"José Gonçalves de Minas",null,null,null,null,null,null,null,null,null,null,null,"São Valentim do Sul",null,null,"Paulo de Faria"]
[418.0,"BA","Jiquiriçá",null,null,null,null,null,null,null,null,null,null,null,"Wenceslau Guimarães",null,null,null,null,null,"José Raydan",null,null,null,null,null,null,null,null,null,null,null,"São Valério do Sul",null,null,"Pederneiras"]
[419.0,"BA","Jitaúna",null,null,null,null,null,null,null,null,null,null,null,"Xique-Xique",null,null,null,null,null,"Josenópolis",null,null,null,null,null,null,null,null,null,null,null,"São Vendelino",null,null,"Pedra Bela"]
[420.0,"BA","João Dourado",null,null,null,null,null,null,null,null,null,null,null,null,null,null,null,null,null,"Juatuba",null,null,null,null,null,null,null,null,null,null,null,"São Vicente do Sul",null,null,"Pedranópolis"]
[421.0,"BA","Juazeiro",null,null,null,null,null,null,null,null,null,null,null,null,null,null,null,null,null,"Juiz de Fora",null,null,null,null,null,null,null,null,null,null,null,"Sapiranga",null,null,"Pedregulho"]
[422.0,"BA","Jucuruçu",null,null,null,null,null,null,null,null,null,null,null,null,null,null,null,null,null,"Juramento",null,null,null,null,null,null,null,null,null,null,null,"Sapucaia do Sul",null,null,"Pedreira"]
[423.0,"BA","Jussara",null,null,null,null,null,null,null,null,null,null,null,null,null,null,null,null,null,"Juruaia",null,null,null,null,null,null,null,null,null,null,null,"Sarandi",null,null,"Pedrinhas Paulista"]
[424.0,"BA","Jussari",null,null,null,null,null,null,null,null,null,null,null,null,null,null,null,null,null,"Juvenília",null,null,null,null,null,null,null,null,null,null,null,"Seberi",null,null,"Pedro de Toledo"]
[425.0,"BA","Jussiape",null,null,null,null,null,null,null,null,null,null,null,null,null,null,null,null,null,"Ladainha",null,null,null,null,null,null,null,null,null,null,null,"Sede Nova",null,null,"Penápolis"]
[426.0,"BA","Lafaiete Coutinho",null,null,null,null,null,null,null,null,null,null,null,null,null,null,null,null,null,"Lagamar",null,null,null,null,null,null,null,null,null,null,null,"Segredo",null,null,"Pereira Barreto"]
[427.0,"BA","Lagoa Real",null,null,null,null,null,null,null,null,null,null,null,null,null,null,null,null,null,"Lagoa da Prata",null,null,null,null,null,null,null,null,null,null,null,"Selbach",null,null,"Pereiras"]
[428.0,"BA","Laje",null,null,null,null,null,null,null,null,null,null,null,null,null,null,null,null,null,"Lagoa dos Patos",null,null,null,null,null,null,null,null,null,null,null,"Senador Salgado Filho",null,null,"Peruíbe"]
[429.0,"BA","Lajedão",null,null,null,null,null,null,null,null,null,null,null,null,null,null,null,null,null,"Lagoa Dourada",null,null,null,null,null,null,null,null,null,null,null,"Sentinela do Sul",null,null,"Piacatu"]
[430.0,"BA","Lajedinho",null,null,null,null,null,null,null,null,null,null,null,null,null,null,null,null,null,"Lagoa Formosa",null,null,null,null,null,null,null,null,null,null,null,"Serafina Corrêa",null,null,"Piedade"]
[431.0,"BA","Lajedo do Tabocal",null,null,null,null,null,null,null,null,null,null,null,null,null,null,null,null,null,"Lagoa Grande",null,null,null,null,null,null,null,null,null,null,null,"Sério",null,null,"Pilar do Sul"]
[432.0,"BA","Lamarão",null,null,null,null,null,null,null,null,null,null,null,null,null,null,null,null,null,"Lagoa Santa",null,null,null,null,null,null,null,null,null,null,null,"Sertão",null,null,"Pindamonhangaba"]
[433.0,"BA","Lapão",null,null,null,null,null,null,null,null,null,null,null,null,null,null,null,null,null,"Lajinha",null,null,null,null,null,null,null,null,null,null,null,"Sertão Santana",null,null,"Pindorama"]
[434.0,"BA","Lauro de Freitas",null,null,null,null,null,null,null,null,null,null,null,null,null,null,null,null,null,"Lambari",null,null,null,null,null,null,null,null,null,null,null,"Sete de Setembro",null,null,"Pinhalzinho"]
[435.0,"BA","Lençóis",null,null,null,null,null,null,null,null,null,null,null,null,null,null,null,null,null,"Lamim",null,null,null,null,null,null,null,null,null,null,null,"Severiano de Almeida",null,null,"Piquerobi"]
[436.0,"BA","Licínio de Almeida",null,null,null,null,null,null,null,null,null,null,null,null,null,null,null,null,null,"Laranjal",null,null,null,null,null,null,null,null,null,null,null,"Silveira Martins",null,null,"Piquete"]
[437.0,"BA","Livramento de Nossa Senhora",null,null,null,null,null,null,null,null,null,null,null,null,null,null,null,null,null,"Lassance",null,null,null,null,null,null,null,null,null,null,null,"Sinimbu",null,null,"Piracaia"]
[438.0,"BA","Luís Eduardo Magalhães",null,null,null,null,null,null,null,null,null,null,null,null,null,null,null,null,null,"Lavras",null,null,null,null,null,null,null,null,null,null,null,"Sobradinho",null,null,"Piracicaba"]
[439.0,"BA","Macajuba",null,null,null,null,null,null,null,null,null,null,null,null,null,null,null,null,null,"Leandro Ferreira",null,null,null,null,null,null,null,null,null,null,null,"Soledade",null,null,"Piraju"]
[440.0,"BA","Macarani",null,null,null,null,null,null,null,null,null,null,null,null,null,null,null,null,null,"Leme do Prado",null,null,null,null,null,null,null,null,null,null,null,"Tabaí",null,null,"Pirajuí"]
[441.0,"BA","Macaúbas",null,null,null,null,null,null,null,null,null,null,null,null,null,null,null,null,null,"Leopoldina",null,null,null,null,null,null,null,null,null,null,null,"Tapejara",null,null,"Pirangi"]
[442.0,"BA","Macururé",null,null,null,null,null,null,null,null,null,null,null,null,null,null,null,null,null,"Liberdade",null,null,null,null,null,null,null,null,null,null,null,"Tapera",null,null,"Pirapora do Bom Jesus"]
[443.0,"BA","Madre de Deus",null,null,null,null,null,null,null,null,null,null,null,null,null,null,null,null,null,"Lima Duarte",null,null,null,null,null,null,null,null,null,null,null,"Tapes",null,null,"Pirapozinho"]
[444.0,"BA","Maetinga",null,null,null,null,null,null,null,null,null,null,null,null,null,null,null,null,null,"Limeira do Oeste",null,null,null,null,null,null,null,null,null,null,null,"Taquara",null,null,"Pirassununga"]
[445.0,"BA","Maiquinique",null,null,null,null,null,null,null,null,null,null,null,null,null,null,null,null,null,"Lontra",null,null,null,null,null,null,null,null,null,null,null,"Taquari",null,null,"Piratininga"]
[446.0,"BA","Mairi",null,null,null,null,null,null,null,null,null,null,null,null,null,null,null,null,null,"Luisburgo",null,null,null,null,null,null,null,null,null,null,null,"Taquaruçu do Sul",null,null,"Pitangueiras"]
[447.0,"BA","Malhada",null,null,null,null,null,null,null,null,null,null,null,null,null,null,null,null,null,"Luislândia",null,null,null,null,null,null,null,null,null,null,null,"Tavares",null,null,"Planalto"]
[448.0,"BA","Malhada de Pedras",null,null,null,null,null,null,null,null,null,null,null,null,null,null,null,null,null,"Luminárias",null,null,null,null,null,null,null,null,null,null,null,"Tenente Portela",null,null,"Platina"]
[449.0,"BA","Manoel Vitorino",null,null,null,null,null,null,null,null,null,null,null,null,null,null,null,null,null,"Luz",null,null,null,null,null,null,null,null,null,null,null,"Terra de Areia",null,null,"Poá"]
[450.0,"BA","Mansidão",null,null,null,null,null,null,null,null,null,null,null,null,null,null,null,null,null,"Machacalis",null,null,null,null,null,null,null,null,null,null,null,"Teutônia",null,null,"Poloni"]
[451.0,"BA","Maracás",null,null,null,null,null,null,null,null,null,null,null,null,null,null,null,null,null,"Machado",null,null,null,null,null,null,null,null,null,null,null,"Tio Hugo",null,null,"Pompéia"]
[452.0,"BA","Maragogipe",null,null,null,null,null,null,null,null,null,null,null,null,null,null,null,null,null,"Madre de Deus de Minas",null,null,null,null,null,null,null,null,null,null,null,"Tiradentes do Sul",null,null,"Pongaí"]
[453.0,"BA","Maraú",null,null,null,null,null,null,null,null,null,null,null,null,null,null,null,null,null,"Malacacheta",null,null,null,null,null,null,null,null,null,null,null,"Toropi",null,null,"Pontal"]
[454.0,"BA","Marcionílio Souza",null,null,null,null,null,null,null,null,null,null,null,null,null,null,null,null,null,"Mamonas",null,null,null,null,null,null,null,null,null,null,null,"Torres",null,null,"Pontalinda"]
[455.0,"BA","Mascote",null,null,null,null,null,null,null,null,null,null,null,null,null,null,null,null,null,"Manga",null,null,null,null,null,null,null,null,null,null,null,"Tramandaí",null,null,"Pontes Gestal"]
[456.0,"BA","Mata de São João",null,null,null,null,null,null,null,null,null,null,null,null,null,null,null,null,null,"Manhuaçu",null,null,null,null,null,null,null,null,null,null,null,"Travesseiro",null,null,"Populina"]
[457.0,"BA","Matina",null,null,null,null,null,null,null,null,null,null,null,null,null,null,null,null,null,"Manhumirim",null,null,null,null,null,null,null,null,null,null,null,"Três Arroios",null,null,"Porangaba"]
[458.0,"BA","Medeiros Neto",null,null,null,null,null,null,null,null,null,null,null,null,null,null,null,null,null,"Mantena",null,null,null,null,null,null,null,null,null,null,null,"Três Cachoeiras",null,null,"Porto Feliz"]
[459.0,"BA","Miguel Calmon",null,null,null,null,null,null,null,null,null,null,null,null,null,null,null,null,null,"Mar de Espanha",null,null,null,null,null,null,null,null,null,null,null,"Três Coroas",null,null,"Porto Ferreira"]
[460.0,"BA","Milagres",null,null,null,null,null,null,null,null,null,null,null,null,null,null,null,null,null,"Maravilhas",null,null,null,null,null,null,null,null,null,null,null,"Três de Maio",null,null,"Potim"]
[461.0,"BA","Mirangaba",null,null,null,null,null,null,null,null,null,null,null,null,null,null,null,null,null,"Maria da Fé",null,null,null,null,null,null,null,null,null,null,null,"Três Forquilhas",null,null,"Potirendaba"]
[462.0,"BA","Mirante",null,null,null,null,null,null,null,null,null,null,null,null,null,null,null,null,null,"Mariana",null,null,null,null,null,null,null,null,null,null,null,"Três Palmeiras",null,null,"Pracinha"]
[463.0,"BA","Monte Santo",null,null,null,null,null,null,null,null,null,null,null,null,null,null,null,null,null,"Marilac",null,null,null,null,null,null,null,null,null,null,null,"Três Passos",null,null,"Pradópolis"]
[464.0,"BA","Morpará",null,null,null,null,null,null,null,null,null,null,null,null,null,null,null,null,null,"Mário Campos",null,null,null,null,null,null,null,null,null,null,null,"Trindade do Sul",null,null,"Praia Grande"]
[465.0,"BA","Morro do Chapéu",null,null,null,null,null,null,null,null,null,null,null,null,null,null,null,null,null,"Maripá de Minas",null,null,null,null,null,null,null,null,null,null,null,"Triunfo",null,null,"Pratânia"]
[466.0,"BA","Mortugaba",null,null,null,null,null,null,null,null,null,null,null,null,null,null,null,null,null,"Marliéria",null,null,null,null,null,null,null,null,null,null,null,"Tucunduva",null,null,"Presidente Alves"]
[467.0,"BA","Mucugê",null,null,null,null,null,null,null,null,null,null,null,null,null,null,null,null,null,"Marmelópolis",null,null,null,null,null,null,null,null,null,null,null,"Tunas",null,null,"Presidente Bernardes"]
[468.0,"BA","Mucuri",null,null,null,null,null,null,null,null,null,null,null,null,null,null,null,null,null,"Martinho Campos",null,null,null,null,null,null,null,null,null,null,null,"Tupanci do Sul",null,null,"Presidente Epitácio"]
[469.0,"BA","Mulungu do Morro",null,null,null,null,null,null,null,null,null,null,null,null,null,null,null,null,null,"Martins Soares",null,null,null,null,null,null,null,null,null,null,null,"Tupanciretã",null,null,"Presidente Prudente"]
[470.0,"BA","Mundo Novo",null,null,null,null,null,null,null,null,null,null,null,null,null,null,null,null,null,"Mata Verde",null,null,null,null,null,null,null,null,null,null,null,"Tupandi",null,null,"Presidente Venceslau"]
[471.0,"BA","Muniz Ferreira",null,null,null,null,null,null,null,null,null,null,null,null,null,null,null,null,null,"Materlândia",null,null,null,null,null,null,null,null,null,null,null,"Tuparendi",null,null,"Promissão"]
[472.0,"BA","Muquém de São Francisco",null,null,null,null,null,null,null,null,null,null,null,null,null,null,null,null,null,"Mateus Leme",null,null,null,null,null,null,null,null,null,null,null,"Turuçu",null,null,"Quadra"]
[473.0,"BA","Muritiba",null,null,null,null,null,null,null,null,null,null,null,null,null,null,null,null,null,"Mathias Lobato",null,null,null,null,null,null,null,null,null,null,null,"Ubiretama",null,null,"Quatá"]
[474.0,"BA","Mutuípe",null,null,null,null,null,null,null,null,null,null,null,null,null,null,null,null,null,"Matias Barbosa",null,null,null,null,null,null,null,null,null,null,null,"União da Serra",null,null,"Queiroz"]
[475.0,"BA","Nazaré",null,null,null,null,null,null,null,null,null,null,null,null,null,null,null,null,null,"Matias Cardoso",null,null,null,null,null,null,null,null,null,null,null,"Unistalda",null,null,"Queluz"]
[476.0,"BA","Nilo Peçanha",null,null,null,null,null,null,null,null,null,null,null,null,null,null,null,null,null,"Matipó",null,null,null,null,null,null,null,null,null,null,null,"Uruguaiana",null,null,"Quintana"]
[477.0,"BA","Nordestina",null,null,null,null,null,null,null,null,null,null,null,null,null,null,null,null,null,"Mato Verde",null,null,null,null,null,null,null,null,null,null,null,"Vacaria",null,null,"Rafard"]
[478.0,"BA","Nova Canaã",null,null,null,null,null,null,null,null,null,null,null,null,null,null,null,null,null,"Matozinhos",null,null,null,null,null,null,null,null,null,null,null,"Vale do Sol",null,null,"Rancharia"]
[479.0,"BA","Nova Fátima",null,null,null,null,null,null,null,null,null,null,null,null,null,null,null,null,null,"Matutina",null,null,null,null,null,null,null,null,null,null,null,"Vale Real",null,null,"Redenção da Serra"]
[480.0,"BA","Nova Ibiá",null,null,null,null,null,null,null,null,null,null,null,null,null,null,null,null,null,"Medeiros",null,null,null,null,null,null,null,null,null,null,null,"Vale Verde",null,null,"Regente Feijó"]
[481.0,"BA","Nova Itarana",null,null,null,null,null,null,null,null,null,null,null,null,null,null,null,null,null,"Medina",null,null,null,null,null,null,null,null,null,null,null,"Vanini",null,null,"Reginópolis"]
[482.0,"BA","Nova Redenção",null,null,null,null,null,null,null,null,null,null,null,null,null,null,null,null,null,"Mendes Pimentel",null,null,null,null,null,null,null,null,null,null,null,"Venâncio Aires",null,null,"Registro"]
[483.0,"BA","Nova Soure",null,null,null,null,null,null,null,null,null,null,null,null,null,null,null,null,null,"Mercês",null,null,null,null,null,null,null,null,null,null,null,"Vera Cruz",null,null,"Restinga"]
[484.0,"BA","Nova Viçosa",null,null,null,null,null,null,null,null,null,null,null,null,null,null,null,null,null,"Mesquita",null,null,null,null,null,null,null,null,null,null,null,"Veranópolis",null,null,"Ribeira"]
[485.0,"BA","Novo Horizonte",null,null,null,null,null,null,null,null,null,null,null,null,null,null,null,null,null,"Minas Novas",null,null,null,null,null,null,null,null,null,null,null,"Vespasiano Correa",null,null,"Ribeirão Bonito"]
[486.0,"BA","Novo Triunfo",null,null,null,null,null,null,null,null,null,null,null,null,null,null,null,null,null,"Minduri",null,null,null,null,null,null,null,null,null,null,null,"Viadutos",null,null,"Ribeirão Branco"]
[487.0,"BA","Olindina",null,null,null,null,null,null,null,null,null,null,null,null,null,null,null,null,null,"Mirabela",null,null,null,null,null,null,null,null,null,null,null,"Viamão",null,null,"Ribeirão Corrente"]
[488.0,"BA","Oliveira dos Brejinhos",null,null,null,null,null,null,null,null,null,null,null,null,null,null,null,null,null,"Miradouro",null,null,null,null,null,null,null,null,null,null,null,"Vicente Dutra",null,null,"Ribeirão do Sul"]
[489.0,"BA","Ouriçangas",null,null,null,null,null,null,null,null,null,null,null,null,null,null,null,null,null,"Miraí",null,null,null,null,null,null,null,null,null,null,null,"Victor Graeff",null,null,"Ribeirão dos Índios"]
[490.0,"BA","Ourolândia",null,null,null,null,null,null,null,null,null,null,null,null,null,null,null,null,null,"Miravânia",null,null,null,null,null,null,null,null,null,null,null,"Vila Flores",null,null,"Ribeirão Grande"]
[491.0,"BA","Palmas de Monte Alto",null,null,null,null,null,null,null,null,null,null,null,null,null,null,null,null,null,"Moeda",null,null,null,null,null,null,null,null,null,null,null,"Vila Lângaro",null,null,"Ribeirão Pires"]
[492.0,"BA","Palmeiras",null,null,null,null,null,null,null,null,null,null,null,null,null,null,null,null,null,"Moema",null,null,null,null,null,null,null,null,null,null,null,"Vila Maria",null,null,"Ribeirão Preto"]
[493.0,"BA","Paramirim",null,null,null,null,null,null,null,null,null,null,null,null,null,null,null,null,null,"Monjolos",null,null,null,null,null,null,null,null,null,null,null,"Vila Nova do Sul",null,null,"Rifaina"]
[494.0,"BA","Paratinga",null,null,null,null,null,null,null,null,null,null,null,null,null,null,null,null,null,"Monsenhor Paulo",null,null,null,null,null,null,null,null,null,null,null,"Vista Alegre",null,null,"Rincão"]
[495.0,"BA","Paripiranga",null,null,null,null,null,null,null,null,null,null,null,null,null,null,null,null,null,"Montalvânia",null,null,null,null,null,null,null,null,null,null,null,"Vista Alegre do Prata",null,null,"Rinópolis"]
[496.0,"BA","Pau Brasil",null,null,null,null,null,null,null,null,null,null,null,null,null,null,null,null,null,"Monte Alegre de Minas",null,null,null,null,null,null,null,null,null,null,null,"Vista Gaúcha",null,null,"Rio Claro"]
[497.0,"BA","Paulo Afonso",null,null,null,null,null,null,null,null,null,null,null,null,null,null,null,null,null,"Monte Azul",null,null,null,null,null,null,null,null,null,null,null,"Vitória das Missões",null,null,"Rio das Pedras"]
[498.0,"BA","Pé de Serra",null,null,null,null,null,null,null,null,null,null,null,null,null,null,null,null,null,"Monte Belo",null,null,null,null,null,null,null,null,null,null,null,"Westfalia",null,null,"Rio Grande da Serra"]
[499.0,"BA","Pedrão",null,null,null,null,null,null,null,null,null,null,null,null,null,null,null,null,null,"Monte Carmelo",null,null,null,null,null,null,null,null,null,null,null,"Xangri-lá",null,null,"Riolândia"]
[500.0,"BA","Pedro Alexandre",null,null,null,null,null,null,null,null,null,null,null,null,null,null,null,null,null,"Monte Formoso",null,null,null,null,null,null,null,null,null,null,null,null,null,null,"Riversul"]
[501.0,"BA","Piatã",null,null,null,null,null,null,null,null,null,null,null,null,null,null,null,null,null,"Monte Santo de Minas",null,null,null,null,null,null,null,null,null,null,null,null,null,null,"Rosana"]
[502.0,"BA","Pilão Arcado",null,null,null,null,null,null,null,null,null,null,null,null,null,null,null,null,null,"Monte Sião",null,null,null,null,null,null,null,null,null,null,null,null,null,null,"Roseira"]
[503.0,"BA","Pindaí",null,null,null,null,null,null,null,null,null,null,null,null,null,null,null,null,null,"Montes Claros",null,null,null,null,null,null,null,null,null,null,null,null,null,null,"Rubiácea"]
[504.0,"BA","Pindobaçu",null,null,null,null,null,null,null,null,null,null,null,null,null,null,null,null,null,"Montezuma",null,null,null,null,null,null,null,null,null,null,null,null,null,null,"Rubinéia"]
[505.0,"BA","Pintadas",null,null,null,null,null,null,null,null,null,null,null,null,null,null,null,null,null,"Morada Nova de Minas",null,null,null,null,null,null,null,null,null,null,null,null,null,null,"Sabino"]
[506.0,"BA","Piraí do Norte",null,null,null,null,null,null,null,null,null,null,null,null,null,null,null,null,null,"Morro da Garça",null,null,null,null,null,null,null,null,null,null,null,null,null,null,"Sagres"]
[507.0,"BA","Piripá",null,null,null,null,null,null,null,null,null,null,null,null,null,null,null,null,null,"Morro do Pilar",null,null,null,null,null,null,null,null,null,null,null,null,null,null,"Sales"]
[508.0,"BA","Piritiba",null,null,null,null,null,null,null,null,null,null,null,null,null,null,null,null,null,"Munhoz",null,null,null,null,null,null,null,null,null,null,null,null,null,null,"Sales Oliveira"]
[509.0,"BA","Planaltino",null,null,null,null,null,null,null,null,null,null,null,null,null,null,null,null,null,"Muriaé",null,null,null,null,null,null,null,null,null,null,null,null,null,null,"Salesópolis"]
[510.0,"BA","Planalto",null,null,null,null,null,null,null,null,null,null,null,null,null,null,null,null,null,"Mutum",null,null,null,null,null,null,null,null,null,null,null,null,null,null,"Salmourão"]
[511.0,"BA","Poções",null,null,null,null,null,null,null,null,null,null,null,null,null,null,null,null,null,"Muzambinho",null,null,null,null,null,null,null,null,null,null,null,null,null,null,"Saltinho"]
[512.0,"BA","Pojuca",null,null,null,null,null,null,null,null,null,null,null,null,null,null,null,null,null,"Nacip Raydan",null,null,null,null,null,null,null,null,null,null,null,null,null,null,"Salto"]
[513.0,"BA","Ponto Novo",null,null,null,null,null,null,null,null,null,null,null,null,null,null,null,null,null,"Nanuque",null,null,null,null,null,null,null,null,null,null,null,null,null,null,"Salto de Pirapora"]
[514.0,"BA","Porto Seguro",null,null,null,null,null,null,null,null,null,null,null,null,null,null,null,null,null,"Naque",null,null,null,null,null,null,null,null,null,null,null,null,null,null,"Salto Grande"]
[515.0,"BA","Potiraguá",null,null,null,null,null,null,null,null,null,null,null,null,null,null,null,null,null,"Natalândia",null,null,null,null,null,null,null,null,null,null,null,null,null,null,"Sandovalina"]
[516.0,"BA","Prado",null,null,null,null,null,null,null,null,null,null,null,null,null,null,null,null,null,"Natércia",null,null,null,null,null,null,null,null,null,null,null,null,null,null,"Santa Adélia"]
[517.0,"BA","Presidente Dutra",null,null,null,null,null,null,null,null,null,null,null,null,null,null,null,null,null,"Nazareno",null,null,null,null,null,null,null,null,null,null,null,null,null,null,"Santa Albertina"]
[518.0,"BA","Presidente Jânio Quadros",null,null,null,null,null,null,null,null,null,null,null,null,null,null,null,null,null,"Nepomuceno",null,null,null,null,null,null,null,null,null,null,null,null,null,null,"Santa Bárbara dOeste"]
[519.0,"BA","Presidente Tancredo Neves",null,null,null,null,null,null,null,null,null,null,null,null,null,null,null,null,null,"Ninheira",null,null,null,null,null,null,null,null,null,null,null,null,null,null,"Santa Branca"]
[520.0,"BA","Queimadas",null,null,null,null,null,null,null,null,null,null,null,null,null,null,null,null,null,"Nova Belém",null,null,null,null,null,null,null,null,null,null,null,null,null,null,"Santa Clara dOeste"]
[521.0,"BA","Quijingue",null,null,null,null,null,null,null,null,null,null,null,null,null,null,null,null,null,"Nova Era",null,null,null,null,null,null,null,null,null,null,null,null,null,null,"Santa Cruz da Conceição"]
[522.0,"BA","Quixabeira",null,null,null,null,null,null,null,null,null,null,null,null,null,null,null,null,null,"Nova Lima",null,null,null,null,null,null,null,null,null,null,null,null,null,null,"Santa Cruz da Esperança"]
[523.0,"BA","Rafael Jambeiro",null,null,null,null,null,null,null,null,null,null,null,null,null,null,null,null,null,"Nova Módica",null,null,null,null,null,null,null,null,null,null,null,null,null,null,"Santa Cruz das Palmeiras"]
[524.0,"BA","Remanso",null,null,null,null,null,null,null,null,null,null,null,null,null,null,null,null,null,"Nova Ponte",null,null,null,null,null,null,null,null,null,null,null,null,null,null,"Santa Cruz do Rio Pardo"]
[525.0,"BA","Retirolândia",null,null,null,null,null,null,null,null,null,null,null,null,null,null,null,null,null,"Nova Porteirinha",null,null,null,null,null,null,null,null,null,null,null,null,null,null,"Santa Ernestina"]
[526.0,"BA","Riachão das Neves",null,null,null,null,null,null,null,null,null,null,null,null,null,null,null,null,null,"Nova Resende",null,null,null,null,null,null,null,null,null,null,null,null,null,null,"Santa Fé do Sul"]
[527.0,"BA","Riachão do Jacuípe",null,null,null,null,null,null,null,null,null,null,null,null,null,null,null,null,null,"Nova Serrana",null,null,null,null,null,null,null,null,null,null,null,null,null,null,"Santa Gertrudes"]
[528.0,"BA","Riacho de Santana",null,null,null,null,null,null,null,null,null,null,null,null,null,null,null,null,null,"Nova União",null,null,null,null,null,null,null,null,null,null,null,null,null,null,"Santa Isabel"]
[529.0,"BA","Ribeira do Amparo",null,null,null,null,null,null,null,null,null,null,null,null,null,null,null,null,null,"Novo Cruzeiro",null,null,null,null,null,null,null,null,null,null,null,null,null,null,"Santa Lúcia"]
[530.0,"BA","Ribeira do Pombal",null,null,null,null,null,null,null,null,null,null,null,null,null,null,null,null,null,"Novo Oriente de Minas",null,null,null,null,null,null,null,null,null,null,null,null,null,null,"Santa Maria da Serra"]
[531.0,"BA","Ribeirão do Largo",null,null,null,null,null,null,null,null,null,null,null,null,null,null,null,null,null,"Novorizonte",null,null,null,null,null,null,null,null,null,null,null,null,null,null,"Santa Mercedes"]
[532.0,"BA","Rio de Contas",null,null,null,null,null,null,null,null,null,null,null,null,null,null,null,null,null,"Olaria",null,null,null,null,null,null,null,null,null,null,null,null,null,null,"Santa Rita do Passa Quatro"]
[533.0,"BA","Rio do Antônio",null,null,null,null,null,null,null,null,null,null,null,null,null,null,null,null,null,"Olhos-dÁgua",null,null,null,null,null,null,null,null,null,null,null,null,null,null,"Santa Rita dOeste"]
[534.0,"BA","Rio do Pires",null,null,null,null,null,null,null,null,null,null,null,null,null,null,null,null,null,"Olímpio Noronha",null,null,null,null,null,null,null,null,null,null,null,null,null,null,"Santa Rosa de Viterbo"]
[535.0,"BA","Rio Real",null,null,null,null,null,null,null,null,null,null,null,null,null,null,null,null,null,"Oliveira",null,null,null,null,null,null,null,null,null,null,null,null,null,null,"Santa Salete"]
[536.0,"BA","Rodelas",null,null,null,null,null,null,null,null,null,null,null,null,null,null,null,null,null,"Oliveira Fortes",null,null,null,null,null,null,null,null,null,null,null,null,null,null,"Santana da Ponte Pensa"]
[537.0,"BA","Ruy Barbosa",null,null,null,null,null,null,null,null,null,null,null,null,null,null,null,null,null,"Onça de Pitangui",null,null,null,null,null,null,null,null,null,null,null,null,null,null,"Santana de Parnaíba"]
[538.0,"BA","Salinas da Margarida",null,null,null,null,null,null,null,null,null,null,null,null,null,null,null,null,null,"Oratórios",null,null,null,null,null,null,null,null,null,null,null,null,null,null,"Santo Anastácio"]
[539.0,"BA","Salvador",null,null,null,null,null,null,null,null,null,null,null,null,null,null,null,null,null,"Orizânia",null,null,null,null,null,null,null,null,null,null,null,null,null,null,"Santo André"]
[540.0,"BA","Santa Bárbara",null,null,null,null,null,null,null,null,null,null,null,null,null,null,null,null,null,"Ouro Branco",null,null,null,null,null,null,null,null,null,null,null,null,null,null,"Santo Antônio da Alegria"]
[541.0,"BA","Santa Brígida",null,null,null,null,null,null,null,null,null,null,null,null,null,null,null,null,null,"Ouro Fino",null,null,null,null,null,null,null,null,null,null,null,null,null,null,"Santo Antônio de Posse"]
[542.0,"BA","Santa Cruz Cabrália",null,null,null,null,null,null,null,null,null,null,null,null,null,null,null,null,null,"Ouro Preto",null,null,null,null,null,null,null,null,null,null,null,null,null,null,"Santo Antônio do Aracanguá"]
[543.0,"BA","Santa Cruz da Vitória",null,null,null,null,null,null,null,null,null,null,null,null,null,null,null,null,null,"Ouro Verde de Minas",null,null,null,null,null,null,null,null,null,null,null,null,null,null,"Santo Antônio do Jardim"]
[544.0,"BA","Santa Inês",null,null,null,null,null,null,null,null,null,null,null,null,null,null,null,null,null,"Padre Carvalho",null,null,null,null,null,null,null,null,null,null,null,null,null,null,"Santo Antônio do Pinhal"]
[545.0,"BA","Santa Luzia",null,null,null,null,null,null,null,null,null,null,null,null,null,null,null,null,null,"Padre Paraíso",null,null,null,null,null,null,null,null,null,null,null,null,null,null,"Santo Expedito"]
[546.0,"BA","Santa Maria da Vitória",null,null,null,null,null,null,null,null,null,null,null,null,null,null,null,null,null,"Pai Pedro",null,null,null,null,null,null,null,null,null,null,null,null,null,null,"Santópolis do Aguapeí"]
[547.0,"BA","Santa Rita de Cássia",null,null,null,null,null,null,null,null,null,null,null,null,null,null,null,null,null,"Paineiras",null,null,null,null,null,null,null,null,null,null,null,null,null,null,"Santos"]
[548.0,"BA","Santa Teresinha",null,null,null,null,null,null,null,null,null,null,null,null,null,null,null,null,null,"Pains",null,null,null,null,null,null,null,null,null,null,null,null,null,null,"São Bento do Sapucaí"]
[549.0,"BA","Santaluz",null,null,null,null,null,null,null,null,null,null,null,null,null,null,null,null,null,"Paiva",null,null,null,null,null,null,null,null,null,null,null,null,null,null,"São Bernardo do Campo"]
[550.0,"BA","Santana",null,null,null,null,null,null,null,null,null,null,null,null,null,null,null,null,null,"Palma",null,null,null,null,null,null,null,null,null,null,null,null,null,null,"São Caetano do Sul"]
[551.0,"BA","Santanópolis",null,null,null,null,null,null,null,null,null,null,null,null,null,null,null,null,null,"Palmópolis",null,null,null,null,null,null,null,null,null,null,null,null,null,null,"São Carlos"]
[552.0,"BA","Santo Amaro",null,null,null,null,null,null,null,null,null,null,null,null,null,null,null,null,null,"Papagaios",null,null,null,null,null,null,null,null,null,null,null,null,null,null,"São Francisco"]
[553.0,"BA","Santo Antônio de Jesus",null,null,null,null,null,null,null,null,null,null,null,null,null,null,null,null,null,"Pará de Minas",null,null,null,null,null,null,null,null,null,null,null,null,null,null,"São João da Boa Vista"]
[554.0,"BA","Santo Estêvão",null,null,null,null,null,null,null,null,null,null,null,null,null,null,null,null,null,"Paracatu",null,null,null,null,null,null,null,null,null,null,null,null,null,null,"São João das Duas Pontes"]
[555.0,"BA","São Desidério",null,null,null,null,null,null,null,null,null,null,null,null,null,null,null,null,null,"Paraguaçu",null,null,null,null,null,null,null,null,null,null,null,null,null,null,"São João de Iracema"]
[556.0,"BA","São Domingos",null,null,null,null,null,null,null,null,null,null,null,null,null,null,null,null,null,"Paraisópolis",null,null,null,null,null,null,null,null,null,null,null,null,null,null,"São João do Pau dAlho"]
[557.0,"BA","São Felipe",null,null,null,null,null,null,null,null,null,null,null,null,null,null,null,null,null,"Paraopeba",null,null,null,null,null,null,null,null,null,null,null,null,null,null,"São Joaquim da Barra"]
[558.0,"BA","São Félix",null,null,null,null,null,null,null,null,null,null,null,null,null,null,null,null,null,"Passa Quatro",null,null,null,null,null,null,null,null,null,null,null,null,null,null,"São José da Bela Vista"]
[559.0,"BA","São Félix do Coribe",null,null,null,null,null,null,null,null,null,null,null,null,null,null,null,null,null,"Passa Tempo",null,null,null,null,null,null,null,null,null,null,null,null,null,null,"São José do Barreiro"]
[560.0,"BA","São Francisco do Conde",null,null,null,null,null,null,null,null,null,null,null,null,null,null,null,null,null,"Passabém",null,null,null,null,null,null,null,null,null,null,null,null,null,null,"São José do Rio Pardo"]
[561.0,"BA","São Gabriel",null,null,null,null,null,null,null,null,null,null,null,null,null,null,null,null,null,"Passa-Vinte",null,null,null,null,null,null,null,null,null,null,null,null,null,null,"São José do Rio Preto"]
[562.0,"BA","São Gonçalo dos Campos",null,null,null,null,null,null,null,null,null,null,null,null,null,null,null,null,null,"Passos",null,null,null,null,null,null,null,null,null,null,null,null,null,null,"São José dos Campos"]
[563.0,"BA","São José da Vitória",null,null,null,null,null,null,null,null,null,null,null,null,null,null,null,null,null,"Patis",null,null,null,null,null,null,null,null,null,null,null,null,null,null,"São Lourenço da Serra"]
[564.0,"BA","São José do Jacuípe",null,null,null,null,null,null,null,null,null,null,null,null,null,null,null,null,null,"Patos de Minas",null,null,null,null,null,null,null,null,null,null,null,null,null,null,"São Luís do Paraitinga"]
[565.0,"BA","São Miguel das Matas",null,null,null,null,null,null,null,null,null,null,null,null,null,null,null,null,null,"Patrocínio",null,null,null,null,null,null,null,null,null,null,null,null,null,null,"São Manuel"]
[566.0,"BA","São Sebastião do Passé",null,null,null,null,null,null,null,null,null,null,null,null,null,null,null,null,null,"Patrocínio do Muriaé",null,null,null,null,null,null,null,null,null,null,null,null,null,null,"São Miguel Arcanjo"]
[567.0,"BA","Sapeaçu",null,null,null,null,null,null,null,null,null,null,null,null,null,null,null,null,null,"Paula Cândido",null,null,null,null,null,null,null,null,null,null,null,null,null,null,"São Paulo"]
[568.0,"BA","Sátiro Dias",null,null,null,null,null,null,null,null,null,null,null,null,null,null,null,null,null,"Paulistas",null,null,null,null,null,null,null,null,null,null,null,null,null,null,"São Pedro"]
[569.0,"BA","Saubara",null,null,null,null,null,null,null,null,null,null,null,null,null,null,null,null,null,"Pavão",null,null,null,null,null,null,null,null,null,null,null,null,null,null,"São Pedro do Turvo"]
[570.0,"BA","Saúde",null,null,null,null,null,null,null,null,null,null,null,null,null,null,null,null,null,"Peçanha",null,null,null,null,null,null,null,null,null,null,null,null,null,null,"São Roque"]
[571.0,"BA","Seabra",null,null,null,null,null,null,null,null,null,null,null,null,null,null,null,null,null,"Pedra Azul",null,null,null,null,null,null,null,null,null,null,null,null,null,null,"São Sebastião"]
[572.0,"BA","Sebastião Laranjeiras",null,null,null,null,null,null,null,null,null,null,null,null,null,null,null,null,null,"Pedra Bonita",null,null,null,null,null,null,null,null,null,null,null,null,null,null,"São Sebastião da Grama"]
[573.0,"BA","Senhor do Bonfim",null,null,null,null,null,null,null,null,null,null,null,null,null,null,null,null,null,"Pedra do Anta",null,null,null,null,null,null,null,null,null,null,null,null,null,null,"São Simão"]
[574.0,"BA","Sento Sé",null,null,null,null,null,null,null,null,null,null,null,null,null,null,null,null,null,"Pedra do Indaiá",null,null,null,null,null,null,null,null,null,null,null,null,null,null,"São Vicente"]
[575.0,"BA","Serra do Ramalho",null,null,null,null,null,null,null,null,null,null,null,null,null,null,null,null,null,"Pedra Dourada",null,null,null,null,null,null,null,null,null,null,null,null,null,null,"Sarapuí"]
[576.0,"BA","Serra Dourada",null,null,null,null,null,null,null,null,null,null,null,null,null,null,null,null,null,"Pedralva",null,null,null,null,null,null,null,null,null,null,null,null,null,null,"Sarutaiá"]
[577.0,"BA","Serra Preta",null,null,null,null,null,null,null,null,null,null,null,null,null,null,null,null,null,"Pedras de Maria da Cruz",null,null,null,null,null,null,null,null,null,null,null,null,null,null,"Sebastianópolis do Sul"]
[578.0,"BA","Serrinha",null,null,null,null,null,null,null,null,null,null,null,null,null,null,null,null,null,"Pedrinópolis",null,null,null,null,null,null,null,null,null,null,null,null,null,null,"Serra Azul"]
[579.0,"BA","Serrolândia",null,null,null,null,null,null,null,null,null,null,null,null,null,null,null,null,null,"Pedro Leopoldo",null,null,null,null,null,null,null,null,null,null,null,null,null,null,"Serra Negra"]
[580.0,"BA","Simões Filho",null,null,null,null,null,null,null,null,null,null,null,null,null,null,null,null,null,"Pedro Teixeira",null,null,null,null,null,null,null,null,null,null,null,null,null,null,"Serrana"]
[581.0,"BA","Sítio do Mato",null,null,null,null,null,null,null,null,null,null,null,null,null,null,null,null,null,"Pequeri",null,null,null,null,null,null,null,null,null,null,null,null,null,null,"Sertãozinho"]
[582.0,"BA","Sítio do Quinto",null,null,null,null,null,null,null,null,null,null,null,null,null,null,null,null,null,"Pequi",null,null,null,null,null,null,null,null,null,null,null,null,null,null,"Sete Barras"]
[583.0,"BA","Sobradinho",null,null,null,null,null,null,null,null,null,null,null,null,null,null,null,null,null,"Perdigão",null,null,null,null,null,null,null,null,null,null,null,null,null,null,"Severínia"]
[584.0,"BA","Souto Soares",null,null,null,null,null,null,null,null,null,null,null,null,null,null,null,null,null,"Perdizes",null,null,null,null,null,null,null,null,null,null,null,null,null,null,"Silveiras"]
[585.0,"BA","Tabocas do Brejo Velho",null,null,null,null,null,null,null,null,null,null,null,null,null,null,null,null,null,"Perdões",null,null,null,null,null,null,null,null,null,null,null,null,null,null,"Socorro"]
[586.0,"BA","Tanhaçu",null,null,null,null,null,null,null,null,null,null,null,null,null,null,null,null,null,"Periquito",null,null,null,null,null,null,null,null,null,null,null,null,null,null,"Sorocaba"]
[587.0,"BA","Tanque Novo",null,null,null,null,null,null,null,null,null,null,null,null,null,null,null,null,null,"Pescador",null,null,null,null,null,null,null,null,null,null,null,null,null,null,"Sud Mennucci"]
[588.0,"BA","Tanquinho",null,null,null,null,null,null,null,null,null,null,null,null,null,null,null,null,null,"Piau",null,null,null,null,null,null,null,null,null,null,null,null,null,null,"Sumaré"]
[589.0,"BA","Taperoá",null,null,null,null,null,null,null,null,null,null,null,null,null,null,null,null,null,"Piedade de Caratinga",null,null,null,null,null,null,null,null,null,null,null,null,null,null,"Suzanápolis"]
[590.0,"BA","Tapiramutá",null,null,null,null,null,null,null,null,null,null,null,null,null,null,null,null,null,"Piedade de Ponte Nova",null,null,null,null,null,null,null,null,null,null,null,null,null,null,"Suzano"]
[591.0,"BA","Teixeira de Freitas",null,null,null,null,null,null,null,null,null,null,null,null,null,null,null,null,null,"Piedade do Rio Grande",null,null,null,null,null,null,null,null,null,null,null,null,null,null,"Tabapuã"]
[592.0,"BA","Teodoro Sampaio",null,null,null,null,null,null,null,null,null,null,null,null,null,null,null,null,null,"Piedade dos Gerais",null,null,null,null,null,null,null,null,null,null,null,null,null,null,"Tabatinga"]
[593.0,"BA","Teofilândia",null,null,null,null,null,null,null,null,null,null,null,null,null,null,null,null,null,"Pimenta",null,null,null,null,null,null,null,null,null,null,null,null,null,null,"Taboão da Serra"]
[594.0,"BA","Teolândia",null,null,null,null,null,null,null,null,null,null,null,null,null,null,null,null,null,"Pingo-dÁgua",null,null,null,null,null,null,null,null,null,null,null,null,null,null,"Taciba"]
[595.0,"BA","Terra Nova",null,null,null,null,null,null,null,null,null,null,null,null,null,null,null,null,null,"Pintópolis",null,null,null,null,null,null,null,null,null,null,null,null,null,null,"Taguaí"]
[596.0,"BA","Tremedal",null,null,null,null,null,null,null,null,null,null,null,null,null,null,null,null,null,"Piracema",null,null,null,null,null,null,null,null,null,null,null,null,null,null,"Taiaçu"]
[597.0,"BA","Tucano",null,null,null,null,null,null,null,null,null,null,null,null,null,null,null,null,null,"Pirajuba",null,null,null,null,null,null,null,null,null,null,null,null,null,null,"Taiúva"]
[598.0,"BA","Uauá",null,null,null,null,null,null,null,null,null,null,null,null,null,null,null,null,null,"Piranga",null,null,null,null,null,null,null,null,null,null,null,null,null,null,"Tambaú"]
[599.0,"BA","Ubaíra",null,null,null,null,null,null,null,null,null,null,null,null,null,null,null,null,null,"Piranguçu",null,null,null,null,null,null,null,null,null,null,null,null,null,null,"Tanabi"]
[600.0,"BA","Ubaitaba",null,null,null,null,null,null,null,null,null,null,null,null,null,null,null,null,null,"Piranguinho",null,null,null,null,null,null,null,null,null,null,null,null,null,null,"Tapiraí"]
[601.0,"BA","Ubatã",null,null,null,null,null,null,null,null,null,null,null,null,null,null,null,null,null,"Pirapetinga",null,null,null,null,null,null,null,null,null,null,null,null,null,null,"Tapiratiba"]
[602.0,"BA","Uibaí",null,null,null,null,null,null,null,null,null,null,null,null,null,null,null,null,null,"Pirapora",null,null,null,null,null,null,null,null,null,null,null,null,null,null,"Taquaral"]
[603.0,"BA","Umburanas",null,null,null,null,null,null,null,null,null,null,null,null,null,null,null,null,null,"Piraúba",null,null,null,null,null,null,null,null,null,null,null,null,null,null,"Taquaritinga"]
[604.0,"BA","Una",null,null,null,null,null,null,null,null,null,null,null,null,null,null,null,null,null,"Pitangui",null,null,null,null,null,null,null,null,null,null,null,null,null,null,"Taquarituba"]
[605.0,"BA","Urandi",null,null,null,null,null,null,null,null,null,null,null,null,null,null,null,null,null,"Piumhi",null,null,null,null,null,null,null,null,null,null,null,null,null,null,"Taquarivaí"]
[606.0,"BA","Uruçuca",null,null,null,null,null,null,null,null,null,null,null,null,null,null,null,null,null,"Planura",null,null,null,null,null,null,null,null,null,null,null,null,null,null,"Tarabai"]
[607.0,"BA","Utinga",null,null,null,null,null,null,null,null,null,null,null,null,null,null,null,null,null,"Poço Fundo",null,null,null,null,null,null,null,null,null,null,null,null,null,null,"Tarumã"]
[608.0,"BA","Valença",null,null,null,null,null,null,null,null,null,null,null,null,null,null,null,null,null,"Poços de Caldas",null,null,null,null,null,null,null,null,null,null,null,null,null,null,"Tatuí"]
[609.0,"BA","Valente",null,null,null,null,null,null,null,null,null,null,null,null,null,null,null,null,null,"Pocrane",null,null,null,null,null,null,null,null,null,null,null,null,null,null,"Taubaté"]
[610.0,"BA","Várzea da Roça",null,null,null,null,null,null,null,null,null,null,null,null,null,null,null,null,null,"Pompéu",null,null,null,null,null,null,null,null,null,null,null,null,null,null,"Tejupá"]
[611.0,"BA","Várzea do Poço",null,null,null,null,null,null,null,null,null,null,null,null,null,null,null,null,null,"Ponte Nova",null,null,null,null,null,null,null,null,null,null,null,null,null,null,"Teodoro Sampaio"]
[612.0,"BA","Várzea Nova",null,null,null,null,null,null,null,null,null,null,null,null,null,null,null,null,null,"Ponto Chique",null,null,null,null,null,null,null,null,null,null,null,null,null,null,"Terra Roxa"]
[613.0,"BA","Varzedo",null,null,null,null,null,null,null,null,null,null,null,null,null,null,null,null,null,"Ponto dos Volantes",null,null,null,null,null,null,null,null,null,null,null,null,null,null,"Tietê"]
[614.0,"BA","Vera Cruz",null,null,null,null,null,null,null,null,null,null,null,null,null,null,null,null,null,"Porteirinha",null,null,null,null,null,null,null,null,null,null,null,null,null,null,"Timburi"]
[615.0,"BA","Vereda",null,null,null,null,null,null,null,null,null,null,null,null,null,null,null,null,null,"Porto Firme",null,null,null,null,null,null,null,null,null,null,null,null,null,null,"Torre de Pedra"]
[616.0,"BA","Vitória da Conquista",null,null,null,null,null,null,null,null,null,null,null,null,null,null,null,null,null,"Poté",null,null,null,null,null,null,null,null,null,null,null,null,null,null,"Torrinha"]
[617.0,"BA","Wagner",null,null,null,null,null,null,null,null,null,null,null,null,null,null,null,null,null,"Pouso Alegre",null,null,null,null,null,null,null,null,null,null,null,null,null,null,"Trabiju"]
[618.0,"BA","Wanderley",null,null,null,null,null,null,null,null,null,null,null,null,null,null,null,null,null,"Pouso Alto",null,null,null,null,null,null,null,null,null,null,null,null,null,null,"Tremembé"]
[619.0,"BA","Wenceslau Guimarães",null,null,null,null,null,null,null,null,null,null,null,null,null,null,null,null,null,"Prados",null,null,null,null,null,null,null,null,null,null,null,null,null,null,"Três Fronteiras"]
[620.0,"BA","Xique-Xique",null,null,null,null,null,null,null,null,null,null,null,null,null,null,null,null,null,"Prata",null,null,null,null,null,null,null,null,null,null,null,null,null,null,"Tuiuti"]
[621.0,"CE","Abaiara",null,null,null,null,null,null,null,null,null,null,null,null,null,null,null,null,null,"Pratápolis",null,null,null,null,null,null,null,null,null,null,null,null,null,null,"Tupã"]
[622.0,"CE","Acarape",null,null,null,null,null,null,null,null,null,null,null,null,null,null,null,null,null,"Pratinha",null,null,null,null,null,null,null,null,null,null,null,null,null,null,"Tupi Paulista"]
[623.0,"CE","Acaraú",null,null,null,null,null,null,null,null,null,null,null,null,null,null,null,null,null,"Presidente Bernardes",null,null,null,null,null,null,null,null,null,null,null,null,null,null,"Turiúba"]
[624.0,"CE","Acopiara",null,null,null,null,null,null,null,null,null,null,null,null,null,null,null,null,null,"Presidente Juscelino",null,null,null,null,null,null,null,null,null,null,null,null,null,null,"Turmalina"]
[625.0,"CE","Aiuaba",null,null,null,null,null,null,null,null,null,null,null,null,null,null,null,null,null,"Presidente Kubitschek",null,null,null,null,null,null,null,null,null,null,null,null,null,null,"Ubarana"]
[626.0,"CE","Alcântaras",null,null,null,null,null,null,null,null,null,null,null,null,null,null,null,null,null,"Presidente Olegário",null,null,null,null,null,null,null,null,null,null,null,null,null,null,"Ubatuba"]
[627.0,"CE","Altaneira",null,null,null,null,null,null,null,null,null,null,null,null,null,null,null,null,null,"Prudente de Morais",null,null,null,null,null,null,null,null,null,null,null,null,null,null,"Ubirajara"]
[628.0,"CE","Alto Santo",null,null,null,null,null,null,null,null,null,null,null,null,null,null,null,null,null,"Quartel Geral",null,null,null,null,null,null,null,null,null,null,null,null,null,null,"Uchoa"]
[629.0,"CE","Amontada",null,null,null,null,null,null,null,null,null,null,null,null,null,null,null,null,null,"Queluzito",null,null,null,null,null,null,null,null,null,null,null,null,null,null,"União Paulista"]
[630.0,"CE","Antonina do Norte",null,null,null,null,null,null,null,null,null,null,null,null,null,null,null,null,null,"Raposos",null,null,null,null,null,null,null,null,null,null,null,null,null,null,"Urânia"]
[631.0,"CE","Apuiarés",null,null,null,null,null,null,null,null,null,null,null,null,null,null,null,null,null,"Raul Soares",null,null,null,null,null,null,null,null,null,null,null,null,null,null,"Uru"]
[632.0,"CE","Aquiraz",null,null,null,null,null,null,null,null,null,null,null,null,null,null,null,null,null,"Recreio",null,null,null,null,null,null,null,null,null,null,null,null,null,null,"Urupês"]
[633.0,"CE","Aracati",null,null,null,null,null,null,null,null,null,null,null,null,null,null,null,null,null,"Reduto",null,null,null,null,null,null,null,null,null,null,null,null,null,null,"Valentim Gentil"]
[634.0,"CE","Aracoiaba",null,null,null,null,null,null,null,null,null,null,null,null,null,null,null,null,null,"Resende Costa",null,null,null,null,null,null,null,null,null,null,null,null,null,null,"Valinhos"]
[635.0,"CE","Ararendá",null,null,null,null,null,null,null,null,null,null,null,null,null,null,null,null,null,"Resplendor",null,null,null,null,null,null,null,null,null,null,null,null,null,null,"Valparaíso"]
[636.0,"CE","Araripe",null,null,null,null,null,null,null,null,null,null,null,null,null,null,null,null,null,"Ressaquinha",null,null,null,null,null,null,null,null,null,null,null,null,null,null,"Vargem"]
[637.0,"CE","Aratuba",null,null,null,null,null,null,null,null,null,null,null,null,null,null,null,null,null,"Riachinho",null,null,null,null,null,null,null,null,null,null,null,null,null,null,"Vargem Grande do Sul"]
[638.0,"CE","Arneiroz",null,null,null,null,null,null,null,null,null,null,null,null,null,null,null,null,null,"Riacho dos Machados",null,null,null,null,null,null,null,null,null,null,null,null,null,null,"Vargem Grande Paulista"]
[639.0,"CE","Assaré",null,null,null,null,null,null,null,null,null,null,null,null,null,null,null,null,null,"Ribeirão das Neves",null,null,null,null,null,null,null,null,null,null,null,null,null,null,"Várzea Paulista"]
[640.0,"CE","Aurora",null,null,null,null,null,null,null,null,null,null,null,null,null,null,null,null,null,"Ribeirão Vermelho",null,null,null,null,null,null,null,null,null,null,null,null,null,null,"Vera Cruz"]
[641.0,"CE","Baixio",null,null,null,null,null,null,null,null,null,null,null,null,null,null,null,null,null,"Rio Acima",null,null,null,null,null,null,null,null,null,null,null,null,null,null,"Vinhedo"]
[642.0,"CE","Banabuiú",null,null,null,null,null,null,null,null,null,null,null,null,null,null,null,null,null,"Rio Casca",null,null,null,null,null,null,null,null,null,null,null,null,null,null,"Viradouro"]
[643.0,"CE","Barbalha",null,null,null,null,null,null,null,null,null,null,null,null,null,null,null,null,null,"Rio do Prado",null,null,null,null,null,null,null,null,null,null,null,null,null,null,"Vista Alegre do Alto"]
[644.0,"CE","Barreira",null,null,null,null,null,null,null,null,null,null,null,null,null,null,null,null,null,"Rio Doce",null,null,null,null,null,null,null,null,null,null,null,null,null,null,"Vitória Brasil"]
[645.0,"CE","Barro",null,null,null,null,null,null,null,null,null,null,null,null,null,null,null,null,null,"Rio Espera",null,null,null,null,null,null,null,null,null,null,null,null,null,null,"Votorantim"]
[646.0,"CE","Barroquinha",null,null,null,null,null,null,null,null,null,null,null,null,null,null,null,null,null,"Rio Manso",null,null,null,null,null,null,null,null,null,null,null,null,null,null,"Votuporanga"]
[647.0,"CE","Baturité",null,null,null,null,null,null,null,null,null,null,null,null,null,null,null,null,null,"Rio Novo",null,null,null,null,null,null,null,null,null,null,null,null,null,null,"Zacarias"]
[648.0,"CE","Beberibe",null,null,null,null,null,null,null,null,null,null,null,null,null,null,null,null,null,"Rio Paranaíba"]
[649.0,"CE","Bela Cruz",null,null,null,null,null,null,null,null,null,null,null,null,null,null,null,null,null,"Rio Pardo de Minas"]
[650.0,"CE","Boa Viagem",null,null,null,null,null,null,null,null,null,null,null,null,null,null,null,null,null,"Rio Piracicaba"]
[651.0,"CE","Brejo Santo",null,null,null,null,null,null,null,null,null,null,null,null,null,null,null,null,null,"Rio Pomba"]
[652.0,"CE","Camocim",null,null,null,null,null,null,null,null,null,null,null,null,null,null,null,null,null,"Rio Preto"]
[653.0,"CE","Campos Sales",null,null,null,null,null,null,null,null,null,null,null,null,null,null,null,null,null,"Rio Vermelho"]
[654.0,"CE","Canindé",null,null,null,null,null,null,null,null,null,null,null,null,null,null,null,null,null,"Ritápolis"]
[655.0,"CE","Capistrano",null,null,null,null,null,null,null,null,null,null,null,null,null,null,null,null,null,"Rochedo de Minas"]
[656.0,"CE","Caridade",null,null,null,null,null,null,null,null,null,null,null,null,null,null,null,null,null,"Rodeiro"]
[657.0,"CE","Cariré",null,null,null,null,null,null,null,null,null,null,null,null,null,null,null,null,null,"Romaria"]
[658.0,"CE","Caririaçu",null,null,null,null,null,null,null,null,null,null,null,null,null,null,null,null,null,"Rosário da Limeira"]
[659.0,"CE","Cariús",null,null,null,null,null,null,null,null,null,null,null,null,null,null,null,null,null,"Rubelita"]
[660.0,"CE","Carnaubal",null,null,null,null,null,null,null,null,null,null,null,null,null,null,null,null,null,"Rubim"]
[661.0,"CE","Cascavel",null,null,null,null,null,null,null,null,null,null,null,null,null,null,null,null,null,"Sabará"]
[662.0,"CE","Catarina",null,null,null,null,null,null,null,null,null,null,null,null,null,null,null,null,null,"Sabinópolis"]
[663.0,"CE","Catunda",null,null,null,null,null,null,null,null,null,null,null,null,null,null,null,null,null,"Sacramento"]
[664.0,"CE","Caucaia",null,null,null,null,null,null,null,null,null,null,null,null,null,null,null,null,null,"Salinas"]
[665.0,"CE","Cedro",null,null,null,null,null,null,null,null,null,null,null,null,null,null,null,null,null,"Salto da Divisa"]
[666.0,"CE","Chaval",null,null,null,null,null,null,null,null,null,null,null,null,null,null,null,null,null,"Santa Bárbara"]
[667.0,"CE","Choró",null,null,null,null,null,null,null,null,null,null,null,null,null,null,null,null,null,"Santa Bárbara do Leste"]
[668.0,"CE","Chorozinho",null,null,null,null,null,null,null,null,null,null,null,null,null,null,null,null,null,"Santa Bárbara do Monte Verde"]
[669.0,"CE","Coreaú",null,null,null,null,null,null,null,null,null,null,null,null,null,null,null,null,null,"Santa Bárbara do Tugúrio"]
[670.0,"CE","Crateús",null,null,null,null,null,null,null,null,null,null,null,null,null,null,null,null,null,"Santa Cruz de Minas"]
[671.0,"CE","Crato",null,null,null,null,null,null,null,null,null,null,null,null,null,null,null,null,null,"Santa Cruz de Salinas"]
[672.0,"CE","Croatá",null,null,null,null,null,null,null,null,null,null,null,null,null,null,null,null,null,"Santa Cruz do Escalvado"]
[673.0,"CE","Cruz",null,null,null,null,null,null,null,null,null,null,null,null,null,null,null,null,null,"Santa Efigênia de Minas"]
[674.0,"CE","Deputado Irapuan Pinheiro",null,null,null,null,null,null,null,null,null,null,null,null,null,null,null,null,null,"Santa Fé de Minas"]
[675.0,"CE","Ererê",null,null,null,null,null,null,null,null,null,null,null,null,null,null,null,null,null,"Santa Helena de Minas"]
[676.0,"CE","Eusébio",null,null,null,null,null,null,null,null,null,null,null,null,null,null,null,null,null,"Santa Juliana"]
[677.0,"CE","Farias Brito",null,null,null,null,null,null,null,null,null,null,null,null,null,null,null,null,null,"Santa Luzia"]
[678.0,"CE","Forquilha",null,null,null,null,null,null,null,null,null,null,null,null,null,null,null,null,null,"Santa Margarida"]
[679.0,"CE","Fortaleza",null,null,null,null,null,null,null,null,null,null,null,null,null,null,null,null,null,"Santa Maria de Itabira"]
[680.0,"CE","Fortim",null,null,null,null,null,null,null,null,null,null,null,null,null,null,null,null,null,"Santa Maria do Salto"]
[681.0,"CE","Frecheirinha",null,null,null,null,null,null,null,null,null,null,null,null,null,null,null,null,null,"Santa Maria do Suaçuí"]
[682.0,"CE","General Sampaio",null,null,null,null,null,null,null,null,null,null,null,null,null,null,null,null,null,"Santa Rita de Caldas"]
[683.0,"CE","Graça",null,null,null,null,null,null,null,null,null,null,null,null,null,null,null,null,null,"Santa Rita de Ibitipoca"]
[684.0,"CE","Granja",null,null,null,null,null,null,null,null,null,null,null,null,null,null,null,null,null,"Santa Rita de Jacutinga"]
[685.0,"CE","Granjeiro",null,null,null,null,null,null,null,null,null,null,null,null,null,null,null,null,null,"Santa Rita de Minas"]
[686.0,"CE","Groaíras",null,null,null,null,null,null,null,null,null,null,null,null,null,null,null,null,null,"Santa Rita do Itueto"]
[687.0,"CE","Guaiúba",null,null,null,null,null,null,null,null,null,null,null,null,null,null,null,null,null,"Santa Rita do Sapucaí"]
[688.0,"CE","Guaraciaba do Norte",null,null,null,null,null,null,null,null,null,null,null,null,null,null,null,null,null,"Santa Rosa da Serra"]
[689.0,"CE","Guaramiranga",null,null,null,null,null,null,null,null,null,null,null,null,null,null,null,null,null,"Santa Vitória"]
[690.0,"CE","Hidrolândia",null,null,null,null,null,null,null,null,null,null,null,null,null,null,null,null,null,"Santana da Vargem"]
[691.0,"CE","Horizonte",null,null,null,null,null,null,null,null,null,null,null,null,null,null,null,null,null,"Santana de Cataguases"]
[692.0,"CE","Ibaretama",null,null,null,null,null,null,null,null,null,null,null,null,null,null,null,null,null,"Santana de Pirapama"]
[693.0,"CE","Ibiapina",null,null,null,null,null,null,null,null,null,null,null,null,null,null,null,null,null,"Santana do Deserto"]
[694.0,"CE","Ibicuitinga",null,null,null,null,null,null,null,null,null,null,null,null,null,null,null,null,null,"Santana do Garambéu"]
[695.0,"CE","Icapuí",null,null,null,null,null,null,null,null,null,null,null,null,null,null,null,null,null,"Santana do Jacaré"]
[696.0,"CE","Icó",null,null,null,null,null,null,null,null,null,null,null,null,null,null,null,null,null,"Santana do Manhuaçu"]
[697.0,"CE","Iguatu",null,null,null,null,null,null,null,null,null,null,null,null,null,null,null,null,null,"Santana do Paraíso"]
[698.0,"CE","Independência",null,null,null,null,null,null,null,null,null,null,null,null,null,null,null,null,null,"Santana do Riacho"]
[699.0,"CE","Ipaporanga",null,null,null,null,null,null,null,null,null,null,null,null,null,null,null,null,null,"Santana dos Montes"]
[700.0,"CE","Ipaumirim",null,null,null,null,null,null,null,null,null,null,null,null,null,null,null,null,null,"Santo Antônio do Amparo"]
[701.0,"CE","Ipu",null,null,null,null,null,null,null,null,null,null,null,null,null,null,null,null,null,"Santo Antônio do Aventureiro"]
[702.0,"CE","Ipueiras",null,null,null,null,null,null,null,null,null,null,null,null,null,null,null,null,null,"Santo Antônio do Grama"]
[703.0,"CE","Iracema",null,null,null,null,null,null,null,null,null,null,null,null,null,null,null,null,null,"Santo Antônio do Itambé"]
[704.0,"CE","Irauçuba",null,null,null,null,null,null,null,null,null,null,null,null,null,null,null,null,null,"Santo Antônio do Jacinto"]
[705.0,"CE","Itaiçaba",null,null,null,null,null,null,null,null,null,null,null,null,null,null,null,null,null,"Santo Antônio do Monte"]
[706.0,"CE","Itaitinga",null,null,null,null,null,null,null,null,null,null,null,null,null,null,null,null,null,"Santo Antônio do Retiro"]
[707.0,"CE","Itapajé**",null,null,null,null,null,null,null,null,null,null,null,null,null,null,null,null,null,"Santo Antônio do Rio Abaixo"]
[708.0,"CE","Itapipoca",null,null,null,null,null,null,null,null,null,null,null,null,null,null,null,null,null,"Santo Hipólito"]
[709.0,"CE","Itapiúna",null,null,null,null,null,null,null,null,null,null,null,null,null,null,null,null,null,"Santos Dumont"]
[710.0,"CE","Itarema",null,null,null,null,null,null,null,null,null,null,null,null,null,null,null,null,null,"São Bento Abade"]
[711.0,"CE","Itatira",null,null,null,null,null,null,null,null,null,null,null,null,null,null,null,null,null,"São Brás do Suaçuí"]
[712.0,"CE","Jaguaretama",null,null,null,null,null,null,null,null,null,null,null,null,null,null,null,null,null,"São Domingos das Dores"]
[713.0,"CE","Jaguaribara",null,null,null,null,null,null,null,null,null,null,null,null,null,null,null,null,null,"São Domingos do Prata"]
[714.0,"CE","Jaguaribe",null,null,null,null,null,null,null,null,null,null,null,null,null,null,null,null,null,"São Félix de Minas"]
[715.0,"CE","Jaguaruana",null,null,null,null,null,null,null,null,null,null,null,null,null,null,null,null,null,"São Francisco"]
[716.0,"CE","Jardim",null,null,null,null,null,null,null,null,null,null,null,null,null,null,null,null,null,"São Francisco de Paula"]
[717.0,"CE","Jati",null,null,null,null,null,null,null,null,null,null,null,null,null,null,null,null,null,"São Francisco de Sales"]
[718.0,"CE","Jijoca de Jericoacoara",null,null,null,null,null,null,null,null,null,null,null,null,null,null,null,null,null,"São Francisco do Glória"]
[719.0,"CE","Juazeiro do Norte",null,null,null,null,null,null,null,null,null,null,null,null,null,null,null,null,null,"São Geraldo"]
[720.0,"CE","Jucás",null,null,null,null,null,null,null,null,null,null,null,null,null,null,null,null,null,"São Geraldo da Piedade"]
[721.0,"CE","Lavras da Mangabeira",null,null,null,null,null,null,null,null,null,null,null,null,null,null,null,null,null,"São Geraldo do Baixio"]
[722.0,"CE","Limoeiro do Norte",null,null,null,null,null,null,null,null,null,null,null,null,null,null,null,null,null,"São Gonçalo do Abaeté"]
[723.0,"CE","Madalena",null,null,null,null,null,null,null,null,null,null,null,null,null,null,null,null,null,"São Gonçalo do Pará"]
[724.0,"CE","Maracanaú",null,null,null,null,null,null,null,null,null,null,null,null,null,null,null,null,null,"São Gonçalo do Rio Abaixo"]
[725.0,"CE","Maranguape",null,null,null,null,null,null,null,null,null,null,null,null,null,null,null,null,null,"São Gonçalo do Rio Preto"]
[726.0,"CE","Marco",null,null,null,null,null,null,null,null,null,null,null,null,null,null,null,null,null,"São Gonçalo do Sapucaí"]
[727.0,"CE","Martinópole",null,null,null,null,null,null,null,null,null,null,null,null,null,null,null,null,null,"São Gotardo"]
[728.0,"CE","Massapê",null,null,null,null,null,null,null,null,null,null,null,null,null,null,null,null,null,"São João Batista do Glória"]
[729.0,"CE","Mauriti",null,null,null,null,null,null,null,null,null,null,null,null,null,null,null,null,null,"São João da Lagoa"]
[730.0,"CE","Meruoca",null,null,null,null,null,null,null,null,null,null,null,null,null,null,null,null,null,"São João da Mata"]
[731.0,"CE","Milagres",null,null,null,null,null,null,null,null,null,null,null,null,null,null,null,null,null,"São João da Ponte"]
[732.0,"CE","Milhã",null,null,null,null,null,null,null,null,null,null,null,null,null,null,null,null,null,"São João das Missões"]
[733.0,"CE","Miraíma",null,null,null,null,null,null,null,null,null,null,null,null,null,null,null,null,null,"São João del Rei"]
[734.0,"CE","Missão Velha",null,null,null,null,null,null,null,null,null,null,null,null,null,null,null,null,null,"São João do Manhuaçu"]
[735.0,"CE","Mombaça",null,null,null,null,null,null,null,null,null,null,null,null,null,null,null,null,null,"São João do Manteninha"]
[736.0,"CE","Monsenhor Tabosa",null,null,null,null,null,null,null,null,null,null,null,null,null,null,null,null,null,"São João do Oriente"]
[737.0,"CE","Morada Nova",null,null,null,null,null,null,null,null,null,null,null,null,null,null,null,null,null,"São João do Pacuí"]
[738.0,"CE","Moraújo",null,null,null,null,null,null,null,null,null,null,null,null,null,null,null,null,null,"São João do Paraíso"]
[739.0,"CE","Morrinhos",null,null,null,null,null,null,null,null,null,null,null,null,null,null,null,null,null,"São João Evangelista"]
[740.0,"CE","Mucambo",null,null,null,null,null,null,null,null,null,null,null,null,null,null,null,null,null,"São João Nepomuceno"]
[741.0,"CE","Mulungu",null,null,null,null,null,null,null,null,null,null,null,null,null,null,null,null,null,"São Joaquim de Bicas"]
[742.0,"CE","Nova Olinda",null,null,null,null,null,null,null,null,null,null,null,null,null,null,null,null,null,"São José da Barra"]
[743.0,"CE","Nova Russas",null,null,null,null,null,null,null,null,null,null,null,null,null,null,null,null,null,"São José da Lapa"]
[744.0,"CE","Novo Oriente",null,null,null,null,null,null,null,null,null,null,null,null,null,null,null,null,null,"São José da Safira"]
[745.0,"CE","Ocara",null,null,null,null,null,null,null,null,null,null,null,null,null,null,null,null,null,"São José da Varginha"]
[746.0,"CE","Orós",null,null,null,null,null,null,null,null,null,null,null,null,null,null,null,null,null,"São José do Alegre"]
[747.0,"CE","Pacajus",null,null,null,null,null,null,null,null,null,null,null,null,null,null,null,null,null,"São José do Divino"]
[748.0,"CE","Pacatuba",null,null,null,null,null,null,null,null,null,null,null,null,null,null,null,null,null,"São José do Goiabal"]
[749.0,"CE","Pacoti",null,null,null,null,null,null,null,null,null,null,null,null,null,null,null,null,null,"São José do Jacuri"]
[750.0,"CE","Pacujá",null,null,null,null,null,null,null,null,null,null,null,null,null,null,null,null,null,"São José do Mantimento"]
[751.0,"CE","Palhano",null,null,null,null,null,null,null,null,null,null,null,null,null,null,null,null,null,"São Lourenço"]
[752.0,"CE","Palmácia",null,null,null,null,null,null,null,null,null,null,null,null,null,null,null,null,null,"São Miguel do Anta"]
[753.0,"CE","Paracuru",null,null,null,null,null,null,null,null,null,null,null,null,null,null,null,null,null,"São Pedro da União"]
[754.0,"CE","Paraipaba",null,null,null,null,null,null,null,null,null,null,null,null,null,null,null,null,null,"São Pedro do Suaçuí"]
[755.0,"CE","Parambu",null,null,null,null,null,null,null,null,null,null,null,null,null,null,null,null,null,"São Pedro dos Ferros"]
[756.0,"CE","Paramoti",null,null,null,null,null,null,null,null,null,null,null,null,null,null,null,null,null,"São Romão"]
[757.0,"CE","Pedra Branca",null,null,null,null,null,null,null,null,null,null,null,null,null,null,null,null,null,"São Roque de Minas"]
[758.0,"CE","Penaforte",null,null,null,null,null,null,null,null,null,null,null,null,null,null,null,null,null,"São Sebastião da Bela Vista"]
[759.0,"CE","Pentecoste",null,null,null,null,null,null,null,null,null,null,null,null,null,null,null,null,null,"São Sebastião da Vargem Alegre"]
[760.0,"CE","Pereiro",null,null,null,null,null,null,null,null,null,null,null,null,null,null,null,null,null,"São Sebastião do Anta"]
[761.0,"CE","Pindoretama",null,null,null,null,null,null,null,null,null,null,null,null,null,null,null,null,null,"São Sebastião do Maranhão"]
[762.0,"CE","Piquet Carneiro",null,null,null,null,null,null,null,null,null,null,null,null,null,null,null,null,null,"São Sebastião do Oeste"]
[763.0,"CE","Pires Ferreira",null,null,null,null,null,null,null,null,null,null,null,null,null,null,null,null,null,"São Sebastião do Paraíso"]
[764.0,"CE","Poranga",null,null,null,null,null,null,null,null,null,null,null,null,null,null,null,null,null,"São Sebastião do Rio Preto"]
[765.0,"CE","Porteiras",null,null,null,null,null,null,null,null,null,null,null,null,null,null,null,null,null,"São Sebastião do Rio Verde"]
[766.0,"CE","Potengi",null,null,null,null,null,null,null,null,null,null,null,null,null,null,null,null,null,"São Thomé das Letras"]
[767.0,"CE","Potiretama",null,null,null,null,null,null,null,null,null,null,null,null,null,null,null,null,null,"São Tiago"]
[768.0,"CE","Quiterianópolis",null,null,null,null,null,null,null,null,null,null,null,null,null,null,null,null,null,"São Tomás de Aquino"]
[769.0,"CE","Quixadá",null,null,null,null,null,null,null,null,null,null,null,null,null,null,null,null,null,"São Vicente de Minas"]
[770.0,"CE","Quixelô",null,null,null,null,null,null,null,null,null,null,null,null,null,null,null,null,null,"Sapucaí-Mirim"]
[771.0,"CE","Quixeramobim",null,null,null,null,null,null,null,null,null,null,null,null,null,null,null,null,null,"Sardoá"]
[772.0,"CE","Quixeré",null,null,null,null,null,null,null,null,null,null,null,null,null,null,null,null,null,"Sarzedo"]
[773.0,"CE","Redenção",null,null,null,null,null,null,null,null,null,null,null,null,null,null,null,null,null,"Sem-Peixe"]
[774.0,"CE","Reriutaba",null,null,null,null,null,null,null,null,null,null,null,null,null,null,null,null,null,"Senador Amaral"]
[775.0,"CE","Russas",null,null,null,null,null,null,null,null,null,null,null,null,null,null,null,null,null,"Senador Cortes"]
[776.0,"CE","Saboeiro",null,null,null,null,null,null,null,null,null,null,null,null,null,null,null,null,null,"Senador Firmino"]
[777.0,"CE","Salitre",null,null,null,null,null,null,null,null,null,null,null,null,null,null,null,null,null,"Senador José Bento"]
[778.0,"CE","Santa Quitéria",null,null,null,null,null,null,null,null,null,null,null,null,null,null,null,null,null,"Senador Modestino Gonçalves"]
[779.0,"CE","Santana do Acaraú",null,null,null,null,null,null,null,null,null,null,null,null,null,null,null,null,null,"Senhora de Oliveira"]
[780.0,"CE","Santana do Cariri",null,null,null,null,null,null,null,null,null,null,null,null,null,null,null,null,null,"Senhora do Porto"]
[781.0,"CE","São Benedito",null,null,null,null,null,null,null,null,null,null,null,null,null,null,null,null,null,"Senhora dos Remédios"]
[782.0,"CE","São Gonçalo do Amarante",null,null,null,null,null,null,null,null,null,null,null,null,null,null,null,null,null,"Sericita"]
[783.0,"CE","São João do Jaguaribe",null,null,null,null,null,null,null,null,null,null,null,null,null,null,null,null,null,"Seritinga"]
[784.0,"CE","São Luís do Curu",null,null,null,null,null,null,null,null,null,null,null,null,null,null,null,null,null,"Serra Azul de Minas"]
[785.0,"CE","Senador Pompeu",null,null,null,null,null,null,null,null,null,null,null,null,null,null,null,null,null,"Serra da Saudade"]
[786.0,"CE","Senador Sá",null,null,null,null,null,null,null,null,null,null,null,null,null,null,null,null,null,"Serra do Salitre"]
[787.0,"CE","Sobral",null,null,null,null,null,null,null,null,null,null,null,null,null,null,null,null,null,"Serra dos Aimorés"]
[788.0,"CE","Solonópole",null,null,null,null,null,null,null,null,null,null,null,null,null,null,null,null,null,"Serrania"]
[789.0,"CE","Tabuleiro do Norte",null,null,null,null,null,null,null,null,null,null,null,null,null,null,null,null,null,"Serranópolis de Minas"]
[790.0,"CE","Tamboril",null,null,null,null,null,null,null,null,null,null,null,null,null,null,null,null,null,"Serranos"]
[791.0,"CE","Tarrafas",null,null,null,null,null,null,null,null,null,null,null,null,null,null,null,null,null,"Serro"]
[792.0,"CE","Tauá",null,null,null,null,null,null,null,null,null,null,null,null,null,null,null,null,null,"Sete Lagoas"]
[793.0,"CE","Tejuçuoca",null,null,null,null,null,null,null,null,null,null,null,null,null,null,null,null,null,"Setubinha"]
[794.0,"CE","Tianguá",null,null,null,null,null,null,null,null,null,null,null,null,null,null,null,null,null,"Silveirânia"]
[795.0,"CE","Trairi",null,null,null,null,null,null,null,null,null,null,null,null,null,null,null,null,null,"Silvianópolis"]
[796.0,"CE","Tururu",null,null,null,null,null,null,null,null,null,null,null,null,null,null,null,null,null,"Simão Pereira"]
[797.0,"CE","Ubajara",null,null,null,null,null,null,null,null,null,null,null,null,null,null,null,null,null,"Simonésia"]
[798.0,"CE","Umari",null,null,null,null,null,null,null,null,null,null,null,null,null,null,null,null,null,"Sobrália"]
[799.0,"CE","Umirim",null,null,null,null,null,null,null,null,null,null,null,null,null,null,null,null,null,"Soledade de Minas"]
[800.0,"CE","Uruburetama",null,null,null,null,null,null,null,null,null,null,null,null,null,null,null,null,null,"Tabuleiro"]
[801.0,"CE","Uruoca",null,null,null,null,null,null,null,null,null,null,null,null,null,null,null,null,null,"Taiobeiras"]
[802.0,"CE","Varjota",null,null,null,null,null,null,null,null,null,null,null,null,null,null,null,null,null,"Taparuba"]
[803.0,"CE","Várzea Alegre",null,null,null,null,null,null,null,null,null,null,null,null,null,null,null,null,null,"Tapira"]
[804.0,"CE","Viçosa do Ceará",null,null,null,null,null,null,null,null,null,null,null,null,null,null,null,null,null,"Tapiraí"]
[805.0,"DF","Brasília",null,null,null,null,null,null,null,null,null,null,null,null,null,null,null,null,null,"Taquaraçu de Minas"]
[806.0,"ES","Afonso Cláudio",null,null,null,null,null,null,null,null,null,null,null,null,null,null,null,null,null,"Tarumirim"]
[807.0,"ES","Água Doce do Norte",null,null,null,null,null,null,null,null,null,null,null,null,null,null,null,null,null,"Teixeiras"]
[808.0,"ES","Águia Branca",null,null,null,null,null,null,null,null,null,null,null,null,null,null,null,null,null,"Teófilo Otoni"]
[809.0,"ES","Alegre",null,null,null,null,null,null,null,null,null,null,null,null,null,null,null,null,null,"Timóteo"]
[810.0,"ES","Alfredo Chaves",null,null,null,null,null,null,null,null,null,null,null,null,null,null,null,null,null,"Tiradentes"]
[811.0,"ES","Alto Rio Novo",null,null,null,null,null,null,null,null,null,null,null,null,null,null,null,null,null,"Tiros"]
[812.0,"ES","Anchieta",null,null,null,null,null,null,null,null,null,null,null,null,null,null,null,null,null,"Tocantins"]
[813.0,"ES","Apiacá",null,null,null,null,null,null,null,null,null,null,null,null,null,null,null,null,null,"Tocos do Moji"]
[814.0,"ES","Aracruz",null,null,null,null,null,null,null,null,null,null,null,null,null,null,null,null,null,"Toledo"]
[815.0,"ES","Atilio Vivacqua",null,null,null,null,null,null,null,null,null,null,null,null,null,null,null,null,null,"Tombos"]
[816.0,"ES","Baixo Guandu",null,null,null,null,null,null,null,null,null,null,null,null,null,null,null,null,null,"Três Corações"]
[817.0,"ES","Barra de São Francisco",null,null,null,null,null,null,null,null,null,null,null,null,null,null,null,null,null,"Três Marias"]
[818.0,"ES","Boa Esperança",null,null,null,null,null,null,null,null,null,null,null,null,null,null,null,null,null,"Três Pontas"]
[819.0,"ES","Bom Jesus do Norte",null,null,null,null,null,null,null,null,null,null,null,null,null,null,null,null,null,"Tumiritinga"]
[820.0,"ES","Brejetuba",null,null,null,null,null,null,null,null,null,null,null,null,null,null,null,null,null,"Tupaciguara"]
[821.0,"ES","Cachoeiro de Itapemirim",null,null,null,null,null,null,null,null,null,null,null,null,null,null,null,null,null,"Turmalina"]
[822.0,"ES","Cariacica",null,null,null,null,null,null,null,null,null,null,null,null,null,null,null,null,null,"Turvolândia"]
[823.0,"ES","Castelo",null,null,null,null,null,null,null,null,null,null,null,null,null,null,null,null,null,"Ubá"]
[824.0,"ES","Colatina",null,null,null,null,null,null,null,null,null,null,null,null,null,null,null,null,null,"Ubaí"]
[825.0,"ES","Conceição da Barra",null,null,null,null,null,null,null,null,null,null,null,null,null,null,null,null,null,"Ubaporanga"]
[826.0,"ES","Conceição do Castelo",null,null,null,null,null,null,null,null,null,null,null,null,null,null,null,null,null,"Uberaba"]
[827.0,"ES","Divino de São Lourenço",null,null,null,null,null,null,null,null,null,null,null,null,null,null,null,null,null,"Uberlândia"]
[828.0,"ES","Domingos Martins",null,null,null,null,null,null,null,null,null,null,null,null,null,null,null,null,null,"Umburatiba"]
[829.0,"ES","Dores do Rio Preto",null,null,null,null,null,null,null,null,null,null,null,null,null,null,null,null,null,"Unaí"]
[830.0,"ES","Ecoporanga",null,null,null,null,null,null,null,null,null,null,null,null,null,null,null,null,null,"União de Minas"]
[831.0,"ES","Fundão",null,null,null,null,null,null,null,null,null,null,null,null,null,null,null,null,null,"Uruana de Minas"]
[832.0,"ES","Governador Lindenberg",null,null,null,null,null,null,null,null,null,null,null,null,null,null,null,null,null,"Urucânia"]
[833.0,"ES","Guaçuí",null,null,null,null,null,null,null,null,null,null,null,null,null,null,null,null,null,"Urucuia"]
[834.0,"ES","Guarapari",null,null,null,null,null,null,null,null,null,null,null,null,null,null,null,null,null,"Vargem Alegre"]
[835.0,"ES","Ibatiba",null,null,null,null,null,null,null,null,null,null,null,null,null,null,null,null,null,"Vargem Bonita"]
[836.0,"ES","Ibiraçu",null,null,null,null,null,null,null,null,null,null,null,null,null,null,null,null,null,"Vargem Grande do Rio Pardo"]
[837.0,"ES","Ibitirama",null,null,null,null,null,null,null,null,null,null,null,null,null,null,null,null,null,"Varginha"]
[838.0,"ES","Iconha",null,null,null,null,null,null,null,null,null,null,null,null,null,null,null,null,null,"Varjão de Minas"]
[839.0,"ES","Irupi",null,null,null,null,null,null,null,null,null,null,null,null,null,null,null,null,null,"Várzea da Palma"]
[840.0,"ES","Itaguaçu",null,null,null,null,null,null,null,null,null,null,null,null,null,null,null,null,null,"Varzelândia"]
[841.0,"ES","Itapemirim",null,null,null,null,null,null,null,null,null,null,null,null,null,null,null,null,null,"Vazante"]
[842.0,"ES","Itarana",null,null,null,null,null,null,null,null,null,null,null,null,null,null,null,null,null,"Verdelândia"]
[843.0,"ES","Iúna",null,null,null,null,null,null,null,null,null,null,null,null,null,null,null,null,null,"Veredinha"]
[844.0,"ES","Jaguaré",null,null,null,null,null,null,null,null,null,null,null,null,null,null,null,null,null,"Veríssimo"]
[845.0,"ES","Jerônimo Monteiro",null,null,null,null,null,null,null,null,null,null,null,null,null,null,null,null,null,"Vermelho Novo"]
[846.0,"ES","João Neiva",null,null,null,null,null,null,null,null,null,null,null,null,null,null,null,null,null,"Vespasiano"]
[847.0,"ES","Laranja da Terra",null,null,null,null,null,null,null,null,null,null,null,null,null,null,null,null,null,"Viçosa"]
[848.0,"ES","Linhares",null,null,null,null,null,null,null,null,null,null,null,null,null,null,null,null,null,"Vieiras"]
[849.0,"ES","Mantenópolis",null,null,null,null,null,null,null,null,null,null,null,null,null,null,null,null,null,"Virgem da Lapa"]
[850.0,"ES","Marataízes",null,null,null,null,null,null,null,null,null,null,null,null,null,null,null,null,null,"Virgínia"]
[851.0,"ES","Marechal Floriano",null,null,null,null,null,null,null,null,null,null,null,null,null,null,null,null,null,"Virginópolis"]
[852.0,"ES","Marilândia",null,null,null,null,null,null,null,null,null,null,null,null,null,null,null,null,null,"Virgolândia"]
[853.0,"ES","Mimoso do Sul",null,null,null,null,null,null,null,null,null,null,null,null,null,null,null,null,null,"Visconde do Rio Branco"]
[854.0,"ES","Montanha",null,null,null,null,null,null,null,null,null,null,null,null,null,null,null,null,null,"Volta Grande"]
[855.0,"ES","Mucurici",null,null,null,null,null,null,null,null,null,null,null,null,null,null,null,null,null,"Wenceslau Braz"]
[856.0,"ES","Muniz Freire"]
[857.0,"ES","Muqui"]
[858.0,"ES","Nova Venécia"]
[859.0,"ES","Pancas"]
[860.0,"ES","Pedro Canário"]
[861.0,"ES","Pinheiros"]
[862.0,"ES","Piúma"]
[863.0,"ES","Ponto Belo"]
[864.0,"ES","Presidente Kennedy"]
[865.0,"ES","Rio Bananal"]
[866.0,"ES","Rio Novo do Sul"]
[867.0,"ES","Santa Leopoldina"]
[868.0,"ES","Santa Maria de Jetibá"]
[869.0,"ES","Santa Teresa"]
[870.0,"ES","São Domingos do Norte"]
[871.0,"ES","São Gabriel da Palha"]
[872.0,"ES","São José do Calçado"]
[873.0,"ES","São Mateus"]
[874.0,"ES","São Roque do Canaã"]
[875.0,"ES","Serra"]
[876.0,"ES","Sooretama"]
[877.0,"ES","Vargem Alta"]
[878.0,"ES","Venda Nova do Imigrante"]
[879.0,"ES","Viana"]
[880.0,"ES","Vila Pavão"]
[881.0,"ES","Vila Valério"]
[882.0,"ES","Vila Velha"]
[883.0,"ES","Vitória"]
[884.0,"GO","Abadia de Goiás"]
[885.0,"GO","Abadiânia"]
[886.0,"GO","Acreúna"]
[887.0,"GO","Adelândia"]
[888.0,"GO","Água Fria de Goiás"]
[889.0,"GO","Água Limpa"]
[890.0,"GO","Águas Lindas de Goiás"]
[891.0,"GO","Alexânia"]
[892.0,"GO","Aloândia"]
[893.0,"GO","Alto Horizonte"]
[894.0,"GO","Alto Paraíso de Goiás"]
[895.0,"GO","Alvorada do Norte"]
[896.0,"GO","Amaralina"]
[897.0,"GO","Americano do Brasil"]
[898.0,"GO","Amorinópolis"]
[899.0,"GO","Anápolis"]
[900.0,"GO","Anhanguera"]
[901.0,"GO","Anicuns"]
[902.0,"GO","Aparecida de Goiânia"]
[903.0,"GO","Aparecida do Rio Doce"]
[904.0,"GO","Aporé"]
[905.0,"GO","Araçu"]
[906.0,"GO","Aragarças"]
[907.0,"GO","Aragoiânia"]
[908.0,"GO","Araguapaz"]
[909.0,"GO","Arenópolis"]
[910.0,"GO","Aruanã"]
[911.0,"GO","Aurilândia"]
[912.0,"GO","Avelinópolis"]
[913.0,"GO","Baliza"]
[914.0,"GO","Barro Alto"]
[915.0,"GO","Bela Vista de Goiás"]
[916.0,"GO","Bom Jardim de Goiás"]
[917.0,"GO","Bom Jesus de Goiás"]
[918.0,"GO","Bonfinópolis"]
[919.0,"GO","Bonópolis"]
[920.0,"GO","Brazabrantes"]
[921.0,"GO","Britânia"]
[922.0,"GO","Buriti Alegre"]
[923.0,"GO","Buriti de Goiás"]
[924.0,"GO","Buritinópolis"]
[925.0,"GO","Cabeceiras"]
[926.0,"GO","Cachoeira Alta"]
[927.0,"GO","Cachoeira de Goiás"]
[928.0,"GO","Cachoeira Dourada"]
[929.0,"GO","Caçu"]
[930.0,"GO","Caiapônia"]
[931.0,"GO","Caldas Novas"]
[932.0,"GO","Caldazinha"]
[933.0,"GO","Campestre de Goiás"]
[934.0,"GO","Campinaçu"]
[935.0,"GO","Campinorte"]
[936.0,"GO","Campo Alegre de Goiás"]
[937.0,"GO","Campo Limpo de Goiás"]
[938.0,"GO","Campos Belos"]
[939.0,"GO","Campos Verdes"]
[940.0,"GO","Carmo do Rio Verde"]
[941.0,"GO","Castelândia"]
[942.0,"GO","Catalão"]
[943.0,"GO","Caturaí"]
[944.0,"GO","Cavalcante"]
[945.0,"GO","Ceres"]
[946.0,"GO","Cezarina"]
[947.0,"GO","Chapadão do Céu"]
[948.0,"GO","Cidade Ocidental"]
[949.0,"GO","Cocalzinho de Goiás"]
[950.0,"GO","Colinas do Sul"]
[951.0,"GO","Córrego do Ouro"]
[952.0,"GO","Corumbá de Goiás"]
[953.0,"GO","Corumbaíba"]
[954.0,"GO","Cristalina"]
[955.0,"GO","Cristianópolis"]
[956.0,"GO","Crixás"]
[957.0,"GO","Cromínia"]
[958.0,"GO","Cumari"]
[959.0,"GO","Damianópolis"]
[960.0,"GO","Damolândia"]
[961.0,"GO","Davinópolis"]
[962.0,"GO","Diorama"]
[963.0,"GO","Divinópolis de Goiás"]
[964.0,"GO","Doverlândia"]
[965.0,"GO","Edealina"]
[966.0,"GO","Edéia"]
[967.0,"GO","Estrela do Norte"]
[968.0,"GO","Faina"]
[969.0,"GO","Fazenda Nova"]
[970.0,"GO","Firminópolis"]
[971.0,"GO","Flores de Goiás"]
[972.0,"GO","Formosa"]
[973.0,"GO","Formoso"]
[974.0,"GO","Gameleira de Goiás"]
[975.0,"GO","Goianápolis"]
[976.0,"GO","Goiandira"]
[977.0,"GO","Goianésia"]
[978.0,"GO","Goiânia"]
[979.0,"GO","Goianira"]
[980.0,"GO","Goiás"]
[981.0,"GO","Goiatuba"]
[982.0,"GO","Gouvelândia"]
[983.0,"GO","Guapó"]
[984.0,"GO","Guaraíta"]
[985.0,"GO","Guarani de Goiás"]
[986.0,"GO","Guarinos"]
[987.0,"GO","Heitoraí"]
[988.0,"GO","Hidrolândia"]
[989.0,"GO","Hidrolina"]
[990.0,"GO","Iaciara"]
[991.0,"GO","Inaciolândia"]
[992.0,"GO","Indiara"]
[993.0,"GO","Inhumas"]
[994.0,"GO","Ipameri"]
[995.0,"GO","Ipiranga de Goiás"]
[996.0,"GO","Iporá"]
[997.0,"GO","Israelândia"]
[998.0,"GO","Itaberaí"]
[999.0,"GO","Itaguari"]
[1000.0,"GO","Itaguaru"]
[1001.0,"GO","Itajá"]
[1002.0,"GO","Itapaci"]
[1003.0,"GO","Itapirapuã"]
[1004.0,"GO","Itapuranga"]
[1005.0,"GO","Itarumã"]
[1006.0,"GO","Itauçu"]
[1007.0,"GO","Itumbiara"]
[1008.0,"GO","Ivolândia"]
[1009.0,"GO","Jandaia"]
[1010.0,"GO","Jaraguá"]
[1011.0,"GO","Jataí"]
[1012.0,"GO","Jaupaci"]
[1013.0,"GO","Jesúpolis"]
[1014.0,"GO","Joviânia"]
[1015.0,"GO","Jussara"]
[1016.0,"GO","Lagoa Santa"]
[1017.0,"GO","Leopoldo de Bulhões"]
[1018.0,"GO","Luziânia"]
[1019.0,"GO","Mairipotaba"]
[1020.0,"GO","Mambaí"]
[1021.0,"GO","Mara Rosa"]
[1022.0,"GO","Marzagão"]
[1023.0,"GO","Matrinchã"]
[1024.0,"GO","Maurilândia"]
[1025.0,"GO","Mimoso de Goiás"]
[1026.0,"GO","Minaçu"]
[1027.0,"GO","Mineiros"]
[1028.0,"GO","Moiporá"]
[1029.0,"GO","Monte Alegre de Goiás"]
[1030.0,"GO","Montes Claros de Goiás"]
[1031.0,"GO","Montividiu"]
[1032.0,"GO","Montividiu do Norte"]
[1033.0,"GO","Morrinhos"]
[1034.0,"GO","Morro Agudo de Goiás"]
[1035.0,"GO","Mossâmedes"]
[1036.0,"GO","Mozarlândia"]
[1037.0,"GO","Mundo Novo"]
[1038.0,"GO","Mutunópolis"]
[1039.0,"GO","Nazário"]
[1040.0,"GO","Nerópolis"]
[1041.0,"GO","Niquelândia"]
[1042.0,"GO","Nova América"]
[1043.0,"GO","Nova Aurora"]
[1044.0,"GO","Nova Crixás"]
[1045.0,"GO","Nova Glória"]
[1046.0,"GO","Nova Iguaçu de Goiás"]
[1047.0,"GO","Nova Roma"]
[1048.0,"GO","Nova Veneza"]
[1049.0,"GO","Novo Brasil"]
[1050.0,"GO","Novo Gama"]
[1051.0,"GO","Novo Planalto"]
[1052.0,"GO","Orizona"]
[1053.0,"GO","Ouro Verde de Goiás"]
[1054.0,"GO","Ouvidor"]
[1055.0,"GO","Padre Bernardo"]
[1056.0,"GO","Palestina de Goiás"]
[1057.0,"GO","Palmeiras de Goiás"]
[1058.0,"GO","Palmelo"]
[1059.0,"GO","Palminópolis"]
[1060.0,"GO","Panamá"]
[1061.0,"GO","Paranaiguara"]
[1062.0,"GO","Paraúna"]
[1063.0,"GO","Perolândia"]
[1064.0,"GO","Petrolina de Goiás"]
[1065.0,"GO","Pilar de Goiás"]
[1066.0,"GO","Piracanjuba"]
[1067.0,"GO","Piranhas"]
[1068.0,"GO","Pirenópolis"]
[1069.0,"GO","Pires do Rio"]
[1070.0,"GO","Planaltina"]
[1071.0,"GO","Pontalina"]
[1072.0,"GO","Porangatu"]
[1073.0,"GO","Porteirão"]
[1074.0,"GO","Portelândia"]
[1075.0,"GO","Posse"]
[1076.0,"GO","Professor Jamil"]
[1077.0,"GO","Quirinópolis"]
[1078.0,"GO","Rialma"]
[1079.0,"GO","Rianápolis"]
[1080.0,"GO","Rio Quente"]
[1081.0,"GO","Rio Verde"]
[1082.0,"GO","Rubiataba"]
[1083.0,"GO","Sanclerlândia"]
[1084.0,"GO","Santa Bárbara de Goiás"]
[1085.0,"GO","Santa Cruz de Goiás"]
[1086.0,"GO","Santa Fé de Goiás"]
[1087.0,"GO","Santa Helena de Goiás"]
[1088.0,"GO","Santa Isabel"]
[1089.0,"GO","Santa Rita do Araguaia"]
[1090.0,"GO","Santa Rita do Novo Destino"]
[1091.0,"GO","Santa Rosa de Goiás"]
[1092.0,"GO","Santa Tereza de Goiás"]
[1093.0,"GO","Santa Terezinha de Goiás"]
[1094.0,"GO","Santo Antônio da Barra"]
[1095.0,"GO","Santo Antônio de Goiás"]
[1096.0,"GO","Santo Antônio do Descoberto"]
[1097.0,"GO","São Domingos"]
[1098.0,"GO","São Francisco de Goiás"]
[1099.0,"GO","São João da Paraúna"]
[1100.0,"GO","São João dAliança"]
[1101.0,"GO","São Luís de Montes Belos"]
[1102.0,"GO","São Luíz do Norte"]
[1103.0,"GO","São Miguel do Araguaia"]
[1104.0,"GO","São Miguel do Passa Quatro"]
[1105.0,"GO","São Patrício"]
[1106.0,"GO","São Simão"]
[1107.0,"GO","Senador Canedo"]
[1108.0,"GO","Serranópolis"]
[1109.0,"GO","Silvânia"]
[1110.0,"GO","Simolândia"]
[1111.0,"GO","Sítio dAbadia"]
[1112.0,"GO","Taquaral de Goiás"]
[1113.0,"GO","Teresina de Goiás"]
[1114.0,"GO","Terezópolis de Goiás"]
[1115.0,"GO","Três Ranchos"]
[1116.0,"GO","Trindade"]
[1117.0,"GO","Trombas"]
[1118.0,"GO","Turvânia"]
[1119.0,"GO","Turvelândia"]
[1120.0,"GO","Uirapuru"]
[1121.0,"GO","Uruaçu"]
[1122.0,"GO","Uruana"]
[1123.0,"GO","Urutaí"]
[1124.0,"GO","Valparaíso de Goiás"]
[1125.0,"GO","Varjão"]
[1126.0,"GO","Vianópolis"]
[1127.0,"GO","Vicentinópolis"]
[1128.0,"GO","Vila Boa"]
[1129.0,"GO","Vila Propício"]
[1130.0,"MA","Açailândia"]
[1131.0,"MA","Afonso Cunha"]
[1132.0,"MA","Água Doce do Maranhão"]
[1133.0,"MA","Alcântara"]
[1134.0,"MA","Aldeias Altas"]
[1135.0,"MA","Altamira do Maranhão"]
[1136.0,"MA","Alto Alegre do Maranhão"]
[1137.0,"MA","Alto Alegre do Pindaré"]
[1138.0,"MA","Alto Parnaíba"]
[1139.0,"MA","Amapá do Maranhão"]
[1140.0,"MA","Amarante do Maranhão"]
[1141.0,"MA","Anajatuba"]
[1142.0,"MA","Anapurus"]
[1143.0,"MA","Apicum-Açu"]
[1144.0,"MA","Araguanã"]
[1145.0,"MA","Araioses"]
[1146.0,"MA","Arame"]
[1147.0,"MA","Arari"]
[1148.0,"MA","Axixá"]
[1149.0,"MA","Bacabal"]
[1150.0,"MA","Bacabeira"]
[1151.0,"MA","Bacuri"]
[1152.0,"MA","Bacurituba"]
[1153.0,"MA","Balsas"]
[1154.0,"MA","Barão de Grajaú"]
[1155.0,"MA","Barra do Corda"]
[1156.0,"MA","Barreirinhas"]
[1157.0,"MA","Bela Vista do Maranhão"]
[1158.0,"MA","Belágua"]
[1159.0,"MA","Benedito Leite"]
[1160.0,"MA","Bequimão"]
[1161.0,"MA","Bernardo do Mearim"]
[1162.0,"MA","Boa Vista do Gurupi"]
[1163.0,"MA","Bom Jardim"]
[1164.0,"MA","Bom Jesus das Selvas"]
[1165.0,"MA","Bom Lugar"]
[1166.0,"MA","Brejo"]
[1167.0,"MA","Brejo de Areia"]
[1168.0,"MA","Buriti"]
[1169.0,"MA","Buriti Bravo"]
[1170.0,"MA","Buriticupu"]
[1171.0,"MA","Buritirana"]
[1172.0,"MA","Cachoeira Grande"]
[1173.0,"MA","Cajapió"]
[1174.0,"MA","Cajari"]
[1175.0,"MA","Campestre do Maranhão"]
[1176.0,"MA","Cândido Mendes"]
[1177.0,"MA","Cantanhede"]
[1178.0,"MA","Capinzal do Norte"]
[1179.0,"MA","Carolina"]
[1180.0,"MA","Carutapera"]
[1181.0,"MA","Caxias"]
[1182.0,"MA","Cedral"]
[1183.0,"MA","Central do Maranhão"]
[1184.0,"MA","Centro do Guilherme"]
[1185.0,"MA","Centro Novo do Maranhão"]
[1186.0,"MA","Chapadinha"]
[1187.0,"MA","Cidelândia"]
[1188.0,"MA","Codó"]
[1189.0,"MA","Coelho Neto"]
[1190.0,"MA","Colinas"]
[1191.0,"MA","Conceição do Lago-Açu"]
[1192.0,"MA","Coroatá"]
[1193.0,"MA","Cururupu"]
[1194.0,"MA","Davinópolis"]
[1195.0,"MA","Dom Pedro"]
[1196.0,"MA","Duque Bacelar"]
[1197.0,"MA","Esperantinópolis"]
[1198.0,"MA","Estreito"]
[1199.0,"MA","Feira Nova do Maranhão"]
[1200.0,"MA","Fernando Falcão"]
[1201.0,"MA","Formosa da Serra Negra"]
[1202.0,"MA","Fortaleza dos Nogueiras"]
[1203.0,"MA","Fortuna"]
[1204.0,"MA","Godofredo Viana"]
[1205.0,"MA","Gonçalves Dias"]
[1206.0,"MA","Governador Archer"]
[1207.0,"MA","Governador Edison Lobão"]
[1208.0,"MA","Governador Eugênio Barros"]
[1209.0,"MA","Governador Luiz Rocha"]
[1210.0,"MA","Governador Newton Bello"]
[1211.0,"MA","Governador Nunes Freire"]
[1212.0,"MA","Graça Aranha"]
[1213.0,"MA","Grajaú"]
[1214.0,"MA","Guimarães"]
[1215.0,"MA","Humberto de Campos"]
[1216.0,"MA","Icatu"]
[1217.0,"MA","Igarapé do Meio"]
[1218.0,"MA","Igarapé Grande"]
[1219.0,"MA","Imperatriz"]
[1220.0,"MA","Itaipava do Grajaú"]
[1221.0,"MA","Itapecuru Mirim"]
[1222.0,"MA","Itinga do Maranhão"]
[1223.0,"MA","Jatobá"]
[1224.0,"MA","Jenipapo dos Vieiras"]
[1225.0,"MA","João Lisboa"]
[1226.0,"MA","Joselândia"]
[1227.0,"MA","Junco do Maranhão"]
[1228.0,"MA","Lago da Pedra"]
[1229.0,"MA","Lago do Junco"]
[1230.0,"MA","Lago dos Rodrigues"]
[1231.0,"MA","Lago Verde"]
[1232.0,"MA","Lagoa do Mato"]
[1233.0,"MA","Lagoa Grande do Maranhão"]
[1234.0,"MA","Lajeado Novo"]
[1235.0,"MA","Lima Campos"]
[1236.0,"MA","Loreto"]
[1237.0,"MA","Luís Domingues"]
[1238.0,"MA","Magalhães de Almeida"]
[1239.0,"MA","Maracaçumé"]
[1240.0,"MA","Marajá do Sena"]
[1241.0,"MA","Maranhãozinho"]
[1242.0,"MA","Mata Roma"]
[1243.0,"MA","Matinha"]
[1244.0,"MA","Matões"]
[1245.0,"MA","Matões do Norte"]
[1246.0,"MA","Milagres do Maranhão"]
[1247.0,"MA","Mirador"]
[1248.0,"MA","Miranda do Norte"]
[1249.0,"MA","Mirinzal"]
[1250.0,"MA","Monção"]
[1251.0,"MA","Montes Altos"]
[1252.0,"MA","Morros"]
[1253.0,"MA","Nina Rodrigues"]
[1254.0,"MA","Nova Colinas"]
[1255.0,"MA","Nova Iorque"]
[1256.0,"MA","Nova Olinda do Maranhão"]
[1257.0,"MA","Olho dÁgua das Cunhãs"]
[1258.0,"MA","Olinda Nova do Maranhão"]
[1259.0,"MA","Paço do Lumiar"]
[1260.0,"MA","Palmeirândia"]
[1261.0,"MA","Paraibano"]
[1262.0,"MA","Parnarama"]
[1263.0,"MA","Passagem Franca"]
[1264.0,"MA","Pastos Bons"]
[1265.0,"MA","Paulino Neves"]
[1266.0,"MA","Paulo Ramos"]
[1267.0,"MA","Pedreiras"]
[1268.0,"MA","Pedro do Rosário"]
[1269.0,"MA","Penalva"]
[1270.0,"MA","Peri Mirim"]
[1271.0,"MA","Peritoró"]
[1272.0,"MA","Pindaré-Mirim"]
[1273.0,"MA","Pinheiro"]
[1274.0,"MA","Pio XII"]
[1275.0,"MA","Pirapemas"]
[1276.0,"MA","Poção de Pedras"]
[1277.0,"MA","Porto Franco"]
[1278.0,"MA","Porto Rico do Maranhão"]
[1279.0,"MA","Presidente Dutra"]
[1280.0,"MA","Presidente Juscelino"]
[1281.0,"MA","Presidente Médici"]
[1282.0,"MA","Presidente Sarney"]
[1283.0,"MA","Presidente Vargas"]
[1284.0,"MA","Primeira Cruz"]
[1285.0,"MA","Raposa"]
[1286.0,"MA","Riachão"]
[1287.0,"MA","Ribamar Fiquene"]
[1288.0,"MA","Rosário"]
[1289.0,"MA","Sambaíba"]
[1290.0,"MA","Santa Filomena do Maranhão"]
[1291.0,"MA","Santa Helena"]
[1292.0,"MA","Santa Inês"]
[1293.0,"MA","Santa Luzia"]
[1294.0,"MA","Santa Luzia do Paruá"]
[1295.0,"MA","Santa Quitéria do Maranhão"]
[1296.0,"MA","Santa Rita"]
[1297.0,"MA","Santana do Maranhão"]
[1298.0,"MA","Santo Amaro do Maranhão"]
[1299.0,"MA","Santo Antônio dos Lopes"]
[1300.0,"MA","São Benedito do Rio Preto"]
[1301.0,"MA","São Bento"]
[1302.0,"MA","São Bernardo"]
[1303.0,"MA","São Domingos do Azeitão"]
[1304.0,"MA","São Domingos do Maranhão"]
[1305.0,"MA","São Félix de Balsas"]
[1306.0,"MA","São Francisco do Brejão"]
[1307.0,"MA","São Francisco do Maranhão"]
[1308.0,"MA","São João Batista"]
[1309.0,"MA","São João do Carú"]
[1310.0,"MA","São João do Paraíso"]
[1311.0,"MA","São João do Soter"]
[1312.0,"MA","São João dos Patos"]
[1313.0,"MA","São José de Ribamar"]
[1314.0,"MA","São José dos Basílios"]
[1315.0,"MA","São Luís"]
[1316.0,"MA","São Luís Gonzaga do Maranhão"]
[1317.0,"MA","São Mateus do Maranhão"]
[1318.0,"MA","São Pedro da Água Branca"]
[1319.0,"MA","São Pedro dos Crentes"]
[1320.0,"MA","São Raimundo das Mangabeiras"]
[1321.0,"MA","São Raimundo do Doca Bezerra"]
[1322.0,"MA","São Roberto"]
[1323.0,"MA","São Vicente Ferrer"]
[1324.0,"MA","Satubinha"]
[1325.0,"MA","Senador Alexandre Costa"]
[1326.0,"MA","Senador La Rocque"]
[1327.0,"MA","Serrano do Maranhão"]
[1328.0,"MA","Sítio Novo"]
[1329.0,"MA","Sucupira do Norte"]
[1330.0,"MA","Sucupira do Riachão"]
[1331.0,"MA","Tasso Fragoso"]
[1332.0,"MA","Timbiras"]
[1333.0,"MA","Timon"]
[1334.0,"MA","Trizidela do Vale"]
[1335.0,"MA","Tufilândia"]
[1336.0,"MA","Tuntum"]
[1337.0,"MA","Turiaçu"]
[1338.0,"MA","Turilândia"]
[1339.0,"MA","Tutóia"]
[1340.0,"MA","Urbano Santos"]
[1341.0,"MA","Vargem Grande"]
[1342.0,"MA","Viana"]
[1343.0,"MA","Vila Nova dos Martírios"]
[1344.0,"MA","Vitória do Mearim"]
[1345.0,"MA","Vitorino Freire"]
[1346.0,"MA","Zé Doca"]
[1347.0,"MG","Abadia dos Dourados"]
[1348.0,"MG","Abaeté"]
[1349.0,"MG","Abre Campo"]
[1350.0,"MG","Acaiaca"]
[1351.0,"MG","Açucena"]
[1352.0,"MG","Água Boa"]
[1353.0,"MG","Água Comprida"]
[1354.0,"MG","Aguanil"]
[1355.0,"MG","Águas Formosas"]
[1356.0,"MG","Águas Vermelhas"]
[1357.0,"MG","Aimorés"]
[1358.0,"MG","Aiuruoca"]
[1359.0,"MG","Alagoa"]
[1360.0,"MG","Albertina"]
[1361.0,"MG","Além Paraíba"]
[1362.0,"MG","Alfenas"]
[1363.0,"MG","Alfredo Vasconcelos"]
[1364.0,"MG","Almenara"]
[1365.0,"MG","Alpercata"]
[1366.0,"MG","Alpinópolis"]
[1367.0,"MG","Alterosa"]
[1368.0,"MG","Alto Caparaó"]
[1369.0,"MG","Alto Jequitibá"]
[1370.0,"MG","Alto Rio Doce"]
[1371.0,"MG","Alvarenga"]
[1372.0,"MG","Alvinópolis"]
[1373.0,"MG","Alvorada de Minas"]
[1374.0,"MG","Amparo do Serra"]
[1375.0,"MG","Andradas"]
[1376.0,"MG","Andrelândia"]
[1377.0,"MG","Angelândia"]
[1378.0,"MG","Antônio Carlos"]
[1379.0,"MG","Antônio Dias"]
[1380.0,"MG","Antônio Prado de Minas"]
[1381.0,"MG","Araçaí"]
[1382.0,"MG","Aracitaba"]
[1383.0,"MG","Araçuaí"]
[1384.0,"MG","Araguari"]
[1385.0,"MG","Arantina"]
[1386.0,"MG","Araponga"]
[1387.0,"MG","Araporã"]
[1388.0,"MG","Arapuá"]
[1389.0,"MG","Araújos"]
[1390.0,"MG","Araxá"]
[1391.0,"MG","Arceburgo"]
[1392.0,"MG","Arcos"]
[1393.0,"MG","Areado"]
[1394.0,"MG","Argirita"]
[1395.0,"MG","Aricanduva"]
[1396.0,"MG","Arinos"]
[1397.0,"MG","Astolfo Dutra"]
[1398.0,"MG","Ataléia"]
[1399.0,"MG","Augusto de Lima"]
[1400.0,"MG","Baependi"]
[1401.0,"MG","Baldim"]
[1402.0,"MG","Bambuí"]
[1403.0,"MG","Bandeira"]
[1404.0,"MG","Bandeira do Sul"]
[1405.0,"MG","Barão de Cocais"]
[1406.0,"MG","Barão de Monte Alto"]
[1407.0,"MG","Barbacena"]
[1408.0,"MG","Barra Longa"]
[1409.0,"MG","Barroso"]
[1410.0,"MG","Bela Vista de Minas"]
[1411.0,"MG","Belmiro Braga"]
[1412.0,"MG","Belo Horizonte"]
[1413.0,"MG","Belo Oriente"]
[1414.0,"MG","Belo Vale"]
[1415.0,"MG","Berilo"]
[1416.0,"MG","Berizal"]
[1417.0,"MG","Bertópolis"]
[1418.0,"MG","Betim"]
[1419.0,"MG","Bias Fortes"]
[1420.0,"MG","Bicas"]
[1421.0,"MG","Biquinhas"]
[1422.0,"MG","Boa Esperança"]
[1423.0,"MG","Bocaina de Minas"]
[1424.0,"MG","Bocaiúva"]
[1425.0,"MG","Bom Despacho"]
[1426.0,"MG","Bom Jardim de Minas"]
[1427.0,"MG","Bom Jesus da Penha"]
[1428.0,"MG","Bom Jesus do Amparo"]
[1429.0,"MG","Bom Jesus do Galho"]
[1430.0,"MG","Bom Repouso"]
[1431.0,"MG","Bom Sucesso"]
[1432.0,"MG","Bonfim"]
[1433.0,"MG","Bonfinópolis de Minas"]
[1434.0,"MG","Bonito de Minas"]
[1435.0,"MG","Borda da Mata"]
[1436.0,"MG","Botelhos"]
[1437.0,"MG","Botumirim"]
[1438.0,"MG","Brás Pires"]
[1439.0,"MG","Brasilândia de Minas"]
[1440.0,"MG","Brasília de Minas"]
[1441.0,"MG","Brasópolis"]
[1442.0,"MG","Braúnas"]
[1443.0,"MG","Brumadinho"]
[1444.0,"MG","Bueno Brandão"]
[1445.0,"MG","Buenópolis"]
[1446.0,"MG","Bugre"]
[1447.0,"MG","Buritis"]
[1448.0,"MG","Buritizeiro"]
[1449.0,"MG","Cabeceira Grande"]
[1450.0,"MG","Cabo Verde"]
[1451.0,"MG","Cachoeira da Prata"]
[1452.0,"MG","Cachoeira de Minas"]
[1453.0,"MG","Cachoeira de Pajeú"]
[1454.0,"MG","Cachoeira Dourada"]
[1455.0,"MG","Caetanópolis"]
[1456.0,"MG","Caeté"]
[1457.0,"MG","Caiana"]
[1458.0,"MG","Cajuri"]
[1459.0,"MG","Caldas"]
[1460.0,"MG","Camacho"]
[1461.0,"MG","Camanducaia"]
[1462.0,"MG","Cambuí"]
[1463.0,"MG","Cambuquira"]
[1464.0,"MG","Campanário"]
[1465.0,"MG","Campanha"]
[1466.0,"MG","Campestre"]
[1467.0,"MG","Campina Verde"]
[1468.0,"MG","Campo Azul"]
[1469.0,"MG","Campo Belo"]
[1470.0,"MG","Campo do Meio"]
[1471.0,"MG","Campo Florido"]
[1472.0,"MG","Campos Altos"]
[1473.0,"MG","Campos Gerais"]
[1474.0,"MG","Cana Verde"]
[1475.0,"MG","Canaã"]
[1476.0,"MG","Canápolis"]
[1477.0,"MG","Candeias"]
[1478.0,"MG","Cantagalo"]
[1479.0,"MG","Caparaó"]
[1480.0,"MG","Capela Nova"]
[1481.0,"MG","Capelinha"]
[1482.0,"MG","Capetinga"]
[1483.0,"MG","Capim Branco"]
[1484.0,"MG","Capinópolis"]
[1485.0,"MG","Capitão Andrade"]
[1486.0,"MG","Capitão Enéas"]
[1487.0,"MG","Capitólio"]
[1488.0,"MG","Caputira"]
[1489.0,"MG","Caraí"]
[1490.0,"MG","Caranaíba"]
[1491.0,"MG","Carandaí"]
[1492.0,"MG","Carangola"]
[1493.0,"MG","Caratinga"]
[1494.0,"MG","Carbonita"]
[1495.0,"MG","Careaçu"]
[1496.0,"MG","Carlos Chagas"]
[1497.0,"MG","Carmésia"]
[1498.0,"MG","Carmo da Cachoeira"]
[1499.0,"MG","Carmo da Mata"]
[1500.0,"MG","Carmo de Minas"]
[1501.0,"MG","Carmo do Cajuru"]
[1502.0,"MG","Carmo do Paranaíba"]
[1503.0,"MG","Carmo do Rio Claro"]
[1504.0,"MG","Carmópolis de Minas"]
[1505.0,"MG","Carneirinho"]
[1506.0,"MG","Carrancas"]
[1507.0,"MG","Carvalhópolis"]
[1508.0,"MG","Carvalhos"]
[1509.0,"MG","Casa Grande"]
[1510.0,"MG","Cascalho Rico"]
[1511.0,"MG","Cássia"]
[1512.0,"MG","Cataguases"]
[1513.0,"MG","Catas Altas"]
[1514.0,"MG","Catas Altas da Noruega"]
[1515.0,"MG","Catuji"]
[1516.0,"MG","Catuti"]
[1517.0,"MG","Caxambu"]
[1518.0,"MG","Cedro do Abaeté"]
[1519.0,"MG","Central de Minas"]
[1520.0,"MG","Centralina"]
[1521.0,"MG","Chácara"]
[1522.0,"MG","Chalé"]
[1523.0,"MG","Chapada do Norte"]
[1524.0,"MG","Chapada Gaúcha"]
[1525.0,"MG","Chiador"]
[1526.0,"MG","Cipotânea"]
[1527.0,"MG","Claraval"]
[1528.0,"MG","Claro dos Poções"]
[1529.0,"MG","Cláudio"]
[1530.0,"MG","Coimbra"]
[1531.0,"MG","Coluna"]
[1532.0,"MG","Comendador Gomes"]
[1533.0,"MG","Comercinho"]
[1534.0,"MG","Conceição da Aparecida"]
[1535.0,"MG","Conceição da Barra de Minas"]
[1536.0,"MG","Conceição das Alagoas"]
[1537.0,"MG","Conceição das Pedras"]
[1538.0,"MG","Conceição de Ipanema"]
[1539.0,"MG","Conceição do Mato Dentro"]
[1540.0,"MG","Conceição do Pará"]
[1541.0,"MG","Conceição do Rio Verde"]
[1542.0,"MG","Conceição dos Ouros"]
[1543.0,"MG","Cônego Marinho"]
[1544.0,"MG","Confins"]
[1545.0,"MG","Congonhal"]
[1546.0,"MG","Congonhas"]
[1547.0,"MG","Congonhas do Norte"]
[1548.0,"MG","Conquista"]
[1549.0,"MG","Conselheiro Lafaiete"]
[1550.0,"MG","Conselheiro Pena"]
[1551.0,"MG","Consolação"]
[1552.0,"MG","Contagem"]
[1553.0,"MG","Coqueiral"]
[1554.0,"MG","Coração de Jesus"]
[1555.0,"MG","Cordisburgo"]
[1556.0,"MG","Cordislândia"]
[1557.0,"MG","Corinto"]
[1558.0,"MG","Coroaci"]
[1559.0,"MG","Coromandel"]
[1560.0,"MG","Coronel Fabriciano"]
[1561.0,"MG","Coronel Murta"]
[1562.0,"MG","Coronel Pacheco"]
[1563.0,"MG","Coronel Xavier Chaves"]
[1564.0,"MG","Córrego Danta"]
[1565.0,"MG","Córrego do Bom Jesus"]
[1566.0,"MG","Córrego Fundo"]
[1567.0,"MG","Córrego Novo"]
[1568.0,"MG","Couto de Magalhães de Minas"]
[1569.0,"MG","Crisólita"]
[1570.0,"MG","Cristais"]
[1571.0,"MG","Cristália"]
[1572.0,"MG","Cristiano Otoni"]
[1573.0,"MG","Cristina"]
[1574.0,"MG","Crucilândia"]
[1575.0,"MG","Cruzeiro da Fortaleza"]
[1576.0,"MG","Cruzília"]
[1577.0,"MG","Cuparaque"]
[1578.0,"MG","Curral de Dentro"]
[1579.0,"MG","Curvelo"]
[1580.0,"MG","Datas"]
[1581.0,"MG","Delfim Moreira"]
[1582.0,"MG","Delfinópolis"]
[1583.0,"MG","Delta"]
[1584.0,"MG","Descoberto"]
[1585.0,"MG","Desterro de Entre Rios"]
[1586.0,"MG","Desterro do Melo"]
[1587.0,"MG","Diamantina"]
[1588.0,"MG","Diogo de Vasconcelos"]
[1589.0,"MG","Dionísio"]
[1590.0,"MG","Divinésia"]
[1591.0,"MG","Divino"]
[1592.0,"MG","Divino das Laranjeiras"]
[1593.0,"MG","Divinolândia de Minas"]
[1594.0,"MG","Divinópolis"]
[1595.0,"MG","Divisa Alegre"]
[1596.0,"MG","Divisa Nova"]
[1597.0,"MG","Divisópolis"]
[1598.0,"MG","Dom Bosco"]
[1599.0,"MG","Dom Cavati"]
[1600.0,"MG","Dom Joaquim"]
[1601.0,"MG","Dom Silvério"]
[1602.0,"MG","Dom Viçoso"]
[1603.0,"MG","Dona Eusébia"]
[1604.0,"MG","Dores de Campos"]
[1605.0,"MG","Dores de Guanhães"]
[1606.0,"MG","Dores do Indaiá"]
[1607.0,"MG","Dores do Turvo"]
[1608.0,"MG","Doresópolis"]
[1609.0,"MG","Douradoquara"]
[1610.0,"MG","Durandé"]
[1611.0,"MG","Elói Mendes"]
[1612.0,"MG","Engenheiro Caldas"]
[1613.0,"MG","Engenheiro Navarro"]
[1614.0,"MG","Entre Folhas"]
[1615.0,"MG","Entre Rios de Minas"]
[1616.0,"MG","Ervália"]
[1617.0,"MG","Esmeraldas"]
[1618.0,"MG","Espera Feliz"]
[1619.0,"MG","Espinosa"]
[1620.0,"MG","Espírito Santo do Dourado"]
[1621.0,"MG","Estiva"]
[1622.0,"MG","Estrela Dalva"]
[1623.0,"MG","Estrela do Indaiá"]
[1624.0,"MG","Estrela do Sul"]
[1625.0,"MG","Eugenópolis"]
[1626.0,"MG","Ewbank da Câmara"]
[1627.0,"MG","Extrema"]
[1628.0,"MG","Fama"]
[1629.0,"MG","Faria Lemos"]
[1630.0,"MG","Felício dos Santos"]
[1631.0,"MG","Felisburgo"]
[1632.0,"MG","Felixlândia"]
[1633.0,"MG","Fernandes Tourinho"]
[1634.0,"MG","Ferros"]
[1635.0,"MG","Fervedouro"]
[1636.0,"MG","Florestal"]
[1637.0,"MG","Formiga"]
[1638.0,"MG","Formoso"]
[1639.0,"MG","Fortaleza de Minas"]
[1640.0,"MG","Fortuna de Minas"]
[1641.0,"MG","Francisco Badaró"]
[1642.0,"MG","Francisco Dumont"]
[1643.0,"MG","Francisco Sá"]
[1644.0,"MG","Franciscópolis"]
[1645.0,"MG","Frei Gaspar"]
[1646.0,"MG","Frei Inocêncio"]
[1647.0,"MG","Frei Lagonegro"]
[1648.0,"MG","Fronteira"]
[1649.0,"MG","Fronteira dos Vales"]
[1650.0,"MG","Fruta de Leite"]
[1651.0,"MG","Frutal"]
[1652.0,"MG","Funilândia"]
[1653.0,"MG","Galiléia"]
[1654.0,"MG","Gameleiras"]
[1655.0,"MG","Glaucilândia"]
[1656.0,"MG","Goiabeira"]
[1657.0,"MG","Goianá"]
[1658.0,"MG","Gonçalves"]
[1659.0,"MG","Gonzaga"]
[1660.0,"MG","Gouveia"]
[1661.0,"MG","Governador Valadares"]
[1662.0,"MG","Grão Mogol"]
[1663.0,"MG","Grupiara"]
[1664.0,"MG","Guanhães"]
[1665.0,"MG","Guapé"]
[1666.0,"MG","Guaraciaba"]
[1667.0,"MG","Guaraciama"]
[1668.0,"MG","Guaranésia"]
[1669.0,"MG","Guarani"]
[1670.0,"MG","Guarará"]
[1671.0,"MG","Guarda-Mor"]
[1672.0,"MG","Guaxupé"]
[1673.0,"MG","Guidoval"]
[1674.0,"MG","Guimarânia"]
[1675.0,"MG","Guiricema"]
[1676.0,"MG","Gurinhatã"]
[1677.0,"MG","Heliodora"]
[1678.0,"MG","Iapu"]
[1679.0,"MG","Ibertioga"]
[1680.0,"MG","Ibiá"]
[1681.0,"MG","Ibiaí"]
[1682.0,"MG","Ibiracatu"]
[1683.0,"MG","Ibiraci"]
[1684.0,"MG","Ibirité"]
[1685.0,"MG","Ibitiúra de Minas"]
[1686.0,"MG","Ibituruna"]
[1687.0,"MG","Icaraí de Minas"]
[1688.0,"MG","Igarapé"]
[1689.0,"MG","Igaratinga"]
[1690.0,"MG","Iguatama"]
[1691.0,"MG","Ijaci"]
[1692.0,"MG","Ilicínea"]
[1693.0,"MG","Imbé de Minas"]
[1694.0,"MG","Inconfidentes"]
[1695.0,"MG","Indaiabira"]
[1696.0,"MG","Indianópolis"]
[1697.0,"MG","Ingaí"]
[1698.0,"MG","Inhapim"]
[1699.0,"MG","Inhaúma"]
[1700.0,"MG","Inimutaba"]
[1701.0,"MG","Ipaba"]
[1702.0,"MG","Ipanema"]
[1703.0,"MG","Ipatinga"]
[1704.0,"MG","Ipiaçu"]
[1705.0,"MG","Ipuiúna"]
[1706.0,"MG","Iraí de Minas"]
[1707.0,"MG","Itabira"]
[1708.0,"MG","Itabirinha"]
[1709.0,"MG","Itabirito"]
[1710.0,"MG","Itacambira"]
[1711.0,"MG","Itacarambi"]
[1712.0,"MG","Itaguara"]
[1713.0,"MG","Itaipé"]
[1714.0,"MG","Itajubá"]
[1715.0,"MG","Itamarandiba"]
[1716.0,"MG","Itamarati de Minas"]
[1717.0,"MG","Itambacuri"]
[1718.0,"MG","Itambé do Mato Dentro"]
[1719.0,"MG","Itamogi"]
[1720.0,"MG","Itamonte"]
[1721.0,"MG","Itanhandu"]
[1722.0,"MG","Itanhomi"]
[1723.0,"MG","Itaobim"]
[1724.0,"MG","Itapagipe"]
[1725.0,"MG","Itapecerica"]
[1726.0,"MG","Itapeva"]
[1727.0,"MG","Itatiaiuçu"]
[1728.0,"MG","Itaú de Minas"]
[1729.0,"MG","Itaúna"]
[1730.0,"MG","Itaverava"]
[1731.0,"MG","Itinga"]
[1732.0,"MG","Itueta"]
[1733.0,"MG","Ituiutaba"]
[1734.0,"MG","Itumirim"]
[1735.0,"MG","Iturama"]
[1736.0,"MG","Itutinga"]
[1737.0,"MG","Jaboticatubas"]
[1738.0,"MG","Jacinto"]
[1739.0,"MG","Jacuí"]
[1740.0,"MG","Jacutinga"]
[1741.0,"MG","Jaguaraçu"]
[1742.0,"MG","Jaíba"]
[1743.0,"MG","Jampruca"]
[1744.0,"MG","Janaúba"]
[1745.0,"MG","Januária"]
[1746.0,"MG","Japaraíba"]
[1747.0,"MG","Japonvar"]
[1748.0,"MG","Jeceaba"]
[1749.0,"MG","Jenipapo de Minas"]
[1750.0,"MG","Jequeri"]
[1751.0,"MG","Jequitaí"]
[1752.0,"MG","Jequitibá"]
[1753.0,"MG","Jequitinhonha"]
[1754.0,"MG","Jesuânia"]
[1755.0,"MG","Joaíma"]
[1756.0,"MG","Joanésia"]
[1757.0,"MG","João Monlevade"]
[1758.0,"MG","João Pinheiro"]
[1759.0,"MG","Joaquim Felício"]
[1760.0,"MG","Jordânia"]
[1761.0,"MG","José Gonçalves de Minas"]
[1762.0,"MG","José Raydan"]
[1763.0,"MG","Josenópolis"]
[1764.0,"MG","Juatuba"]
[1765.0,"MG","Juiz de Fora"]
[1766.0,"MG","Juramento"]
[1767.0,"MG","Juruaia"]
[1768.0,"MG","Juvenília"]
[1769.0,"MG","Ladainha"]
[1770.0,"MG","Lagamar"]
[1771.0,"MG","Lagoa da Prata"]
[1772.0,"MG","Lagoa dos Patos"]
[1773.0,"MG","Lagoa Dourada"]
[1774.0,"MG","Lagoa Formosa"]
[1775.0,"MG","Lagoa Grande"]
[1776.0,"MG","Lagoa Santa"]
[1777.0,"MG","Lajinha"]
[1778.0,"MG","Lambari"]
[1779.0,"MG","Lamim"]
[1780.0,"MG","Laranjal"]
[1781.0,"MG","Lassance"]
[1782.0,"MG","Lavras"]
[1783.0,"MG","Leandro Ferreira"]
[1784.0,"MG","Leme do Prado"]
[1785.0,"MG","Leopoldina"]
[1786.0,"MG","Liberdade"]
[1787.0,"MG","Lima Duarte"]
[1788.0,"MG","Limeira do Oeste"]
[1789.0,"MG","Lontra"]
[1790.0,"MG","Luisburgo"]
[1791.0,"MG","Luislândia"]
[1792.0,"MG","Luminárias"]
[1793.0,"MG","Luz"]
[1794.0,"MG","Machacalis"]
[1795.0,"MG","Machado"]
[1796.0,"MG","Madre de Deus de Minas"]
[1797.0,"MG","Malacacheta"]
[1798.0,"MG","Mamonas"]
[1799.0,"MG","Manga"]
[1800.0,"MG","Manhuaçu"]
[1801.0,"MG","Manhumirim"]
[1802.0,"MG","Mantena"]
[1803.0,"MG","Mar de Espanha"]
[1804.0,"MG","Maravilhas"]
[1805.0,"MG","Maria da Fé"]
[1806.0,"MG","Mariana"]
[1807.0,"MG","Marilac"]
[1808.0,"MG","Mário Campos"]
[1809.0,"MG","Maripá de Minas"]
[1810.0,"MG","Marliéria"]
[1811.0,"MG","Marmelópolis"]
[1812.0,"MG","Martinho Campos"]
[1813.0,"MG","Martins Soares"]
[1814.0,"MG","Mata Verde"]
[1815.0,"MG","Materlândia"]
[1816.0,"MG","Mateus Leme"]
[1817.0,"MG","Mathias Lobato"]
[1818.0,"MG","Matias Barbosa"]
[1819.0,"MG","Matias Cardoso"]
[1820.0,"MG","Matipó"]
[1821.0,"MG","Mato Verde"]
[1822.0,"MG","Matozinhos"]
[1823.0,"MG","Matutina"]
[1824.0,"MG","Medeiros"]
[1825.0,"MG","Medina"]
[1826.0,"MG","Mendes Pimentel"]
[1827.0,"MG","Mercês"]
[1828.0,"MG","Mesquita"]
[1829.0,"MG","Minas Novas"]
[1830.0,"MG","Minduri"]
[1831.0,"MG","Mirabela"]
[1832.0,"MG","Miradouro"]
[1833.0,"MG","Miraí"]
[1834.0,"MG","Miravânia"]
[1835.0,"MG","Moeda"]
[1836.0,"MG","Moema"]
[1837.0,"MG","Monjolos"]
[1838.0,"MG","Monsenhor Paulo"]
[1839.0,"MG","Montalvânia"]
[1840.0,"MG","Monte Alegre de Minas"]
[1841.0,"MG","Monte Azul"]
[1842.0,"MG","Monte Belo"]
[1843.0,"MG","Monte Carmelo"]
[1844.0,"MG","Monte Formoso"]
[1845.0,"MG","Monte Santo de Minas"]
[1846.0,"MG","Monte Sião"]
[1847.0,"MG","Montes Claros"]
[1848.0,"MG","Montezuma"]
[1849.0,"MG","Morada Nova de Minas"]
[1850.0,"MG","Morro da Garça"]
[1851.0,"MG","Morro do Pilar"]
[1852.0,"MG","Munhoz"]
[1853.0,"MG","Muriaé"]
[1854.0,"MG","Mutum"]
[1855.0,"MG","Muzambinho"]
[1856.0,"MG","Nacip Raydan"]
[1857.0,"MG","Nanuque"]
[1858.0,"MG","Naque"]
[1859.0,"MG","Natalândia"]
[1860.0,"MG","Natércia"]
[1861.0,"MG","Nazareno"]
[1862.0,"MG","Nepomuceno"]
[1863.0,"MG","Ninheira"]
[1864.0,"MG","Nova Belém"]
[1865.0,"MG","Nova Era"]
[1866.0,"MG","Nova Lima"]
[1867.0,"MG","Nova Módica"]
[1868.0,"MG","Nova Ponte"]
[1869.0,"MG","Nova Porteirinha"]
[1870.0,"MG","Nova Resende"]
[1871.0,"MG","Nova Serrana"]
[1872.0,"MG","Nova União"]
[1873.0,"MG","Novo Cruzeiro"]
[1874.0,"MG","Novo Oriente de Minas"]
[1875.0,"MG","Novorizonte"]
[1876.0,"MG","Olaria"]
[1877.0,"MG","Olhos-dÁgua"]
[1878.0,"MG","Olímpio Noronha"]
[1879.0,"MG","Oliveira"]
[1880.0,"MG","Oliveira Fortes"]
[1881.0,"MG","Onça de Pitangui"]
[1882.0,"MG","Oratórios"]
[1883.0,"MG","Orizânia"]
[1884.0,"MG","Ouro Branco"]
[1885.0,"MG","Ouro Fino"]
[1886.0,"MG","Ouro Preto"]
[1887.0,"MG","Ouro Verde de Minas"]
[1888.0,"MG","Padre Carvalho"]
[1889.0,"MG","Padre Paraíso"]
[1890.0,"MG","Pai Pedro"]
[1891.0,"MG","Paineiras"]
[1892.0,"MG","Pains"]
[1893.0,"MG","Paiva"]
[1894.0,"MG","Palma"]
[1895.0,"MG","Palmópolis"]
[1896.0,"MG","Papagaios"]
[1897.0,"MG","Pará de Minas"]
[1898.0,"MG","Paracatu"]
[1899.0,"MG","Paraguaçu"]
[1900.0,"MG","Paraisópolis"]
[1901.0,"MG","Paraopeba"]
[1902.0,"MG","Passa Quatro"]
[1903.0,"MG","Passa Tempo"]
[1904.0,"MG","Passabém"]
[1905.0,"MG","Passa-Vinte"]
[1906.0,"MG","Passos"]
[1907.0,"MG","Patis"]
[1908.0,"MG","Patos de Minas"]
[1909.0,"MG","Patrocínio"]
[1910.0,"MG","Patrocínio do Muriaé"]
[1911.0,"MG","Paula Cândido"]
[1912.0,"MG","Paulistas"]
[1913.0,"MG","Pavão"]
[1914.0,"MG","Peçanha"]
[1915.0,"MG","Pedra Azul"]
[1916.0,"MG","Pedra Bonita"]
[1917.0,"MG","Pedra do Anta"]
[1918.0,"MG","Pedra do Indaiá"]
[1919.0,"MG","Pedra Dourada"]
[1920.0,"MG","Pedralva"]
[1921.0,"MG","Pedras de Maria da Cruz"]
[1922.0,"MG","Pedrinópolis"]
[1923.0,"MG","Pedro Leopoldo"]
[1924.0,"MG","Pedro Teixeira"]
[1925.0,"MG","Pequeri"]
[1926.0,"MG","Pequi"]
[1927.0,"MG","Perdigão"]
[1928.0,"MG","Perdizes"]
[1929.0,"MG","Perdões"]
[1930.0,"MG","Periquito"]
[1931.0,"MG","Pescador"]
[1932.0,"MG","Piau"]
[1933.0,"MG","Piedade de Caratinga"]
[1934.0,"MG","Piedade de Ponte Nova"]
[1935.0,"MG","Piedade do Rio Grande"]
[1936.0,"MG","Piedade dos Gerais"]
[1937.0,"MG","Pimenta"]
[1938.0,"MG","Pingo-dÁgua"]
[1939.0,"MG","Pintópolis"]
[1940.0,"MG","Piracema"]
[1941.0,"MG","Pirajuba"]
[1942.0,"MG","Piranga"]
[1943.0,"MG","Piranguçu"]
[1944.0,"MG","Piranguinho"]
[1945.0,"MG","Pirapetinga"]
[1946.0,"MG","Pirapora"]
[1947.0,"MG","Piraúba"]
[1948.0,"MG","Pitangui"]
[1949.0,"MG","Piumhi"]
[1950.0,"MG","Planura"]
[1951.0,"MG","Poço Fundo"]
[1952.0,"MG","Poços de Caldas"]
[1953.0,"MG","Pocrane"]
[1954.0,"MG","Pompéu"]
[1955.0,"MG","Ponte Nova"]
[1956.0,"MG","Ponto Chique"]
[1957.0,"MG","Ponto dos Volantes"]
[1958.0,"MG","Porteirinha"]
[1959.0,"MG","Porto Firme"]
[1960.0,"MG","Poté"]
[1961.0,"MG","Pouso Alegre"]
[1962.0,"MG","Pouso Alto"]
[1963.0,"MG","Prados"]
[1964.0,"MG","Prata"]
[1965.0,"MG","Pratápolis"]
[1966.0,"MG","Pratinha"]
[1967.0,"MG","Presidente Bernardes"]
[1968.0,"MG","Presidente Juscelino"]
[1969.0,"MG","Presidente Kubitschek"]
[1970.0,"MG","Presidente Olegário"]
[1971.0,"MG","Prudente de Morais"]
[1972.0,"MG","Quartel Geral"]
[1973.0,"MG","Queluzito"]
[1974.0,"MG","Raposos"]
[1975.0,"MG","Raul Soares"]
[1976.0,"MG","Recreio"]
[1977.0,"MG","Reduto"]
[1978.0,"MG","Resende Costa"]
[1979.0,"MG","Resplendor"]
[1980.0,"MG","Ressaquinha"]
[1981.0,"MG","Riachinho"]
[1982.0,"MG","Riacho dos Machados"]
[1983.0,"MG","Ribeirão das Neves"]
[1984.0,"MG","Ribeirão Vermelho"]
[1985.0,"MG","Rio Acima"]
[1986.0,"MG","Rio Casca"]
[1987.0,"MG","Rio do Prado"]
[1988.0,"MG","Rio Doce"]
[1989.0,"MG","Rio Espera"]
[1990.0,"MG","Rio Manso"]
[1991.0,"MG","Rio Novo"]
[1992.0,"MG","Rio Paranaíba"]
[1993.0,"MG","Rio Pardo de Minas"]
[1994.0,"MG","Rio Piracicaba"]
[1995.0,"MG","Rio Pomba"]
[1996.0,"MG","Rio Preto"]
[1997.0,"MG","Rio Vermelho"]
[1998.0,"MG","Ritápolis"]
[1999.0,"MG","Rochedo de Minas"]
[2000.0,"MG","Rodeiro"]
[2001.0,"MG","Romaria"]
[2002.0,"MG","Rosário da Limeira"]
[2003.0,"MG","Rubelita"]
[2004.0,"MG","Rubim"]
[2005.0,"MG","Sabará"]
[2006.0,"MG","Sabinópolis"]
[2007.0,"MG","Sacramento"]
[2008.0,"MG","Salinas"]
[2009.0,"MG","Salto da Divisa"]
[2010.0,"MG","Santa Bárbara"]
[2011.0,"MG","Santa Bárbara do Leste"]
[2012.0,"MG","Santa Bárbara do Monte Verde"]
[2013.0,"MG","Santa Bárbara do Tugúrio"]
[2014.0,"MG","Santa Cruz de Minas"]
[2015.0,"MG","Santa Cruz de Salinas"]
[2016.0,"MG","Santa Cruz do Escalvado"]
[2017.0,"MG","Santa Efigênia de Minas"]
[2018.0,"MG","Santa Fé de Minas"]
[2019.0,"MG","Santa Helena de Minas"]
[2020.0,"MG","Santa Juliana"]
[2021.0,"MG","Santa Luzia"]
[2022.0,"MG","Santa Margarida"]
[2023.0,"MG","Santa Maria de Itabira"]
[2024.0,"MG","Santa Maria do Salto"]
[2025.0,"MG","Santa Maria do Suaçuí"]
[2026.0,"MG","Santa Rita de Caldas"]
[2027.0,"MG","Santa Rita de Ibitipoca"]
[2028.0,"MG","Santa Rita de Jacutinga"]
[2029.0,"MG","Santa Rita de Minas"]
[2030.0,"MG","Santa Rita do Itueto"]
[2031.0,"MG","Santa Rita do Sapucaí"]
[2032.0,"MG","Santa Rosa da Serra"]
[2033.0,"MG","Santa Vitória"]
[2034.0,"MG","Santana da Vargem"]
[2035.0,"MG","Santana de Cataguases"]
[2036.0,"MG","Santana de Pirapama"]
[2037.0,"MG","Santana do Deserto"]
[2038.0,"MG","Santana do Garambéu"]
[2039.0,"MG","Santana do Jacaré"]
[2040.0,"MG","Santana do Manhuaçu"]
[2041.0,"MG","Santana do Paraíso"]
[2042.0,"MG","Santana do Riacho"]
[2043.0,"MG","Santana dos Montes"]
[2044.0,"MG","Santo Antônio do Amparo"]
[2045.0,"MG","Santo Antônio do Aventureiro"]
[2046.0,"MG","Santo Antônio do Grama"]
[2047.0,"MG","Santo Antônio do Itambé"]
[2048.0,"MG","Santo Antônio do Jacinto"]
[2049.0,"MG","Santo Antônio do Monte"]
[2050.0,"MG","Santo Antônio do Retiro"]
[2051.0,"MG","Santo Antônio do Rio Abaixo"]
[2052.0,"MG","Santo Hipólito"]
[2053.0,"MG","Santos Dumont"]
[2054.0,"MG","São Bento Abade"]
[2055.0,"MG","São Brás do Suaçuí"]
[2056.0,"MG","São Domingos das Dores"]
[2057.0,"MG","São Domingos do Prata"]
[2058.0,"MG","São Félix de Minas"]
[2059.0,"MG","São Francisco"]
[2060.0,"MG","São Francisco de Paula"]
[2061.0,"MG","São Francisco de Sales"]
[2062.0,"MG","São Francisco do Glória"]
[2063.0,"MG","São Geraldo"]
[2064.0,"MG","São Geraldo da Piedade"]
[2065.0,"MG","São Geraldo do Baixio"]
[2066.0,"MG","São Gonçalo do Abaeté"]
[2067.0,"MG","São Gonçalo do Pará"]
[2068.0,"MG","São Gonçalo do Rio Abaixo"]
[2069.0,"MG","São Gonçalo do Rio Preto"]
[2070.0,"MG","São Gonçalo do Sapucaí"]
[2071.0,"MG","São Gotardo"]
[2072.0,"MG","São João Batista do Glória"]
[2073.0,"MG","São João da Lagoa"]
[2074.0,"MG","São João da Mata"]
[2075.0,"MG","São João da Ponte"]
[2076.0,"MG","São João das Missões"]
[2077.0,"MG","São João del Rei"]
[2078.0,"MG","São João do Manhuaçu"]
[2079.0,"MG","São João do Manteninha"]
[2080.0,"MG","São João do Oriente"]
[2081.0,"MG","São João do Pacuí"]
[2082.0,"MG","São João do Paraíso"]
[2083.0,"MG","São João Evangelista"]
[2084.0,"MG","São João Nepomuceno"]
[2085.0,"MG","São Joaquim de Bicas"]
[2086.0,"MG","São José da Barra"]
[2087.0,"MG","São José da Lapa"]
[2088.0,"MG","São José da Safira"]
[2089.0,"MG","São José da Varginha"]
[2090.0,"MG","São José do Alegre"]
[2091.0,"MG","São José do Divino"]
[2092.0,"MG","São José do Goiabal"]
[2093.0,"MG","São José do Jacuri"]
[2094.0,"MG","São José do Mantimento"]
[2095.0,"MG","São Lourenço"]
[2096.0,"MG","São Miguel do Anta"]
[2097.0,"MG","São Pedro da União"]
[2098.0,"MG","São Pedro do Suaçuí"]
[2099.0,"MG","São Pedro dos Ferros"]
[2100.0,"MG","São Romão"]
[2101.0,"MG","São Roque de Minas"]
[2102.0,"MG","São Sebastião da Bela Vista"]
[2103.0,"MG","São Sebastião da Vargem Alegre"]
[2104.0,"MG","São Sebastião do Anta"]
[2105.0,"MG","São Sebastião do Maranhão"]
[2106.0,"MG","São Sebastião do Oeste"]
[2107.0,"MG","São Sebastião do Paraíso"]
[2108.0,"MG","São Sebastião do Rio Preto"]
[2109.0,"MG","São Sebastião do Rio Verde"]
[2110.0,"MG","São Thomé das Letras"]
[2111.0,"MG","São Tiago"]
[2112.0,"MG","São Tomás de Aquino"]
[2113.0,"MG","São Vicente de Minas"]
[2114.0,"MG","Sapucaí-Mirim"]
[2115.0,"MG","Sardoá"]
[2116.0,"MG","Sarzedo"]
[2117.0,"MG","Sem-Peixe"]
[2118.0,"MG","Senador Amaral"]
[2119.0,"MG","Senador Cortes"]
[2120.0,"MG","Senador Firmino"]
[2121.0,"MG","Senador José Bento"]
[2122.0,"MG","Senador Modestino Gonçalves"]
[2123.0,"MG","Senhora de Oliveira"]
[2124.0,"MG","Senhora do Porto"]
[2125.0,"MG","Senhora dos Remédios"]
[2126.0,"MG","Sericita"]
[2127.0,"MG","Seritinga"]
[2128.0,"MG","Serra Azul de Minas"]
[2129.0,"MG","Serra da Saudade"]
[2130.0,"MG","Serra do Salitre"]
[2131.0,"MG","Serra dos Aimorés"]
[2132.0,"MG","Serrania"]
[2133.0,"MG","Serranópolis de Minas"]
[2134.0,"MG","Serranos"]
[2135.0,"MG","Serro"]
[2136.0,"MG","Sete Lagoas"]
[2137.0,"MG","Setubinha"]
[2138.0,"MG","Silveirânia"]
[2139.0,"MG","Silvianópolis"]
[2140.0,"MG","Simão Pereira"]
[2141.0,"MG","Simonésia"]
[2142.0,"MG","Sobrália"]
[2143.0,"MG","Soledade de Minas"]
[2144.0,"MG","Tabuleiro"]
[2145.0,"MG","Taiobeiras"]
[2146.0,"MG","Taparuba"]
[2147.0,"MG","Tapira"]
[2148.0,"MG","Tapiraí"]
[2149.0,"MG","Taquaraçu de Minas"]
[2150.0,"MG","Tarumirim"]
[2151.0,"MG","Teixeiras"]
[2152.0,"MG","Teófilo Otoni"]
[2153.0,"MG","Timóteo"]
[2154.0,"MG","Tiradentes"]
[2155.0,"MG","Tiros"]
[2156.0,"MG","Tocantins"]
[2157.0,"MG","Tocos do Moji"]
[2158.0,"MG","Toledo"]
[2159.0,"MG","Tombos"]
[2160.0,"MG","Três Corações"]
[2161.0,"MG","Três Marias"]
[2162.0,"MG","Três Pontas"]
[2163.0,"MG","Tumiritinga"]
[2164.0,"MG","Tupaciguara"]
[2165.0,"MG","Turmalina"]
[2166.0,"MG","Turvolândia"]
[2167.0,"MG","Ubá"]
[2168.0,"MG","Ubaí"]
[2169.0,"MG","Ubaporanga"]
[2170.0,"MG","Uberaba"]
[2171.0,"MG","Uberlândia"]
[2172.0,"MG","Umburatiba"]
[2173.0,"MG","Unaí"]
[2174.0,"MG","União de Minas"]
[2175.0,"MG","Uruana de Minas"]
[2176.0,"MG","Urucânia"]
[2177.0,"MG","Urucuia"]
[2178.0,"MG","Vargem Alegre"]
[2179.0,"MG","Vargem Bonita"]
[2180.0,"MG","Vargem Grande do Rio Pardo"]
[2181.0,"MG","Varginha"]
[2182.0,"MG","Varjão de Minas"]
[2183.0,"MG","Várzea da Palma"]
[2184.0,"MG","Varzelândia"]
[2185.0,"MG","Vazante"]
[2186.0,"MG","Verdelândia"]
[2187.0,"MG","Veredinha"]
[2188.0,"MG","Veríssimo"]
[2189.0,"MG","Vermelho Novo"]
[2190.0,"MG","Vespasiano"]
[2191.0,"MG","Viçosa"]
[2192.0,"MG","Vieiras"]
[2193.0,"MG","Virgem da Lapa"]
[2194.0,"MG","Virgínia"]
[2195.0,"MG","Virginópolis"]
[2196.0,"MG","Virgolândia"]
[2197.0,"MG","Visconde do Rio Branco"]
[2198.0,"MG","Volta Grande"]
[2199.0,"MG","Wenceslau Braz"]
[2200.0,"MS","Água Clara"]
[2201.0,"MS","Alcinópolis"]
[2202.0,"MS","Amambaí"]
[2203.0,"MS","Anastácio"]
[2204.0,"MS","Anaurilândia"]
[2205.0,"MS","Angélica"]
[2206.0,"MS","Antônio João"]
[2207.0,"MS","Aparecida do Taboado"]
[2208.0,"MS","Aquidauana"]
[2209.0,"MS","Aral Moreira"]
[2210.0,"MS","Bandeirantes"]
[2211.0,"MS","Bataguassu"]
[2212.0,"MS","Batayporã"]
[2213.0,"MS","Bela Vista"]
[2214.0,"MS","Bodoquena"]
[2215.0,"MS","Bonito"]
[2216.0,"MS","Brasilândia"]
[2217.0,"MS","Caarapó"]
[2218.0,"MS","Camapuã"]
[2219.0,"MS","Campo Grande"]
[2220.0,"MS","Caracol"]
[2221.0,"MS","Cassilândia"]
[2222.0,"MS","Chapadão do Sul"]
[2223.0,"MS","Corguinho"]
[2224.0,"MS","Coronel Sapucaia"]
[2225.0,"MS","Corumbá"]
[2226.0,"MS","Costa Rica"]
[2227.0,"MS","Coxim"]
[2228.0,"MS","Deodápolis"]
[2229.0,"MS","Dois Irmãos do Buriti"]
[2230.0,"MS","Douradina"]
[2231.0,"MS","Dourados"]
[2232.0,"MS","Eldorado"]
[2233.0,"MS","Fátima do Sul"]
[2234.0,"MS","Figueirão"]
[2235.0,"MS","Glória de Dourados"]
[2236.0,"MS","Guia Lopes da Laguna"]
[2237.0,"MS","Iguatemi"]
[2238.0,"MS","Inocência"]
[2239.0,"MS","Itaporã"]
[2240.0,"MS","Itaquiraí"]
[2241.0,"MS","Ivinhema"]
[2242.0,"MS","Japorã"]
[2243.0,"MS","Jaraguari"]
[2244.0,"MS","Jardim"]
[2245.0,"MS","Jateí"]
[2246.0,"MS","Juti"]
[2247.0,"MS","Ladário"]
[2248.0,"MS","Laguna Carapã"]
[2249.0,"MS","Maracaju"]
[2250.0,"MS","Miranda"]
[2251.0,"MS","Mundo Novo"]
[2252.0,"MS","Naviraí"]
[2253.0,"MS","Nioaque"]
[2254.0,"MS","Nova Alvorada do Sul"]
[2255.0,"MS","Nova Andradina"]
[2256.0,"MS","Novo Horizonte do Sul"]
[2257.0,"MS","Paraíso das Águas"]
[2258.0,"MS","Paranaíba"]
[2259.0,"MS","Paranhos"]
[2260.0,"MS","Pedro Gomes"]
[2261.0,"MS","Ponta Porã"]
[2262.0,"MS","Porto Murtinho"]
[2263.0,"MS","Ribas do Rio Pardo"]
[2264.0,"MS","Rio Brilhante"]
[2265.0,"MS","Rio Negro"]
[2266.0,"MS","Rio Verde de Mato Grosso"]
[2267.0,"MS","Rochedo"]
[2268.0,"MS","Santa Rita do Pardo"]
[2269.0,"MS","São Gabriel do Oeste"]
[2270.0,"MS","Selvíria"]
[2271.0,"MS","Sete Quedas"]
[2272.0,"MS","Sidrolândia"]
[2273.0,"MS","Sonora"]
[2274.0,"MS","Tacuru"]
[2275.0,"MS","Taquarussu"]
[2276.0,"MS","Terenos"]
[2277.0,"MS","Três Lagoas"]
[2278.0,"MS","Vicentina"]
[2279.0,"MT","Acorizal"]
[2280.0,"MT","Água Boa"]
[2281.0,"MT","Alta Floresta"]
[2282.0,"MT","Alto Araguaia"]
[2283.0,"MT","Alto Boa Vista"]
[2284.0,"MT","Alto Garças"]
[2285.0,"MT","Alto Paraguai"]
[2286.0,"MT","Alto Taquari"]
[2287.0,"MT","Apiacás"]
[2288.0,"MT","Araguaiana"]
[2289.0,"MT","Araguainha"]
[2290.0,"MT","Araputanga"]
[2291.0,"MT","Arenápolis"]
[2292.0,"MT","Aripuanã"]
[2293.0,"MT","Barão de Melgaço"]
[2294.0,"MT","Barra do Bugres"]
[2295.0,"MT","Barra do Garças"]
[2296.0,"MT","Bom Jesus do Araguaia"]
[2297.0,"MT","Brasnorte"]
[2298.0,"MT","Cáceres"]
[2299.0,"MT","Campinápolis"]
[2300.0,"MT","Campo Novo do Parecis"]
[2301.0,"MT","Campo Verde"]
[2302.0,"MT","Campos de Júlio"]
[2303.0,"MT","Canabrava do Norte"]
[2304.0,"MT","Canarana"]
[2305.0,"MT","Carlinda"]
[2306.0,"MT","Castanheira"]
[2307.0,"MT","Chapada dos Guimarães"]
[2308.0,"MT","Cláudia"]
[2309.0,"MT","Cocalinho"]
[2310.0,"MT","Colíder"]
[2311.0,"MT","Colniza"]
[2312.0,"MT","Comodoro"]
[2313.0,"MT","Confresa"]
[2314.0,"MT","Conquista DOeste"]
[2315.0,"MT","Cotriguaçu"]
[2316.0,"MT","Cuiabá"]
[2317.0,"MT","Curvelândia"]
[2318.0,"MT","Denise"]
[2319.0,"MT","Diamantino"]
[2320.0,"MT","Dom Aquino"]
[2321.0,"MT","Feliz Natal"]
[2322.0,"MT","Figueirópolis DOeste"]
[2323.0,"MT","Gaúcha do Norte"]
[2324.0,"MT","General Carneiro"]
[2325.0,"MT","Glória DOeste"]
[2326.0,"MT","Guarantã do Norte"]
[2327.0,"MT","Guiratinga"]
[2328.0,"MT","Indiavaí"]
[2329.0,"MT","Ipiranga do Norte"]
[2330.0,"MT","Itanhangá"]
[2331.0,"MT","Itaúba"]
[2332.0,"MT","Itiquira"]
[2333.0,"MT","Jaciara"]
[2334.0,"MT","Jangada"]
[2335.0,"MT","Jauru"]
[2336.0,"MT","Juara"]
[2337.0,"MT","Juína"]
[2338.0,"MT","Juruena"]
[2339.0,"MT","Juscimeira"]
[2340.0,"MT","Lambari DOeste"]
[2341.0,"MT","Lucas do Rio Verde"]
[2342.0,"MT","Luciára"]
[2343.0,"MT","Marcelândia"]
[2344.0,"MT","Matupá"]
[2345.0,"MT","Mirassol dOeste"]
[2346.0,"MT","Nobres"]
[2347.0,"MT","Nortelândia"]
[2348.0,"MT","Nossa Senhora do Livramento"]
[2349.0,"MT","Nova Bandeirantes"]
[2350.0,"MT","Nova Brasilândia"]
[2351.0,"MT","Nova Canaã do Norte"]
[2352.0,"MT","Nova Guarita"]
[2353.0,"MT","Nova Lacerda"]
[2354.0,"MT","Nova Marilândia"]
[2355.0,"MT","Nova Maringá"]
[2356.0,"MT","Nova Monte Verde"]
[2357.0,"MT","Nova Mutum"]
[2358.0,"MT","Nova Nazaré"]
[2359.0,"MT","Nova Olímpia"]
[2360.0,"MT","Nova Santa Helena"]
[2361.0,"MT","Nova Ubiratã"]
[2362.0,"MT","Nova Xavantina"]
[2363.0,"MT","Novo Horizonte do Norte"]
[2364.0,"MT","Novo Mundo"]
[2365.0,"MT","Novo Santo Antônio"]
[2366.0,"MT","Novo São Joaquim"]
[2367.0,"MT","Paranaíta"]
[2368.0,"MT","Paranatinga"]
[2369.0,"MT","Pedra Preta"]
[2370.0,"MT","Peixoto de Azevedo"]
[2371.0,"MT","Planalto da Serra"]
[2372.0,"MT","Poconé"]
[2373.0,"MT","Pontal do Araguaia"]
[2374.0,"MT","Ponte Branca"]
[2375.0,"MT","Pontes e Lacerda"]
[2376.0,"MT","Porto Alegre do Norte"]
[2377.0,"MT","Porto dos Gaúchos"]
[2378.0,"MT","Porto Esperidião"]
[2379.0,"MT","Porto Estrela"]
[2380.0,"MT","Poxoréo"]
[2381.0,"MT","Primavera do Leste"]
[2382.0,"MT","Querência"]
[2383.0,"MT","Reserva do Cabaçal"]
[2384.0,"MT","Ribeirão Cascalheira"]
[2385.0,"MT","Ribeirãozinho"]
[2386.0,"MT","Rio Branco"]
[2387.0,"MT","Rondolândia"]
[2388.0,"MT","Rondonópolis"]
[2389.0,"MT","Rosário Oeste"]
[2390.0,"MT","Salto do Céu"]
[2391.0,"MT","Santa Carmem"]
[2392.0,"MT","Santa Cruz do Xingu"]
[2393.0,"MT","Santa Rita do Trivelato"]
[2394.0,"MT","Santa Terezinha"]
[2395.0,"MT","Santo Afonso"]
[2396.0,"MT","Santo Antônio do Leste"]
[2397.0,"MT","Santo Antônio do Leverger"]
[2398.0,"MT","São Félix do Araguaia"]
[2399.0,"MT","São José do Povo"]
[2400.0,"MT","São José do Rio Claro"]
[2401.0,"MT","São José do Xingu"]
[2402.0,"MT","São José dos Quatro Marcos"]
[2403.0,"MT","São Pedro da Cipa"]
[2404.0,"MT","Sapezal"]
[2405.0,"MT","Serra Nova Dourada"]
[2406.0,"MT","Sinop"]
[2407.0,"MT","Sorriso"]
[2408.0,"MT","Tabaporã"]
[2409.0,"MT","Tangará da Serra"]
[2410.0,"MT","Tapurah"]
[2411.0,"MT","Terra Nova do Norte"]
[2412.0,"MT","Tesouro"]
[2413.0,"MT","Torixoréu"]
[2414.0,"MT","União do Sul"]
[2415.0,"MT","Vale de São Domingos"]
[2416.0,"MT","Várzea Grande"]
[2417.0,"MT","Vera"]
[2418.0,"MT","Vila Bela da Santíssima Trindade"]
[2419.0,"MT","Vila Rica"]
[2420.0,"PA","Abaetetuba"]
[2421.0,"PA","Abel Figueiredo"]
[2422.0,"PA","Acará"]
[2423.0,"PA","Afuá"]
[2424.0,"PA","Água Azul do Norte"]
[2425.0,"PA","Alenquer"]
[2426.0,"PA","Almeirim"]
[2427.0,"PA","Altamira"]
[2428.0,"PA","Anajás"]
[2429.0,"PA","Ananindeua"]
[2430.0,"PA","Anapu"]
[2431.0,"PA","Augusto Corrêa"]
[2432.0,"PA","Aurora do Pará"]
[2433.0,"PA","Aveiro"]
[2434.0,"PA","Bagre"]
[2435.0,"PA","Baião"]
[2436.0,"PA","Bannach"]
[2437.0,"PA","Barcarena"]
[2438.0,"PA","Belém"]
[2439.0,"PA","Belterra"]
[2440.0,"PA","Benevides"]
[2441.0,"PA","Bom Jesus do Tocantins"]
[2442.0,"PA","Bonito"]
[2443.0,"PA","Bragança"]
[2444.0,"PA","Brasil Novo"]
[2445.0,"PA","Brejo Grande do Araguaia"]
[2446.0,"PA","Breu Branco"]
[2447.0,"PA","Breves"]
[2448.0,"PA","Bujaru"]
[2449.0,"PA","Cachoeira do Arari"]
[2450.0,"PA","Cachoeira do Piriá"]
[2451.0,"PA","Cametá"]
[2452.0,"PA","Canaã dos Carajás"]
[2453.0,"PA","Capanema"]
[2454.0,"PA","Capitão Poço"]
[2455.0,"PA","Castanhal"]
[2456.0,"PA","Chaves"]
[2457.0,"PA","Colares"]
[2458.0,"PA","Conceição do Araguaia"]
[2459.0,"PA","Concórdia do Pará"]
[2460.0,"PA","Cumaru do Norte"]
[2461.0,"PA","Curionópolis"]
[2462.0,"PA","Curralinho"]
[2463.0,"PA","Curuá"]
[2464.0,"PA","Curuçá"]
[2465.0,"PA","Dom Eliseu"]
[2466.0,"PA","Eldorado dos Carajás"]
[2467.0,"PA","Faro"]
[2468.0,"PA","Floresta do Araguaia"]
[2469.0,"PA","Garrafão do Norte"]
[2470.0,"PA","Goianésia do Pará"]
[2471.0,"PA","Gurupá"]
[2472.0,"PA","Igarapé-Açu"]
[2473.0,"PA","Igarapé-Miri"]
[2474.0,"PA","Inhangapi"]
[2475.0,"PA","Ipixuna do Pará"]
[2476.0,"PA","Irituia"]
[2477.0,"PA","Itaituba"]
[2478.0,"PA","Itupiranga"]
[2479.0,"PA","Jacareacanga"]
[2480.0,"PA","Jacundá"]
[2481.0,"PA","Juruti"]
[2482.0,"PA","Limoeiro do Ajuru"]
[2483.0,"PA","Mãe do Rio"]
[2484.0,"PA","Magalhães Barata"]
[2485.0,"PA","Marabá"]
[2486.0,"PA","Maracanã"]
[2487.0,"PA","Marapanim"]
[2488.0,"PA","Marituba"]
[2489.0,"PA","Medicilândia"]
[2490.0,"PA","Melgaço"]
[2491.0,"PA","Mocajuba"]
[2492.0,"PA","Moju"]
[2493.0,"PA","Mojuí dos Campos"]
[2494.0,"PA","Monte Alegre"]
[2495.0,"PA","Muaná"]
[2496.0,"PA","Nova Esperança do Piriá"]
[2497.0,"PA","Nova Ipixuna"]
[2498.0,"PA","Nova Timboteua"]
[2499.0,"PA","Novo Progresso"]
[2500.0,"PA","Novo Repartimento"]
[2501.0,"PA","Óbidos"]
[2502.0,"PA","Oeiras do Pará"]
[2503.0,"PA","Oriximiná"]
[2504.0,"PA","Ourém"]
[2505.0,"PA","Ourilândia do Norte"]
[2506.0,"PA","Pacajá"]
[2507.0,"PA","Palestina do Pará"]
[2508.0,"PA","Paragominas"]
[2509.0,"PA","Parauapebas"]
[2510.0,"PA","Pau DArco"]
[2511.0,"PA","Peixe-Boi"]
[2512.0,"PA","Piçarra"]
[2513.0,"PA","Placas"]
[2514.0,"PA","Ponta de Pedras"]
[2515.0,"PA","Portel"]
[2516.0,"PA","Porto de Moz"]
[2517.0,"PA","Prainha"]
[2518.0,"PA","Primavera"]
[2519.0,"PA","Quatipuru"]
[2520.0,"PA","Redenção"]
[2521.0,"PA","Rio Maria"]
[2522.0,"PA","Rondon do Pará"]
[2523.0,"PA","Rurópolis"]
[2524.0,"PA","Salinópolis"]
[2525.0,"PA","Salvaterra"]
[2526.0,"PA","Santa Bárbara do Pará"]
[2527.0,"PA","Santa Cruz do Arari"]
[2528.0,"PA","Santa Izabel do Pará"]
[2529.0,"PA","Santa Luzia do Pará"]
[2530.0,"PA","Santa Maria das Barreiras"]
[2531.0,"PA","Santa Maria do Pará"]
[2532.0,"PA","Santana do Araguaia"]
[2533.0,"PA","Santarém"]
[2534.0,"PA","Santarém Novo"]
[2535.0,"PA","Santo Antônio do Tauá"]
[2536.0,"PA","São Caetano de Odivelas"]
[2537.0,"PA","São Domingos do Araguaia"]
[2538.0,"PA","São Domingos do Capim"]
[2539.0,"PA","São Félix do Xingu"]
[2540.0,"PA","São Francisco do Pará"]
[2541.0,"PA","São Geraldo do Araguaia"]
[2542.0,"PA","São João da Ponta"]
[2543.0,"PA","São João de Pirabas"]
[2544.0,"PA","São João do Araguaia"]
[2545.0,"PA","São Miguel do Guamá"]
[2546.0,"PA","São Sebastião da Boa Vista"]
[2547.0,"PA","Sapucaia"]
[2548.0,"PA","Senador José Porfírio"]
[2549.0,"PA","Soure"]
[2550.0,"PA","Tailândia"]
[2551.0,"PA","Terra Alta"]
[2552.0,"PA","Terra Santa"]
[2553.0,"PA","Tomé-Açu"]
[2554.0,"PA","Tracuateua"]
[2555.0,"PA","Trairão"]
[2556.0,"PA","Tucumã"]
[2557.0,"PA","Tucuruí"]
[2558.0,"PA","Ulianópolis"]
[2559.0,"PA","Uruará"]
[2560.0,"PA","Vigia"]
[2561.0,"PA","Viseu"]
[2562.0,"PA","Vitória do Xingu"]
[2563.0,"PA","Xinguara"]
[2564.0,"PB","Água Branca"]
[2565.0,"PB","Aguiar"]
[2566.0,"PB","Alagoa Grande"]
[2567.0,"PB","Alagoa Nova"]
[2568.0,"PB","Alagoinha"]
[2569.0,"PB","Alcantil"]
[2570.0,"PB","Algodão de Jandaíra"]
[2571.0,"PB","Alhandra"]
[2572.0,"PB","Amparo"]
[2573.0,"PB","Aparecida"]
[2574.0,"PB","Araçagi"]
[2575.0,"PB","Arara"]
[2576.0,"PB","Araruna"]
[2577.0,"PB","Areia"]
[2578.0,"PB","Areia de Baraúnas"]
[2579.0,"PB","Areial"]
[2580.0,"PB","Aroeiras"]
[2581.0,"PB","Assunção"]
[2582.0,"PB","Baía da Traição"]
[2583.0,"PB","Bananeiras"]
[2584.0,"PB","Baraúna"]
[2585.0,"PB","Barra de Santa Rosa"]
[2586.0,"PB","Barra de Santana"]
[2587.0,"PB","Barra de São Miguel"]
[2588.0,"PB","Bayeux"]
[2589.0,"PB","Belém"]
[2590.0,"PB","Belém do Brejo do Cruz"]
[2591.0,"PB","Bernardino Batista"]
[2592.0,"PB","Boa Ventura"]
[2593.0,"PB","Boa Vista"]
[2594.0,"PB","Bom Jesus"]
[2595.0,"PB","Bom Sucesso"]
[2596.0,"PB","Bonito de Santa Fé"]
[2597.0,"PB","Boqueirão"]
[2598.0,"PB","Borborema"]
[2599.0,"PB","Brejo do Cruz"]
[2600.0,"PB","Brejo dos Santos"]
[2601.0,"PB","Caaporã"]
[2602.0,"PB","Cabaceiras"]
[2603.0,"PB","Cabedelo"]
[2604.0,"PB","Cachoeira dos Índios"]
[2605.0,"PB","Cacimba de Areia"]
[2606.0,"PB","Cacimba de Dentro"]
[2607.0,"PB","Cacimbas"]
[2608.0,"PB","Caiçara"]
[2609.0,"PB","Cajazeiras"]
[2610.0,"PB","Cajazeirinhas"]
[2611.0,"PB","Caldas Brandão"]
[2612.0,"PB","Camalaú"]
[2613.0,"PB","Campina Grande"]
[2614.0,"PB","Capim"]
[2615.0,"PB","Caraúbas"]
[2616.0,"PB","Carrapateira"]
[2617.0,"PB","Casserengue"]
[2618.0,"PB","Catingueira"]
[2619.0,"PB","Catolé do Rocha"]
[2620.0,"PB","Caturité"]
[2621.0,"PB","Conceição"]
[2622.0,"PB","Condado"]
[2623.0,"PB","Conde"]
[2624.0,"PB","Congo"]
[2625.0,"PB","Coremas"]
[2626.0,"PB","Coxixola"]
[2627.0,"PB","Cruz do Espírito Santo"]
[2628.0,"PB","Cubati"]
[2629.0,"PB","Cuité"]
[2630.0,"PB","Cuité de Mamanguape"]
[2631.0,"PB","Cuitegi"]
[2632.0,"PB","Curral de Cima"]
[2633.0,"PB","Curral Velho"]
[2634.0,"PB","Damião"]
[2635.0,"PB","Desterro"]
[2636.0,"PB","Diamante"]
[2637.0,"PB","Dona Inês"]
[2638.0,"PB","Duas Estradas"]
[2639.0,"PB","Emas"]
[2640.0,"PB","Esperança"]
[2641.0,"PB","Fagundes"]
[2642.0,"PB","Frei Martinho"]
[2643.0,"PB","Gado Bravo"]
[2644.0,"PB","Guarabira"]
[2645.0,"PB","Gurinhém"]
[2646.0,"PB","Gurjão"]
[2647.0,"PB","Ibiara"]
[2648.0,"PB","Igaracy"]
[2649.0,"PB","Imaculada"]
[2650.0,"PB","Ingá"]
[2651.0,"PB","Itabaiana"]
[2652.0,"PB","Itaporanga"]
[2653.0,"PB","Itapororoca"]
[2654.0,"PB","Itatuba"]
[2655.0,"PB","Jacaraú"]
[2656.0,"PB","Jericó"]
[2657.0,"PB","João Pessoa"]
[2658.0,"PB","Joca Claudino"]
[2659.0,"PB","Juarez Távora"]
[2660.0,"PB","Juazeirinho"]
[2661.0,"PB","Junco do Seridó"]
[2662.0,"PB","Juripiranga"]
[2663.0,"PB","Juru"]
[2664.0,"PB","Lagoa"]
[2665.0,"PB","Lagoa de Dentro"]
[2666.0,"PB","Lagoa Seca"]
[2667.0,"PB","Lastro"]
[2668.0,"PB","Livramento"]
[2669.0,"PB","Logradouro"]
[2670.0,"PB","Lucena"]
[2671.0,"PB","Mãe dÁgua"]
[2672.0,"PB","Malta"]
[2673.0,"PB","Mamanguape"]
[2674.0,"PB","Manaíra"]
[2675.0,"PB","Marcação"]
[2676.0,"PB","Mari"]
[2677.0,"PB","Marizópolis"]
[2678.0,"PB","Massaranduba"]
[2679.0,"PB","Mataraca"]
[2680.0,"PB","Matinhas"]
[2681.0,"PB","Mato Grosso"]
[2682.0,"PB","Maturéia"]
[2683.0,"PB","Mogeiro"]
[2684.0,"PB","Montadas"]
[2685.0,"PB","Monte Horebe"]
[2686.0,"PB","Monteiro"]
[2687.0,"PB","Mulungu"]
[2688.0,"PB","Natuba"]
[2689.0,"PB","Nazarezinho"]
[2690.0,"PB","Nova Floresta"]
[2691.0,"PB","Nova Olinda"]
[2692.0,"PB","Nova Palmeira"]
[2693.0,"PB","Olho dÁgua"]
[2694.0,"PB","Olivedos"]
[2695.0,"PB","Ouro Velho"]
[2696.0,"PB","Parari"]
[2697.0,"PB","Passagem"]
[2698.0,"PB","Patos"]
[2699.0,"PB","Paulista"]
[2700.0,"PB","Pedra Branca"]
[2701.0,"PB","Pedra Lavrada"]
[2702.0,"PB","Pedras de Fogo"]
[2703.0,"PB","Pedro Régis"]
[2704.0,"PB","Piancó"]
[2705.0,"PB","Picuí"]
[2706.0,"PB","Pilar"]
[2707.0,"PB","Pilões"]
[2708.0,"PB","Pilõezinhos"]
[2709.0,"PB","Pirpirituba"]
[2710.0,"PB","Pitimbu"]
[2711.0,"PB","Pocinhos"]
[2712.0,"PB","Poço Dantas"]
[2713.0,"PB","Poço de José de Moura"]
[2714.0,"PB","Pombal"]
[2715.0,"PB","Prata"]
[2716.0,"PB","Princesa Isabel"]
[2717.0,"PB","Puxinanã"]
[2718.0,"PB","Queimadas"]
[2719.0,"PB","Quixabá"]
[2720.0,"PB","Remígio"]
[2721.0,"PB","Riachão"]
[2722.0,"PB","Riachão do Bacamarte"]
[2723.0,"PB","Riachão do Poço"]
[2724.0,"PB","Riacho de Santo Antônio"]
[2725.0,"PB","Riacho dos Cavalos"]
[2726.0,"PB","Rio Tinto"]
[2727.0,"PB","Salgadinho"]
[2728.0,"PB","Salgado de São Félix"]
[2729.0,"PB","Santa Cecília"]
[2730.0,"PB","Santa Cruz"]
[2731.0,"PB","Santa Helena"]
[2732.0,"PB","Santa Inês"]
[2733.0,"PB","Santa Luzia"]
[2734.0,"PB","Santa Rita"]
[2735.0,"PB","Santa Teresinha"]
[2736.0,"PB","Santana de Mangueira"]
[2737.0,"PB","Santana dos Garrotes"]
[2738.0,"PB","Santo André"]
[2739.0,"PB","São Bentinho"]
[2740.0,"PB","São Bento"]
[2741.0,"PB","São Domingos de Pombal"]
[2742.0,"PB","São Domingos do Cariri"]
[2743.0,"PB","São Francisco"]
[2744.0,"PB","São João do Cariri"]
[2745.0,"PB","São João do Rio do Peixe"]
[2746.0,"PB","São João do Tigre"]
[2747.0,"PB","São José da Lagoa Tapada"]
[2748.0,"PB","São José de Caiana"]
[2749.0,"PB","São José de Espinharas"]
[2750.0,"PB","São José de Piranhas"]
[2751.0,"PB","São José de Princesa"]
[2752.0,"PB","São José do Bonfim"]
[2753.0,"PB","São José do Brejo do Cruz"]
[2754.0,"PB","São José do Sabugi"]
[2755.0,"PB","São José dos Cordeiros"]
[2756.0,"PB","São José dos Ramos"]
[2757.0,"PB","São Mamede"]
[2758.0,"PB","São Miguel de Taipu"]
[2759.0,"PB","São Sebastião de Lagoa de Roça"]
[2760.0,"PB","São Sebastião do Umbuzeiro"]
[2761.0,"PB","Sapé"]
[2762.0,"PB","Seridó"]
[2763.0,"PB","Serra Branca"]
[2764.0,"PB","Serra da Raiz"]
[2765.0,"PB","Serra Grande"]
[2766.0,"PB","Serra Redonda"]
[2767.0,"PB","Serraria"]
[2768.0,"PB","Sertãozinho"]
[2769.0,"PB","Sobrado"]
[2770.0,"PB","Solânea"]
[2771.0,"PB","Soledade"]
[2772.0,"PB","Sossêgo"]
[2773.0,"PB","Sousa"]
[2774.0,"PB","Sumé"]
[2775.0,"PB","Tacima"]
[2776.0,"PB","Taperoá"]
[2777.0,"PB","Tavares"]
[2778.0,"PB","Teixeira"]
[2779.0,"PB","Tenório"]
[2780.0,"PB","Triunfo"]
[2781.0,"PB","Uiraúna"]
[2782.0,"PB","Umbuzeiro"]
[2783.0,"PB","Várzea"]
[2784.0,"PB","Vieirópolis"]
[2785.0,"PB","Vista Serrana"]
[2786.0,"PB","Zabelê"]
[2787.0,"PE","Abreu e Lima"]
[2788.0,"PE","Afogados da Ingazeira"]
[2789.0,"PE","Afrânio"]
[2790.0,"PE","Agrestina"]
[2791.0,"PE","Água Preta"]
[2792.0,"PE","Águas Belas"]
[2793.0,"PE","Alagoinha"]
[2794.0,"PE","Aliança"]
[2795.0,"PE","Altinho"]
[2796.0,"PE","Amaraji"]
[2797.0,"PE","Angelim"]
[2798.0,"PE","Araçoiaba"]
[2799.0,"PE","Araripina"]
[2800.0,"PE","Arcoverde"]
[2801.0,"PE","Barra de Guabiraba"]
[2802.0,"PE","Barreiros"]
[2803.0,"PE","Belém de Maria"]
[2804.0,"PE","Belém de São Francisco"]
[2805.0,"PE","Belo Jardim"]
[2806.0,"PE","Betânia"]
[2807.0,"PE","Bezerros"]
[2808.0,"PE","Bodocó"]
[2809.0,"PE","Bom Conselho"]
[2810.0,"PE","Bom Jardim"]
[2811.0,"PE","Bonito"]
[2812.0,"PE","Brejão"]
[2813.0,"PE","Brejinho"]
[2814.0,"PE","Brejo da Madre de Deus"]
[2815.0,"PE","Buenos Aires"]
[2816.0,"PE","Buíque"]
[2817.0,"PE","Cabo de Santo Agostinho"]
[2818.0,"PE","Cabrobó"]
[2819.0,"PE","Cachoeirinha"]
[2820.0,"PE","Caetés"]
[2821.0,"PE","Calçado"]
[2822.0,"PE","Calumbi"]
[2823.0,"PE","Camaragibe"]
[2824.0,"PE","Camocim de São Félix"]
[2825.0,"PE","Camutanga"]
[2826.0,"PE","Canhotinho"]
[2827.0,"PE","Capoeiras"]
[2828.0,"PE","Carnaíba"]
[2829.0,"PE","Carnaubeira da Penha"]
[2830.0,"PE","Carpina"]
[2831.0,"PE","Caruaru"]
[2832.0,"PE","Casinhas"]
[2833.0,"PE","Catende"]
[2834.0,"PE","Cedro"]
[2835.0,"PE","Chã de Alegria"]
[2836.0,"PE","Chã Grande"]
[2837.0,"PE","Condado"]
[2838.0,"PE","Correntes"]
[2839.0,"PE","Cortês"]
[2840.0,"PE","Cumaru"]
[2841.0,"PE","Cupira"]
[2842.0,"PE","Custódia"]
[2843.0,"PE","Dormentes"]
[2844.0,"PE","Escada"]
[2845.0,"PE","Exu"]
[2846.0,"PE","Feira Nova"]
[2847.0,"PE","Fernando de Noronha"]
[2848.0,"PE","Ferreiros"]
[2849.0,"PE","Flores"]
[2850.0,"PE","Floresta"]
[2851.0,"PE","Frei Miguelinho"]
[2852.0,"PE","Gameleira"]
[2853.0,"PE","Garanhuns"]
[2854.0,"PE","Glória do Goitá"]
[2855.0,"PE","Goiana"]
[2856.0,"PE","Granito"]
[2857.0,"PE","Gravatá"]
[2858.0,"PE","Iati"]
[2859.0,"PE","Ibimirim"]
[2860.0,"PE","Ibirajuba"]
[2861.0,"PE","Igarassu"]
[2862.0,"PE","Iguaraci"]
[2863.0,"PE","Ilha de Itamaracá"]
[2864.0,"PE","Inajá"]
[2865.0,"PE","Ingazeira"]
[2866.0,"PE","Ipojuca"]
[2867.0,"PE","Ipubi"]
[2868.0,"PE","Itacuruba"]
[2869.0,"PE","Itaíba"]
[2870.0,"PE","Itambé"]
[2871.0,"PE","Itapetim"]
[2872.0,"PE","Itapissuma"]
[2873.0,"PE","Itaquitinga"]
[2874.0,"PE","Jaboatão dos Guararapes"]
[2875.0,"PE","Jaqueira"]
[2876.0,"PE","Jataúba"]
[2877.0,"PE","Jatobá"]
[2878.0,"PE","João Alfredo"]
[2879.0,"PE","Joaquim Nabuco"]
[2880.0,"PE","Jucati"]
[2881.0,"PE","Jupi"]
[2882.0,"PE","Jurema"]
[2883.0,"PE","Lagoa do Carro"]
[2884.0,"PE","Lagoa do Itaenga"]
[2885.0,"PE","Lagoa do Ouro"]
[2886.0,"PE","Lagoa dos Gatos"]
[2887.0,"PE","Lagoa Grande"]
[2888.0,"PE","Lajedo"]
[2889.0,"PE","Limoeiro"]
[2890.0,"PE","Macaparana"]
[2891.0,"PE","Machados"]
[2892.0,"PE","Manari"]
[2893.0,"PE","Maraial"]
[2894.0,"PE","Mirandiba"]
[2895.0,"PE","Moreilândia"]
[2896.0,"PE","Moreno"]
[2897.0,"PE","Nazaré da Mata"]
[2898.0,"PE","Olinda"]
[2899.0,"PE","Orobó"]
[2900.0,"PE","Orocó"]
[2901.0,"PE","Ouricuri"]
[2902.0,"PE","Palmares"]
[2903.0,"PE","Palmeirina"]
[2904.0,"PE","Panelas"]
[2905.0,"PE","Paranatama"]
[2906.0,"PE","Parnamirim"]
[2907.0,"PE","Passira"]
[2908.0,"PE","Paudalho"]
[2909.0,"PE","Paulista"]
[2910.0,"PE","Pedra"]
[2911.0,"PE","Pesqueira"]
[2912.0,"PE","Petrolândia"]
[2913.0,"PE","Petrolina"]
[2914.0,"PE","Poção"]
[2915.0,"PE","Pombos"]
[2916.0,"PE","Primavera"]
[2917.0,"PE","Quipapá"]
[2918.0,"PE","Quixaba"]
[2919.0,"PE","Recife"]
[2920.0,"PE","Riacho das Almas"]
[2921.0,"PE","Ribeirão"]
[2922.0,"PE","Rio Formoso"]
[2923.0,"PE","Sairé"]
[2924.0,"PE","Salgadinho"]
[2925.0,"PE","Salgueiro"]
[2926.0,"PE","Saloá"]
[2927.0,"PE","Sanharó"]
[2928.0,"PE","Santa Cruz"]
[2929.0,"PE","Santa Cruz da Baixa Verde"]
[2930.0,"PE","Santa Cruz do Capibaribe"]
[2931.0,"PE","Santa Filomena"]
[2932.0,"PE","Santa Maria da Boa Vista"]
[2933.0,"PE","Santa Maria do Cambucá"]
[2934.0,"PE","Santa Terezinha"]
[2935.0,"PE","São Benedito do Sul"]
[2936.0,"PE","São Bento do Una"]
[2937.0,"PE","São Caitano"]
[2938.0,"PE","São João"]
[2939.0,"PE","São Joaquim do Monte"]
[2940.0,"PE","São José da Coroa Grande"]
[2941.0,"PE","São José do Belmonte"]
[2942.0,"PE","São José do Egito"]
[2943.0,"PE","São Lourenço da Mata"]
[2944.0,"PE","São Vicente Ferrer"]
[2945.0,"PE","Serra Talhada"]
[2946.0,"PE","Serrita"]
[2947.0,"PE","Sertânia"]
[2948.0,"PE","Sirinhaém"]
[2949.0,"PE","Solidão"]
[2950.0,"PE","Surubim"]
[2951.0,"PE","Tabira"]
[2952.0,"PE","Tacaimbó"]
[2953.0,"PE","Tacaratu"]
[2954.0,"PE","Tamandaré"]
[2955.0,"PE","Taquaritinga do Norte"]
[2956.0,"PE","Terezinha"]
[2957.0,"PE","Terra Nova"]
[2958.0,"PE","Timbaúba"]
[2959.0,"PE","Toritama"]
[2960.0,"PE","Tracunhaém"]
[2961.0,"PE","Trindade"]
[2962.0,"PE","Triunfo"]
[2963.0,"PE","Tupanatinga"]
[2964.0,"PE","Tuparetama"]
[2965.0,"PE","Venturosa"]
[2966.0,"PE","Verdejante"]
[2967.0,"PE","Vertente do Lério"]
[2968.0,"PE","Vertentes"]
[2969.0,"PE","Vicência"]
[2970.0,"PE","Vitória de Santo Antão"]
[2971.0,"PE","Xexéu"]
[2972.0,"PI","Acauã"]
[2973.0,"PI","Agricolândia"]
[2974.0,"PI","Água Branca"]
[2975.0,"PI","Alagoinha do Piauí"]
[2976.0,"PI","Alegrete do Piauí"]
[2977.0,"PI","Alto Longá"]
[2978.0,"PI","Altos"]
[2979.0,"PI","Alvorada do Gurguéia"]
[2980.0,"PI","Amarante"]
[2981.0,"PI","Angical do Piauí"]
[2982.0,"PI","Anísio de Abreu"]
[2983.0,"PI","Antônio Almeida"]
[2984.0,"PI","Aroazes"]
[2985.0,"PI","Aroeiras do Itaim"]
[2986.0,"PI","Arraial"]
[2987.0,"PI","Assunção do Piauí"]
[2988.0,"PI","Avelino Lopes"]
[2989.0,"PI","Baixa Grande do Ribeiro"]
[2990.0,"PI","Barra DAlcântara"]
[2991.0,"PI","Barras"]
[2992.0,"PI","Barreiras do Piauí"]
[2993.0,"PI","Barro Duro"]
[2994.0,"PI","Batalha"]
[2995.0,"PI","Bela Vista do Piauí"]
[2996.0,"PI","Belém do Piauí"]
[2997.0,"PI","Beneditinos"]
[2998.0,"PI","Bertolínia"]
[2999.0,"PI","Betânia do Piauí"]
[3000.0,"PI","Boa Hora"]
[3001.0,"PI","Bocaina"]
[3002.0,"PI","Bom Jesus"]
[3003.0,"PI","Bom Princípio do Piauí"]
[3004.0,"PI","Bonfim do Piauí"]
[3005.0,"PI","Boqueirão do Piauí"]
[3006.0,"PI","Brasileira"]
[3007.0,"PI","Brejo do Piauí"]
[3008.0,"PI","Buriti dos Lopes"]
[3009.0,"PI","Buriti dos Montes"]
[3010.0,"PI","Cabeceiras do Piauí"]
[3011.0,"PI","Cajazeiras do Piauí"]
[3012.0,"PI","Cajueiro da Praia"]
[3013.0,"PI","Caldeirão Grande do Piauí"]
[3014.0,"PI","Campinas do Piauí"]
[3015.0,"PI","Campo Alegre do Fidalgo"]
[3016.0,"PI","Campo Grande do Piauí"]
[3017.0,"PI","Campo Largo do Piauí"]
[3018.0,"PI","Campo Maior"]
[3019.0,"PI","Canavieira"]
[3020.0,"PI","Canto do Buriti"]
[3021.0,"PI","Capitão de Campos"]
[3022.0,"PI","Capitão Gervásio Oliveira"]
[3023.0,"PI","Caracol"]
[3024.0,"PI","Caraúbas do Piauí"]
[3025.0,"PI","Caridade do Piauí"]
[3026.0,"PI","Castelo do Piauí"]
[3027.0,"PI","Caxingó"]
[3028.0,"PI","Cocal"]
[3029.0,"PI","Cocal de Telha"]
[3030.0,"PI","Cocal dos Alves"]
[3031.0,"PI","Coivaras"]
[3032.0,"PI","Colônia do Gurguéia"]
[3033.0,"PI","Colônia do Piauí"]
[3034.0,"PI","Conceição do Canindé"]
[3035.0,"PI","Coronel José Dias"]
[3036.0,"PI","Corrente"]
[3037.0,"PI","Cristalândia do Piauí"]
[3038.0,"PI","Cristino Castro"]
[3039.0,"PI","Curimatá"]
[3040.0,"PI","Currais"]
[3041.0,"PI","Curral Novo do Piauí"]
[3042.0,"PI","Curralinhos"]
[3043.0,"PI","Demerval Lobão"]
[3044.0,"PI","Dirceu Arcoverde"]
[3045.0,"PI","Dom Expedito Lopes"]
[3046.0,"PI","Dom Inocêncio"]
[3047.0,"PI","Domingos Mourão"]
[3048.0,"PI","Elesbão Veloso"]
[3049.0,"PI","Eliseu Martins"]
[3050.0,"PI","Esperantina"]
[3051.0,"PI","Fartura do Piauí"]
[3052.0,"PI","Flores do Piauí"]
[3053.0,"PI","Floresta do Piauí"]
[3054.0,"PI","Floriano"]
[3055.0,"PI","Francinópolis"]
[3056.0,"PI","Francisco Ayres"]
[3057.0,"PI","Francisco Macedo"]
[3058.0,"PI","Francisco Santos"]
[3059.0,"PI","Fronteiras"]
[3060.0,"PI","Geminiano"]
[3061.0,"PI","Gilbués"]
[3062.0,"PI","Guadalupe"]
[3063.0,"PI","Guaribas"]
[3064.0,"PI","Hugo Napoleão"]
[3065.0,"PI","Ilha Grande"]
[3066.0,"PI","Inhuma"]
[3067.0,"PI","Ipiranga do Piauí"]
[3068.0,"PI","Isaías Coelho"]
[3069.0,"PI","Itainópolis"]
[3070.0,"PI","Itaueira"]
[3071.0,"PI","Jacobina do Piauí"]
[3072.0,"PI","Jaicós"]
[3073.0,"PI","Jardim do Mulato"]
[3074.0,"PI","Jatobá do Piauí"]
[3075.0,"PI","Jerumenha"]
[3076.0,"PI","João Costa"]
[3077.0,"PI","Joaquim Pires"]
[3078.0,"PI","Joca Marques"]
[3079.0,"PI","José de Freitas"]
[3080.0,"PI","Juazeiro do Piauí"]
[3081.0,"PI","Júlio Borges"]
[3082.0,"PI","Jurema"]
[3083.0,"PI","Lagoa Alegre"]
[3084.0,"PI","Lagoa de São Francisco"]
[3085.0,"PI","Lagoa do Barro do Piauí"]
[3086.0,"PI","Lagoa do Piauí"]
[3087.0,"PI","Lagoa do Sítio"]
[3088.0,"PI","Lagoinha do Piauí"]
[3089.0,"PI","Landri Sales"]
[3090.0,"PI","Luís Correia"]
[3091.0,"PI","Luzilândia"]
[3092.0,"PI","Madeiro"]
[3093.0,"PI","Manoel Emídio"]
[3094.0,"PI","Marcolândia"]
[3095.0,"PI","Marcos Parente"]
[3096.0,"PI","Massapê do Piauí"]
[3097.0,"PI","Matias Olímpio"]
[3098.0,"PI","Miguel Alves"]
[3099.0,"PI","Miguel Leão"]
[3100.0,"PI","Milton Brandão"]
[3101.0,"PI","Monsenhor Gil"]
[3102.0,"PI","Monsenhor Hipólito"]
[3103.0,"PI","Monte Alegre do Piauí"]
[3104.0,"PI","Morro Cabeça no Tempo"]
[3105.0,"PI","Morro do Chapéu do Piauí"]
[3106.0,"PI","Murici dos Portelas"]
[3107.0,"PI","Nazaré do Piauí"]
[3108.0,"PI","Nazária"]
[3109.0,"PI","Nossa Senhora de Nazaré"]
[3110.0,"PI","Nossa Senhora dos Remédios"]
[3111.0,"PI","Nova Santa Rita"]
[3112.0,"PI","Novo Oriente do Piauí"]
[3113.0,"PI","Novo Santo Antônio"]
[3114.0,"PI","Oeiras"]
[3115.0,"PI","Olho DÁgua do Piauí"]
[3116.0,"PI","Padre Marcos"]
[3117.0,"PI","Paes Landim"]
[3118.0,"PI","Pajeú do Piauí"]
[3119.0,"PI","Palmeira do Piauí"]
[3120.0,"PI","Palmeirais"]
[3121.0,"PI","Paquetá"]
[3122.0,"PI","Parnaguá"]
[3123.0,"PI","Parnaíba"]
[3124.0,"PI","Passagem Franca do Piauí"]
[3125.0,"PI","Patos do Piauí"]
[3126.0,"PI","Pau DArco do Piauí"]
[3127.0,"PI","Paulistana"]
[3128.0,"PI","Pavussu"]
[3129.0,"PI","Pedro II"]
[3130.0,"PI","Pedro Laurentino"]
[3131.0,"PI","Picos"]
[3132.0,"PI","Pimenteiras"]
[3133.0,"PI","Pio IX"]
[3134.0,"PI","Piracuruca"]
[3135.0,"PI","Piripiri"]
[3136.0,"PI","Porto"]
[3137.0,"PI","Porto Alegre do Piauí"]
[3138.0,"PI","Prata do Piauí"]
[3139.0,"PI","Queimada Nova"]
[3140.0,"PI","Redenção do Gurguéia"]
[3141.0,"PI","Regeneração"]
[3142.0,"PI","Riacho Frio"]
[3143.0,"PI","Ribeira do Piauí"]
[3144.0,"PI","Ribeiro Gonçalves"]
[3145.0,"PI","Rio Grande do Piauí"]
[3146.0,"PI","Santa Cruz do Piauí"]
[3147.0,"PI","Santa Cruz dos Milagres"]
[3148.0,"PI","Santa Filomena"]
[3149.0,"PI","Santa Luz"]
[3150.0,"PI","Santa Rosa do Piauí"]
[3151.0,"PI","Santana do Piauí"]
[3152.0,"PI","Santo Antônio de Lisboa"]
[3153.0,"PI","Santo Antônio dos Milagres"]
[3154.0,"PI","Santo Inácio do Piauí"]
[3155.0,"PI","São Braz do Piauí"]
[3156.0,"PI","São Félix do Piauí"]
[3157.0,"PI","São Francisco de Assis do Piauí"]
[3158.0,"PI","São Francisco do Piauí"]
[3159.0,"PI","São Gonçalo do Gurguéia"]
[3160.0,"PI","São Gonçalo do Piauí"]
[3161.0,"PI","São João da Canabrava"]
[3162.0,"PI","São João da Fronteira"]
[3163.0,"PI","São João da Serra"]
[3164.0,"PI","São João da Varjota"]
[3165.0,"PI","São João do Arraial"]
[3166.0,"PI","São João do Piauí"]
[3167.0,"PI","São José do Divino"]
[3168.0,"PI","São José do Peixe"]
[3169.0,"PI","São José do Piauí"]
[3170.0,"PI","São Julião"]
[3171.0,"PI","São Lourenço do Piauí"]
[3172.0,"PI","São Luis do Piauí"]
[3173.0,"PI","São Miguel da Baixa Grande"]
[3174.0,"PI","São Miguel do Fidalgo"]
[3175.0,"PI","São Miguel do Tapuio"]
[3176.0,"PI","São Pedro do Piauí"]
[3177.0,"PI","São Raimundo Nonato"]
[3178.0,"PI","Sebastião Barros"]
[3179.0,"PI","Sebastião Leal"]
[3180.0,"PI","Sigefredo Pacheco"]
[3181.0,"PI","Simões"]
[3182.0,"PI","Simplício Mendes"]
[3183.0,"PI","Socorro do Piauí"]
[3184.0,"PI","Sussuapara"]
[3185.0,"PI","Tamboril do Piauí"]
[3186.0,"PI","Tanque do Piauí"]
[3187.0,"PI","Teresina"]
[3188.0,"PI","União"]
[3189.0,"PI","Uruçuí"]
[3190.0,"PI","Valença do Piauí"]
[3191.0,"PI","Várzea Branca"]
[3192.0,"PI","Várzea Grande"]
[3193.0,"PI","Vera Mendes"]
[3194.0,"PI","Vila Nova do Piauí"]
[3195.0,"PI","Wall Ferraz"]
[3196.0,"PR","Abatiá"]
[3197.0,"PR","Adrianópolis"]
[3198.0,"PR","Agudos do Sul"]
[3199.0,"PR","Almirante Tamandaré"]
[3200.0,"PR","Altamira do Paraná"]
[3201.0,"PR","Alto Paraíso"]
[3202.0,"PR","Alto Paraná"]
[3203.0,"PR","Alto Piquiri"]
[3204.0,"PR","Altônia"]
[3205.0,"PR","Alvorada do Sul"]
[3206.0,"PR","Amaporã"]
[3207.0,"PR","Ampére"]
[3208.0,"PR","Anahy"]
[3209.0,"PR","Andirá"]
[3210.0,"PR","Ângulo"]
[3211.0,"PR","Antonina"]
[3212.0,"PR","Antônio Olinto"]
[3213.0,"PR","Apucarana"]
[3214.0,"PR","Arapongas"]
[3215.0,"PR","Arapoti"]
[3216.0,"PR","Arapuã"]
[3217.0,"PR","Araruna"]
[3218.0,"PR","Araucária"]
[3219.0,"PR","Ariranha do Ivaí"]
[3220.0,"PR","Assaí"]
[3221.0,"PR","Assis Chateaubriand"]
[3222.0,"PR","Astorga"]
[3223.0,"PR","Atalaia"]
[3224.0,"PR","Balsa Nova"]
[3225.0,"PR","Bandeirantes"]
[3226.0,"PR","Barbosa Ferraz"]
[3227.0,"PR","Barra do Jacaré"]
[3228.0,"PR","Barracão"]
[3229.0,"PR","Bela Vista da Caroba"]
[3230.0,"PR","Bela Vista do Paraíso"]
[3231.0,"PR","Bituruna"]
[3232.0,"PR","Boa Esperança"]
[3233.0,"PR","Boa Esperança do Iguaçu"]
[3234.0,"PR","Boa Ventura de São Roque"]
[3235.0,"PR","Boa Vista da Aparecida"]
[3236.0,"PR","Bocaiúva do Sul"]
[3237.0,"PR","Bom Jesus do Sul"]
[3238.0,"PR","Bom Sucesso"]
[3239.0,"PR","Bom Sucesso do Sul"]
[3240.0,"PR","Borrazópolis"]
[3241.0,"PR","Braganey"]
[3242.0,"PR","Brasilândia do Sul"]
[3243.0,"PR","Cafeara"]
[3244.0,"PR","Cafelândia"]
[3245.0,"PR","Cafezal do Sul"]
[3246.0,"PR","Califórnia"]
[3247.0,"PR","Cambará"]
[3248.0,"PR","Cambé"]
[3249.0,"PR","Cambira"]
[3250.0,"PR","Campina da Lagoa"]
[3251.0,"PR","Campina do Simão"]
[3252.0,"PR","Campina Grande do Sul"]
[3253.0,"PR","Campo Bonito"]
[3254.0,"PR","Campo do Tenente"]
[3255.0,"PR","Campo Largo"]
[3256.0,"PR","Campo Magro"]
[3257.0,"PR","Campo Mourão"]
[3258.0,"PR","Cândido de Abreu"]
[3259.0,"PR","Candói"]
[3260.0,"PR","Cantagalo"]
[3261.0,"PR","Capanema"]
[3262.0,"PR","Capitão Leônidas Marques"]
[3263.0,"PR","Carambeí"]
[3264.0,"PR","Carlópolis"]
[3265.0,"PR","Cascavel"]
[3266.0,"PR","Castro"]
[3267.0,"PR","Catanduvas"]
[3268.0,"PR","Centenário do Sul"]
[3269.0,"PR","Cerro Azul"]
[3270.0,"PR","Céu Azul"]
[3271.0,"PR","Chopinzinho"]
[3272.0,"PR","Cianorte"]
[3273.0,"PR","Cidade Gaúcha"]
[3274.0,"PR","Clevelândia"]
[3275.0,"PR","Colombo"]
[3276.0,"PR","Colorado"]
[3277.0,"PR","Congonhinhas"]
[3278.0,"PR","Conselheiro Mairinck"]
[3279.0,"PR","Contenda"]
[3280.0,"PR","Corbélia"]
[3281.0,"PR","Cornélio Procópio"]
[3282.0,"PR","Coronel Domingos Soares"]
[3283.0,"PR","Coronel Vivida"]
[3284.0,"PR","Corumbataí do Sul"]
[3285.0,"PR","Cruz Machado"]
[3286.0,"PR","Cruzeiro do Iguaçu"]
[3287.0,"PR","Cruzeiro do Oeste"]
[3288.0,"PR","Cruzeiro do Sul"]
[3289.0,"PR","Cruzmaltina"]
[3290.0,"PR","Curitiba"]
[3291.0,"PR","Curiúva"]
[3292.0,"PR","Diamante do Norte"]
[3293.0,"PR","Diamante do Sul"]
[3294.0,"PR","Diamante DOeste"]
[3295.0,"PR","Dois Vizinhos"]
[3296.0,"PR","Douradina"]
[3297.0,"PR","Doutor Camargo"]
[3298.0,"PR","Doutor Ulysses"]
[3299.0,"PR","Enéas Marques"]
[3300.0,"PR","Engenheiro Beltrão"]
[3301.0,"PR","Entre Rios do Oeste"]
[3302.0,"PR","Esperança Nova"]
[3303.0,"PR","Espigão Alto do Iguaçu"]
[3304.0,"PR","Farol"]
[3305.0,"PR","Faxinal"]
[3306.0,"PR","Fazenda Rio Grande"]
[3307.0,"PR","Fênix"]
[3308.0,"PR","Fernandes Pinheiro"]
[3309.0,"PR","Figueira"]
[3310.0,"PR","Flor da Serra do Sul"]
[3311.0,"PR","Floraí"]
[3312.0,"PR","Floresta"]
[3313.0,"PR","Florestópolis"]
[3314.0,"PR","Flórida"]
[3315.0,"PR","Formosa do Oeste"]
[3316.0,"PR","Foz do Iguaçu"]
[3317.0,"PR","Foz do Jordão"]
[3318.0,"PR","Francisco Alves"]
[3319.0,"PR","Francisco Beltrão"]
[3320.0,"PR","General Carneiro"]
[3321.0,"PR","Godoy Moreira"]
[3322.0,"PR","Goioerê"]
[3323.0,"PR","Goioxim"]
[3324.0,"PR","Grandes Rios"]
[3325.0,"PR","Guaíra"]
[3326.0,"PR","Guairaçá"]
[3327.0,"PR","Guamiranga"]
[3328.0,"PR","Guapirama"]
[3329.0,"PR","Guaporema"]
[3330.0,"PR","Guaraci"]
[3331.0,"PR","Guaraniaçu"]
[3332.0,"PR","Guarapuava"]
[3333.0,"PR","Guaraqueçaba"]
[3334.0,"PR","Guaratuba"]
[3335.0,"PR","Honório Serpa"]
[3336.0,"PR","Ibaiti"]
[3337.0,"PR","Ibema"]
[3338.0,"PR","Ibiporã"]
[3339.0,"PR","Icaraíma"]
[3340.0,"PR","Iguaraçu"]
[3341.0,"PR","Iguatu"]
[3342.0,"PR","Imbaú"]
[3343.0,"PR","Imbituva"]
[3344.0,"PR","Inácio Martins"]
[3345.0,"PR","Inajá"]
[3346.0,"PR","Indianópolis"]
[3347.0,"PR","Ipiranga"]
[3348.0,"PR","Iporã"]
[3349.0,"PR","Iracema do Oeste"]
[3350.0,"PR","Irati"]
[3351.0,"PR","Iretama"]
[3352.0,"PR","Itaguajé"]
[3353.0,"PR","Itaipulândia"]
[3354.0,"PR","Itambaracá"]
[3355.0,"PR","Itambé"]
[3356.0,"PR","Itapejara dOeste"]
[3357.0,"PR","Itaperuçu"]
[3358.0,"PR","Itaúna do Sul"]
[3359.0,"PR","Ivaí"]
[3360.0,"PR","Ivaiporã"]
[3361.0,"PR","Ivaté"]
[3362.0,"PR","Ivatuba"]
[3363.0,"PR","Jaboti"]
[3364.0,"PR","Jacarezinho"]
[3365.0,"PR","Jaguapitã"]
[3366.0,"PR","Jaguariaíva"]
[3367.0,"PR","Jandaia do Sul"]
[3368.0,"PR","Janiópolis"]
[3369.0,"PR","Japira"]
[3370.0,"PR","Japurá"]
[3371.0,"PR","Jardim Alegre"]
[3372.0,"PR","Jardim Olinda"]
[3373.0,"PR","Jataizinho"]
[3374.0,"PR","Jesuítas"]
[3375.0,"PR","Joaquim Távora"]
[3376.0,"PR","Jundiaí do Sul"]
[3377.0,"PR","Juranda"]
[3378.0,"PR","Jussara"]
[3379.0,"PR","Kaloré"]
[3380.0,"PR","Lapa"]
[3381.0,"PR","Laranjal"]
[3382.0,"PR","Laranjeiras do Sul"]
[3383.0,"PR","Leópolis"]
[3384.0,"PR","Lidianópolis"]
[3385.0,"PR","Lindoeste"]
[3386.0,"PR","Loanda"]
[3387.0,"PR","Lobato"]
[3388.0,"PR","Londrina"]
[3389.0,"PR","Luiziana"]
[3390.0,"PR","Lunardelli"]
[3391.0,"PR","Lupionópolis"]
[3392.0,"PR","Mallet"]
[3393.0,"PR","Mamborê"]
[3394.0,"PR","Mandaguaçu"]
[3395.0,"PR","Mandaguari"]
[3396.0,"PR","Mandirituba"]
[3397.0,"PR","Manfrinópolis"]
[3398.0,"PR","Mangueirinha"]
[3399.0,"PR","Manoel Ribas"]
[3400.0,"PR","Marechal Cândido Rondon"]
[3401.0,"PR","Maria Helena"]
[3402.0,"PR","Marialva"]
[3403.0,"PR","Marilândia do Sul"]
[3404.0,"PR","Marilena"]
[3405.0,"PR","Mariluz"]
[3406.0,"PR","Maringá"]
[3407.0,"PR","Mariópolis"]
[3408.0,"PR","Maripá"]
[3409.0,"PR","Marmeleiro"]
[3410.0,"PR","Marquinho"]
[3411.0,"PR","Marumbi"]
[3412.0,"PR","Matelândia"]
[3413.0,"PR","Matinhos"]
[3414.0,"PR","Mato Rico"]
[3415.0,"PR","Mauá da Serra"]
[3416.0,"PR","Medianeira"]
[3417.0,"PR","Mercedes"]
[3418.0,"PR","Mirador"]
[3419.0,"PR","Miraselva"]
[3420.0,"PR","Missal"]
[3421.0,"PR","Moreira Sales"]
[3422.0,"PR","Morretes"]
[3423.0,"PR","Munhoz de Melo"]
[3424.0,"PR","Nossa Senhora das Graças"]
[3425.0,"PR","Nova Aliança do Ivaí"]
[3426.0,"PR","Nova América da Colina"]
[3427.0,"PR","Nova Aurora"]
[3428.0,"PR","Nova Cantu"]
[3429.0,"PR","Nova Esperança"]
[3430.0,"PR","Nova Esperança do Sudoeste"]
[3431.0,"PR","Nova Fátima"]
[3432.0,"PR","Nova Laranjeiras"]
[3433.0,"PR","Nova Londrina"]
[3434.0,"PR","Nova Olímpia"]
[3435.0,"PR","Nova Prata do Iguaçu"]
[3436.0,"PR","Nova Santa Bárbara"]
[3437.0,"PR","Nova Santa Rosa"]
[3438.0,"PR","Nova Tebas"]
[3439.0,"PR","Novo Itacolomi"]
[3440.0,"PR","Ortigueira"]
[3441.0,"PR","Ourizona"]
[3442.0,"PR","Ouro Verde do Oeste"]
[3443.0,"PR","Paiçandu"]
[3444.0,"PR","Palmas"]
[3445.0,"PR","Palmeira"]
[3446.0,"PR","Palmital"]
[3447.0,"PR","Palotina"]
[3448.0,"PR","Paraíso do Norte"]
[3449.0,"PR","Paranacity"]
[3450.0,"PR","Paranaguá"]
[3451.0,"PR","Paranapoema"]
[3452.0,"PR","Paranavaí"]
[3453.0,"PR","Pato Bragado"]
[3454.0,"PR","Pato Branco"]
[3455.0,"PR","Paula Freitas"]
[3456.0,"PR","Paulo Frontin"]
[3457.0,"PR","Peabiru"]
[3458.0,"PR","Perobal"]
[3459.0,"PR","Pérola"]
[3460.0,"PR","Pérola dOeste"]
[3461.0,"PR","Piên"]
[3462.0,"PR","Pinhais"]
[3463.0,"PR","Pinhal de São Bento"]
[3464.0,"PR","Pinhalão"]
[3465.0,"PR","Pinhão"]
[3466.0,"PR","Piraí do Sul"]
[3467.0,"PR","Piraquara"]
[3468.0,"PR","Pitanga"]
[3469.0,"PR","Pitangueiras"]
[3470.0,"PR","Planaltina do Paraná"]
[3471.0,"PR","Planalto"]
[3472.0,"PR","Ponta Grossa"]
[3473.0,"PR","Pontal do Paraná"]
[3474.0,"PR","Porecatu"]
[3475.0,"PR","Porto Amazonas"]
[3476.0,"PR","Porto Barreiro"]
[3477.0,"PR","Porto Rico"]
[3478.0,"PR","Porto Vitória"]
[3479.0,"PR","Prado Ferreira"]
[3480.0,"PR","Pranchita"]
[3481.0,"PR","Presidente Castelo Branco"]
[3482.0,"PR","Primeiro de Maio"]
[3483.0,"PR","Prudentópolis"]
[3484.0,"PR","Quarto Centenário"]
[3485.0,"PR","Quatiguá"]
[3486.0,"PR","Quatro Barras"]
[3487.0,"PR","Quatro Pontes"]
[3488.0,"PR","Quedas do Iguaçu"]
[3489.0,"PR","Querência do Norte"]
[3490.0,"PR","Quinta do Sol"]
[3491.0,"PR","Quitandinha"]
[3492.0,"PR","Ramilândia"]
[3493.0,"PR","Rancho Alegre"]
[3494.0,"PR","Rancho Alegre DOeste"]
[3495.0,"PR","Realeza"]
[3496.0,"PR","Rebouças"]
[3497.0,"PR","Renascença"]
[3498.0,"PR","Reserva"]
[3499.0,"PR","Reserva do Iguaçu"]
[3500.0,"PR","Ribeirão Claro"]
[3501.0,"PR","Ribeirão do Pinhal"]
[3502.0,"PR","Rio Azul"]
[3503.0,"PR","Rio Bom"]
[3504.0,"PR","Rio Bonito do Iguaçu"]
[3505.0,"PR","Rio Branco do Ivaí"]
[3506.0,"PR","Rio Branco do Sul"]
[3507.0,"PR","Rio Negro"]
[3508.0,"PR","Rolândia"]
[3509.0,"PR","Roncador"]
[3510.0,"PR","Rondon"]
[3511.0,"PR","Rosário do Ivaí"]
[3512.0,"PR","Sabáudia"]
[3513.0,"PR","Salgado Filho"]
[3514.0,"PR","Salto do Itararé"]
[3515.0,"PR","Salto do Lontra"]
[3516.0,"PR","Santa Amélia"]
[3517.0,"PR","Santa Cecília do Pavão"]
[3518.0,"PR","Santa Cruz de Monte Castelo"]
[3519.0,"PR","Santa Fé"]
[3520.0,"PR","Santa Helena"]
[3521.0,"PR","Santa Inês"]
[3522.0,"PR","Santa Isabel do Ivaí"]
[3523.0,"PR","Santa Izabel do Oeste"]
[3524.0,"PR","Santa Lúcia"]
[3525.0,"PR","Santa Maria do Oeste"]
[3526.0,"PR","Santa Mariana"]
[3527.0,"PR","Santa Mônica"]
[3528.0,"PR","Santa Tereza do Oeste"]
[3529.0,"PR","Santa Terezinha de Itaipu"]
[3530.0,"PR","Santana do Itararé"]
[3531.0,"PR","Santo Antônio da Platina"]
[3532.0,"PR","Santo Antônio do Caiuá"]
[3533.0,"PR","Santo Antônio do Paraíso"]
[3534.0,"PR","Santo Antônio do Sudoeste"]
[3535.0,"PR","Santo Inácio"]
[3536.0,"PR","São Carlos do Ivaí"]
[3537.0,"PR","São Jerônimo da Serra"]
[3538.0,"PR","São João"]
[3539.0,"PR","São João do Caiuá"]
[3540.0,"PR","São João do Ivaí"]
[3541.0,"PR","São João do Triunfo"]
[3542.0,"PR","São Jorge do Ivaí"]
[3543.0,"PR","São Jorge do Patrocínio"]
[3544.0,"PR","São Jorge dOeste"]
[3545.0,"PR","São José da Boa Vista"]
[3546.0,"PR","São José das Palmeiras"]
[3547.0,"PR","São José dos Pinhais"]
[3548.0,"PR","São Manoel do Paraná"]
[3549.0,"PR","São Mateus do Sul"]
[3550.0,"PR","São Miguel do Iguaçu"]
[3551.0,"PR","São Pedro do Iguaçu"]
[3552.0,"PR","São Pedro do Ivaí"]
[3553.0,"PR","São Pedro do Paraná"]
[3554.0,"PR","São Sebastião da Amoreira"]
[3555.0,"PR","São Tomé"]
[3556.0,"PR","Sapopema"]
[3557.0,"PR","Sarandi"]
[3558.0,"PR","Saudade do Iguaçu"]
[3559.0,"PR","Sengés"]
[3560.0,"PR","Serranópolis do Iguaçu"]
[3561.0,"PR","Sertaneja"]
[3562.0,"PR","Sertanópolis"]
[3563.0,"PR","Siqueira Campos"]
[3564.0,"PR","Sulina"]
[3565.0,"PR","Tamarana"]
[3566.0,"PR","Tamboara"]
[3567.0,"PR","Tapejara"]
[3568.0,"PR","Tapira"]
[3569.0,"PR","Teixeira Soares"]
[3570.0,"PR","Telêmaco Borba"]
[3571.0,"PR","Terra Boa"]
[3572.0,"PR","Terra Rica"]
[3573.0,"PR","Terra Roxa"]
[3574.0,"PR","Tibagi"]
[3575.0,"PR","Tijucas do Sul"]
[3576.0,"PR","Toledo"]
[3577.0,"PR","Tomazina"]
[3578.0,"PR","Três Barras do Paraná"]
[3579.0,"PR","Tunas do Paraná"]
[3580.0,"PR","Tuneiras do Oeste"]
[3581.0,"PR","Tupãssi"]
[3582.0,"PR","Turvo"]
[3583.0,"PR","Ubiratã"]
[3584.0,"PR","Umuarama"]
[3585.0,"PR","União da Vitória"]
[3586.0,"PR","Uniflor"]
[3587.0,"PR","Uraí"]
[3588.0,"PR","Ventania"]
[3589.0,"PR","Vera Cruz do Oeste"]
[3590.0,"PR","Verê"]
[3591.0,"PR","Virmond"]
[3592.0,"PR","Vitorino"]
[3593.0,"PR","Wenceslau Braz"]
[3594.0,"PR","Xambrê"]
[3595.0,"RJ","Angra dos Reis"]
[3596.0,"RJ","Aperibé"]
[3597.0,"RJ","Araruama"]
[3598.0,"RJ","Areal"]
[3599.0,"RJ","Armação dos Búzios"]
[3600.0,"RJ","Arraial do Cabo"]
[3601.0,"RJ","Barra do Piraí"]
[3602.0,"RJ","Barra Mansa"]
[3603.0,"RJ","Belford Roxo"]
[3604.0,"RJ","Bom Jardim"]
[3605.0,"RJ","Bom Jesus do Itabapoana"]
[3606.0,"RJ","Cabo Frio"]
[3607.0,"RJ","Cachoeiras de Macacu"]
[3608.0,"RJ","Cambuci"]
[3609.0,"RJ","Campos dos Goytacazes"]
[3610.0,"RJ","Cantagalo"]
[3611.0,"RJ","Carapebus"]
[3612.0,"RJ","Cardoso Moreira"]
[3613.0,"RJ","Carmo"]
[3614.0,"RJ","Casimiro de Abreu"]
[3615.0,"RJ","Comendador Levy Gasparian"]
[3616.0,"RJ","Conceição de Macabu"]
[3617.0,"RJ","Cordeiro"]
[3618.0,"RJ","Duas Barras"]
[3619.0,"RJ","Duque de Caxias"]
[3620.0,"RJ","Engenheiro Paulo de Frontin"]
[3621.0,"RJ","Guapimirim"]
[3622.0,"RJ","Iguaba Grande"]
[3623.0,"RJ","Itaboraí"]
[3624.0,"RJ","Itaguaí"]
[3625.0,"RJ","Italva"]
[3626.0,"RJ","Itaocara"]
[3627.0,"RJ","Itaperuna"]
[3628.0,"RJ","Itatiaia"]
[3629.0,"RJ","Japeri"]
[3630.0,"RJ","Laje do Muriaé"]
[3631.0,"RJ","Macaé"]
[3632.0,"RJ","Macuco"]
[3633.0,"RJ","Magé"]
[3634.0,"RJ","Mangaratiba"]
[3635.0,"RJ","Maricá"]
[3636.0,"RJ","Mendes"]
[3637.0,"RJ","Mesquita"]
[3638.0,"RJ","Miguel Pereira"]
[3639.0,"RJ","Miracema"]
[3640.0,"RJ","Natividade"]
[3641.0,"RJ","Nilópolis"]
[3642.0,"RJ","Niterói"]
[3643.0,"RJ","Nova Friburgo"]
[3644.0,"RJ","Nova Iguaçu"]
[3645.0,"RJ","Paracambi"]
[3646.0,"RJ","Paraíba do Sul"]
[3647.0,"RJ","Parati"]
[3648.0,"RJ","Paty do Alferes"]
[3649.0,"RJ","Petrópolis"]
[3650.0,"RJ","Pinheiral"]
[3651.0,"RJ","Piraí"]
[3652.0,"RJ","Porciúncula"]
[3653.0,"RJ","Porto Real"]
[3654.0,"RJ","Quatis"]
[3655.0,"RJ","Queimados"]
[3656.0,"RJ","Quissamã"]
[3657.0,"RJ","Resende"]
[3658.0,"RJ","Rio Bonito"]
[3659.0,"RJ","Rio Claro"]
[3660.0,"RJ","Rio das Flores"]
[3661.0,"RJ","Rio das Ostras"]
[3662.0,"RJ","Rio de Janeiro"]
[3663.0,"RJ","Santa Maria Madalena"]
[3664.0,"RJ","Santo Antônio de Pádua"]
[3665.0,"RJ","São Fidélis"]
[3666.0,"RJ","São Francisco de Itabapoana"]
[3667.0,"RJ","São Gonçalo"]
[3668.0,"RJ","São João da Barra"]
[3669.0,"RJ","São João de Meriti"]
[3670.0,"RJ","São José de Ubá"]
[3671.0,"RJ","São José do Vale do Rio Preto"]
[3672.0,"RJ","São Pedro da Aldeia"]
[3673.0,"RJ","São Sebastião do Alto"]
[3674.0,"RJ","Sapucaia"]
[3675.0,"RJ","Saquarema"]
[3676.0,"RJ","Seropédica"]
[3677.0,"RJ","Silva Jardim"]
[3678.0,"RJ","Sumidouro"]
[3679.0,"RJ","Tanguá"]
[3680.0,"RJ","Teresópolis"]
[3681.0,"RJ","Trajano de Morais"]
[3682.0,"RJ","Três Rios"]
[3683.0,"RJ","Valença"]
[3684.0,"RJ","Varre-Sai"]
[3685.0,"RJ","Vassouras"]
[3686.0,"RJ","Volta Redonda"]
[3687.0,"RN","Acari"]
[3688.0,"RN","Açu"]
[3689.0,"RN","Afonso Bezerra"]
[3690.0,"RN","Água Nova"]
[3691.0,"RN","Alexandria"]
[3692.0,"RN","Almino Afonso"]
[3693.0,"RN","Alto do Rodrigues"]
[3694.0,"RN","Angicos"]
[3695.0,"RN","Antônio Martins"]
[3696.0,"RN","Apodi"]
[3697.0,"RN","Areia Branca"]
[3698.0,"RN","Arês"]
[3699.0,"RN","Augusto Severo"]
[3700.0,"RN","Baía Formosa"]
[3701.0,"RN","Baraúna"]
[3702.0,"RN","Barcelona"]
[3703.0,"RN","Bento Fernandes"]
[3704.0,"RN","Bodó"]
[3705.0,"RN","Bom Jesus"]
[3706.0,"RN","Brejinho"]
[3707.0,"RN","Caiçara do Norte"]
[3708.0,"RN","Caiçara do Rio do Vento"]
[3709.0,"RN","Caicó"]
[3710.0,"RN","Campo Redondo"]
[3711.0,"RN","Canguaretama"]
[3712.0,"RN","Caraúbas"]
[3713.0,"RN","Carnaúba dos Dantas"]
[3714.0,"RN","Carnaubais"]
[3715.0,"RN","Ceará-Mirim"]
[3716.0,"RN","Cerro Corá"]
[3717.0,"RN","Coronel Ezequiel"]
[3718.0,"RN","Coronel João Pessoa"]
[3719.0,"RN","Cruzeta"]
[3720.0,"RN","Currais Novos"]
[3721.0,"RN","Doutor Severiano"]
[3722.0,"RN","Encanto"]
[3723.0,"RN","Equador"]
[3724.0,"RN","Espírito Santo"]
[3725.0,"RN","Extremoz"]
[3726.0,"RN","Felipe Guerra"]
[3727.0,"RN","Fernando Pedroza"]
[3728.0,"RN","Florânia"]
[3729.0,"RN","Francisco Dantas"]
[3730.0,"RN","Frutuoso Gomes"]
[3731.0,"RN","Galinhos"]
[3732.0,"RN","Goianinha"]
[3733.0,"RN","Governador Dix-Sept Rosado"]
[3734.0,"RN","Grossos"]
[3735.0,"RN","Guamaré"]
[3736.0,"RN","Ielmo Marinho"]
[3737.0,"RN","Ipanguaçu"]
[3738.0,"RN","Ipueira"]
[3739.0,"RN","Itajá"]
[3740.0,"RN","Itaú"]
[3741.0,"RN","Jaçanã"]
[3742.0,"RN","Jandaíra"]
[3743.0,"RN","Janduís"]
[3744.0,"RN","Januário Cicco"]
[3745.0,"RN","Japi"]
[3746.0,"RN","Jardim de Angicos"]
[3747.0,"RN","Jardim de Piranhas"]
[3748.0,"RN","Jardim do Seridó"]
[3749.0,"RN","João Câmara"]
[3750.0,"RN","João Dias"]
[3751.0,"RN","José da Penha"]
[3752.0,"RN","Jucurutu"]
[3753.0,"RN","Jundiá"]
[3754.0,"RN","Lagoa dAnta"]
[3755.0,"RN","Lagoa de Pedras"]
[3756.0,"RN","Lagoa de Velhos"]
[3757.0,"RN","Lagoa Nova"]
[3758.0,"RN","Lagoa Salgada"]
[3759.0,"RN","Lajes"]
[3760.0,"RN","Lajes Pintadas"]
[3761.0,"RN","Lucrécia"]
[3762.0,"RN","Luís Gomes"]
[3763.0,"RN","Macaíba"]
[3764.0,"RN","Macau"]
[3765.0,"RN","Major Sales"]
[3766.0,"RN","Marcelino Vieira"]
[3767.0,"RN","Martins"]
[3768.0,"RN","Maxaranguape"]
[3769.0,"RN","Messias Targino"]
[3770.0,"RN","Montanhas"]
[3771.0,"RN","Monte Alegre"]
[3772.0,"RN","Monte das Gameleiras"]
[3773.0,"RN","Mossoró"]
[3774.0,"RN","Natal"]
[3775.0,"RN","Nísia Floresta"]
[3776.0,"RN","Nova Cruz"]
[3777.0,"RN","Olho-dÁgua do Borges"]
[3778.0,"RN","Ouro Branco"]
[3779.0,"RN","Paraná"]
[3780.0,"RN","Paraú"]
[3781.0,"RN","Parazinho"]
[3782.0,"RN","Parelhas"]
[3783.0,"RN","Parnamirim"]
[3784.0,"RN","Passa e Fica"]
[3785.0,"RN","Passagem"]
[3786.0,"RN","Patu"]
[3787.0,"RN","Pau dos Ferros"]
[3788.0,"RN","Pedra Grande"]
[3789.0,"RN","Pedra Preta"]
[3790.0,"RN","Pedro Avelino"]
[3791.0,"RN","Pedro Velho"]
[3792.0,"RN","Pendências"]
[3793.0,"RN","Pilões"]
[3794.0,"RN","Poço Branco"]
[3795.0,"RN","Portalegre"]
[3796.0,"RN","Porto do Mangue"]
[3797.0,"RN","Pureza"]
[3798.0,"RN","Rafael Fernandes"]
[3799.0,"RN","Rafael Godeiro"]
[3800.0,"RN","Riacho da Cruz"]
[3801.0,"RN","Riacho de Santana"]
[3802.0,"RN","Riachuelo"]
[3803.0,"RN","Rio do Fogo"]
[3804.0,"RN","Rodolfo Fernandes"]
[3805.0,"RN","Ruy Barbosa"]
[3806.0,"RN","Santa Cruz"]
[3807.0,"RN","Santa Maria"]
[3808.0,"RN","Santana do Matos"]
[3809.0,"RN","Santana do Seridó"]
[3810.0,"RN","Santo Antônio"]
[3811.0,"RN","São Bento do Norte"]
[3812.0,"RN","São Bento do Trairí"]
[3813.0,"RN","São Fernando"]
[3814.0,"RN","São Francisco do Oeste"]
[3815.0,"RN","São Gonçalo do Amarante"]
[3816.0,"RN","São João do Sabugi"]
[3817.0,"RN","São José de Mipibu"]
[3818.0,"RN","São José do Campestre"]
[3819.0,"RN","São José do Seridó"]
[3820.0,"RN","São Miguel"]
[3821.0,"RN","São Miguel do Gostoso"]
[3822.0,"RN","São Paulo do Potengi"]
[3823.0,"RN","São Pedro"]
[3824.0,"RN","São Rafael"]
[3825.0,"RN","São Tomé"]
[3826.0,"RN","São Vicente"]
[3827.0,"RN","Senador Elói de Souza"]
[3828.0,"RN","Senador Georgino Avelino"]
[3829.0,"RN","Serra Caiada***"]
[3830.0,"RN","Serra de São Bento"]
[3831.0,"RN","Serra do Mel"]
[3832.0,"RN","Serra Negra do Norte"]
[3833.0,"RN","Serrinha"]
[3834.0,"RN","Serrinha dos Pintos"]
[3835.0,"RN","Severiano Melo"]
[3836.0,"RN","Sítio Novo"]
[3837.0,"RN","Taboleiro Grande"]
[3838.0,"RN","Taipu"]
[3839.0,"RN","Tangará"]
[3840.0,"RN","Tenente Ananias"]
[3841.0,"RN","Tenente Laurentino Cruz"]
[3842.0,"RN","Tibau"]
[3843.0,"RN","Tibau do Sul"]
[3844.0,"RN","Timbaúba dos Batistas"]
[3845.0,"RN","Touros"]
[3846.0,"RN","Triunfo Potiguar"]
[3847.0,"RN","Umarizal"]
[3848.0,"RN","Upanema"]
[3849.0,"RN","Várzea"]
[3850.0,"RN","Venha-Ver"]
[3851.0,"RN","Vera Cruz"]
[3852.0,"RN","Viçosa"]
[3853.0,"RN","Vila Flor"]
[3854.0,"RO","Alta Floresta DOeste"]
[3855.0,"RO","Alto Alegre dos Parecis"]
[3856.0,"RO","Alto Paraíso"]
[3857.0,"RO","Alvorada DOeste"]
[3858.0,"RO","Ariquemes"]
[3859.0,"RO","Buritis"]
[3860.0,"RO","Cabixi"]
[3861.0,"RO","Cacaulândia"]
[3862.0,"RO","Cacoal"]
[3863.0,"RO","Campo Novo de Rondônia"]
[3864.0,"RO","Candeias do Jamari"]
[3865.0,"RO","Castanheiras"]
[3866.0,"RO","Cerejeiras"]
[3867.0,"RO","Chupinguaia"]
[3868.0,"RO","Colorado do Oeste"]
[3869.0,"RO","Corumbiara"]
[3870.0,"RO","Costa Marques"]
[3871.0,"RO","Cujubim"]
[3872.0,"RO","Espigão DOeste"]
[3873.0,"RO","Governador Jorge Teixeira"]
[3874.0,"RO","Guajará-Mirim"]
[3875.0,"RO","Itapuã do Oeste"]
[3876.0,"RO","Jaru"]
[3877.0,"RO","Ji-Paraná"]
[3878.0,"RO","Machadinho DOeste"]
[3879.0,"RO","Ministro Andreazza"]
[3880.0,"RO","Mirante da Serra"]
[3881.0,"RO","Monte Negro"]
[3882.0,"RO","Nova Brasilândia DOeste"]
[3883.0,"RO","Nova Mamoré"]
[3884.0,"RO","Nova União"]
[3885.0,"RO","Novo Horizonte do Oeste"]
[3886.0,"RO","Ouro Preto do Oeste"]
[3887.0,"RO","Parecis"]
[3888.0,"RO","Pimenta Bueno"]
[3889.0,"RO","Pimenteiras do Oeste"]
[3890.0,"RO","Porto Velho"]
[3891.0,"RO","Presidente Médici"]
[3892.0,"RO","Primavera de Rondônia"]
[3893.0,"RO","Rio Crespo"]
[3894.0,"RO","Rolim de Moura"]
[3895.0,"RO","Santa Luzia DOeste"]
[3896.0,"RO","São Felipe DOeste"]
[3897.0,"RO","São Francisco do Guaporé"]
[3898.0,"RO","São Miguel do Guaporé"]
[3899.0,"RO","Seringueiras"]
[3900.0,"RO","Teixeirópolis"]
[3901.0,"RO","Theobroma"]
[3902.0,"RO","Urupá"]
[3903.0,"RO","Vale do Anari"]
[3904.0,"RO","Vale do Paraíso"]
[3905.0,"RO","Vilhena"]
[3906.0,"RR","Alto Alegre"]
[3907.0,"RR","Amajari"]
[3908.0,"RR","Boa Vista"]
[3909.0,"RR","Bonfim"]
[3910.0,"RR","Cantá"]
[3911.0,"RR","Caracaraí"]
[3912.0,"RR","Caroebe"]
[3913.0,"RR","Iracema"]
[3914.0,"RR","Mucajaí"]
[3915.0,"RR","Normandia"]
[3916.0,"RR","Pacaraima"]
[3917.0,"RR","Rorainópolis"]
[3918.0,"RR","São João da Baliza"]
[3919.0,"RR","São Luiz"]
[3920.0,"RR","Uiramutã"]
[3921.0,"RS","Aceguá"]
[3922.0,"RS","Água Santa"]
[3923.0,"RS","Agudo"]
[3924.0,"RS","Ajuricaba"]
[3925.0,"RS","Alecrim"]
[3926.0,"RS","Alegrete"]
[3927.0,"RS","Alegria"]
[3928.0,"RS","Almirante Tamandaré do Sul"]
[3929.0,"RS","Alpestre"]
[3930.0,"RS","Alto Alegre"]
[3931.0,"RS","Alto Feliz"]
[3932.0,"RS","Alvorada"]
[3933.0,"RS","Amaral Ferrador"]
[3934.0,"RS","Ametista do Sul"]
[3935.0,"RS","André da Rocha"]
[3936.0,"RS","Anta Gorda"]
[3937.0,"RS","Antônio Prado"]
[3938.0,"RS","Arambaré"]
[3939.0,"RS","Araricá"]
[3940.0,"RS","Aratiba"]
[3941.0,"RS","Arroio do Meio"]
[3942.0,"RS","Arroio do Padre"]
[3943.0,"RS","Arroio do Sal"]
[3944.0,"RS","Arroio do Tigre"]
[3945.0,"RS","Arroio dos Ratos"]
[3946.0,"RS","Arroio Grande"]
[3947.0,"RS","Arvorezinha"]
[3948.0,"RS","Augusto Pestana"]
[3949.0,"RS","Áurea"]
[3950.0,"RS","Bagé"]
[3951.0,"RS","Balneário Pinhal"]
[3952.0,"RS","Barão"]
[3953.0,"RS","Barão de Cotegipe"]
[3954.0,"RS","Barão do Triunfo"]
[3955.0,"RS","Barra do Guarita"]
[3956.0,"RS","Barra do Quaraí"]
[3957.0,"RS","Barra do Ribeiro"]
[3958.0,"RS","Barra do Rio Azul"]
[3959.0,"RS","Barra Funda"]
[3960.0,"RS","Barracão"]
[3961.0,"RS","Barros Cassal"]
[3962.0,"RS","Benjamin Constant do Sul"]
[3963.0,"RS","Bento Gonçalves"]
[3964.0,"RS","Boa Vista das Missões"]
[3965.0,"RS","Boa Vista do Buricá"]
[3966.0,"RS","Boa Vista do Cadeado"]
[3967.0,"RS","Boa Vista do Incra"]
[3968.0,"RS","Boa Vista do Sul"]
[3969.0,"RS","Bom Jesus"]
[3970.0,"RS","Bom Princípio"]
[3971.0,"RS","Bom Progresso"]
[3972.0,"RS","Bom Retiro do Sul"]
[3973.0,"RS","Boqueirão do Leão"]
[3974.0,"RS","Bossoroca"]
[3975.0,"RS","Bozano"]
[3976.0,"RS","Braga"]
[3977.0,"RS","Brochier"]
[3978.0,"RS","Butiá"]
[3979.0,"RS","Caçapava do Sul"]
[3980.0,"RS","Cacequi"]
[3981.0,"RS","Cachoeira do Sul"]
[3982.0,"RS","Cachoeirinha"]
[3983.0,"RS","Cacique Doble"]
[3984.0,"RS","Caibaté"]
[3985.0,"RS","Caiçara"]
[3986.0,"RS","Camaquã"]
[3987.0,"RS","Camargo"]
[3988.0,"RS","Cambará do Sul"]
[3989.0,"RS","Campestre da Serra"]
[3990.0,"RS","Campina das Missões"]
[3991.0,"RS","Campinas do Sul"]
[3992.0,"RS","Campo Bom"]
[3993.0,"RS","Campo Novo"]
[3994.0,"RS","Campos Borges"]
[3995.0,"RS","Candelária"]
[3996.0,"RS","Cândido Godói"]
[3997.0,"RS","Candiota"]
[3998.0,"RS","Canela"]
[3999.0,"RS","Canguçu"]
[4000.0,"RS","Canoas"]
[4001.0,"RS","Canudos do Vale"]
[4002.0,"RS","Capão Bonito do Sul"]
[4003.0,"RS","Capão da Canoa"]
[4004.0,"RS","Capão do Cipó"]
[4005.0,"RS","Capão do Leão"]
[4006.0,"RS","Capela de Santana"]
[4007.0,"RS","Capitão"]
[4008.0,"RS","Capivari do Sul"]
[4009.0,"RS","Caraá"]
[4010.0,"RS","Carazinho"]
[4011.0,"RS","Carlos Barbosa"]
[4012.0,"RS","Carlos Gomes"]
[4013.0,"RS","Casca"]
[4014.0,"RS","Caseiros"]
[4015.0,"RS","Catuípe"]
[4016.0,"RS","Caxias do Sul"]
[4017.0,"RS","Centenário"]
[4018.0,"RS","Cerrito"]
[4019.0,"RS","Cerro Branco"]
[4020.0,"RS","Cerro Grande"]
[4021.0,"RS","Cerro Grande do Sul"]
[4022.0,"RS","Cerro Largo"]
[4023.0,"RS","Chapada"]
[4024.0,"RS","Charqueadas"]
[4025.0,"RS","Charrua"]
[4026.0,"RS","Chiapetta"]
[4027.0,"RS","Chuí"]
[4028.0,"RS","Chuvisca"]
[4029.0,"RS","Cidreira"]
[4030.0,"RS","Ciríaco"]
[4031.0,"RS","Colinas"]
[4032.0,"RS","Colorado"]
[4033.0,"RS","Condor"]
[4034.0,"RS","Constantina"]
[4035.0,"RS","Coqueiro Baixo"]
[4036.0,"RS","Coqueiros do Sul"]
[4037.0,"RS","Coronel Barros"]
[4038.0,"RS","Coronel Bicaco"]
[4039.0,"RS","Coronel Pilar"]
[4040.0,"RS","Cotiporã"]
[4041.0,"RS","Coxilha"]
[4042.0,"RS","Crissiumal"]
[4043.0,"RS","Cristal"]
[4044.0,"RS","Cristal do Sul"]
[4045.0,"RS","Cruz Alta"]
[4046.0,"RS","Cruzaltense"]
[4047.0,"RS","Cruzeiro do Sul"]
[4048.0,"RS","David Canabarro"]
[4049.0,"RS","Derrubadas"]
[4050.0,"RS","Dezesseis de Novembro"]
[4051.0,"RS","Dilermando de Aguiar"]
[4052.0,"RS","Dois Irmãos"]
[4053.0,"RS","Dois Irmãos das Missões"]
[4054.0,"RS","Dois Lajeados"]
[4055.0,"RS","Dom Feliciano"]
[4056.0,"RS","Dom Pedrito"]
[4057.0,"RS","Dom Pedro de Alcântara"]
[4058.0,"RS","Dona Francisca"]
[4059.0,"RS","Doutor Maurício Cardoso"]
[4060.0,"RS","Doutor Ricardo"]
[4061.0,"RS","Eldorado do Sul"]
[4062.0,"RS","Encantado"]
[4063.0,"RS","Encruzilhada do Sul"]
[4064.0,"RS","Engenho Velho"]
[4065.0,"RS","Entre Rios do Sul"]
[4066.0,"RS","Entre-Ijuís"]
[4067.0,"RS","Erebango"]
[4068.0,"RS","Erechim"]
[4069.0,"RS","Ernestina"]
[4070.0,"RS","Erval Grande"]
[4071.0,"RS","Erval Seco"]
[4072.0,"RS","Esmeralda"]
[4073.0,"RS","Esperança do Sul"]
[4074.0,"RS","Espumoso"]
[4075.0,"RS","Estação"]
[4076.0,"RS","Estância Velha"]
[4077.0,"RS","Esteio"]
[4078.0,"RS","Estrela"]
[4079.0,"RS","Estrela Velha"]
[4080.0,"RS","Eugênio de Castro"]
[4081.0,"RS","Fagundes Varela"]
[4082.0,"RS","Farroupilha"]
[4083.0,"RS","Faxinal do Soturno"]
[4084.0,"RS","Faxinalzinho"]
[4085.0,"RS","Fazenda Vilanova"]
[4086.0,"RS","Feliz"]
[4087.0,"RS","Flores da Cunha"]
[4088.0,"RS","Floriano Peixoto"]
[4089.0,"RS","Fontoura Xavier"]
[4090.0,"RS","Formigueiro"]
[4091.0,"RS","Forquetinha"]
[4092.0,"RS","Fortaleza dos Valos"]
[4093.0,"RS","Frederico Westphalen"]
[4094.0,"RS","Garibaldi"]
[4095.0,"RS","Garruchos"]
[4096.0,"RS","Gaurama"]
[4097.0,"RS","General Câmara"]
[4098.0,"RS","Gentil"]
[4099.0,"RS","Getúlio Vargas"]
[4100.0,"RS","Giruá"]
[4101.0,"RS","Glorinha"]
[4102.0,"RS","Gramado"]
[4103.0,"RS","Gramado dos Loureiros"]
[4104.0,"RS","Gramado Xavier"]
[4105.0,"RS","Gravataí"]
[4106.0,"RS","Guabiju"]
[4107.0,"RS","Guaíba"]
[4108.0,"RS","Guaporé"]
[4109.0,"RS","Guarani das Missões"]
[4110.0,"RS","Harmonia"]
[4111.0,"RS","Herval"]
[4112.0,"RS","Herveiras"]
[4113.0,"RS","Horizontina"]
[4114.0,"RS","Hulha Negra"]
[4115.0,"RS","Humaitá"]
[4116.0,"RS","Ibarama"]
[4117.0,"RS","Ibiaçá"]
[4118.0,"RS","Ibiraiaras"]
[4119.0,"RS","Ibirapuitã"]
[4120.0,"RS","Ibirubá"]
[4121.0,"RS","Igrejinha"]
[4122.0,"RS","Ijuí"]
[4123.0,"RS","Ilópolis"]
[4124.0,"RS","Imbé"]
[4125.0,"RS","Imigrante"]
[4126.0,"RS","Independência"]
[4127.0,"RS","Inhacorá"]
[4128.0,"RS","Ipê"]
[4129.0,"RS","Ipiranga do Sul"]
[4130.0,"RS","Iraí"]
[4131.0,"RS","Itaara"]
[4132.0,"RS","Itacurubi"]
[4133.0,"RS","Itapuca"]
[4134.0,"RS","Itaqui"]
[4135.0,"RS","Itati"]
[4136.0,"RS","Itatiba do Sul"]
[4137.0,"RS","Ivorá"]
[4138.0,"RS","Ivoti"]
[4139.0,"RS","Jaboticaba"]
[4140.0,"RS","Jacuizinho"]
[4141.0,"RS","Jacutinga"]
[4142.0,"RS","Jaguarão"]
[4143.0,"RS","Jaguari"]
[4144.0,"RS","Jaquirana"]
[4145.0,"RS","Jari"]
[4146.0,"RS","Jóia"]
[4147.0,"RS","Júlio de Castilhos"]
[4148.0,"RS","Lagoa Bonita do Sul"]
[4149.0,"RS","Lagoa dos Três Cantos"]
[4150.0,"RS","Lagoa Vermelha"]
[4151.0,"RS","Lagoão"]
[4152.0,"RS","Lajeado"]
[4153.0,"RS","Lajeado do Bugre"]
[4154.0,"RS","Lavras do Sul"]
[4155.0,"RS","Liberato Salzano"]
[4156.0,"RS","Lindolfo Collor"]
[4157.0,"RS","Linha Nova"]
[4158.0,"RS","Maçambara"]
[4159.0,"RS","Machadinho"]
[4160.0,"RS","Mampituba"]
[4161.0,"RS","Manoel Viana"]
[4162.0,"RS","Maquiné"]
[4163.0,"RS","Maratá"]
[4164.0,"RS","Marau"]
[4165.0,"RS","Marcelino Ramos"]
[4166.0,"RS","Mariana Pimentel"]
[4167.0,"RS","Mariano Moro"]
[4168.0,"RS","Marques de Souza"]
[4169.0,"RS","Mata"]
[4170.0,"RS","Mato Castelhano"]
[4171.0,"RS","Mato Leitão"]
[4172.0,"RS","Mato Queimado"]
[4173.0,"RS","Maximiliano de Almeida"]
[4174.0,"RS","Minas do Leão"]
[4175.0,"RS","Miraguaí"]
[4176.0,"RS","Montauri"]
[4177.0,"RS","Monte Alegre dos Campos"]
[4178.0,"RS","Monte Belo do Sul"]
[4179.0,"RS","Montenegro"]
[4180.0,"RS","Mormaço"]
[4181.0,"RS","Morrinhos do Sul"]
[4182.0,"RS","Morro Redondo"]
[4183.0,"RS","Morro Reuter"]
[4184.0,"RS","Mostardas"]
[4185.0,"RS","Muçum"]
[4186.0,"RS","Muitos Capões"]
[4187.0,"RS","Muliterno"]
[4188.0,"RS","Não-Me-Toque"]
[4189.0,"RS","Nicolau Vergueiro"]
[4190.0,"RS","Nonoai"]
[4191.0,"RS","Nova Alvorada"]
[4192.0,"RS","Nova Araçá"]
[4193.0,"RS","Nova Bassano"]
[4194.0,"RS","Nova Boa Vista"]
[4195.0,"RS","Nova Bréscia"]
[4196.0,"RS","Nova Candelária"]
[4197.0,"RS","Nova Esperança do Sul"]
[4198.0,"RS","Nova Hartz"]
[4199.0,"RS","Nova Pádua"]
[4200.0,"RS","Nova Palma"]
[4201.0,"RS","Nova Petrópolis"]
[4202.0,"RS","Nova Prata"]
[4203.0,"RS","Nova Ramada"]
[4204.0,"RS","Nova Roma do Sul"]
[4205.0,"RS","Nova Santa Rita"]
[4206.0,"RS","Novo Barreiro"]
[4207.0,"RS","Novo Cabrais"]
[4208.0,"RS","Novo Hamburgo"]
[4209.0,"RS","Novo Machado"]
[4210.0,"RS","Novo Tiradentes"]
[4211.0,"RS","Novo Xingu"]
[4212.0,"RS","Osório"]
[4213.0,"RS","Paim Filho"]
[4214.0,"RS","Palmares do Sul"]
[4215.0,"RS","Palmeira das Missões"]
[4216.0,"RS","Palmitinho"]
[4217.0,"RS","Panambi"]
[4218.0,"RS","Pantano Grande"]
[4219.0,"RS","Paraí"]
[4220.0,"RS","Paraíso do Sul"]
[4221.0,"RS","Pareci Novo"]
[4222.0,"RS","Parobé"]
[4223.0,"RS","Passa Sete"]
[4224.0,"RS","Passo do Sobrado"]
[4225.0,"RS","Passo Fundo"]
[4226.0,"RS","Paulo Bento"]
[4227.0,"RS","Paverama"]
[4228.0,"RS","Pedras Altas"]
[4229.0,"RS","Pedro Osório"]
[4230.0,"RS","Pejuçara"]
[4231.0,"RS","Pelotas"]
[4232.0,"RS","Picada Café"]
[4233.0,"RS","Pinhal"]
[4234.0,"RS","Pinhal da Serra"]
[4235.0,"RS","Pinhal Grande"]
[4236.0,"RS","Pinheirinho do Vale"]
[4237.0,"RS","Pinheiro Machado"]
[4238.0,"RS","Pinto Bandeira"]
[4239.0,"RS","Pirapó"]
[4240.0,"RS","Piratini"]
[4241.0,"RS","Planalto"]
[4242.0,"RS","Poço das Antas"]
[4243.0,"RS","Pontão"]
[4244.0,"RS","Ponte Preta"]
[4245.0,"RS","Portão"]
[4246.0,"RS","Porto Alegre"]
[4247.0,"RS","Porto Lucena"]
[4248.0,"RS","Porto Mauá"]
[4249.0,"RS","Porto Vera Cruz"]
[4250.0,"RS","Porto Xavier"]
[4251.0,"RS","Pouso Novo"]
[4252.0,"RS","Presidente Lucena"]
[4253.0,"RS","Progresso"]
[4254.0,"RS","Protásio Alves"]
[4255.0,"RS","Putinga"]
[4256.0,"RS","Quaraí"]
[4257.0,"RS","Quatro Irmãos"]
[4258.0,"RS","Quevedos"]
[4259.0,"RS","Quinze de Novembro"]
[4260.0,"RS","Redentora"]
[4261.0,"RS","Relvado"]
[4262.0,"RS","Restinga Seca"]
[4263.0,"RS","Rio dos Índios"]
[4264.0,"RS","Rio Grande"]
[4265.0,"RS","Rio Pardo"]
[4266.0,"RS","Riozinho"]
[4267.0,"RS","Roca Sales"]
[4268.0,"RS","Rodeio Bonito"]
[4269.0,"RS","Rolador"]
[4270.0,"RS","Rolante"]
[4271.0,"RS","Ronda Alta"]
[4272.0,"RS","Rondinha"]
[4273.0,"RS","Roque Gonzales"]
[4274.0,"RS","Rosário do Sul"]
[4275.0,"RS","Sagrada Família"]
[4276.0,"RS","Saldanha Marinho"]
[4277.0,"RS","Salto do Jacuí"]
[4278.0,"RS","Salvador das Missões"]
[4279.0,"RS","Salvador do Sul"]
[4280.0,"RS","Sananduva"]
[4281.0,"RS","Santa Bárbara do Sul"]
[4282.0,"RS","Santa Cecília do Sul"]
[4283.0,"RS","Santa Clara do Sul"]
[4284.0,"RS","Santa Cruz do Sul"]
[4285.0,"RS","Santa Margarida do Sul"]
[4286.0,"RS","Santa Maria"]
[4287.0,"RS","Santa Maria do Herval"]
[4288.0,"RS","Santa Rosa"]
[4289.0,"RS","Santa Tereza"]
[4290.0,"RS","Santa Vitória do Palmar"]
[4291.0,"RS","Santana da Boa Vista"]
[4292.0,"RS","Santana do Livramento"]
[4293.0,"RS","Santiago"]
[4294.0,"RS","Santo Ângelo"]
[4295.0,"RS","Santo Antônio da Patrulha"]
[4296.0,"RS","Santo Antônio das Missões"]
[4297.0,"RS","Santo Antônio do Palma"]
[4298.0,"RS","Santo Antônio do Planalto"]
[4299.0,"RS","Santo Augusto"]
[4300.0,"RS","Santo Cristo"]
[4301.0,"RS","Santo Expedito do Sul"]
[4302.0,"RS","São Borja"]
[4303.0,"RS","São Domingos do Sul"]
[4304.0,"RS","São Francisco de Assis"]
[4305.0,"RS","São Francisco de Paula"]
[4306.0,"RS","São Gabriel"]
[4307.0,"RS","São Jerônimo"]
[4308.0,"RS","São João da Urtiga"]
[4309.0,"RS","São João do Polêsine"]
[4310.0,"RS","São Jorge"]
[4311.0,"RS","São José das Missões"]
[4312.0,"RS","São José do Herval"]
[4313.0,"RS","São José do Hortêncio"]
[4314.0,"RS","São José do Inhacorá"]
[4315.0,"RS","São José do Norte"]
[4316.0,"RS","São José do Ouro"]
[4317.0,"RS","São José do Sul"]
[4318.0,"RS","São José dos Ausentes"]
[4319.0,"RS","São Leopoldo"]
[4320.0,"RS","São Lourenço do Sul"]
[4321.0,"RS","São Luiz Gonzaga"]
[4322.0,"RS","São Marcos"]
[4323.0,"RS","São Martinho"]
[4324.0,"RS","São Martinho da Serra"]
[4325.0,"RS","São Miguel das Missões"]
[4326.0,"RS","São Nicolau"]
[4327.0,"RS","São Paulo das Missões"]
[4328.0,"RS","São Pedro da Serra"]
[4329.0,"RS","São Pedro das Missões"]
[4330.0,"RS","São Pedro do Butiá"]
[4331.0,"RS","São Pedro do Sul"]
[4332.0,"RS","São Sebastião do Caí"]
[4333.0,"RS","São Sepé"]
[4334.0,"RS","São Valentim"]
[4335.0,"RS","São Valentim do Sul"]
[4336.0,"RS","São Valério do Sul"]
[4337.0,"RS","São Vendelino"]
[4338.0,"RS","São Vicente do Sul"]
[4339.0,"RS","Sapiranga"]
[4340.0,"RS","Sapucaia do Sul"]
[4341.0,"RS","Sarandi"]
[4342.0,"RS","Seberi"]
[4343.0,"RS","Sede Nova"]
[4344.0,"RS","Segredo"]
[4345.0,"RS","Selbach"]
[4346.0,"RS","Senador Salgado Filho"]
[4347.0,"RS","Sentinela do Sul"]
[4348.0,"RS","Serafina Corrêa"]
[4349.0,"RS","Sério"]
[4350.0,"RS","Sertão"]
[4351.0,"RS","Sertão Santana"]
[4352.0,"RS","Sete de Setembro"]
[4353.0,"RS","Severiano de Almeida"]
[4354.0,"RS","Silveira Martins"]
[4355.0,"RS","Sinimbu"]
[4356.0,"RS","Sobradinho"]
[4357.0,"RS","Soledade"]
[4358.0,"RS","Tabaí"]
[4359.0,"RS","Tapejara"]
[4360.0,"RS","Tapera"]
[4361.0,"RS","Tapes"]
[4362.0,"RS","Taquara"]
[4363.0,"RS","Taquari"]
[4364.0,"RS","Taquaruçu do Sul"]
[4365.0,"RS","Tavares"]
[4366.0,"RS","Tenente Portela"]
[4367.0,"RS","Terra de Areia"]
[4368.0,"RS","Teutônia"]
[4369.0,"RS","Tio Hugo"]
[4370.0,"RS","Tiradentes do Sul"]
[4371.0,"RS","Toropi"]
[4372.0,"RS","Torres"]
[4373.0,"RS","Tramandaí"]
[4374.0,"RS","Travesseiro"]
[4375.0,"RS","Três Arroios"]
[4376.0,"RS","Três Cachoeiras"]
[4377.0,"RS","Três Coroas"]
[4378.0,"RS","Três de Maio"]
[4379.0,"RS","Três Forquilhas"]
[4380.0,"RS","Três Palmeiras"]
[4381.0,"RS","Três Passos"]
[4382.0,"RS","Trindade do Sul"]
[4383.0,"RS","Triunfo"]
[4384.0,"RS","Tucunduva"]
[4385.0,"RS","Tunas"]
[4386.0,"RS","Tupanci do Sul"]
[4387.0,"RS","Tupanciretã"]
[4388.0,"RS","Tupandi"]
[4389.0,"RS","Tuparendi"]
[4390.0,"RS","Turuçu"]
[4391.0,"RS","Ubiretama"]
[4392.0,"RS","União da Serra"]
[4393.0,"RS","Unistalda"]
[4394.0,"RS","Uruguaiana"]
[4395.0,"RS","Vacaria"]
[4396.0,"RS","Vale do Sol"]
[4397.0,"RS","Vale Real"]
[4398.0,"RS","Vale Verde"]
[4399.0,"RS","Vanini"]
[4400.0,"RS","Venâncio Aires"]
[4401.0,"RS","Vera Cruz"]
[4402.0,"RS","Veranópolis"]
[4403.0,"RS","Vespasiano Correa"]
[4404.0,"RS","Viadutos"]
[4405.0,"RS","Viamão"]
[4406.0,"RS","Vicente Dutra"]
[4407.0,"RS","Victor Graeff"]
[4408.0,"RS","Vila Flores"]
[4409.0,"RS","Vila Lângaro"]
[4410.0,"RS","Vila Maria"]
[4411.0,"RS","Vila Nova do Sul"]
[4412.0,"RS","Vista Alegre"]
[4413.0,"RS","Vista Alegre do Prata"]
[4414.0,"RS","Vista Gaúcha"]
[4415.0,"RS","Vitória das Missões"]
[4416.0,"RS","Westfalia"]
[4417.0,"RS","Xangri-lá"]
[4418.0,"SC","Abdon Batista"]
[4419.0,"SC","Abelardo Luz"]
[4420.0,"SC","Agrolândia"]
[4421.0,"SC","Agronômica"]
[4422.0,"SC","Água Doce"]
[4423.0,"SC","Águas de Chapecó"]
[4424.0,"SC","Águas Frias"]
[4425.0,"SC","Águas Mornas"]
[4426.0,"SC","Alfredo Wagner"]
[4427.0,"SC","Alto Bela Vista"]
[4428.0,"SC","Anchieta"]
[4429.0,"SC","Angelina"]
[4430.0,"SC","Anita Garibaldi"]
[4431.0,"SC","Anitápolis"]
[4432.0,"SC","Antônio Carlos"]
[4433.0,"SC","Apiúna"]
[4434.0,"SC","Arabutã"]
[4435.0,"SC","Araquari"]
[4436.0,"SC","Araranguá"]
[4437.0,"SC","Armazém"]
[4438.0,"SC","Arroio Trinta"]
[4439.0,"SC","Arvoredo"]
[4440.0,"SC","Ascurra"]
[4441.0,"SC","Atalanta"]
[4442.0,"SC","Aurora"]
[4443.0,"SC","Balneário Arroio do Silva"]
[4444.0,"SC","Balneário Barra do Sul"]
[4445.0,"SC","Balneário Camboriú"]
[4446.0,"SC","Balneário Gaivota"]
[4447.0,"SC","Balneário Piçarras"]
[4448.0,"SC","Balneário Rincão"]
[4449.0,"SC","Bandeirante"]
[4450.0,"SC","Barra Bonita"]
[4451.0,"SC","Barra Velha"]
[4452.0,"SC","Bela Vista do Toldo"]
[4453.0,"SC","Belmonte"]
[4454.0,"SC","Benedito Novo"]
[4455.0,"SC","Biguaçu"]
[4456.0,"SC","Blumenau"]
[4457.0,"SC","Bocaina do Sul"]
[4458.0,"SC","Bom Jardim da Serra"]
[4459.0,"SC","Bom Jesus"]
[4460.0,"SC","Bom Jesus do Oeste"]
[4461.0,"SC","Bom Retiro"]
[4462.0,"SC","Bombinhas"]
[4463.0,"SC","Botuverá"]
[4464.0,"SC","Braço do Norte"]
[4465.0,"SC","Braço do Trombudo"]
[4466.0,"SC","Brunópolis"]
[4467.0,"SC","Brusque"]
[4468.0,"SC","Caçador"]
[4469.0,"SC","Caibi"]
[4470.0,"SC","Calmon"]
[4471.0,"SC","Camboriú"]
[4472.0,"SC","Campo Alegre"]
[4473.0,"SC","Campo Belo do Sul"]
[4474.0,"SC","Campo Erê"]
[4475.0,"SC","Campos Novos"]
[4476.0,"SC","Canelinha"]
[4477.0,"SC","Canoinhas"]
[4478.0,"SC","Capão Alto"]
[4479.0,"SC","Capinzal"]
[4480.0,"SC","Capivari de Baixo"]
[4481.0,"SC","Catanduvas"]
[4482.0,"SC","Caxambu do Sul"]
[4483.0,"SC","Celso Ramos"]
[4484.0,"SC","Cerro Negro"]
[4485.0,"SC","Chapadão do Lageado"]
[4486.0,"SC","Chapecó"]
[4487.0,"SC","Cocal do Sul"]
[4488.0,"SC","Concórdia"]
[4489.0,"SC","Cordilheira Alta"]
[4490.0,"SC","Coronel Freitas"]
[4491.0,"SC","Coronel Martins"]
[4492.0,"SC","Correia Pinto"]
[4493.0,"SC","Corupá"]
[4494.0,"SC","Criciúma"]
[4495.0,"SC","Cunha Porã"]
[4496.0,"SC","Cunhataí"]
[4497.0,"SC","Curitibanos"]
[4498.0,"SC","Descanso"]
[4499.0,"SC","Dionísio Cerqueira"]
[4500.0,"SC","Dona Emma"]
[4501.0,"SC","Doutor Pedrinho"]
[4502.0,"SC","Entre Rios"]
[4503.0,"SC","Ermo"]
[4504.0,"SC","Erval Velho"]
[4505.0,"SC","Faxinal dos Guedes"]
[4506.0,"SC","Flor do Sertão"]
[4507.0,"SC","Florianópolis"]
[4508.0,"SC","Formosa do Sul"]
[4509.0,"SC","Forquilhinha"]
[4510.0,"SC","Fraiburgo"]
[4511.0,"SC","Frei Rogério"]
[4512.0,"SC","Galvão"]
[4513.0,"SC","Garopaba"]
[4514.0,"SC","Garuva"]
[4515.0,"SC","Gaspar"]
[4516.0,"SC","Governador Celso Ramos"]
[4517.0,"SC","Grão Pará"]
[4518.0,"SC","Gravatal"]
[4519.0,"SC","Guabiruba"]
[4520.0,"SC","Guaraciaba"]
[4521.0,"SC","Guaramirim"]
[4522.0,"SC","Guarujá do Sul"]
[4523.0,"SC","Guatambú"]
[4524.0,"SC","Herval dOeste"]
[4525.0,"SC","Ibiam"]
[4526.0,"SC","Ibicaré"]
[4527.0,"SC","Ibirama"]
[4528.0,"SC","Içara"]
[4529.0,"SC","Ilhota"]
[4530.0,"SC","Imaruí"]
[4531.0,"SC","Imbituba"]
[4532.0,"SC","Imbuia"]
[4533.0,"SC","Indaial"]
[4534.0,"SC","Iomerê"]
[4535.0,"SC","Ipira"]
[4536.0,"SC","Iporã do Oeste"]
[4537.0,"SC","Ipuaçu"]
[4538.0,"SC","Ipumirim"]
[4539.0,"SC","Iraceminha"]
[4540.0,"SC","Irani"]
[4541.0,"SC","Irati"]
[4542.0,"SC","Irineópolis"]
[4543.0,"SC","Itá"]
[4544.0,"SC","Itaiópolis"]
[4545.0,"SC","Itajaí"]
[4546.0,"SC","Itapema"]
[4547.0,"SC","Itapiranga"]
[4548.0,"SC","Itapoá"]
[4549.0,"SC","Ituporanga"]
[4550.0,"SC","Jaborá"]
[4551.0,"SC","Jacinto Machado"]
[4552.0,"SC","Jaguaruna"]
[4553.0,"SC","Jaraguá do Sul"]
[4554.0,"SC","Jardinópolis"]
[4555.0,"SC","Joaçaba"]
[4556.0,"SC","Joinville"]
[4557.0,"SC","José Boiteux"]
[4558.0,"SC","Jupiá"]
[4559.0,"SC","Lacerdópolis"]
[4560.0,"SC","Lages"]
[4561.0,"SC","Laguna"]
[4562.0,"SC","Lajeado Grande"]
[4563.0,"SC","Laurentino"]
[4564.0,"SC","Lauro Muller"]
[4565.0,"SC","Lebon Régis"]
[4566.0,"SC","Leoberto Leal"]
[4567.0,"SC","Lindóia do Sul"]
[4568.0,"SC","Lontras"]
[4569.0,"SC","Luiz Alves"]
[4570.0,"SC","Luzerna"]
[4571.0,"SC","Macieira"]
[4572.0,"SC","Mafra"]
[4573.0,"SC","Major Gercino"]
[4574.0,"SC","Major Vieira"]
[4575.0,"SC","Maracajá"]
[4576.0,"SC","Maravilha"]
[4577.0,"SC","Marema"]
[4578.0,"SC","Massaranduba"]
[4579.0,"SC","Matos Costa"]
[4580.0,"SC","Meleiro"]
[4581.0,"SC","Mirim Doce"]
[4582.0,"SC","Modelo"]
[4583.0,"SC","Mondaí"]
[4584.0,"SC","Monte Carlo"]
[4585.0,"SC","Monte Castelo"]
[4586.0,"SC","Morro da Fumaça"]
[4587.0,"SC","Morro Grande"]
[4588.0,"SC","Navegantes"]
[4589.0,"SC","Nova Erechim"]
[4590.0,"SC","Nova Itaberaba"]
[4591.0,"SC","Nova Trento"]
[4592.0,"SC","Nova Veneza"]
[4593.0,"SC","Novo Horizonte"]
[4594.0,"SC","Orleans"]
[4595.0,"SC","Otacílio Costa"]
[4596.0,"SC","Ouro"]
[4597.0,"SC","Ouro Verde"]
[4598.0,"SC","Paial"]
[4599.0,"SC","Painel"]
[4600.0,"SC","Palhoça"]
[4601.0,"SC","Palma Sola"]
[4602.0,"SC","Palmeira"]
[4603.0,"SC","Palmitos"]
[4604.0,"SC","Papanduva"]
[4605.0,"SC","Paraíso"]
[4606.0,"SC","Passo de Torres"]
[4607.0,"SC","Passos Maia"]
[4608.0,"SC","Paulo Lopes"]
[4609.0,"SC","Pedras Grandes"]
[4610.0,"SC","Penha"]
[4611.0,"SC","Peritiba"]
[4612.0,"SC","Pescaria Brava"]
[4613.0,"SC","Petrolândia"]
[4614.0,"SC","Pinhalzinho"]
[4615.0,"SC","Pinheiro Preto"]
[4616.0,"SC","Piratuba"]
[4617.0,"SC","Planalto Alegre"]
[4618.0,"SC","Pomerode"]
[4619.0,"SC","Ponte Alta"]
[4620.0,"SC","Ponte Alta do Norte"]
[4621.0,"SC","Ponte Serrada"]
[4622.0,"SC","Porto Belo"]
[4623.0,"SC","Porto União"]
[4624.0,"SC","Pouso Redondo"]
[4625.0,"SC","Praia Grande"]
[4626.0,"SC","Presidente Castello Branco"]
[4627.0,"SC","Presidente Getúlio"]
[4628.0,"SC","Presidente Nereu"]
[4629.0,"SC","Princesa"]
[4630.0,"SC","Quilombo"]
[4631.0,"SC","Rancho Queimado"]
[4632.0,"SC","Rio das Antas"]
[4633.0,"SC","Rio do Campo"]
[4634.0,"SC","Rio do Oeste"]
[4635.0,"SC","Rio do Sul"]
[4636.0,"SC","Rio dos Cedros"]
[4637.0,"SC","Rio Fortuna"]
[4638.0,"SC","Rio Negrinho"]
[4639.0,"SC","Rio Rufino"]
[4640.0,"SC","Riqueza"]
[4641.0,"SC","Rodeio"]
[4642.0,"SC","Romelândia"]
[4643.0,"SC","Salete"]
[4644.0,"SC","Saltinho"]
[4645.0,"SC","Salto Veloso"]
[4646.0,"SC","Sangão"]
[4647.0,"SC","Santa Cecília"]
[4648.0,"SC","Santa Helena"]
[4649.0,"SC","Santa Rosa de Lima"]
[4650.0,"SC","Santa Rosa do Sul"]
[4651.0,"SC","Santa Terezinha"]
[4652.0,"SC","Santa Terezinha do Progresso"]
[4653.0,"SC","Santiago do Sul"]
[4654.0,"SC","Santo Amaro da Imperatriz"]
[4655.0,"SC","São Bento do Sul"]
[4656.0,"SC","São Bernardino"]
[4657.0,"SC","São Bonifácio"]
[4658.0,"SC","São Carlos"]
[4659.0,"SC","São Cristovão do Sul"]
[4660.0,"SC","São Domingos"]
[4661.0,"SC","São Francisco do Sul"]
[4662.0,"SC","São João Batista"]
[4663.0,"SC","São João do Itaperiú"]
[4664.0,"SC","São João do Oeste"]
[4665.0,"SC","São João do Sul"]
[4666.0,"SC","São Joaquim"]
[4667.0,"SC","São José"]
[4668.0,"SC","São José do Cedro"]
[4669.0,"SC","São José do Cerrito"]
[4670.0,"SC","São Lourenço do Oeste"]
[4671.0,"SC","São Ludgero"]
[4672.0,"SC","São Martinho"]
[4673.0,"SC","São Miguel da Boa Vista"]
[4674.0,"SC","São Miguel do Oeste"]
[4675.0,"SC","São Pedro de Alcântara"]
[4676.0,"SC","Saudades"]
[4677.0,"SC","Schroeder"]
[4678.0,"SC","Seara"]
[4679.0,"SC","Serra Alta"]
[4680.0,"SC","Siderópolis"]
[4681.0,"SC","Sombrio"]
[4682.0,"SC","Sul Brasil"]
[4683.0,"SC","Taió"]
[4684.0,"SC","Tangará"]
[4685.0,"SC","Tigrinhos"]
[4686.0,"SC","Tijucas"]
[4687.0,"SC","Timbé do Sul"]
[4688.0,"SC","Timbó"]
[4689.0,"SC","Timbó Grande"]
[4690.0,"SC","Três Barras"]
[4691.0,"SC","Treviso"]
[4692.0,"SC","Treze de Maio"]
[4693.0,"SC","Treze Tílias"]
[4694.0,"SC","Trombudo Central"]
[4695.0,"SC","Tubarão"]
[4696.0,"SC","Tunápolis"]
[4697.0,"SC","Turvo"]
[4698.0,"SC","União do Oeste"]
[4699.0,"SC","Urubici"]
[4700.0,"SC","Urupema"]
[4701.0,"SC","Urussanga"]
[4702.0,"SC","Vargeão"]
[4703.0,"SC","Vargem"]
[4704.0,"SC","Vargem Bonita"]
[4705.0,"SC","Vidal Ramos"]
[4706.0,"SC","Videira"]
[4707.0,"SC","Vitor Meireles"]
[4708.0,"SC","Witmarsum"]
[4709.0,"SC","Xanxerê"]
[4710.0,"SC","Xavantina"]
[4711.0,"SC","Xaxim"]
[4712.0,"SC","Zortéa"]
[4713.0,"SE","Amparo de São Francisco"]
[4714.0,"SE","Aquidabã"]
[4715.0,"SE","Aracaju"]
[4716.0,"SE","Arauá"]
[4717.0,"SE","Areia Branca"]
[4718.0,"SE","Barra dos Coqueiros"]
[4719.0,"SE","Boquim"]
[4720.0,"SE","Brejo Grande"]
[4721.0,"SE","Campo do Brito"]
[4722.0,"SE","Canhoba"]
[4723.0,"SE","Canindé de São Francisco"]
[4724.0,"SE","Capela"]
[4725.0,"SE","Carira"]
[4726.0,"SE","Carmópolis"]
[4727.0,"SE","Cedro de São João"]
[4728.0,"SE","Cristinápolis"]
[4729.0,"SE","Cumbe"]
[4730.0,"SE","Divina Pastora"]
[4731.0,"SE","Estância"]
[4732.0,"SE","Feira Nova"]
[4733.0,"SE","Frei Paulo"]
[4734.0,"SE","Gararu"]
[4735.0,"SE","General Maynard"]
[4736.0,"SE","Gracho Cardoso"]
[4737.0,"SE","Ilha das Flores"]
[4738.0,"SE","Indiaroba"]
[4739.0,"SE","Itabaiana"]
[4740.0,"SE","Itabaianinha"]
[4741.0,"SE","Itabi"]
[4742.0,"SE","Itaporanga dAjuda"]
[4743.0,"SE","Japaratuba"]
[4744.0,"SE","Japoatã"]
[4745.0,"SE","Lagarto"]
[4746.0,"SE","Laranjeiras"]
[4747.0,"SE","Macambira"]
[4748.0,"SE","Malhada dos Bois"]
[4749.0,"SE","Malhador"]
[4750.0,"SE","Maruim"]
[4751.0,"SE","Moita Bonita"]
[4752.0,"SE","Monte Alegre de Sergipe"]
[4753.0,"SE","Muribeca"]
[4754.0,"SE","Neópolis"]
[4755.0,"SE","Nossa Senhora Aparecida"]
[4756.0,"SE","Nossa Senhora da Glória"]
[4757.0,"SE","Nossa Senhora das Dores"]
[4758.0,"SE","Nossa Senhora de Lourdes"]
[4759.0,"SE","Nossa Senhora do Socorro"]
[4760.0,"SE","Pacatuba"]
[4761.0,"SE","Pedra Mole"]
[4762.0,"SE","Pedrinhas"]
[4763.0,"SE","Pinhão"]
[4764.0,"SE","Pirambu"]
[4765.0,"SE","Poço Redondo"]
[4766.0,"SE","Poço Verde"]
[4767.0,"SE","Porto da Folha"]
[4768.0,"SE","Propriá"]
[4769.0,"SE","Riachão do Dantas"]
[4770.0,"SE","Riachuelo"]
[4771.0,"SE","Ribeirópolis"]
[4772.0,"SE","Rosário do Catete"]
[4773.0,"SE","Salgado"]
[4774.0,"SE","Santa Luzia do Itanhy"]
[4775.0,"SE","Santa Rosa de Lima"]
[4776.0,"SE","Santana do São Francisco"]
[4777.0,"SE","Santo Amaro das Brotas"]
[4778.0,"SE","São Cristóvão"]
[4779.0,"SE","São Domingos"]
[4780.0,"SE","São Francisco"]
[4781.0,"SE","São Miguel do Aleixo"]
[4782.0,"SE","Simão Dias"]
[4783.0,"SE","Siriri"]
[4784.0,"SE","Telha"]
[4785.0,"SE","Tobias Barreto"]
[4786.0,"SE","Tomar do Geru"]
[4787.0,"SE","Umbaúba"]
[4788.0,"SP","Adamantina"]
[4789.0,"SP","Adolfo"]
[4790.0,"SP","Aguaí"]
[4791.0,"SP","Águas da Prata"]
[4792.0,"SP","Águas de Lindóia"]
[4793.0,"SP","Águas de Santa Bárbara"]
[4794.0,"SP","Águas de São Pedro"]
[4795.0,"SP","Agudos"]
[4796.0,"SP","Alambari"]
[4797.0,"SP","Alfredo Marcondes"]
[4798.0,"SP","Altair"]
[4799.0,"SP","Altinópolis"]
[4800.0,"SP","Alto Alegre"]
[4801.0,"SP","Alumínio"]
[4802.0,"SP","Álvares Florence"]
[4803.0,"SP","Álvares Machado"]
[4804.0,"SP","Álvaro de Carvalho"]
[4805.0,"SP","Alvinlândia"]
[4806.0,"SP","Americana"]
[4807.0,"SP","Américo Brasiliense"]
[4808.0,"SP","Américo de Campos"]
[4809.0,"SP","Amparo"]
[4810.0,"SP","Analândia"]
[4811.0,"SP","Andradina"]
[4812.0,"SP","Angatuba"]
[4813.0,"SP","Anhembi"]
[4814.0,"SP","Anhumas"]
[4815.0,"SP","Aparecida"]
[4816.0,"SP","Aparecida dOeste"]
[4817.0,"SP","Apiaí"]
[4818.0,"SP","Araçariguama"]
[4819.0,"SP","Araçatuba"]
[4820.0,"SP","Araçoiaba da Serra"]
[4821.0,"SP","Aramina"]
[4822.0,"SP","Arandu"]
[4823.0,"SP","Arapeí"]
[4824.0,"SP","Araraquara"]
[4825.0,"SP","Araras"]
[4826.0,"SP","Arco-Íris"]
[4827.0,"SP","Arealva"]
[4828.0,"SP","Areias"]
[4829.0,"SP","Areiópolis"]
[4830.0,"SP","Ariranha"]
[4831.0,"SP","Artur Nogueira"]
[4832.0,"SP","Arujá"]
[4833.0,"SP","Aspásia"]
[4834.0,"SP","Assis"]
[4835.0,"SP","Atibaia"]
[4836.0,"SP","Auriflama"]
[4837.0,"SP","Avaí"]
[4838.0,"SP","Avanhandava"]
[4839.0,"SP","Avaré"]
[4840.0,"SP","Bady Bassitt"]
[4841.0,"SP","Balbinos"]
[4842.0,"SP","Bálsamo"]
[4843.0,"SP","Bananal"]
[4844.0,"SP","Barão de Antonina"]
[4845.0,"SP","Barbosa"]
[4846.0,"SP","Bariri"]
[4847.0,"SP","Barra Bonita"]
[4848.0,"SP","Barra do Chapéu"]
[4849.0,"SP","Barra do Turvo"]
[4850.0,"SP","Barretos"]
[4851.0,"SP","Barrinha"]
[4852.0,"SP","Barueri"]
[4853.0,"SP","Bastos"]
[4854.0,"SP","Batatais"]
[4855.0,"SP","Bauru"]
[4856.0,"SP","Bebedouro"]
[4857.0,"SP","Bento de Abreu"]
[4858.0,"SP","Bernardino de Campos"]
[4859.0,"SP","Bertioga"]
[4860.0,"SP","Bilac"]
[4861.0,"SP","Birigui"]
[4862.0,"SP","Biritiba-Mirim"]
[4863.0,"SP","Boa Esperança do Sul"]
[4864.0,"SP","Bocaina"]
[4865.0,"SP","Bofete"]
[4866.0,"SP","Boituva"]
[4867.0,"SP","Bom Jesus dos Perdões"]
[4868.0,"SP","Bom Sucesso de Itararé"]
[4869.0,"SP","Borá"]
[4870.0,"SP","Boracéia"]
[4871.0,"SP","Borborema"]
[4872.0,"SP","Borebi"]
[4873.0,"SP","Botucatu"]
[4874.0,"SP","Bragança Paulista"]
[4875.0,"SP","Braúna"]
[4876.0,"SP","Brejo Alegre"]
[4877.0,"SP","Brodowski"]
[4878.0,"SP","Brotas"]
[4879.0,"SP","Buri"]
[4880.0,"SP","Buritama"]
[4881.0,"SP","Buritizal"]
[4882.0,"SP","Cabrália Paulista"]
[4883.0,"SP","Cabreúva"]
[4884.0,"SP","Caçapava"]
[4885.0,"SP","Cachoeira Paulista"]
[4886.0,"SP","Caconde"]
[4887.0,"SP","Cafelândia"]
[4888.0,"SP","Caiabu"]
[4889.0,"SP","Caieiras"]
[4890.0,"SP","Caiuá"]
[4891.0,"SP","Cajamar"]
[4892.0,"SP","Cajati"]
[4893.0,"SP","Cajobi"]
[4894.0,"SP","Cajuru"]
[4895.0,"SP","Campina do Monte Alegre"]
[4896.0,"SP","Campinas"]
[4897.0,"SP","Campo Limpo Paulista"]
[4898.0,"SP","Campos do Jordão"]
[4899.0,"SP","Campos Novos Paulista"]
[4900.0,"SP","Cananéia"]
[4901.0,"SP","Canas"]
[4902.0,"SP","Cândido Mota"]
[4903.0,"SP","Cândido Rodrigues"]
[4904.0,"SP","Canitar"]
[4905.0,"SP","Capão Bonito"]
[4906.0,"SP","Capela do Alto"]
[4907.0,"SP","Capivari"]
[4908.0,"SP","Caraguatatuba"]
[4909.0,"SP","Carapicuíba"]
[4910.0,"SP","Cardoso"]
[4911.0,"SP","Casa Branca"]
[4912.0,"SP","Cássia dos Coqueiros"]
[4913.0,"SP","Castilho"]
[4914.0,"SP","Catanduva"]
[4915.0,"SP","Catiguá"]
[4916.0,"SP","Cedral"]
[4917.0,"SP","Cerqueira César"]
[4918.0,"SP","Cerquilho"]
[4919.0,"SP","Cesário Lange"]
[4920.0,"SP","Charqueada"]
[4921.0,"SP","Chavantes"]
[4922.0,"SP","Clementina"]
[4923.0,"SP","Colina"]
[4924.0,"SP","Colômbia"]
[4925.0,"SP","Conchal"]
[4926.0,"SP","Conchas"]
[4927.0,"SP","Cordeirópolis"]
[4928.0,"SP","Coroados"]
[4929.0,"SP","Coronel Macedo"]
[4930.0,"SP","Corumbataí"]
[4931.0,"SP","Cosmópolis"]
[4932.0,"SP","Cosmorama"]
[4933.0,"SP","Cotia"]
[4934.0,"SP","Cravinhos"]
[4935.0,"SP","Cristais Paulista"]
[4936.0,"SP","Cruzália"]
[4937.0,"SP","Cruzeiro"]
[4938.0,"SP","Cubatão"]
[4939.0,"SP","Cunha"]
[4940.0,"SP","Descalvado"]
[4941.0,"SP","Diadema"]
[4942.0,"SP","Dirce Reis"]
[4943.0,"SP","Divinolândia"]
[4944.0,"SP","Dobrada"]
[4945.0,"SP","Dois Córregos"]
[4946.0,"SP","Dolcinópolis"]
[4947.0,"SP","Dourado"]
[4948.0,"SP","Dracena"]
[4949.0,"SP","Duartina"]
[4950.0,"SP","Dumont"]
[4951.0,"SP","Echaporã"]
[4952.0,"SP","Eldorado"]
[4953.0,"SP","Elias Fausto"]
[4954.0,"SP","Elisiário"]
[4955.0,"SP","Embaúba"]
[4956.0,"SP","Embu das Artes"]
[4957.0,"SP","Embu-Guaçu"]
[4958.0,"SP","Emilianópolis"]
[4959.0,"SP","Engenheiro Coelho"]
[4960.0,"SP","Espírito Santo do Pinhal"]
[4961.0,"SP","Espírito Santo do Turvo"]
[4962.0,"SP","Estiva Gerbi"]
[4963.0,"SP","Estrela do Norte"]
[4964.0,"SP","Estrela dOeste"]
[4965.0,"SP","Euclides da Cunha Paulista"]
[4966.0,"SP","Fartura"]
[4967.0,"SP","Fernando Prestes"]
[4968.0,"SP","Fernandópolis"]
[4969.0,"SP","Fernão"]
[4970.0,"SP","Ferraz de Vasconcelos"]
[4971.0,"SP","Flora Rica"]
[4972.0,"SP","Floreal"]
[4973.0,"SP","Flórida Paulista"]
[4974.0,"SP","Florínia"]
[4975.0,"SP","Franca"]
[4976.0,"SP","Francisco Morato"]
[4977.0,"SP","Franco da Rocha"]
[4978.0,"SP","Gabriel Monteiro"]
[4979.0,"SP","Gália"]
[4980.0,"SP","Garça"]
[4981.0,"SP","Gastão Vidigal"]
[4982.0,"SP","Gavião Peixoto"]
[4983.0,"SP","General Salgado"]
[4984.0,"SP","Getulina"]
[4985.0,"SP","Glicério"]
[4986.0,"SP","Guaiçara"]
[4987.0,"SP","Guaimbê"]
[4988.0,"SP","Guaíra"]
[4989.0,"SP","Guapiaçu"]
[4990.0,"SP","Guapiara"]
[4991.0,"SP","Guará"]
[4992.0,"SP","Guaraçaí"]
[4993.0,"SP","Guaraci"]
[4994.0,"SP","Guarani dOeste"]
[4995.0,"SP","Guarantã"]
[4996.0,"SP","Guararapes"]
[4997.0,"SP","Guararema"]
[4998.0,"SP","Guaratinguetá"]
[4999.0,"SP","Guareí"]
[5000.0,"SP","Guariba"]
[5001.0,"SP","Guarujá"]
[5002.0,"SP","Guarulhos"]
[5003.0,"SP","Guatapará"]
[5004.0,"SP","Guzolândia"]
[5005.0,"SP","Herculândia"]
[5006.0,"SP","Holambra"]
[5007.0,"SP","Hortolândia"]
[5008.0,"SP","Iacanga"]
[5009.0,"SP","Iacri"]
[5010.0,"SP","Iaras"]
[5011.0,"SP","Ibaté"]
[5012.0,"SP","Ibirá"]
[5013.0,"SP","Ibirarema"]
[5014.0,"SP","Ibitinga"]
[5015.0,"SP","Ibiúna"]
[5016.0,"SP","Icém"]
[5017.0,"SP","Iepê"]
[5018.0,"SP","Igaraçu do Tietê"]
[5019.0,"SP","Igarapava"]
[5020.0,"SP","Igaratá"]
[5021.0,"SP","Iguape"]
[5022.0,"SP","Ilha Comprida"]
[5023.0,"SP","Ilha Solteira"]
[5024.0,"SP","Ilhabela"]
[5025.0,"SP","Indaiatuba"]
[5026.0,"SP","Indiana"]
[5027.0,"SP","Indiaporã"]
[5028.0,"SP","Inúbia Paulista"]
[5029.0,"SP","Ipaussu"]
[5030.0,"SP","Iperó"]
[5031.0,"SP","Ipeúna"]
[5032.0,"SP","Ipiguá"]
[5033.0,"SP","Iporanga"]
[5034.0,"SP","Ipuã"]
[5035.0,"SP","Iracemápolis"]
[5036.0,"SP","Irapuã"]
[5037.0,"SP","Irapuru"]
[5038.0,"SP","Itaberá"]
[5039.0,"SP","Itaí"]
[5040.0,"SP","Itajobi"]
[5041.0,"SP","Itaju"]
[5042.0,"SP","Itanhaém"]
[5043.0,"SP","Itaóca"]
[5044.0,"SP","Itapecerica da Serra"]
[5045.0,"SP","Itapetininga"]
[5046.0,"SP","Itapeva"]
[5047.0,"SP","Itapevi"]
[5048.0,"SP","Itapira"]
[5049.0,"SP","Itapirapuã Paulista"]
[5050.0,"SP","Itápolis"]
[5051.0,"SP","Itaporanga"]
[5052.0,"SP","Itapuí"]
[5053.0,"SP","Itapura"]
[5054.0,"SP","Itaquaquecetuba"]
[5055.0,"SP","Itararé"]
[5056.0,"SP","Itariri"]
[5057.0,"SP","Itatiba"]
[5058.0,"SP","Itatinga"]
[5059.0,"SP","Itirapina"]
[5060.0,"SP","Itirapuã"]
[5061.0,"SP","Itobi"]
[5062.0,"SP","Itu"]
[5063.0,"SP","Itupeva"]
[5064.0,"SP","Ituverava"]
[5065.0,"SP","Jaborandi"]
[5066.0,"SP","Jaboticabal"]
[5067.0,"SP","Jacareí"]
[5068.0,"SP","Jaci"]
[5069.0,"SP","Jacupiranga"]
[5070.0,"SP","Jaguariúna"]
[5071.0,"SP","Jales"]
[5072.0,"SP","Jambeiro"]
[5073.0,"SP","Jandira"]
[5074.0,"SP","Jardinópolis"]
[5075.0,"SP","Jarinu"]
[5076.0,"SP","Jaú"]
[5077.0,"SP","Jeriquara"]
[5078.0,"SP","Joanópolis"]
[5079.0,"SP","João Ramalho"]
[5080.0,"SP","José Bonifácio"]
[5081.0,"SP","Júlio Mesquita"]
[5082.0,"SP","Jumirim"]
[5083.0,"SP","Jundiaí"]
[5084.0,"SP","Junqueirópolis"]
[5085.0,"SP","Juquiá"]
[5086.0,"SP","Juquitiba"]
[5087.0,"SP","Lagoinha"]
[5088.0,"SP","Laranjal Paulista"]
[5089.0,"SP","Lavínia"]
[5090.0,"SP","Lavrinhas"]
[5091.0,"SP","Leme"]
[5092.0,"SP","Lençóis Paulista"]
[5093.0,"SP","Limeira"]
[5094.0,"SP","Lindóia"]
[5095.0,"SP","Lins"]
[5096.0,"SP","Lorena"]
[5097.0,"SP","Lourdes"]
[5098.0,"SP","Louveira"]
[5099.0,"SP","Lucélia"]
[5100.0,"SP","Lucianópolis"]
[5101.0,"SP","Luís Antônio"]
[5102.0,"SP","Luiziânia"]
[5103.0,"SP","Lupércio"]
[5104.0,"SP","Lutécia"]
[5105.0,"SP","Macatuba"]
[5106.0,"SP","Macaubal"]
[5107.0,"SP","Macedônia"]
[5108.0,"SP","Magda"]
[5109.0,"SP","Mairinque"]
[5110.0,"SP","Mairiporã"]
[5111.0,"SP","Manduri"]
[5112.0,"SP","Marabá Paulista"]
[5113.0,"SP","Maracaí"]
[5114.0,"SP","Marapoama"]
[5115.0,"SP","Mariápolis"]
[5116.0,"SP","Marília"]
[5117.0,"SP","Marinópolis"]
[5118.0,"SP","Martinópolis"]
[5119.0,"SP","Matão"]
[5120.0,"SP","Mauá"]
[5121.0,"SP","Mendonça"]
[5122.0,"SP","Meridiano"]
[5123.0,"SP","Mesópolis"]
[5124.0,"SP","Miguelópolis"]
[5125.0,"SP","Mineiros do Tietê"]
[5126.0,"SP","Mira Estrela"]
[5127.0,"SP","Miracatu"]
[5128.0,"SP","Mirandópolis"]
[5129.0,"SP","Mirante do Paranapanema"]
[5130.0,"SP","Mirassol"]
[5131.0,"SP","Mirassolândia"]
[5132.0,"SP","Mococa"]
[5133.0,"SP","Mogi das Cruzes"]
[5134.0,"SP","Mogi Guaçu"]
[5135.0,"SP","Moji Mirim"]
[5136.0,"SP","Mombuca"]
[5137.0,"SP","Monções"]
[5138.0,"SP","Mongaguá"]
[5139.0,"SP","Monte Alegre do Sul"]
[5140.0,"SP","Monte Alto"]
[5141.0,"SP","Monte Aprazível"]
[5142.0,"SP","Monte Azul Paulista"]
[5143.0,"SP","Monte Castelo"]
[5144.0,"SP","Monte Mor"]
[5145.0,"SP","Monteiro Lobato"]
[5146.0,"SP","Morro Agudo"]
[5147.0,"SP","Morungaba"]
[5148.0,"SP","Motuca"]
[5149.0,"SP","Murutinga do Sul"]
[5150.0,"SP","Nantes"]
[5151.0,"SP","Narandiba"]
[5152.0,"SP","Natividade da Serra"]
[5153.0,"SP","Nazaré Paulista"]
[5154.0,"SP","Neves Paulista"]
[5155.0,"SP","Nhandeara"]
[5156.0,"SP","Nipoã"]
[5157.0,"SP","Nova Aliança"]
[5158.0,"SP","Nova Campina"]
[5159.0,"SP","Nova Canaã Paulista"]
[5160.0,"SP","Nova Castilho"]
[5161.0,"SP","Nova Europa"]
[5162.0,"SP","Nova Granada"]
[5163.0,"SP","Nova Guataporanga"]
[5164.0,"SP","Nova Independência"]
[5165.0,"SP","Nova Luzitânia"]
[5166.0,"SP","Nova Odessa"]
[5167.0,"SP","Novais"]
[5168.0,"SP","Novo Horizonte"]
[5169.0,"SP","Nuporanga"]
[5170.0,"SP","Ocauçu"]
[5171.0,"SP","Óleo"]
[5172.0,"SP","Olímpia"]
[5173.0,"SP","Onda Verde"]
[5174.0,"SP","Oriente"]
[5175.0,"SP","Orindiúva"]
[5176.0,"SP","Orlândia"]
[5177.0,"SP","Osasco"]
[5178.0,"SP","Oscar Bressane"]
[5179.0,"SP","Osvaldo Cruz"]
[5180.0,"SP","Ourinhos"]
[5181.0,"SP","Ouro Verde"]
[5182.0,"SP","Ouroeste"]
[5183.0,"SP","Pacaembu"]
[5184.0,"SP","Palestina"]
[5185.0,"SP","Palmares Paulista"]
[5186.0,"SP","Palmeira dOeste"]
[5187.0,"SP","Palmital"]
[5188.0,"SP","Panorama"]
[5189.0,"SP","Paraguaçu Paulista"]
[5190.0,"SP","Paraibuna"]
[5191.0,"SP","Paraíso"]
[5192.0,"SP","Paranapanema"]
[5193.0,"SP","Paranapuã"]
[5194.0,"SP","Parapuã"]
[5195.0,"SP","Pardinho"]
[5196.0,"SP","Pariquera-Açu"]
[5197.0,"SP","Parisi"]
[5198.0,"SP","Patrocínio Paulista"]
[5199.0,"SP","Paulicéia"]
[5200.0,"SP","Paulínia"]
[5201.0,"SP","Paulistânia"]
[5202.0,"SP","Paulo de Faria"]
[5203.0,"SP","Pederneiras"]
[5204.0,"SP","Pedra Bela"]
[5205.0,"SP","Pedranópolis"]
[5206.0,"SP","Pedregulho"]
[5207.0,"SP","Pedreira"]
[5208.0,"SP","Pedrinhas Paulista"]
[5209.0,"SP","Pedro de Toledo"]
[5210.0,"SP","Penápolis"]
[5211.0,"SP","Pereira Barreto"]
[5212.0,"SP","Pereiras"]
[5213.0,"SP","Peruíbe"]
[5214.0,"SP","Piacatu"]
[5215.0,"SP","Piedade"]
[5216.0,"SP","Pilar do Sul"]
[5217.0,"SP","Pindamonhangaba"]
[5218.0,"SP","Pindorama"]
[5219.0,"SP","Pinhalzinho"]
[5220.0,"SP","Piquerobi"]
[5221.0,"SP","Piquete"]
[5222.0,"SP","Piracaia"]
[5223.0,"SP","Piracicaba"]
[5224.0,"SP","Piraju"]
[5225.0,"SP","Pirajuí"]
[5226.0,"SP","Pirangi"]
[5227.0,"SP","Pirapora do Bom Jesus"]
[5228.0,"SP","Pirapozinho"]
[5229.0,"SP","Pirassununga"]
[5230.0,"SP","Piratininga"]
[5231.0,"SP","Pitangueiras"]
[5232.0,"SP","Planalto"]
[5233.0,"SP","Platina"]
[5234.0,"SP","Poá"]
[5235.0,"SP","Poloni"]
[5236.0,"SP","Pompéia"]
[5237.0,"SP","Pongaí"]
[5238.0,"SP","Pontal"]
[5239.0,"SP","Pontalinda"]
[5240.0,"SP","Pontes Gestal"]
[5241.0,"SP","Populina"]
[5242.0,"SP","Porangaba"]
[5243.0,"SP","Porto Feliz"]
[5244.0,"SP","Porto Ferreira"]
[5245.0,"SP","Potim"]
[5246.0,"SP","Potirendaba"]
[5247.0,"SP","Pracinha"]
[5248.0,"SP","Pradópolis"]
[5249.0,"SP","Praia Grande"]
[5250.0,"SP","Pratânia"]
[5251.0,"SP","Presidente Alves"]
[5252.0,"SP","Presidente Bernardes"]
[5253.0,"SP","Presidente Epitácio"]
[5254.0,"SP","Presidente Prudente"]
[5255.0,"SP","Presidente Venceslau"]
[5256.0,"SP","Promissão"]
[5257.0,"SP","Quadra"]
[5258.0,"SP","Quatá"]
[5259.0,"SP","Queiroz"]
[5260.0,"SP","Queluz"]
[5261.0,"SP","Quintana"]
[5262.0,"SP","Rafard"]
[5263.0,"SP","Rancharia"]
[5264.0,"SP","Redenção da Serra"]
[5265.0,"SP","Regente Feijó"]
[5266.0,"SP","Reginópolis"]
[5267.0,"SP","Registro"]
[5268.0,"SP","Restinga"]
[5269.0,"SP","Ribeira"]
[5270.0,"SP","Ribeirão Bonito"]
[5271.0,"SP","Ribeirão Branco"]
[5272.0,"SP","Ribeirão Corrente"]
[5273.0,"SP","Ribeirão do Sul"]
[5274.0,"SP","Ribeirão dos Índios"]
[5275.0,"SP","Ribeirão Grande"]
[5276.0,"SP","Ribeirão Pires"]
[5277.0,"SP","Ribeirão Preto"]
[5278.0,"SP","Rifaina"]
[5279.0,"SP","Rincão"]
[5280.0,"SP","Rinópolis"]
[5281.0,"SP","Rio Claro"]
[5282.0,"SP","Rio das Pedras"]
[5283.0,"SP","Rio Grande da Serra"]
[5284.0,"SP","Riolândia"]
[5285.0,"SP","Riversul"]
[5286.0,"SP","Rosana"]
[5287.0,"SP","Roseira"]
[5288.0,"SP","Rubiácea"]
[5289.0,"SP","Rubinéia"]
[5290.0,"SP","Sabino"]
[5291.0,"SP","Sagres"]
[5292.0,"SP","Sales"]
[5293.0,"SP","Sales Oliveira"]
[5294.0,"SP","Salesópolis"]
[5295.0,"SP","Salmourão"]
[5296.0,"SP","Saltinho"]
[5297.0,"SP","Salto"]
[5298.0,"SP","Salto de Pirapora"]
[5299.0,"SP","Salto Grande"]
[5300.0,"SP","Sandovalina"]
[5301.0,"SP","Santa Adélia"]
[5302.0,"SP","Santa Albertina"]
[5303.0,"SP","Santa Bárbara dOeste"]
[5304.0,"SP","Santa Branca"]
[5305.0,"SP","Santa Clara dOeste"]
[5306.0,"SP","Santa Cruz da Conceição"]
[5307.0,"SP","Santa Cruz da Esperança"]
[5308.0,"SP","Santa Cruz das Palmeiras"]
[5309.0,"SP","Santa Cruz do Rio Pardo"]
[5310.0,"SP","Santa Ernestina"]
[5311.0,"SP","Santa Fé do Sul"]
[5312.0,"SP","Santa Gertrudes"]
[5313.0,"SP","Santa Isabel"]
[5314.0,"SP","Santa Lúcia"]
[5315.0,"SP","Santa Maria da Serra"]
[5316.0,"SP","Santa Mercedes"]
[5317.0,"SP","Santa Rita do Passa Quatro"]
[5318.0,"SP","Santa Rita dOeste"]
[5319.0,"SP","Santa Rosa de Viterbo"]
[5320.0,"SP","Santa Salete"]
[5321.0,"SP","Santana da Ponte Pensa"]
[5322.0,"SP","Santana de Parnaíba"]
[5323.0,"SP","Santo Anastácio"]
[5324.0,"SP","Santo André"]
[5325.0,"SP","Santo Antônio da Alegria"]
[5326.0,"SP","Santo Antônio de Posse"]
[5327.0,"SP","Santo Antônio do Aracanguá"]
[5328.0,"SP","Santo Antônio do Jardim"]
[5329.0,"SP","Santo Antônio do Pinhal"]
[5330.0,"SP","Santo Expedito"]
[5331.0,"SP","Santópolis do Aguapeí"]
[5332.0,"SP","Santos"]
[5333.0,"SP","São Bento do Sapucaí"]
[5334.0,"SP","São Bernardo do Campo"]
[5335.0,"SP","São Caetano do Sul"]
[5336.0,"SP","São Carlos"]
[5337.0,"SP","São Francisco"]
[5338.0,"SP","São João da Boa Vista"]
[5339.0,"SP","São João das Duas Pontes"]
[5340.0,"SP","São João de Iracema"]
[5341.0,"SP","São João do Pau dAlho"]
[5342.0,"SP","São Joaquim da Barra"]
[5343.0,"SP","São José da Bela Vista"]
[5344.0,"SP","São José do Barreiro"]
[5345.0,"SP","São José do Rio Pardo"]
[5346.0,"SP","São José do Rio Preto"]
[5347.0,"SP","São José dos Campos"]
[5348.0,"SP","São Lourenço da Serra"]
[5349.0,"SP","São Luís do Paraitinga"]
[5350.0,"SP","São Manuel"]
[5351.0,"SP","São Miguel Arcanjo"]
[5352.0,"SP","São Paulo"]
[5353.0,"SP","São Pedro"]
[5354.0,"SP","São Pedro do Turvo"]
[5355.0,"SP","São Roque"]
[5356.0,"SP","São Sebastião"]
[5357.0,"SP","São Sebastião da Grama"]
[5358.0,"SP","São Simão"]
[5359.0,"SP","São Vicente"]
[5360.0,"SP","Sarapuí"]
[5361.0,"SP","Sarutaiá"]
[5362.0,"SP","Sebastianópolis do Sul"]
[5363.0,"SP","Serra Azul"]
[5364.0,"SP","Serra Negra"]
[5365.0,"SP","Serrana"]
[5366.0,"SP","Sertãozinho"]
[5367.0,"SP","Sete Barras"]
[5368.0,"SP","Severínia"]
[5369.0,"SP","Silveiras"]
[5370.0,"SP","Socorro"]
[5371.0,"SP","Sorocaba"]
[5372.0,"SP","Sud Mennucci"]
[5373.0,"SP","Sumaré"]
[5374.0,"SP","Suzanápolis"]
[5375.0,"SP","Suzano"]
[5376.0,"SP","Tabapuã"]
[5377.0,"SP","Tabatinga"]
[5378.0,"SP","Taboão da Serra"]
[5379.0,"SP","Taciba"]
[5380.0,"SP","Taguaí"]
[5381.0,"SP","Taiaçu"]
[5382.0,"SP","Taiúva"]
[5383.0,"SP","Tambaú"]
[5384.0,"SP","Tanabi"]
[5385.0,"SP","Tapiraí"]
[5386.0,"SP","Tapiratiba"]
[5387.0,"SP","Taquaral"]
[5388.0,"SP","Taquaritinga"]
[5389.0,"SP","Taquarituba"]
[5390.0,"SP","Taquarivaí"]
[5391.0,"SP","Tarabai"]
[5392.0,"SP","Tarumã"]
[5393.0,"SP","Tatuí"]
[5394.0,"SP","Taubaté"]
[5395.0,"SP","Tejupá"]
[5396.0,"SP","Teodoro Sampaio"]
[5397.0,"SP","Terra Roxa"]
[5398.0,"SP","Tietê"]
[5399.0,"SP","Timburi"]
[5400.0,"SP","Torre de Pedra"]
[5401.0,"SP","Torrinha"]
[5402.0,"SP","Trabiju"]
[5403.0,"SP","Tremembé"]
[5404.0,"SP","Três Fronteiras"]
[5405.0,"SP","Tuiuti"]
[5406.0,"SP","Tupã"]
[5407.0,"SP","Tupi Paulista"]
[5408.0,"SP","Turiúba"]
[5409.0,"SP","Turmalina"]
[5410.0,"SP","Ubarana"]
[5411.0,"SP","Ubatuba"]
[5412.0,"SP","Ubirajara"]
[5413.0,"SP","Uchoa"]
[5414.0,"SP","União Paulista"]
[5415.0,"SP","Urânia"]
[5416.0,"SP","Uru"]
[5417.0,"SP","Urupês"]
[5418.0,"SP","Valentim Gentil"]
[5419.0,"SP","Valinhos"]
[5420.0,"SP","Valparaíso"]
[5421.0,"SP","Vargem"]
[5422.0,"SP","Vargem Grande do Sul"]
[5423.0,"SP","Vargem Grande Paulista"]
[5424.0,"SP","Várzea Paulista"]
[5425.0,"SP","Vera Cruz"]
[5426.0,"SP","Vinhedo"]
[5427.0,"SP","Viradouro"]
[5428.0,"SP","Vista Alegre do Alto"]
[5429.0,"SP","Vitória Brasil"]
[5430.0,"SP","Votorantim"]
[5431.0,"SP","Votuporanga"]
[5432.0,"SP","Zacarias"]
[5433.0,"TO","Abreulândia"]
[5434.0,"TO","Aguiarnópolis"]
[5435.0,"TO","Aliança do Tocantins"]
[5436.0,"TO","Almas"]
[5437.0,"TO","Alvorada"]
[5438.0,"TO","Ananás"]
[5439.0,"TO","Angico"]
[5440.0,"TO","Aparecida do Rio Negro"]
[5441.0,"TO","Aragominas"]
[5442.0,"TO","Araguacema"]
[5443.0,"TO","Araguaçu"]
[5444.0,"TO","Araguaína"]
[5445.0,"TO","Araguanã"]
[5446.0,"TO","Araguatins"]
[5447.0,"TO","Arapoema"]
[5448.0,"TO","Arraias"]
[5449.0,"TO","Augustinópolis"]
[5450.0,"TO","Aurora do Tocantins"]
[5451.0,"TO","Axixá do Tocantins"]
[5452.0,"TO","Babaçulândia"]
[5453.0,"TO","Bandeirantes do Tocantins"]
[5454.0,"TO","Barra do Ouro"]
[5455.0,"TO","Barrolândia"]
[5456.0,"TO","Bernardo Sayão"]
[5457.0,"TO","Bom Jesus do Tocantins"]
[5458.0,"TO","Brasilândia do Tocantins"]
[5459.0,"TO","Brejinho de Nazaré"]
[5460.0,"TO","Buriti do Tocantins"]
[5461.0,"TO","Cachoeirinha"]
[5462.0,"TO","Campos Lindos"]
[5463.0,"TO","Cariri do Tocantins"]
[5464.0,"TO","Carmolândia"]
[5465.0,"TO","Carrasco Bonito"]
[5466.0,"TO","Caseara"]
[5467.0,"TO","Centenário"]
[5468.0,"TO","Chapada da Natividade"]
[5469.0,"TO","Chapada de Areia"]
[5470.0,"TO","Colinas do Tocantins"]
[5471.0,"TO","Colméia"]
[5472.0,"TO","Combinado"]
[5473.0,"TO","Conceição do Tocantins"]
[5474.0,"TO","Couto de Magalhães"]
[5475.0,"TO","Cristalândia"]
[5476.0,"TO","Crixás do Tocantins"]
[5477.0,"TO","Darcinópolis"]
[5478.0,"TO","Dianópolis"]
[5479.0,"TO","Divinópolis do Tocantins"]
[5480.0,"TO","Dois Irmãos do Tocantins"]
[5481.0,"TO","Dueré"]
[5482.0,"TO","Esperantina"]
[5483.0,"TO","Fátima"]
[5484.0,"TO","Figueirópolis"]
[5485.0,"TO","Filadélfia"]
[5486.0,"TO","Formoso do Araguaia"]
[5487.0,"TO","Fortaleza do Tabocão"]
[5488.0,"TO","Goianorte"]
[5489.0,"TO","Goiatins"]
[5490.0,"TO","Guaraí"]
[5491.0,"TO","Gurupi"]
[5492.0,"TO","Ipueiras"]
[5493.0,"TO","Itacajá"]
[5494.0,"TO","Itaguatins"]
[5495.0,"TO","Itapiratins"]
[5496.0,"TO","Itaporã do Tocantins"]
[5497.0,"TO","Jaú do Tocantins"]
[5498.0,"TO","Juarina"]
[5499.0,"TO","Lagoa da Confusão"]
[5500.0,"TO","Lagoa do Tocantins"]
[5501.0,"TO","Lajeado"]
[5502.0,"TO","Lavandeira"]
[5503.0,"TO","Lizarda"]
[5504.0,"TO","Luzinópolis"]
[5505.0,"TO","Marianópolis do Tocantins"]
[5506.0,"TO","Mateiros"]
[5507.0,"TO","Maurilândia do Tocantins"]
[5508.0,"TO","Miracema do Tocantins"]
[5509.0,"TO","Miranorte"]
[5510.0,"TO","Monte do Carmo"]
[5511.0,"TO","Monte Santo do Tocantins"]
[5512.0,"TO","Muricilândia"]
[5513.0,"TO","Natividade"]
[5514.0,"TO","Nazaré"]
[5515.0,"TO","Nova Olinda"]
[5516.0,"TO","Nova Rosalândia"]
[5517.0,"TO","Novo Acordo"]
[5518.0,"TO","Novo Alegre"]
[5519.0,"TO","Novo Jardim"]
[5520.0,"TO","Oliveira de Fátima"]
[5521.0,"TO","Palmas"]
[5522.0,"TO","Palmeirante"]
[5523.0,"TO","Palmeiras do Tocantins"]
[5524.0,"TO","Palmeirópolis"]
[5525.0,"TO","Paraíso do Tocantins"]
[5526.0,"TO","Paranã"]
[5527.0,"TO","Pau DArco"]
[5528.0,"TO","Pedro Afonso"]
[5529.0,"TO","Peixe"]
[5530.0,"TO","Pequizeiro"]
[5531.0,"TO","Pindorama do Tocantins"]
[5532.0,"TO","Piraquê"]
[5533.0,"TO","Pium"]
[5534.0,"TO","Ponte Alta do Bom Jesus"]
[5535.0,"TO","Ponte Alta do Tocantins"]
[5536.0,"TO","Porto Alegre do Tocantins"]
[5537.0,"TO","Porto Nacional"]
[5538.0,"TO","Praia Norte"]
[5539.0,"TO","Presidente Kennedy"]
[5540.0,"TO","Pugmil"]
[5541.0,"TO","Recursolândia"]
[5542.0,"TO","Riachinho"]
[5543.0,"TO","Rio da Conceição"]
[5544.0,"TO","Rio dos Bois"]
[5545.0,"TO","Rio Sono"]
[5546.0,"TO","Sampaio"]
[5547.0,"TO","Sandolândia"]
[5548.0,"TO","Santa Fé do Araguaia"]
[5549.0,"TO","Santa Maria do Tocantins"]
[5550.0,"TO","Santa Rita do Tocantins"]
[5551.0,"TO","Santa Rosa do Tocantins"]
[5552.0,"TO","Santa Tereza do Tocantins"]
[5553.0,"TO","Santa Terezinha do Tocantins"]
[5554.0,"TO","São Bento do Tocantins"]
[5555.0,"TO","São Félix do Tocantins"]
[5556.0,"TO","São Miguel do Tocantins"]
[5557.0,"TO","São Salvador do Tocantins"]
[5558.0,"TO","São Sebastião do Tocantins"]
[5559.0,"TO","São Valério da Natividade"]
[5560.0,"TO","Silvanópolis"]
[5561.0,"TO","Sítio Novo do Tocantins"]
[5562.0,"TO","Sucupira"]
[5563.0,"TO","Taguatinga"]
[5564.0,"TO","Taipas do Tocantins"]
[5565.0,"TO","Talismã"]
[5566.0,"TO","Tocantínia"]
[5567.0,"TO","Tocantinópolis"]
[5568.0,"TO","Tupirama"]
[5569.0,"TO","Tupiratins"]
[5570.0,"TO","Wanderlândia"]
[5571.0,"TO","Xambioá"]